Workbook

Sheet Sheet1 (hidden)

Sheet 無地画面

Sheet 既定シート現在名
E2: 既定シート現在名
B4: NO | C4: シート名・インターフェースボタン名 | D4: NO | E4: シート名・インターフェースボタン名 | F4: NO | G4: シート名・インターフェースボタン名 | H4: NO | I4: シート名・インターフェースボタン名 | J4: NO | K4: シート名・インターフェースボタン名
B5: 1 | C5: シート名設定 | D5: 51 | E5: 印刷フォーム21 | F5: 101 | G5: =C19&"印刷ボタン" -> 一覧表付ファイル作成入力設定11印刷ボタン | H5: 151 | J5: 201
B6: 2 | C6: 項目表示入力 | D6: 52 | E6: 印刷フォーム22 | F6: 102 | G6: =C20&"印刷ボタン" -> 一覧表付ファイル作成入力設定12印刷ボタン | H6: 152 | J6: 202
B7: 3 | C7: 項目表示作成 | D7: 53 | E7: 印刷フォーム23 | F7: 103 | G7: 一覧表付ファイル作成入力設定13印刷ボタン | H7: 153 | J7: 203
B8: 4 | C8: 行列入力項目 | D8: 54 | E8: 印刷フォーム24 | F8: 104 | G8: 一覧表付ファイル作成入力設定14印刷ボタン | H8: 154 | J8: 204
B9: 5 | C9: ３学年学年積立金会計報告(学年分)個人別印刷設定 | D9: 55 | E9: 印刷フォーム25 | F9: 105 | G9: 一覧表付ファイル作成入力設定15印刷ボタン | H9: 155 | J9: 205
B10: 6 | C10: ○○○子学年積立金会計報告個人別印刷設定 | D10: 56 | E10: 印刷フォーム26 | F10: 106 | G10: 一覧表付ファイル作成入力設定16印刷ボタン | H10: 156 | J10: 206
B11: 7 | C11: □□□子学年積立金会計報告個人別印刷設定 | D11: 57 | E11: 印刷フォーム27 | F11: 107 | G11: 一覧表付ファイル作成入力設定17印刷ボタン | H11: 157 | J11: 207
B12: 8 | C12: 学年積立金の返金並びに返金振込口座の確認印刷設定 | D12: 58 | E12: 印刷フォーム28 | F12: 108 | G12: 一覧表付ファイル作成入力設定18印刷ボタン | H12: 158 | J12: 208
B13: 9 | C13: 一覧表付ファイル作成入力設定5 | D13: 59 | E13: 印刷フォーム29 | F13: 109 | G13: 一覧表付ファイル作成入力設定19印刷ボタン | H13: 159 | J13: 209
B14: 10 | C14: 一覧表付ファイル作成入力設定6 | D14: 60 | E14: 印刷フォーム30 | F14: 110 | G14: 一覧表付ファイル作成入力設定20印刷ボタン | H14: 160 | J14: 210
B15: 11 | C15: 一覧表付ファイル作成入力設定7 | D15: 61 | E15: 学年積立金会計報告個人別（通年）ソートデーター | F15: 111 | G15: =C9&"印刷" -> ３学年学年積立金会計報告(学年分)個人別印刷設定印刷 | H15: 161 | J15: 211
B16: 12 | C16: 一覧表付ファイル作成入力設定8 | D16: 62 | E16: 学年積立金の返金並びに返金振込口座の確認フォームソートデーター | F16: 112 | G16: =C10&"印刷" -> ○○○子学年積立金会計報告個人別印刷設定印刷 | H16: 162 | J16: 212
B17: 13 | C17: 一覧表付ファイル作成入力設定9 | D17: 63 | E17: 印刷フォーム3ソートデーター | F17: 113 | G17: □□□子学年積立金会計報告個人別印刷設定印刷 | H17: 163 | J17: 213
B18: 14 | C18: 一覧表付ファイル作成入力設定10 | D18: 64 | E18: 印刷フォーム4ソートデーター | F18: 114 | G18: 学年積立金の返金並びに返金振込口座の確認印刷設定印刷 | H18: 164 | J18: 214
B19: 15 | C19: 一覧表付ファイル作成入力設定11 | D19: 65 | E19: 印刷フォーム5ソートデーター | F19: 115 | G19: 一覧表付ファイル作成入力設定5印刷 | H19: 165 | J19: 215
B20: 16 | C20: 一覧表付ファイル作成入力設定12 | D20: 66 | E20: 印刷フォーム6ソートデーター | F20: 116 | G20: 一覧表付ファイル作成入力設定6印刷 | H20: 166 | J20: 216
B21: 17 | C21: 一覧表付ファイル作成入力設定13 | D21: 67 | E21: 印刷フォーム7ソートデーター | F21: 117 | G21: 一覧表付ファイル作成入力設定7印刷 | H21: 167 | J21: 217
B22: 18 | C22: 一覧表付ファイル作成入力設定14 | D22: 68 | E22: 印刷フォーム8ソートデーター | F22: 118 | G22: 一覧表付ファイル作成入力設定8印刷 | H22: 168 | J22: 218
B23: 19 | C23: 一覧表付ファイル作成入力設定15 | D23: 69 | E23: 印刷フォーム9ソートデーター | F23: 119 | G23: 一覧表付ファイル作成入力設定9印刷 | H23: 169 | J23: 219
B24: 20 | C24: 一覧表付ファイル作成入力設定16 | D24: 70 | E24: 印刷フォーム10ソートデーター | F24: 120 | G24: 一覧表付ファイル作成入力設定10印刷 | H24: 170 | J24: 220
B25: 21 | C25: 一覧表付ファイル作成入力設定17 | D25: 71 | E25: 印刷フォーム11ソートデーター | F25: 121 | G25: 一覧表付ファイル作成入力設定11印刷 | H25: 171 | J25: 221
B26: 22 | C26: 一覧表付ファイル作成入力設定18 | D26: 72 | E26: 印刷フォーム12ソートデーター | F26: 122 | G26: 一覧表付ファイル作成入力設定12印刷 | H26: 172 | J26: 222
B27: 23 | C27: 一覧表付ファイル作成入力設定19 | D27: 73 | E27: 印刷フォーム13ソートデーター | F27: 123 | G27: 一覧表付ファイル作成入力設定13印刷 | H27: 173 | J27: 223
B28: 24 | C28: 一覧表付ファイル作成入力設定20 | D28: 74 | E28: 印刷フォーム14ソートデーター | F28: 124 | G28: 一覧表付ファイル作成入力設定14印刷 | H28: 174 | J28: 224
B29: 25 | C29: ファイル作成コピー用 | D29: 75 | E29: 印刷フォーム15ソートデーター | F29: 125 | G29: 一覧表付ファイル作成入力設定15印刷 | H29: 175 | J29: 225
B30: 26 | C30: 入力AA1 | D30: 76 | E30: 印刷フォーム16ソートデーター | F30: 126 | G30: 一覧表付ファイル作成入力設定16印刷 | H30: 176 | J30: 226
B31: 27 | C31: 無し１ | D31: 77 | E31: 印刷フォーム17ソートデーター | F31: 127 | G31: 一覧表付ファイル作成入力設定17印刷 | H31: 177 | J31: 227
B32: 28 | C32: 無し２ | D32: 78 | E32: 印刷フォーム18ソートデーター | F32: 128 | G32: 一覧表付ファイル作成入力設定18印刷 | H32: 178 | J32: 228
B33: 29 | C33: 無し３ | D33: 79 | E33: 印刷フォーム19ソートデーター | F33: 129 | G33: 一覧表付ファイル作成入力設定19印刷 | H33: 179 | J33: 229
B34: 30 | C34: 無し４ | D34: 80 | E34: 印刷フォーム20ソートデーター | F34: 130 | G34: 一覧表付ファイル作成入力設定20印刷 | H34: 180 | J34: 230
B35: 31 | C35: 平成１７年度第３学年会計報告個人別（通年） | D35: 81 | E35: 印刷フォーム21ソートデーター | F35: 131 | G35: インターフェース画面設定 | H35: 181 | J35: 231
B36: 32 | C36: ○○○子学年積立金会計報告印刷フォーム | D36: 82 | E36: 印刷フォーム22ソートデーター | F36: 132 | G36: 追加ワークシート名設定 | H36: 182 | J36: 232
B37: 33 | C37: □□□子学年積立金会計報告印刷フォーム | D37: 83 | E37: 印刷フォーム23ソートデーター | F37: 133 | G37: ファイル作成作業用シート | H37: 183 | J37: 233
B38: 34 | C38: 学年積立金の返金並びに返金振込口座の確認フォーム | D38: 84 | E38: 印刷フォーム24ソートデーター | F38: 134 | H38: 184 | J38: 234
B39: 35 | C39: 印刷フォーム5 | D39: 85 | E39: 印刷フォーム25ソートデーター | F39: 135 | H39: 185 | J39: 235
B40: 36 | C40: 印刷フォーム6 | D40: 86 | E40: 印刷フォーム26ソートデーター | F40: 136 | H40: 186 | J40: 236
B41: 37 | C41: 印刷フォーム7 | D41: 87 | E41: 印刷フォーム27ソートデーター | F41: 137 | H41: 187 | J41: 237
B42: 38 | C42: 印刷フォーム8 | D42: 88 | E42: 印刷フォーム28ソートデーター | F42: 138 | H42: 188 | J42: 238
B43: 39 | C43: 印刷フォーム9 | D43: 89 | E43: 印刷フォーム29ソートデーター | F43: 139 | H43: 189 | J43: 239
B44: 40 | C44: 印刷フォーム10 | D44: 90 | E44: 印刷フォーム30ソートデーター | F44: 140 | H44: 190 | J44: 240
B45: 41 | C45: 印刷フォーム11 | D45: 91 | E45: =C9&"印刷ボタン" -> ３学年学年積立金会計報告(学年分)個人別印刷設定印刷ボタン | F45: 141 | H45: 191 | J45: 241
B46: 42 | C46: 印刷フォーム12 | D46: 92 | E46: =C10&"印刷ボタン" -> ○○○子学年積立金会計報告個人別印刷設定印刷ボタン | F46: 142 | H46: 192 | J46: 242
B47: 43 | C47: 印刷フォーム13 | D47: 93 | E47: □□□子学年積立金会計報告個人別印刷設定印刷ボタン | F47: 143 | H47: 193 | J47: 243
B48: 44 | C48: 印刷フォーム14 | D48: 94 | E48: 学年積立金の返金並びに返金振込口座の確認印刷設定印刷ボタン | F48: 144 | H48: 194 | J48: 244
B49: 45 | C49: 印刷フォーム15 | D49: 95 | E49: 一覧表付ファイル作成入力設定5印刷ボタン | F49: 145 | H49: 195 | J49: 245
B50: 46 | C50: 印刷フォーム16 | D50: 96 | E50: 一覧表付ファイル作成入力設定6印刷ボタン | F50: 146 | H50: 196 | J50: 246
B51: 47 | C51: 印刷フォーム17 | D51: 97 | E51: 一覧表付ファイル作成入力設定7印刷ボタン | F51: 147 | H51: 197 | J51: 247
B52: 48 | C52: 印刷フォーム18 | D52: 98 | E52: 一覧表付ファイル作成入力設定8印刷ボタン | F52: 148 | H52: 198 | J52: 248
B53: 49 | C53: 印刷フォーム19 | D53: 99 | E53: 一覧表付ファイル作成入力設定9印刷ボタン | F53: 149 | H53: 199 | J53: 249
B54: 50 | C54: 印刷フォーム20 | D54: 100 | E54: 一覧表付ファイル作成入力設定10印刷ボタン | F54: 150 | H54: 200 | J54: 250

Sheet 標準シート名等
E2: 標準シート名等
B4: NO | C4: シート名・インターフェースボタン名 | D4: NO | E4: シート名・インターフェースボタン名 | F4: NO | G4: シート名・インターフェースボタン名 | H4: NO | I4: シート名・インターフェースボタン名 | J4: NO | K4: シート名・インターフェースボタン名
B5: 1 | C5: シート名設定 | D5: 51 | E5: 印刷フォーム21 | F5: 101 | G5: =C19&"印刷ボタン" -> 一覧表付ファイル作成入力設定11印刷ボタン | H5: 151 | J5: 201
B6: 2 | C6: 項目表示入力 | D6: 52 | E6: 印刷フォーム22 | F6: 102 | G6: =C20&"印刷ボタン" -> 一覧表付ファイル作成入力設定12印刷ボタン | H6: 152 | J6: 202
B7: 3 | C7: 項目表示作成 | D7: 53 | E7: 印刷フォーム23 | F7: 103 | G7: 一覧表付ファイル作成入力設定13印刷ボタン | H7: 153 | J7: 203
B8: 4 | C8: 行列入力項目 | D8: 54 | E8: 印刷フォーム24 | F8: 104 | G8: 一覧表付ファイル作成入力設定14印刷ボタン | H8: 154 | J8: 204
B9: 5 | C9: 一覧表付ファイル作成入力設定1 | D9: 55 | E9: 印刷フォーム25 | F9: 105 | G9: 一覧表付ファイル作成入力設定15印刷ボタン | H9: 155 | J9: 205
B10: 6 | C10: 一覧表付ファイル作成入力設定2 | D10: 56 | E10: 印刷フォーム26 | F10: 106 | G10: 一覧表付ファイル作成入力設定16印刷ボタン | H10: 156 | J10: 206
B11: 7 | C11: 一覧表付ファイル作成入力設定3 | D11: 57 | E11: 印刷フォーム27 | F11: 107 | G11: 一覧表付ファイル作成入力設定17印刷ボタン | H11: 157 | J11: 207
B12: 8 | C12: 一覧表付ファイル作成入力設定4 | D12: 58 | E12: 印刷フォーム28 | F12: 108 | G12: 一覧表付ファイル作成入力設定18印刷ボタン | H12: 158 | J12: 208
B13: 9 | C13: 一覧表付ファイル作成入力設定5 | D13: 59 | E13: 印刷フォーム29 | F13: 109 | G13: 一覧表付ファイル作成入力設定19印刷ボタン | H13: 159 | J13: 209
B14: 10 | C14: 一覧表付ファイル作成入力設定6 | D14: 60 | E14: 印刷フォーム30 | F14: 110 | G14: 一覧表付ファイル作成入力設定20印刷ボタン | H14: 160 | J14: 210
B15: 11 | C15: 一覧表付ファイル作成入力設定7 | D15: 61 | E15: 印刷フォーム1ソートデーター | F15: 111 | G15: =C9&"印刷" -> 一覧表付ファイル作成入力設定1印刷 | H15: 161 | J15: 211
B16: 12 | C16: 一覧表付ファイル作成入力設定8 | D16: 62 | E16: 印刷フォーム2ソートデーター | F16: 112 | G16: =C10&"印刷" -> 一覧表付ファイル作成入力設定2印刷 | H16: 162 | J16: 212
B17: 13 | C17: 一覧表付ファイル作成入力設定9 | D17: 63 | E17: 印刷フォーム3ソートデーター | F17: 113 | G17: 一覧表付ファイル作成入力設定3印刷 | H17: 163 | J17: 213
B18: 14 | C18: 一覧表付ファイル作成入力設定10 | D18: 64 | E18: 印刷フォーム4ソートデーター | F18: 114 | G18: 一覧表付ファイル作成入力設定4印刷 | H18: 164 | J18: 214
B19: 15 | C19: 一覧表付ファイル作成入力設定11 | D19: 65 | E19: 印刷フォーム5ソートデーター | F19: 115 | G19: 一覧表付ファイル作成入力設定5印刷 | H19: 165 | J19: 215
B20: 16 | C20: 一覧表付ファイル作成入力設定12 | D20: 66 | E20: 印刷フォーム6ソートデーター | F20: 116 | G20: 一覧表付ファイル作成入力設定6印刷 | H20: 166 | J20: 216
B21: 17 | C21: 一覧表付ファイル作成入力設定13 | D21: 67 | E21: 印刷フォーム7ソートデーター | F21: 117 | G21: 一覧表付ファイル作成入力設定7印刷 | H21: 167 | J21: 217
B22: 18 | C22: 一覧表付ファイル作成入力設定14 | D22: 68 | E22: 印刷フォーム8ソートデーター | F22: 118 | G22: 一覧表付ファイル作成入力設定8印刷 | H22: 168 | J22: 218
B23: 19 | C23: 一覧表付ファイル作成入力設定15 | D23: 69 | E23: 印刷フォーム9ソートデーター | F23: 119 | G23: 一覧表付ファイル作成入力設定9印刷 | H23: 169 | J23: 219
B24: 20 | C24: 一覧表付ファイル作成入力設定16 | D24: 70 | E24: 印刷フォーム10ソートデーター | F24: 120 | G24: 一覧表付ファイル作成入力設定10印刷 | H24: 170 | J24: 220
B25: 21 | C25: 一覧表付ファイル作成入力設定17 | D25: 71 | E25: 印刷フォーム11ソートデーター | F25: 121 | G25: 一覧表付ファイル作成入力設定11印刷 | H25: 171 | J25: 221
B26: 22 | C26: 一覧表付ファイル作成入力設定18 | D26: 72 | E26: 印刷フォーム12ソートデーター | F26: 122 | G26: 一覧表付ファイル作成入力設定12印刷 | H26: 172 | J26: 222
B27: 23 | C27: 一覧表付ファイル作成入力設定19 | D27: 73 | E27: 印刷フォーム13ソートデーター | F27: 123 | G27: 一覧表付ファイル作成入力設定13印刷 | H27: 173 | J27: 223
B28: 24 | C28: 一覧表付ファイル作成入力設定20 | D28: 74 | E28: 印刷フォーム14ソートデーター | F28: 124 | G28: 一覧表付ファイル作成入力設定14印刷 | H28: 174 | J28: 224
B29: 25 | C29: ファイル作成コピー用 | D29: 75 | E29: 印刷フォーム15ソートデーター | F29: 125 | G29: 一覧表付ファイル作成入力設定15印刷 | H29: 175 | J29: 225
B30: 26 | C30: 入力AA1 | D30: 76 | E30: 印刷フォーム16ソートデーター | F30: 126 | G30: 一覧表付ファイル作成入力設定16印刷 | H30: 176 | J30: 226
B31: 27 | C31: 無し１ | D31: 77 | E31: 印刷フォーム17ソートデーター | F31: 127 | G31: 一覧表付ファイル作成入力設定17印刷 | H31: 177 | J31: 227
B32: 28 | C32: 無し２ | D32: 78 | E32: 印刷フォーム18ソートデーター | F32: 128 | G32: 一覧表付ファイル作成入力設定18印刷 | H32: 178 | J32: 228
B33: 29 | C33: 無し３ | D33: 79 | E33: 印刷フォーム19ソートデーター | F33: 129 | G33: 一覧表付ファイル作成入力設定19印刷 | H33: 179 | J33: 229
B34: 30 | C34: 無し４ | D34: 80 | E34: 印刷フォーム20ソートデーター | F34: 130 | G34: 一覧表付ファイル作成入力設定20印刷 | H34: 180 | J34: 230
B35: 31 | C35: 印刷フォーム1 | D35: 81 | E35: 印刷フォーム21ソートデーター | F35: 131 | G35: インターフェース画面設定 | H35: 181 | J35: 231
B36: 32 | C36: 印刷フォーム2 | D36: 82 | E36: 印刷フォーム22ソートデーター | F36: 132 | G36: 追加ワークシート名設定 | H36: 182 | J36: 232
B37: 33 | C37: 印刷フォーム3 | D37: 83 | E37: 印刷フォーム23ソートデーター | F37: 133 | G37: ファイル作成作業用シート | H37: 183 | J37: 233
B38: 34 | C38: 印刷フォーム4 | D38: 84 | E38: 印刷フォーム24ソートデーター | F38: 134 | H38: 184 | J38: 234
B39: 35 | C39: 印刷フォーム5 | D39: 85 | E39: 印刷フォーム25ソートデーター | F39: 135 | H39: 185 | J39: 235
B40: 36 | C40: 印刷フォーム6 | D40: 86 | E40: 印刷フォーム26ソートデーター | F40: 136 | H40: 186 | J40: 236
B41: 37 | C41: 印刷フォーム7 | D41: 87 | E41: 印刷フォーム27ソートデーター | F41: 137 | H41: 187 | J41: 237
B42: 38 | C42: 印刷フォーム8 | D42: 88 | E42: 印刷フォーム28ソートデーター | F42: 138 | H42: 188 | J42: 238
B43: 39 | C43: 印刷フォーム9 | D43: 89 | E43: 印刷フォーム29ソートデーター | F43: 139 | H43: 189 | J43: 239
B44: 40 | C44: 印刷フォーム10 | D44: 90 | E44: 印刷フォーム30ソートデーター | F44: 140 | H44: 190 | J44: 240
B45: 41 | C45: 印刷フォーム11 | D45: 91 | E45: =C9&"印刷ボタン" -> 一覧表付ファイル作成入力設定1印刷ボタン | F45: 141 | H45: 191 | J45: 241
B46: 42 | C46: 印刷フォーム12 | D46: 92 | E46: =C10&"印刷ボタン" -> 一覧表付ファイル作成入力設定2印刷ボタン | F46: 142 | H46: 192 | J46: 242
B47: 43 | C47: 印刷フォーム13 | D47: 93 | E47: 一覧表付ファイル作成入力設定3印刷ボタン | F47: 143 | H47: 193 | J47: 243
B48: 44 | C48: 印刷フォーム14 | D48: 94 | E48: 一覧表付ファイル作成入力設定4印刷ボタン | F48: 144 | H48: 194 | J48: 244
B49: 45 | C49: 印刷フォーム15 | D49: 95 | E49: 一覧表付ファイル作成入力設定5印刷ボタン | F49: 145 | H49: 195 | J49: 245
B50: 46 | C50: 印刷フォーム16 | D50: 96 | E50: 一覧表付ファイル作成入力設定6印刷ボタン | F50: 146 | H50: 196 | J50: 246
B51: 47 | C51: 印刷フォーム17 | D51: 97 | E51: 一覧表付ファイル作成入力設定7印刷ボタン | F51: 147 | H51: 197 | J51: 247
B52: 48 | C52: 印刷フォーム18 | D52: 98 | E52: 一覧表付ファイル作成入力設定8印刷ボタン | F52: 148 | H52: 198 | J52: 248
B53: 49 | C53: 印刷フォーム19 | D53: 99 | E53: 一覧表付ファイル作成入力設定9印刷ボタン | F53: 149 | H53: 199 | J53: 249
B54: 50 | C54: 印刷フォーム20 | D54: 100 | E54: 一覧表付ファイル作成入力設定10印刷ボタン | F54: 150 | H54: 200 | J54: 250

Sheet シート名設定
E2: =C5 -> シート名設定
B4: NO | C4: シート名・インターフェースボタン名 | D4: NO | E4: シート名・インターフェースボタン名 | F4: NO | G4: シート名・インターフェースボタン名 | H4: NO | I4: シート名・インターフェースボタン名 | J4: NO | K4: シート名・インターフェースボタン名
B5: 1 | C5: シート名設定 | D5: 51 | E5: 印刷フォーム21 | F5: 101 | G5: =C19&"印刷ボタン" -> 一覧表付ファイル作成入力設定11印刷ボタン | H5: 151 | J5: 201
B6: 2 | C6: 項目表示入力 | D6: 52 | E6: 印刷フォーム22 | F6: 102 | G6: =C20&"印刷ボタン" -> 一覧表付ファイル作成入力設定12印刷ボタン | H6: 152 | J6: 202
B7: 3 | C7: 項目表示作成 | D7: 53 | E7: 印刷フォーム23 | F7: 103 | G7: 一覧表付ファイル作成入力設定13印刷ボタン | H7: 153 | J7: 203
B8: 4 | C8: 行列入力項目 | D8: 54 | E8: 印刷フォーム24 | F8: 104 | G8: 一覧表付ファイル作成入力設定14印刷ボタン | H8: 154 | J8: 204
B9: 5 | C9: ３学年学年積立金会計報告(学年分)個人別印刷設定 | D9: 55 | E9: 印刷フォーム25 | F9: 105 | G9: 一覧表付ファイル作成入力設定15印刷ボタン | H9: 155 | J9: 205
B10: 6 | C10: ○○○子学年積立金会計報告個人別印刷設定 | D10: 56 | E10: 印刷フォーム26 | F10: 106 | G10: 一覧表付ファイル作成入力設定16印刷ボタン | H10: 156 | J10: 206
B11: 7 | C11: □□□子学年積立金会計報告個人別印刷設定 | D11: 57 | E11: 印刷フォーム27 | F11: 107 | G11: 一覧表付ファイル作成入力設定17印刷ボタン | H11: 157 | J11: 207
B12: 8 | C12: 学年積立金の返金並びに返金振込口座の確認印刷設定 | D12: 58 | E12: 印刷フォーム28 | F12: 108 | G12: 一覧表付ファイル作成入力設定18印刷ボタン | H12: 158 | J12: 208
B13: 9 | C13: 一覧表付ファイル作成入力設定5 | D13: 59 | E13: 印刷フォーム29 | F13: 109 | G13: 一覧表付ファイル作成入力設定19印刷ボタン | H13: 159 | J13: 209
B14: 10 | C14: 一覧表付ファイル作成入力設定6 | D14: 60 | E14: 印刷フォーム30 | F14: 110 | G14: 一覧表付ファイル作成入力設定20印刷ボタン | H14: 160 | J14: 210
B15: 11 | C15: 一覧表付ファイル作成入力設定7 | D15: 61 | E15: 学年積立金会計報告個人別（通年）ソートデーター | F15: 111 | G15: =C9&"印刷" -> ３学年学年積立金会計報告(学年分)個人別印刷設定印刷 | H15: 161 | J15: 211
B16: 12 | C16: 一覧表付ファイル作成入力設定8 | D16: 62 | E16: 学年積立金の返金並びに返金振込口座の確認フォームソートデーター | F16: 112 | G16: =C10&"印刷" -> ○○○子学年積立金会計報告個人別印刷設定印刷 | H16: 162 | J16: 212
B17: 13 | C17: 一覧表付ファイル作成入力設定9 | D17: 63 | E17: 印刷フォーム3ソートデーター | F17: 113 | G17: □□□子学年積立金会計報告個人別印刷設定印刷 | H17: 163 | J17: 213
B18: 14 | C18: 一覧表付ファイル作成入力設定10 | D18: 64 | E18: 印刷フォーム4ソートデーター | F18: 114 | G18: 学年積立金の返金並びに返金振込口座の確認印刷設定印刷 | H18: 164 | J18: 214
B19: 15 | C19: 一覧表付ファイル作成入力設定11 | D19: 65 | E19: 印刷フォーム5ソートデーター | F19: 115 | G19: 一覧表付ファイル作成入力設定5印刷 | H19: 165 | J19: 215
B20: 16 | C20: 一覧表付ファイル作成入力設定12 | D20: 66 | E20: 印刷フォーム6ソートデーター | F20: 116 | G20: 一覧表付ファイル作成入力設定6印刷 | H20: 166 | J20: 216
B21: 17 | C21: 一覧表付ファイル作成入力設定13 | D21: 67 | E21: 印刷フォーム7ソートデーター | F21: 117 | G21: 一覧表付ファイル作成入力設定7印刷 | H21: 167 | J21: 217
B22: 18 | C22: 一覧表付ファイル作成入力設定14 | D22: 68 | E22: 印刷フォーム8ソートデーター | F22: 118 | G22: 一覧表付ファイル作成入力設定8印刷 | H22: 168 | J22: 218
B23: 19 | C23: 一覧表付ファイル作成入力設定15 | D23: 69 | E23: 印刷フォーム9ソートデーター | F23: 119 | G23: 一覧表付ファイル作成入力設定9印刷 | H23: 169 | J23: 219
B24: 20 | C24: 一覧表付ファイル作成入力設定16 | D24: 70 | E24: 印刷フォーム10ソートデーター | F24: 120 | G24: 一覧表付ファイル作成入力設定10印刷 | H24: 170 | J24: 220
B25: 21 | C25: 一覧表付ファイル作成入力設定17 | D25: 71 | E25: 印刷フォーム11ソートデーター | F25: 121 | G25: 一覧表付ファイル作成入力設定11印刷 | H25: 171 | J25: 221
B26: 22 | C26: 一覧表付ファイル作成入力設定18 | D26: 72 | E26: 印刷フォーム12ソートデーター | F26: 122 | G26: 一覧表付ファイル作成入力設定12印刷 | H26: 172 | J26: 222
B27: 23 | C27: 一覧表付ファイル作成入力設定19 | D27: 73 | E27: 印刷フォーム13ソートデーター | F27: 123 | G27: 一覧表付ファイル作成入力設定13印刷 | H27: 173 | J27: 223
B28: 24 | C28: 一覧表付ファイル作成入力設定20 | D28: 74 | E28: 印刷フォーム14ソートデーター | F28: 124 | G28: 一覧表付ファイル作成入力設定14印刷 | H28: 174 | J28: 224
B29: 25 | C29: ファイル作成コピー用 | D29: 75 | E29: 印刷フォーム15ソートデーター | F29: 125 | G29: 一覧表付ファイル作成入力設定15印刷 | H29: 175 | J29: 225
B30: 26 | C30: 入力AA1 | D30: 76 | E30: 印刷フォーム16ソートデーター | F30: 126 | G30: 一覧表付ファイル作成入力設定16印刷 | H30: 176 | J30: 226
B31: 27 | C31: 無し１ | D31: 77 | E31: 印刷フォーム17ソートデーター | F31: 127 | G31: 一覧表付ファイル作成入力設定17印刷 | H31: 177 | J31: 227
B32: 28 | C32: 無し２ | D32: 78 | E32: 印刷フォーム18ソートデーター | F32: 128 | G32: 一覧表付ファイル作成入力設定18印刷 | H32: 178 | J32: 228
B33: 29 | C33: 無し３ | D33: 79 | E33: 印刷フォーム19ソートデーター | F33: 129 | G33: 一覧表付ファイル作成入力設定19印刷 | H33: 179 | J33: 229
B34: 30 | C34: 無し４ | D34: 80 | E34: 印刷フォーム20ソートデーター | F34: 130 | G34: 一覧表付ファイル作成入力設定20印刷 | H34: 180 | J34: 230
B35: 31 | C35: 平成１７年度第３学年会計報告個人別（通年） | D35: 81 | E35: 印刷フォーム21ソートデーター | F35: 131 | G35: インターフェース画面設定 | H35: 181 | J35: 231
B36: 32 | C36: ○○○子学年積立金会計報告印刷フォーム | D36: 82 | E36: 印刷フォーム22ソートデーター | F36: 132 | G36: 追加ワークシート名設定 | H36: 182 | J36: 232
B37: 33 | C37: □□□子学年積立金会計報告印刷フォーム | D37: 83 | E37: 印刷フォーム23ソートデーター | F37: 133 | G37: ファイル作成作業用シート | H37: 183 | J37: 233
B38: 34 | C38: 学年積立金の返金並びに返金振込口座の確認フォーム | D38: 84 | E38: 印刷フォーム24ソートデーター | F38: 134 | H38: 184 | J38: 234
B39: 35 | C39: 印刷フォーム5 | D39: 85 | E39: 印刷フォーム25ソートデーター | F39: 135 | H39: 185 | J39: 235
B40: 36 | C40: 印刷フォーム6 | D40: 86 | E40: 印刷フォーム26ソートデーター | F40: 136 | H40: 186 | J40: 236
B41: 37 | C41: 印刷フォーム7 | D41: 87 | E41: 印刷フォーム27ソートデーター | F41: 137 | H41: 187 | J41: 237
B42: 38 | C42: 印刷フォーム8 | D42: 88 | E42: 印刷フォーム28ソートデーター | F42: 138 | H42: 188 | J42: 238
B43: 39 | C43: 印刷フォーム9 | D43: 89 | E43: 印刷フォーム29ソートデーター | F43: 139 | H43: 189 | J43: 239
B44: 40 | C44: 印刷フォーム10 | D44: 90 | E44: 印刷フォーム30ソートデーター | F44: 140 | H44: 190 | J44: 240
B45: 41 | C45: 印刷フォーム11 | D45: 91 | E45: =C9&"印刷ボタン" -> ３学年学年積立金会計報告(学年分)個人別印刷設定印刷ボタン | F45: 141 | H45: 191 | J45: 241
B46: 42 | C46: 印刷フォーム12 | D46: 92 | E46: =C10&"印刷ボタン" -> ○○○子学年積立金会計報告個人別印刷設定印刷ボタン | F46: 142 | H46: 192 | J46: 242
B47: 43 | C47: 印刷フォーム13 | D47: 93 | E47: □□□子学年積立金会計報告個人別印刷設定印刷ボタン | F47: 143 | H47: 193 | J47: 243
B48: 44 | C48: 印刷フォーム14 | D48: 94 | E48: 学年積立金の返金並びに返金振込口座の確認印刷設定印刷ボタン | F48: 144 | H48: 194 | J48: 244
B49: 45 | C49: 印刷フォーム15 | D49: 95 | E49: 一覧表付ファイル作成入力設定5印刷ボタン | F49: 145 | H49: 195 | J49: 245
B50: 46 | C50: 印刷フォーム16 | D50: 96 | E50: 一覧表付ファイル作成入力設定6印刷ボタン | F50: 146 | H50: 196 | J50: 246
B51: 47 | C51: 印刷フォーム17 | D51: 97 | E51: 一覧表付ファイル作成入力設定7印刷ボタン | F51: 147 | H51: 197 | J51: 247
B52: 48 | C52: 印刷フォーム18 | D52: 98 | E52: 一覧表付ファイル作成入力設定8印刷ボタン | F52: 148 | H52: 198 | J52: 248
B53: 49 | C53: 印刷フォーム19 | D53: 99 | E53: 一覧表付ファイル作成入力設定9印刷ボタン | F53: 149 | H53: 199 | J53: 249
B54: 50 | C54: 印刷フォーム20 | D54: 100 | E54: 一覧表付ファイル作成入力設定10印刷ボタン | F54: 150 | H54: 200 | J54: 250
C61: 8678D8FA7C68EBCD多田記一 | D61: 1
C62: 8678D8FA7C68EBCD多田記一 | D62: 2024heisei28nenndokojinnbetukaikeihoukokugakunennbunnver1no2.xlsm

Sheet 入力シート入力可能行数調査
C3: 入力シート入力可能行数調査
C5: 最大入力可能行数 | D5: =MAX($D$8) -> 250
C7: 入力シート名 | D7: 入力可能行数
C8: =シート名設定!C30 -> 入力AA1 | D8: =ROWS(入力AA1!$B$8:$B$258)-1 -> 250
C11: =C8 -> 入力AA1 | D11: ="入力可能行数 "&$D$8&"行" -> 入力可能行数 250行
C101: =IF(ISERROR(シート名設定!C4)=TRUE,1,0) -> 0
C102: =IF(ISERROR(Sheet1!C5)=TRUE,1,0) -> 0

Sheet 追加ワークシート名設定
D3: =シート名設定!G36 -> 追加ワークシート名設定
C5: NO | D5: 追加シート名 | F5: NO | G5: 追加シート名変更 | H5: 変更ダブルクリック
C6: 1 | D6: 退学者○○○子学年積立金会計 | E6: ← | F6: 1 | H6: ■
C7: 2 | D7: 退学者□□□子学年積立金会計 | E7: ← | F7: 2 | H7: ■
C8: 3 | D8: 特別会計処理該当 | E8: ← | F8: 3 | H8: ■
C9: 4 | E9: ← | F9: 4 | H9: ■
C10: 5 | E10: ← | F10: 5 | H10: ■
C11: 6 | E11: ← | F11: 6 | H11: ■
C12: 7 | E12: ← | F12: 7 | H12: ■
C13: 8 | E13: ← | F13: 8 | H13: ■
C14: 9 | E14: ← | F14: 9 | H14: ■
C15: 10 | E15: ← | F15: 10 | H15: ■
C16: 11 | E16: ← | F16: 11 | H16: ■
C17: 12 | E17: ← | F17: 12 | H17: ■
C18: 13 | E18: ← | F18: 13 | H18: ■
C19: 14 | E19: ← | F19: 14 | H19: ■
C20: 15 | E20: ← | F20: 15 | H20: ■
C21: 16 | E21: ← | F21: 16 | H21: ■
C22: 17 | E22: ← | F22: 17 | H22: ■
C23: 18 | E23: ← | F23: 18 | H23: ■
C24: 19 | E24: ← | F24: 19 | H24: ■
C25: 20 | E25: ← | F25: 20 | H25: ■
C26: 21 | E26: ← | F26: 21 | H26: ■
C27: 22 | E27: ← | F27: 22 | H27: ■
C28: 23 | E28: ← | F28: 23 | H28: ■
C29: 24 | E29: ← | F29: 24 | H29: ■
C30: 25 | E30: ← | F30: 25 | H30: ■
C31: 26 | E31: ← | F31: 26 | H31: ■
C32: 27 | E32: ← | F32: 27 | H32: ■
C33: 28 | E33: ← | F33: 28 | H33: ■
C34: 29 | E34: ← | F34: 29 | H34: ■
C35: 30 | E35: ← | F35: 30 | H35: ■
C36: 31 | E36: ← | F36: 31 | H36: ■
C37: 32 | E37: ← | F37: 32 | H37: ■
C38: 33 | E38: ← | F38: 33 | H38: ■
C39: 34 | E39: ← | F39: 34 | H39: ■
C40: 35 | E40: ← | F40: 35 | H40: ■
C41: 36 | E41: ← | F41: 36 | H41: ■
C42: 37 | E42: ← | F42: 37 | H42: ■
C43: 38 | E43: ← | F43: 38 | H43: ■
C44: 39 | E44: ← | F44: 39 | H44: ■
C45: 40 | E45: ← | F45: 40 | H45: ■
C46: 41 | E46: ← | F46: 41 | H46: ■
C47: 42 | E47: ← | F47: 42 | H47: ■
C48: 43 | E48: ← | F48: 43 | H48: ■
C49: 44 | E49: ← | F49: 44 | H49: ■
C50: 45 | E50: ← | F50: 45 | H50: ■
C51: 46 | E51: ← | F51: 46 | H51: ■
C52: 47 | E52: ← | F52: 47 | H52: ■
C53: 48 | E53: ← | F53: 48 | H53: ■
C54: 49 | E54: ← | F54: 49 | H54: ■
C55: 50 | E55: ← | F55: 50 | H55: ■
C56: 51 | E56: ← | F56: 51 | H56: ■
C57: 52 | E57: ← | F57: 52 | H57: ■
C58: 53 | E58: ← | F58: 53 | H58: ■
C59: 54 | E59: ← | F59: 54 | H59: ■
C60: 55 | E60: ← | F60: 55 | H60: ■
C61: 56 | E61: ← | F61: 56 | H61: ■
C62: 57 | E62: ← | F62: 57 | H62: ■
C63: 58 | E63: ← | F63: 58 | H63: ■
C64: 59 | E64: ← | F64: 59 | H64: ■
C65: 60 | E65: ← | F65: 60 | H65: ■
C66: 61 | E66: ← | F66: 61 | H66: ■
C67: 62 | E67: ← | F67: 62 | H67: ■
C68: 63 | E68: ← | F68: 63 | H68: ■
C69: 64 | E69: ← | F69: 64 | H69: ■

Sheet インターフェース画面設定
B2: =シート名設定!G35 -> インターフェース画面設定
B4: 設定項目 | C4: 設定値 | D4: 3
B5: 画面高さ | C5: =IF(D$4=1,D5,IF(D$4=2,E5,IF(D$4=3,F5,IF(D$4=4,G5,IF(D$4=5,H5,IF(D$4=6,I5,I5)))))) -> 810 | D5: 810 | E5: 810 | F5: =E5 -> 810 | G5: =D5*G$8 -> 810 | H5: =E5*H$8 -> 810 | I5: 750
B6: 画面幅 | C6: =IF(D$4=1,D6,IF(D$4=2,E6,IF(D$4=3,F6,IF(D$4=4,G6,IF(D$4=5,H6,IF(D$4=6,I6,I6)))))) -> 1440 | D6: 964.8 | E6: 1440 | F6: =E6 -> 1440 | G6: =D6*G$8 -> 964.8 | H6: 1440 | I6: 1200
B7: 画面Zoom | C7: 97 | D7: 94 | E7: 100 | F7: 97 | G7: 94 | H7: 100 | I7: 87
F8: 表示倍率 | G8: 1 | H8: 1

Sheet 項目表示入力
B2: =シート名設定!C6 -> 項目表示入力
C6: =IF(行列入力項目!$D$5="","",行列入力項目!$D$5) -> 列1 | D6: =IF(行列入力項目!$D$6="","",行列入力項目!$D$6) -> 列2 | E6: =IF(行列入力項目!$D$7="","",行列入力項目!$D$7) -> 列3 | F6: =IF(行列入力項目!$D$8="","",行列入力項目!$D$8) -> 列4 | G6: =IF(行列入力項目!$D$9="","",行列入力項目!$D$9) -> 列5 | H6: =IF(行列入力項目!$D$10="","",行列入力項目!$D$10) -> 列6 | I6: =IF(行列入力項目!$D$11="","",行列入力項目!$D$11) -> 列7 | J6: =IF(行列入力項目!$D$12="","",行列入力項目!$D$12) -> 列8 | K6: =IF(行列入力項目!$D$13="","",行列入力項目!$D$13) -> 列9 | L6: =IF(行列入力項目!$D$14="","",行列入力項目!$D$14) -> 列10 | M6: =IF(行列入力項目!$D$15="","",行列入力項目!$D$15) -> 列11 | N6: =IF(行列入力項目!$D$16="","",行列入力項目!$D$16) -> 列12 | O6: =IF(行列入力項目!$D$17="","",行列入力項目!$D$17) -> 列13 | P6: =IF(行列入力項目!$D$18="","",行列入力項目!$D$18) -> 列14 | Q6: =IF(行列入力項目!$D$19="","",行列入力項目!$D$19) -> 列15 | R6: =IF(行列入力項目!$D$20="","",行列入力項目!$D$20) -> 列16 | S6: =IF(行列入力項目!$D$21="","",行列入力項目!$D$21) -> 列17 | T6: =IF(行列入力項目!$D$22="","",行列入力項目!$D$22) -> 列18 | U6: =IF(行列入力項目!$D$23="","",行列入力項目!$D$23) -> 列19 | V6: =IF(行列入力項目!$D$24="","",行列入力項目!$D$24) -> 列20
B7: =IF(行列入力項目!$C$5="","",行列入力項目!$C$5) -> 行1 | C7: ３年次NO | D7: ３年組 | E7: ３No | F7: 氏 名 | G7: ふりがな | H7: 性別 | I7: 保護者氏名 | J7: 郵便番号 | K7: 住所１ | L7: 内容1,10 | M7: 預金者氏名 | N7: 預金者氏名フリガナ | O7: 預金者郵便番号 | P7: 預金者住所 | Q7: 預金者電話番号 | R7: 正式銀行名等 | S7: 正式支店名 | T7: 正式銀行名・支店名等 | U7: 種目 | V7: 口座番号
B8: =IF(行列入力項目!$C$6="","",行列入力項目!$C$6) -> 行2 | C8: **高ノート用 特注リングファイル FC-102RF | D8: 生徒手帳及び身分証明書 | E8: コクヨ クリヤーブック ラーＴ５５０Ｂ | F8: 日本スポーツ振興センター掛金 | G8: 指導用カラー写真 小型９枚セット | H8: ５月２７日学校見学会 傷害保険 | I8: ＰＴＡ支部活動費 | J8: 高等学校安全互助会負担金 | K8: 高Ｐ連賠償責任保証制度掛金 | L8: 平成１７年度卒業アルバム | M8: 高等学校スポーツテスト処理料金 | N8: 中央公論新社 やさしい文章術 | O8: 体育祭ハチマキ | P8: 芸術鑑賞会 | Q8: ロースコサージュ大ピンク | R8: 卒業記念品 ネームペン | S8: 卒業記念品 応援団旗（寄贈分） | T8: 紅白饅頭 | U8: 同窓会費 | V8: 総合的な学習「社会人になるための準備学習」講師接待費
B9: =IF(行列入力項目!$C$7="","",行列入力項目!$C$7) -> 行3 | C9: メール送信先アドレス | D9: メール件名 | E9: メール本文 | F9: 内容3,4 | G9: 内容3,5 | H9: 内容3,6 | I9: 内容3,7 | J9: 内容3,8 | K9: 内容3,9 | L9: 内容3,10 | M9: 内容3,11 | N9: 内容3,12 | O9: 内容3,13 | P9: 内容3,14 | Q9: 内容3,15 | R9: 内容3,16 | S9: 内容3,17 | T9: 内容3,18 | U9: 内容3,19 | V9: 内容3,20
B10: =IF(行列入力項目!$C$8="","",行列入力項目!$C$8) -> 行4 | C10: 理科類型Ａコース生徒副教材 「看護医療系短大・専門学校の数学」 | D10: 就職希望者問題集 一般常識マイテスト（解別） | E10: 理系類型生徒対象 第１回学研高３「新・基礎力テスト」３教科 | F10: 文系類型・外国語類型生徒対象 第１回学研高３「新・基礎力テスト」２教科 | G10: 文系類型・外国語類型生徒対象 第１回学研「常識テスト」 | H10: 内容4,6 | I10: 内容4,7 | J10: 内容4,8 | K10: 内容4,9 | L10: 内容4,10 | M10: 内容4,11 | N10: 内容4,12 | O10: 内容4,13 | P10: 内容4,14 | Q10: 内容4,15 | R10: 内容4,16 | S10: 内容4,17 | T10: 内容4,18 | U10: 内容4,19 | V10: 内容4,20
B11: =IF(行列入力項目!$C$9="","",行列入力項目!$C$9) -> 行5 | C11: １・２学期共通項目支出計 | D11: １・２学期一部該当者支出計 | E11: １・２学期支出合計 | F11: 前年度からの繰越金 | G11: 今年度学年積立金 | H11: 今年度利息 | I11: 今年度収入合計 | J11: ３学期への繰越金 | K11: 内容5,9 | L11: 内容5,10 | M11: 内容5,11 | N11: 内容5,12 | O11: 内容5,13 | P11: 内容5,14 | Q11: 内容5,15 | R11: 内容5,16 | S11: 未納授業料への充当 | T11: 保護者への返金額 | U11: 振込手数料 | V11: 口座振込金額

Sheet 項目表示入力既定番地
B2: 項目表示入力既定番地
C6: =IF(行列入力項目!$D$5="","",行列入力項目!$D$5) -> 列1 | D6: =IF(行列入力項目!$D$6="","",行列入力項目!$D$6) -> 列2 | E6: =IF(行列入力項目!$D$7="","",行列入力項目!$D$7) -> 列3 | F6: =IF(行列入力項目!$D$8="","",行列入力項目!$D$8) -> 列4 | G6: =IF(行列入力項目!$D$9="","",行列入力項目!$D$9) -> 列5 | H6: =IF(行列入力項目!$D$10="","",行列入力項目!$D$10) -> 列6 | I6: =IF(行列入力項目!$D$11="","",行列入力項目!$D$11) -> 列7 | J6: =IF(行列入力項目!$D$12="","",行列入力項目!$D$12) -> 列8 | K6: =IF(行列入力項目!$D$13="","",行列入力項目!$D$13) -> 列9 | L6: =IF(行列入力項目!$D$14="","",行列入力項目!$D$14) -> 列10 | M6: =IF(行列入力項目!$D$15="","",行列入力項目!$D$15) -> 列11 | N6: =IF(行列入力項目!$D$16="","",行列入力項目!$D$16) -> 列12 | O6: =IF(行列入力項目!$D$17="","",行列入力項目!$D$17) -> 列13 | P6: =IF(行列入力項目!$D$18="","",行列入力項目!$D$18) -> 列14 | Q6: =IF(行列入力項目!$D$19="","",行列入力項目!$D$19) -> 列15 | R6: =IF(行列入力項目!$D$20="","",行列入力項目!$D$20) -> 列16 | S6: =IF(行列入力項目!$D$21="","",行列入力項目!$D$21) -> 列17 | T6: =IF(行列入力項目!$D$22="","",行列入力項目!$D$22) -> 列18 | U6: =IF(行列入力項目!$D$23="","",行列入力項目!$D$23) -> 列19 | V6: =IF(行列入力項目!$D$24="","",行列入力項目!$D$24) -> 列20
B7: =IF(行列入力項目!$C$5="","",行列入力項目!$C$5) -> 行1 | C7: 内容1,1 | D7: 内容1,2 | E7: 内容1,3 | F7: 内容1,4 | G7: 内容1,5 | H7: 内容1,6 | I7: 内容1,7 | J7: 内容1,8 | K7: 内容1,9 | L7: 内容1,10 | M7: 内容1,11 | N7: 内容1,12 | O7: 内容1,13 | P7: 内容1,14 | Q7: 内容1,15 | R7: 内容1,16 | S7: 内容1,17 | T7: 内容1,18 | U7: 内容1,19 | V7: 内容1,20
B8: =IF(行列入力項目!$C$6="","",行列入力項目!$C$6) -> 行2 | C8: 内容2,1 | D8: 内容2,2 | E8: 内容2,3 | F8: 内容2,4 | G8: 内容2,5 | H8: 内容2,6 | I8: 内容2,7 | J8: 内容2,8 | K8: 内容2,9 | L8: 内容2,10 | M8: 内容2,11 | N8: 内容2,12 | O8: 内容2,13 | P8: 内容2,14 | Q8: 内容2,15 | R8: 内容2,16 | S8: 内容2,17 | T8: 内容2,18 | U8: 内容2,19 | V8: 内容2,20
B9: =IF(行列入力項目!$C$7="","",行列入力項目!$C$7) -> 行3 | C9: 内容3,1 | D9: 内容3,2 | E9: 内容3,3 | F9: 内容3,4 | G9: 内容3,5 | H9: 内容3,6 | I9: 内容3,7 | J9: 内容3,8 | K9: 内容3,9 | L9: 内容3,10 | M9: 内容3,11 | N9: 内容3,12 | O9: 内容3,13 | P9: 内容3,14 | Q9: 内容3,15 | R9: 内容3,16 | S9: 内容3,17 | T9: 内容3,18 | U9: 内容3,19 | V9: 内容3,20
B10: =IF(行列入力項目!$C$8="","",行列入力項目!$C$8) -> 行4 | C10: 内容4,1 | D10: 内容4,2 | E10: 内容4,3 | F10: 内容4,4 | G10: 内容4,5 | H10: 内容4,6 | I10: 内容4,7 | J10: 内容4,8 | K10: 内容4,9 | L10: 内容4,10 | M10: 内容4,11 | N10: 内容4,12 | O10: 内容4,13 | P10: 内容4,14 | Q10: 内容4,15 | R10: 内容4,16 | S10: 内容4,17 | T10: 内容4,18 | U10: 内容4,19 | V10: 内容4,20
B11: =IF(行列入力項目!$C$9="","",行列入力項目!$C$9) -> 行5 | C11: 内容5,1 | D11: 内容5,2 | E11: 内容5,3 | F11: 内容5,4 | G11: 内容5,5 | H11: 内容5,6 | I11: 内容5,7 | J11: 内容5,8 | K11: 内容5,9 | L11: 内容5,10 | M11: 内容5,11 | N11: 内容5,12 | O11: 内容5,13 | P11: 内容5,14 | Q11: 内容5,15 | R11: 内容5,16 | S11: 内容5,17 | T11: 内容5,18 | U11: 内容5,19 | V11: 内容5,20

Sheet 項目表示作成
B2: =シート名設定!C7 -> 項目表示作成
C6: =IF(行列入力項目!$D$5="","",行列入力項目!$D$5) -> 列1 | D6: =IF(行列入力項目!$D$6="","",行列入力項目!$D$6) -> 列2 | E6: =IF(行列入力項目!$D$7="","",行列入力項目!$D$7) -> 列3 | F6: =IF(行列入力項目!$D$8="","",行列入力項目!$D$8) -> 列4 | G6: =IF(行列入力項目!$D$9="","",行列入力項目!$D$9) -> 列5 | H6: =IF(行列入力項目!$D$10="","",行列入力項目!$D$10) -> 列6 | I6: =IF(行列入力項目!$D$11="","",行列入力項目!$D$11) -> 列7 | J6: =IF(行列入力項目!$D$12="","",行列入力項目!$D$12) -> 列8 | K6: =IF(行列入力項目!$D$13="","",行列入力項目!$D$13) -> 列9 | L6: =IF(行列入力項目!$D$14="","",行列入力項目!$D$14) -> 列10 | M6: =IF(行列入力項目!$D$15="","",行列入力項目!$D$15) -> 列11 | N6: =IF(行列入力項目!$D$16="","",行列入力項目!$D$16) -> 列12 | O6: =IF(行列入力項目!$D$17="","",行列入力項目!$D$17) -> 列13 | P6: =IF(行列入力項目!$D$18="","",行列入力項目!$D$18) -> 列14 | Q6: =IF(行列入力項目!$D$19="","",行列入力項目!$D$19) -> 列15 | R6: =IF(行列入力項目!$D$20="","",行列入力項目!$D$20) -> 列16 | S6: =IF(行列入力項目!$D$21="","",行列入力項目!$D$21) -> 列17 | T6: =IF(行列入力項目!$D$22="","",行列入力項目!$D$22) -> 列18 | U6: =IF(行列入力項目!$D$23="","",行列入力項目!$D$23) -> 列19 | V6: =IF(行列入力項目!$D$24="","",行列入力項目!$D$24) -> 列20
B7: =IF(行列入力項目!$C$5="","",行列入力項目!$C$5) -> 行1 | C7: =C$6&$B7 -> 列1行1 | D7: 列2行1 | E7: 列3行1 | F7: 列4行1 | G7: 列5行1 | H7: 列6行1 | I7: 列7行1 | J7: 列8行1 | K7: 列9行1 | L7: 列10行1 | M7: =M$6&$B7 -> 列11行1 | N7: 列12行1 | O7: 列13行1 | P7: 列14行1 | Q7: 列15行1 | R7: 列16行1 | S7: 列17行1 | T7: 列18行1 | U7: 列19行1 | V7: 列20行1
B8: =IF(行列入力項目!$C$6="","",行列入力項目!$C$6) -> 行2 | C8: 列1行2 | D8: 列2行2 | E8: 列3行2 | F8: 列4行2 | G8: 列5行2 | H8: 列6行2 | I8: 列7行2 | J8: 列8行2 | K8: 列9行2 | L8: 列10行2 | M8: 列11行2 | N8: 列12行2 | O8: 列13行2 | P8: 列14行2 | Q8: 列15行2 | R8: 列16行2 | S8: 列17行2 | T8: 列18行2 | U8: 列19行2 | V8: 列20行2
B9: =IF(行列入力項目!$C$7="","",行列入力項目!$C$7) -> 行3 | C9: 列1行3 | D9: 列2行3 | E9: 列3行3 | F9: 列4行3 | G9: 列5行3 | H9: 列6行3 | I9: 列7行3 | J9: 列8行3 | K9: 列9行3 | L9: 列10行3 | M9: 列11行3 | N9: 列12行3 | O9: 列13行3 | P9: 列14行3 | Q9: 列15行3 | R9: 列16行3 | S9: 列17行3 | T9: 列18行3 | U9: 列19行3 | V9: 列20行3
B10: =IF(行列入力項目!$C$8="","",行列入力項目!$C$8) -> 行4 | C10: 列1行4 | D10: 列2行4 | E10: 列3行4 | F10: 列4行4 | G10: 列5行4 | H10: 列6行4 | I10: 列7行4 | J10: 列8行4 | K10: 列9行4 | L10: 列10行4 | M10: 列11行4 | N10: 列12行4 | O10: 列13行4 | P10: 列14行4 | Q10: 列15行4 | R10: 列16行4 | S10: 列17行4 | T10: 列18行4 | U10: 列19行4 | V10: 列20行4
B11: =IF(行列入力項目!$C$9="","",行列入力項目!$C$9) -> 行5 | C11: 列1行5 | D11: 列2行5 | E11: 列3行5 | F11: 列4行5 | G11: 列5行5 | H11: 列6行5 | I11: 列7行5 | J11: 列8行5 | K11: 列9行5 | L11: 列10行5 | M11: 列11行5 | N11: 列12行5 | O11: 列13行5 | P11: 列14行5 | Q11: 列15行5 | R11: 列16行5 | S11: 列17行5 | T11: 列18行5 | U11: 列19行5 | V11: 列20行5

Sheet 行列入力項目
B2: =シート名設定!C8 -> 行列入力項目
B4: NO. | C4: 行項目入力 | D4: 列項目入力
B5: 1 | C5: 行1 | D5: 列1
B6: 2 | C6: 行2 | D6: 列2
B7: 3 | C7: 行3 | D7: 列3
B8: 4 | C8: 行4 | D8: 列4
B9: 5 | C9: 行5 | D9: 列5
D10: 列6
D11: 列7
D12: 列8
D13: 列9
D14: 列10
D15: 列11
D16: 列12
D17: 列13
D18: 列14
D19: 列15
D20: 列16
D21: 列17
D22: 列18
D23: 列19
D24: 列20

Sheet オフセット番号A (hidden)
B2: ｵﾌｾｯﾄ番号表A
C4: =IF(行列入力項目!$D$5="","",行列入力項目!$D$5) -> 列1 | D4: =IF(行列入力項目!$D$6="","",行列入力項目!$D$6) -> 列2 | E4: =IF(行列入力項目!$D$7="","",行列入力項目!$D$7) -> 列3 | F4: =IF(行列入力項目!$D$8="","",行列入力項目!$D$8) -> 列4 | G4: =IF(行列入力項目!$D$9="","",行列入力項目!$D$9) -> 列5 | H4: =IF(行列入力項目!$D$10="","",行列入力項目!$D$10) -> 列6 | I4: =IF(行列入力項目!$D$11="","",行列入力項目!$D$11) -> 列7 | J4: =IF(行列入力項目!$D$12="","",行列入力項目!$D$12) -> 列8 | K4: =IF(行列入力項目!$D$13="","",行列入力項目!$D$13) -> 列9 | L4: =IF(行列入力項目!$D$14="","",行列入力項目!$D$14) -> 列10 | M4: =IF(行列入力項目!$D$15="","",行列入力項目!$D$15) -> 列11 | N4: =IF(行列入力項目!$D$16="","",行列入力項目!$D$16) -> 列12 | O4: =IF(行列入力項目!$D$17="","",行列入力項目!$D$17) -> 列13 | P4: =IF(行列入力項目!$D$18="","",行列入力項目!$D$18) -> 列14 | Q4: =IF(行列入力項目!$D$19="","",行列入力項目!$D$19) -> 列15 | R4: =IF(行列入力項目!$D$20="","",行列入力項目!$D$20) -> 列16 | S4: =IF(行列入力項目!$D$21="","",行列入力項目!$D$21) -> 列17 | T4: =IF(行列入力項目!$D$22="","",行列入力項目!$D$22) -> 列18 | U4: =IF(行列入力項目!$D$23="","",行列入力項目!$D$23) -> 列19 | V4: =IF(行列入力項目!$D$24="","",行列入力項目!$D$24) -> 列20
B5: =IF(行列入力項目!$C$5="","",行列入力項目!$C$5) -> 行1 | C5: 2 | D5: 3 | E5: 4 | F5: 5 | G5: 6 | H5: 7 | I5: 8 | J5: 9 | K5: 10 | L5: 11 | M5: 12 | N5: 13 | O5: 14 | P5: 15 | Q5: 16 | R5: 17 | S5: 18 | T5: 19 | U5: 20 | V5: 21
B6: =IF(行列入力項目!$C$6="","",行列入力項目!$C$6) -> 行2 | C6: 22 | D6: 23 | E6: 24 | F6: 25 | G6: 26 | H6: 27 | I6: 28 | J6: 29 | K6: 30 | L6: 31 | M6: 32 | N6: 33 | O6: 34 | P6: 35 | Q6: 36 | R6: 37 | S6: 38 | T6: 39 | U6: 40 | V6: 41
B7: =IF(行列入力項目!$C$7="","",行列入力項目!$C$7) -> 行3 | C7: 42 | D7: 43 | E7: 44 | F7: 45 | G7: 46 | H7: 47 | I7: 48 | J7: 49 | K7: 50 | L7: 51 | M7: 52 | N7: 53 | O7: 54 | P7: 55 | Q7: 56 | R7: 57 | S7: 58 | T7: 59 | U7: 60 | V7: 61
B8: =IF(行列入力項目!$C$8="","",行列入力項目!$C$8) -> 行4 | C8: 62 | D8: 63 | E8: 64 | F8: 65 | G8: 66 | H8: 67 | I8: 68 | J8: 69 | K8: 70 | L8: 71 | M8: 72 | N8: 73 | O8: 74 | P8: 75 | Q8: 76 | R8: 77 | S8: 78 | T8: 79 | U8: 80 | V8: 81
B9: =IF(行列入力項目!$C$9="","",行列入力項目!$C$9) -> 行5 | C9: 82 | D9: 83 | E9: 84 | F9: 85 | G9: 86 | H9: 87 | I9: 88 | J9: 89 | K9: 90 | L9: 91 | M9: 92 | N9: 93 | O9: 94 | P9: 95 | Q9: 96 | R9: 97 | S9: 98 | T9: 99 | U9: 100 | V9: 101

Sheet ﾌｧｲﾙ作成原版A (hidden)
B4: ファイル作成原版A
B5: 入力項目表示とデーター表示の切替 → | F5: 1
B6: 入力項目表示は1，データ表示は2を入力
B9: 1 | C9: =IF(ISERR(VLOOKUP(B9,入力AA1!$B$8:$CY$258,2))=1,"",VLOOKUP(B9,入力AA1!$B$8:$CY$258,2)) -> 対象1
C11: =IF(オフセット番号A!$C$4="","",オフセット番号A!$C$4) -> 列1 | D11: =IF(オフセット番号A!$D$4="","",オフセット番号A!$D$4) -> 列2 | E11: =IF(オフセット番号A!$E$4="","",オフセット番号A!$E$4) -> 列3 | F11: =IF(オフセット番号A!$F$4="","",オフセット番号A!$F$4) -> 列4 | G11: =IF(オフセット番号A!$G$4="","",オフセット番号A!$G$4) -> 列5 | H11: =IF(オフセット番号A!$H$4="","",オフセット番号A!$H$4) -> 列6 | I11: =IF(オフセット番号A!$I$4="","",オフセット番号A!$I$4) -> 列7 | J11: =IF(オフセット番号A!$J$4="","",オフセット番号A!$J$4) -> 列8 | K11: =IF(オフセット番号A!$K$4="","",オフセット番号A!$K$4) -> 列9 | L11: =IF(オフセット番号A!$L$4="","",オフセット番号A!$L$4) -> 列10 | M11: =IF(オフセット番号A!$M$4="","",オフセット番号A!$M$4) -> 列11 | N11: =IF(オフセット番号A!$N$4="","",オフセット番号A!$N$4) -> 列12 | O11: =IF(オフセット番号A!$O$4="","",オフセット番号A!$O$4) -> 列13 | P11: =IF(オフセット番号A!$P$4="","",オフセット番号A!$P$4) -> 列14 | Q11: =IF(オフセット番号A!$Q$4="","",オフセット番号A!$Q$4) -> 列15 | R11: =IF(オフセット番号A!$R$4="","",オフセット番号A!$R$4) -> 列16 | S11: =IF(オフセット番号A!$S$4="","",オフセット番号A!$S$4) -> 列17 | T11: =IF(オフセット番号A!$T$4="","",オフセット番号A!$T$4) -> 列18 | U11: =IF(オフセット番号A!$U$4="","",オフセット番号A!$U$4) -> 列19 | V11: =IF(オフセット番号A!$V$4="","",オフセット番号A!$V$4) -> 列20
B12: =IF(行列入力項目!$C$5="","",行列入力項目!$C$5) -> 行1 | C12: =IF($F$5=1,項目表示入力!$C$7,IF($F$5=2,IF(ISERROR(VLOOKUP(B9,入力AA1!$B$8:$CY$258,オフセット番号A!$C$5+1))=TRUE,"",VLOOKUP(B9,入力AA1!$B$8:$CY$258,オフセット番号A!$C$5+1)),"*")) -> ３年次NO | D12: =IF($F$5=1,項目表示入力!$D$7,IF($F$5=2,IF(ISERROR(VLOOKUP(B9,入力AA1!$B$8:$CY$258,オフセット番号A!$D$5+1))=TRUE,"",VLOOKUP(B9,入力AA1!$B$8:$CY$258,オフセット番号A!$D$5+1)),"*")) -> ３年組 | E12: =IF($F$5=1,項目表示入力!$E$7,IF($F$5=2,IF(ISERROR(VLOOKUP(B9,入力AA1!$B$8:$CY$258,オフセット番号A!$E$5+1))=TRUE,"",VLOOKUP(B9,入力AA1!$B$8:$CY$258,オフセット番号A!$E$5+1)),"*")) -> ３No | F12: =IF($F$5=1,項目表示入力!$F$7,IF($F$5=2,IF(ISERROR(VLOOKUP(B9,入力AA1!$B$8:$CY$258,オフセット番号A!$F$5+1))=TRUE,"",VLOOKUP(B9,入力AA1!$B$8:$CY$258,オフセット番号A!$F$5+1)),"*")) -> 氏 名 | G12: =IF($F$5=1,項目表示入力!$G$7,IF($F$5=2,IF(ISERROR(VLOOKUP(B9,入力AA1!$B$8:$CY$258,オフセット番号A!$G$5+1))=TRUE,"",VLOOKUP(B9,入力AA1!$B$8:$CY$258,オフセット番号A!$G$5+1)),"*")) -> ふりがな | H12: =IF($F$5=1,項目表示入力!$H$7,IF($F$5=2,IF(ISERROR(VLOOKUP(B9,入力AA1!$B$8:$CY$258,オフセット番号A!$H$5+1))=TRUE,"",VLOOKUP(B9,入力AA1!$B$8:$CY$258,オフセット番号A!$H$5+1)),"*")) -> 性別 | I12: =IF($F$5=1,項目表示入力!$I$7,IF($F$5=2,IF(ISERROR(VLOOKUP(B9,入力AA1!$B$8:$CY$258,オフセット番号A!$I$5+1))=TRUE,"",VLOOKUP(B9,入力AA1!$B$8:$CY$258,オフセット番号A!$I$5+1)),"*")) -> 保護者氏名 | J12: =IF($F$5=1,項目表示入力!$J$7,IF($F$5=2,IF(ISERROR(VLOOKUP(B9,入力AA1!$B$8:$CY$258,オフセット番号A!$J$5+1))=TRUE,"",VLOOKUP(B9,入力AA1!$B$8:$CY$258,オフセット番号A!$J$5+1)),"*")) -> 郵便番号 | K12: =IF($F$5=1,項目表示入力!$K$7,IF($F$5=2,IF(ISERROR(VLOOKUP(B9,入力AA1!$B$8:$CY$258,オフセット番号A!$K$5+1))=TRUE,"",VLOOKUP(B9,入力AA1!$B$8:$CY$258,オフセット番号A!$K$5+1)),"*")) -> 住所１ | L12: =IF($F$5=1,項目表示入力!$L$7,IF($F$5=2,IF(ISERROR(VLOOKUP(B9,入力AA1!$B$8:$CY$258,オフセット番号A!$L$5+1))=TRUE,"",VLOOKUP(B9,入力AA1!$B$8:$CY$258,オフセット番号A!$L$5+1)),"*")) -> 内容1,10 | M12: =IF($F$5=1,項目表示入力!$M$7,IF($F$5=2,IF(ISERROR(VLOOKUP(B9,入力AA1!$B$8:$CY$258,オフセット番号A!$M$5+1))=TRUE,"",VLOOKUP(B9,入力AA1!$B$8:$CY$258,オフセット番号A!$M$5+1)),"*")) -> 預金者氏名 | N12: =IF($F$5=1,項目表示入力!$N$7,IF($F$5=2,IF(ISERROR(VLOOKUP(B9,入力AA1!$B$8:$CY$258,オフセット番号A!$N$5+1))=TRUE,"",VLOOKUP(B9,入力AA1!$B$8:$CY$258,オフセット番号A!$N$5+1)),"*")) -> 預金者氏名フリガナ | O12: =IF($F$5=1,項目表示入力!$O$7,IF($F$5=2,IF(ISERROR(VLOOKUP(B9,入力AA1!$B$8:$CY$258,オフセット番号A!$O$5+1))=TRUE,"",VLOOKUP(B9,入力AA1!$B$8:$CY$258,オフセット番号A!$O$5+1)),"*")) -> 預金者郵便番号 | P12: =IF($F$5=1,項目表示入力!$P$7,IF($F$5=2,IF(ISERROR(VLOOKUP(B9,入力AA1!$B$8:$CY$258,オフセット番号A!$P$5+1))=TRUE,"",VLOOKUP(B9,入力AA1!$B$8:$CY$258,オフセット番号A!$P$5+1)),"*")) -> 預金者住所 | Q12: =IF($F$5=1,項目表示入力!$Q$7,IF($F$5=2,IF(ISERROR(VLOOKUP(B9,入力AA1!$B$8:$CY$258,オフセット番号A!$Q$5+1))=TRUE,"",VLOOKUP(B9,入力AA1!$B$8:$CY$258,オフセット番号A!$Q$5+1)),"*")) -> 預金者電話番号 | R12: =IF($F$5=1,項目表示入力!$R$7,IF($F$5=2,IF(ISERROR(VLOOKUP(B9,入力AA1!$B$8:$CY$258,オフセット番号A!$R$5+1))=TRUE,"",VLOOKUP(B9,入力AA1!$B$8:$CY$258,オフセット番号A!$R$5+1)),"*")) -> 正式銀行名等 | S12: =IF($F$5=1,項目表示入力!$S$7,IF($F$5=2,IF(ISERROR(VLOOKUP(B9,入力AA1!$B$8:$CY$258,オフセット番号A!$S$5+1))=TRUE,"",VLOOKUP(B9,入力AA1!$B$8:$CY$258,オフセット番号A!$S$5+1)),"*")) -> 正式支店名 | T12: =IF($F$5=1,項目表示入力!$T$7,IF($F$5=2,IF(ISERROR(VLOOKUP(B9,入力AA1!$B$8:$CY$258,オフセット番号A!$T$5+1))=TRUE,"",VLOOKUP(B9,入力AA1!$B$8:$CY$258,オフセット番号A!$T$5+1)),"*")) -> 正式銀行名・支店名等 | U12: =IF($F$5=1,項目表示入力!$U$7,IF($F$5=2,IF(ISERROR(VLOOKUP(B9,入力AA1!$B$8:$CY$258,オフセット番号A!$U$5+1))=TRUE,"",VLOOKUP(B9,入力AA1!$B$8:$CY$258,オフセット番号A!$U$5+1)),"*")) -> 種目 | V12: =IF($F$5=1,項目表示入力!$V$7,IF($F$5=2,IF(ISERROR(VLOOKUP(B9,入力AA1!$B$8:$CY$258,オフセット番号A!$V$5+1))=TRUE,"",VLOOKUP(B9,入力AA1!$B$8:$CY$258,オフセット番号A!$V$5+1)),"*")) -> 口座番号
B13: =IF(行列入力項目!$C$6="","",行列入力項目!$C$6) -> 行2 | C13: =IF($F$5=1,項目表示入力!$C$8,IF($F$5=2,IF(ISERROR(VLOOKUP(B9,入力AA1!$B$8:$CY$258,オフセット番号A!$C$6+1))=TRUE,"",VLOOKUP(B9,入力AA1!$B$8:$CY$258,オフセット番号A!$C$6+1)),"*")) -> **高ノート用 特注リングファイル FC-102RF | D13: =IF($F$5=1,項目表示入力!$D$8,IF($F$5=2,IF(ISERROR(VLOOKUP(B9,入力AA1!$B$8:$CY$258,オフセット番号A!$D$6+1))=TRUE,"",VLOOKUP(B9,入力AA1!$B$8:$CY$258,オフセット番号A!$D$6+1)),"*")) -> 生徒手帳及び身分証明書 | E13: =IF($F$5=1,項目表示入力!$E$8,IF($F$5=2,IF(ISERROR(VLOOKUP(B9,入力AA1!$B$8:$CY$258,オフセット番号A!$E$6+1))=TRUE,"",VLOOKUP(B9,入力AA1!$B$8:$CY$258,オフセット番号A!$E$6+1)),"*")) -> コクヨ クリヤーブック ラーＴ５５０Ｂ | F13: =IF($F$5=1,項目表示入力!$F$8,IF($F$5=2,IF(ISERROR(VLOOKUP(B9,入力AA1!$B$8:$CY$258,オフセット番号A!$F$6+1))=TRUE,"",VLOOKUP(B9,入力AA1!$B$8:$CY$258,オフセット番号A!$F$6+1)),"*")) -> 日本スポーツ振興センター掛金 | G13: =IF($F$5=1,項目表示入力!$G$8,IF($F$5=2,IF(ISERROR(VLOOKUP(B9,入力AA1!$B$8:$CY$258,オフセット番号A!$G$6+1))=TRUE,"",VLOOKUP(B9,入力AA1!$B$8:$CY$258,オフセット番号A!$G$6+1)),"*")) -> 指導用カラー写真 小型９枚セット | H13: =IF($F$5=1,項目表示入力!$H$8,IF($F$5=2,IF(ISERROR(VLOOKUP(B9,入力AA1!$B$8:$CY$258,オフセット番号A!$H$6+1))=TRUE,"",VLOOKUP(B9,入力AA1!$B$8:$CY$258,オフセット番号A!$H$6+1)),"*")) -> ５月２７日学校見学会 傷害保険 | I13: =IF($F$5=1,項目表示入力!$I$8,IF($F$5=2,IF(ISERROR(VLOOKUP(B9,入力AA1!$B$8:$CY$258,オフセット番号A!$I$6+1))=TRUE,"",VLOOKUP(B9,入力AA1!$B$8:$CY$258,オフセット番号A!$I$6+1)),"*")) -> ＰＴＡ支部活動費 | J13: =IF($F$5=1,項目表示入力!$J$8,IF($F$5=2,IF(ISERROR(VLOOKUP(B9,入力AA1!$B$8:$CY$258,オフセット番号A!$J$6+1))=TRUE,"",VLOOKUP(B9,入力AA1!$B$8:$CY$258,オフセット番号A!$J$6+1)),"*")) -> 高等学校安全互助会負担金 | K13: =IF($F$5=1,項目表示入力!$K$8,IF($F$5=2,IF(ISERROR(VLOOKUP(B9,入力AA1!$B$8:$CY$258,オフセット番号A!$K$6+1))=TRUE,"",VLOOKUP(B9,入力AA1!$B$8:$CY$258,オフセット番号A!$K$6+1)),"*")) -> 高Ｐ連賠償責任保証制度掛金 | L13: =IF($F$5=1,項目表示入力!$L$8,IF($F$5=2,IF(ISERROR(VLOOKUP(B9,入力AA1!$B$8:$CY$258,オフセット番号A!$L$6+1))=TRUE,"",VLOOKUP(B9,入力AA1!$B$8:$CY$258,オフセット番号A!$L$6+1)),"*")) -> 平成１７年度卒業アルバム | M13: =IF($F$5=1,項目表示入力!$M$8,IF($F$5=2,IF(ISERROR(VLOOKUP(B9,入力AA1!$B$8:$CY$258,オフセット番号A!$M$6+1))=TRUE,"",VLOOKUP(B9,入力AA1!$B$8:$CY$258,オフセット番号A!$M$6+1)),"*")) -> 高等学校スポーツテスト処理料金 | N13: =IF($F$5=1,項目表示入力!$N$8,IF($F$5=2,IF(ISERROR(VLOOKUP(B9,入力AA1!$B$8:$CY$258,オフセット番号A!$N$6+1))=TRUE,"",VLOOKUP(B9,入力AA1!$B$8:$CY$258,オフセット番号A!$N$6+1)),"*")) -> 中央公論新社 やさしい文章術 | O13: =IF($F$5=1,項目表示入力!$O$8,IF($F$5=2,IF(ISERROR(VLOOKUP(B9,入力AA1!$B$8:$CY$258,オフセット番号A!$O$6+1))=TRUE,"",VLOOKUP(B9,入力AA1!$B$8:$CY$258,オフセット番号A!$O$6+1)),"*")) -> 体育祭ハチマキ | P13: =IF($F$5=1,項目表示入力!$P$8,IF($F$5=2,IF(ISERROR(VLOOKUP(B9,入力AA1!$B$8:$CY$258,オフセット番号A!$P$6+1))=TRUE,"",VLOOKUP(B9,入力AA1!$B$8:$CY$258,オフセット番号A!$P$6+1)),"*")) -> 芸術鑑賞会 | Q13: =IF($F$5=1,項目表示入力!$Q$8,IF($F$5=2,IF(ISERROR(VLOOKUP(B9,入力AA1!$B$8:$CY$258,オフセット番号A!$Q$6+1))=TRUE,"",VLOOKUP(B9,入力AA1!$B$8:$CY$258,オフセット番号A!$Q$6+1)),"*")) -> ロースコサージュ大ピンク | R13: =IF($F$5=1,項目表示入力!$R$8,IF($F$5=2,IF(ISERROR(VLOOKUP(B9,入力AA1!$B$8:$CY$258,オフセット番号A!$R$6+1))=TRUE,"",VLOOKUP(B9,入力AA1!$B$8:$CY$258,オフセット番号A!$R$6+1)),"*")) -> 卒業記念品 ネームペン | S13: =IF($F$5=1,項目表示入力!$S$8,IF($F$5=2,IF(ISERROR(VLOOKUP(B9,入力AA1!$B$8:$CY$258,オフセット番号A!$S$6+1))=TRUE,"",VLOOKUP(B9,入力AA1!$B$8:$CY$258,オフセット番号A!$S$6+1)),"*")) -> 卒業記念品 応援団旗（寄贈分） | T13: =IF($F$5=1,項目表示入力!$T$8,IF($F$5=2,IF(ISERROR(VLOOKUP(B9,入力AA1!$B$8:$CY$258,オフセット番号A!$T$6+1))=TRUE,"",VLOOKUP(B9,入力AA1!$B$8:$CY$258,オフセット番号A!$T$6+1)),"*")) -> 紅白饅頭 | U13: =IF($F$5=1,項目表示入力!$U$8,IF($F$5=2,IF(ISERROR(VLOOKUP(B9,入力AA1!$B$8:$CY$258,オフセット番号A!$U$6+1))=TRUE,"",VLOOKUP(B9,入力AA1!$B$8:$CY$258,オフセット番号A!$U$6+1)),"*")) -> 同窓会費 | V13: =IF($F$5=1,項目表示入力!$V$8,IF($F$5=2,IF(ISERROR(VLOOKUP(B9,入力AA1!$B$8:$CY$258,オフセット番号A!$V$6+1))=TRUE,"",VLOOKUP(B9,入力AA1!$B$8:$CY$258,オフセット番号A!$V$6+1)),"*")) -> 総合的な学習「社会人になるための準備学習」講師接待費
B14: =IF(行列入力項目!$C$7="","",行列入力項目!$C$7) -> 行3 | C14: =IF($F$5=1,項目表示入力!$C$9,IF($F$5=2,IF(ISERROR(VLOOKUP(B9,入力AA1!$B$8:$CY$258,オフセット番号A!$C$7+1))=TRUE,"",VLOOKUP(B9,入力AA1!$B$8:$CY$258,オフセット番号A!$C$7+1)),"*")) -> メール送信先アドレス | D14: =IF($F$5=1,項目表示入力!$D$9,IF($F$5=2,IF(ISERROR(VLOOKUP(B9,入力AA1!$B$8:$CY$258,オフセット番号A!$D$7+1))=TRUE,"",VLOOKUP(B9,入力AA1!$B$8:$CY$258,オフセット番号A!$D$7+1)),"*")) -> メール件名 | E14: =IF($F$5=1,項目表示入力!$E$9,IF($F$5=2,IF(ISERROR(VLOOKUP(B9,入力AA1!$B$8:$CY$258,オフセット番号A!$E$7+1))=TRUE,"",VLOOKUP(B9,入力AA1!$B$8:$CY$258,オフセット番号A!$E$7+1)),"*")) -> メール本文 | F14: =IF($F$5=1,項目表示入力!$F$9,IF($F$5=2,IF(ISERROR(VLOOKUP(B9,入力AA1!$B$8:$CY$258,オフセット番号A!$F$7+1))=TRUE,"",VLOOKUP(B9,入力AA1!$B$8:$CY$258,オフセット番号A!$F$7+1)),"*")) -> 内容3,4 | G14: =IF($F$5=1,項目表示入力!$G$9,IF($F$5=2,IF(ISERROR(VLOOKUP(B9,入力AA1!$B$8:$CY$258,オフセット番号A!$G$7+1))=TRUE,"",VLOOKUP(B9,入力AA1!$B$8:$CY$258,オフセット番号A!$G$7+1)),"*")) -> 内容3,5 | H14: =IF($F$5=1,項目表示入力!$H$9,IF($F$5=2,IF(ISERROR(VLOOKUP(B9,入力AA1!$B$8:$CY$258,オフセット番号A!$H$7+1))=TRUE,"",VLOOKUP(B9,入力AA1!$B$8:$CY$258,オフセット番号A!$H$7+1)),"*")) -> 内容3,6 | I14: =IF($F$5=1,項目表示入力!$I$9,IF($F$5=2,IF(ISERROR(VLOOKUP(B9,入力AA1!$B$8:$CY$258,オフセット番号A!$I$7+1))=TRUE,"",VLOOKUP(B9,入力AA1!$B$8:$CY$258,オフセット番号A!$I$7+1)),"*")) -> 内容3,7 | J14: =IF($F$5=1,項目表示入力!$J$9,IF($F$5=2,IF(ISERROR(VLOOKUP(B9,入力AA1!$B$8:$CY$258,オフセット番号A!$J$7+1))=TRUE,"",VLOOKUP(B9,入力AA1!$B$8:$CY$258,オフセット番号A!$J$7+1)),"*")) -> 内容3,8 | K14: =IF($F$5=1,項目表示入力!$K$9,IF($F$5=2,IF(ISERROR(VLOOKUP(B9,入力AA1!$B$8:$CY$258,オフセット番号A!$K$7+1))=TRUE,"",VLOOKUP(B9,入力AA1!$B$8:$CY$258,オフセット番号A!$K$7+1)),"*")) -> 内容3,9 | L14: =IF($F$5=1,項目表示入力!$L$9,IF($F$5=2,IF(ISERROR(VLOOKUP(B9,入力AA1!$B$8:$CY$258,オフセット番号A!$L$7+1))=TRUE,"",VLOOKUP(B9,入力AA1!$B$8:$CY$258,オフセット番号A!$L$7+1)),"*")) -> 内容3,10 | M14: =IF($F$5=1,項目表示入力!$M$9,IF($F$5=2,IF(ISERROR(VLOOKUP(B9,入力AA1!$B$8:$CY$258,オフセット番号A!$M$7+1))=TRUE,"",VLOOKUP(B9,入力AA1!$B$8:$CY$258,オフセット番号A!$M$7+1)),"*")) -> 内容3,11 | N14: =IF($F$5=1,項目表示入力!$N$9,IF($F$5=2,IF(ISERROR(VLOOKUP(B9,入力AA1!$B$8:$CY$258,オフセット番号A!$N$7+1))=TRUE,"",VLOOKUP(B9,入力AA1!$B$8:$CY$258,オフセット番号A!$N$7+1)),"*")) -> 内容3,12 | O14: =IF($F$5=1,項目表示入力!$O$9,IF($F$5=2,IF(ISERROR(VLOOKUP(B9,入力AA1!$B$8:$CY$258,オフセット番号A!$O$7+1))=TRUE,"",VLOOKUP(B9,入力AA1!$B$8:$CY$258,オフセット番号A!$O$7+1)),"*")) -> 内容3,13 | P14: =IF($F$5=1,項目表示入力!$P$9,IF($F$5=2,IF(ISERROR(VLOOKUP(B9,入力AA1!$B$8:$CY$258,オフセット番号A!$P$7+1))=TRUE,"",VLOOKUP(B9,入力AA1!$B$8:$CY$258,オフセット番号A!$P$7+1)),"*")) -> 内容3,14 | Q14: =IF($F$5=1,項目表示入力!$Q$9,IF($F$5=2,IF(ISERROR(VLOOKUP(B9,入力AA1!$B$8:$CY$258,オフセット番号A!$Q$7+1))=TRUE,"",VLOOKUP(B9,入力AA1!$B$8:$CY$258,オフセット番号A!$Q$7+1)),"*")) -> 内容3,15 | R14: =IF($F$5=1,項目表示入力!$R$9,IF($F$5=2,IF(ISERROR(VLOOKUP(B9,入力AA1!$B$8:$CY$258,オフセット番号A!$R$7+1))=TRUE,"",VLOOKUP(B9,入力AA1!$B$8:$CY$258,オフセット番号A!$R$7+1)),"*")) -> 内容3,16 | S14: =IF($F$5=1,項目表示入力!$S$9,IF($F$5=2,IF(ISERROR(VLOOKUP(B9,入力AA1!$B$8:$CY$258,オフセット番号A!$S$7+1))=TRUE,"",VLOOKUP(B9,入力AA1!$B$8:$CY$258,オフセット番号A!$S$7+1)),"*")) -> 内容3,17 | T14: =IF($F$5=1,項目表示入力!$T$9,IF($F$5=2,IF(ISERROR(VLOOKUP(B9,入力AA1!$B$8:$CY$258,オフセット番号A!$T$7+1))=TRUE,"",VLOOKUP(B9,入力AA1!$B$8:$CY$258,オフセット番号A!$T$7+1)),"*")) -> 内容3,18 | U14: =IF($F$5=1,項目表示入力!$U$9,IF($F$5=2,IF(ISERROR(VLOOKUP(B9,入力AA1!$B$8:$CY$258,オフセット番号A!$U$7+1))=TRUE,"",VLOOKUP(B9,入力AA1!$B$8:$CY$258,オフセット番号A!$U$7+1)),"*")) -> 内容3,19 | V14: =IF($F$5=1,項目表示入力!$V$9,IF($F$5=2,IF(ISERROR(VLOOKUP(B9,入力AA1!$B$8:$CY$258,オフセット番号A!$V$7+1))=TRUE,"",VLOOKUP(B9,入力AA1!$B$8:$CY$258,オフセット番号A!$V$7+1)),"*")) -> 内容3,20
B15: =IF(行列入力項目!$C$8="","",行列入力項目!$C$8) -> 行4 | C15: =IF($F$5=1,項目表示入力!$C$10,IF($F$5=2,IF(ISERROR(VLOOKUP(B9,入力AA1!$B$8:$CY$258,オフセット番号A!$C$8+1))=TRUE,"",VLOOKUP(B9,入力AA1!$B$8:$CY$258,オフセット番号A!$C$8+1)),"*")) -> 理科類型Ａコース生徒副教材 「看護医療系短大・専門学校の数学」 | D15: =IF($F$5=1,項目表示入力!$D$10,IF($F$5=2,IF(ISERROR(VLOOKUP(B9,入力AA1!$B$8:$CY$258,オフセット番号A!$D$8+1))=TRUE,"",VLOOKUP(B9,入力AA1!$B$8:$CY$258,オフセット番号A!$D$8+1)),"*")) -> 就職希望者問題集 一般常識マイテスト（解別） | E15: =IF($F$5=1,項目表示入力!$E$10,IF($F$5=2,IF(ISERROR(VLOOKUP(B9,入力AA1!$B$8:$CY$258,オフセット番号A!$E$8+1))=TRUE,"",VLOOKUP(B9,入力AA1!$B$8:$CY$258,オフセット番号A!$E$8+1)),"*")) -> 理系類型生徒対象 第１回学研高３「新・基礎力テスト」３教科 | F15: =IF($F$5=1,項目表示入力!$F$10,IF($F$5=2,IF(ISERROR(VLOOKUP(B9,入力AA1!$B$8:$CY$258,オフセット番号A!$F$8+1))=TRUE,"",VLOOKUP(B9,入力AA1!$B$8:$CY$258,オフセット番号A!$F$8+1)),"*")) -> 文系類型・外国語類型生徒対象 第１回学研高３「新・基礎力テスト」２教科 | G15: =IF($F$5=1,項目表示入力!$G$10,IF($F$5=2,IF(ISERROR(VLOOKUP(B9,入力AA1!$B$8:$CY$258,オフセット番号A!$G$8+1))=TRUE,"",VLOOKUP(B9,入力AA1!$B$8:$CY$258,オフセット番号A!$G$8+1)),"*")) -> 文系類型・外国語類型生徒対象 第１回学研「常識テスト」 | H15: =IF($F$5=1,項目表示入力!$H$10,IF($F$5=2,IF(ISERROR(VLOOKUP(B9,入力AA1!$B$8:$CY$258,オフセット番号A!$H$8+1))=TRUE,"",VLOOKUP(B9,入力AA1!$B$8:$CY$258,オフセット番号A!$H$8+1)),"*")) -> 内容4,6 | I15: =IF($F$5=1,項目表示入力!$I$10,IF($F$5=2,IF(ISERROR(VLOOKUP(B9,入力AA1!$B$8:$CY$258,オフセット番号A!$I$8+1))=TRUE,"",VLOOKUP(B9,入力AA1!$B$8:$CY$258,オフセット番号A!$I$8+1)),"*")) -> 内容4,7 | J15: =IF($F$5=1,項目表示入力!$J$10,IF($F$5=2,IF(ISERROR(VLOOKUP(B9,入力AA1!$B$8:$CY$258,オフセット番号A!$J$8+1))=TRUE,"",VLOOKUP(B9,入力AA1!$B$8:$CY$258,オフセット番号A!$J$8+1)),"*")) -> 内容4,8 | K15: =IF($F$5=1,項目表示入力!$K$10,IF($F$5=2,IF(ISERROR(VLOOKUP(B9,入力AA1!$B$8:$CY$258,オフセット番号A!$K$8+1))=TRUE,"",VLOOKUP(B9,入力AA1!$B$8:$CY$258,オフセット番号A!$K$8+1)),"*")) -> 内容4,9 | L15: =IF($F$5=1,項目表示入力!$L$10,IF($F$5=2,IF(ISERROR(VLOOKUP(B9,入力AA1!$B$8:$CY$258,オフセット番号A!$L$8+1))=TRUE,"",VLOOKUP(B9,入力AA1!$B$8:$CY$258,オフセット番号A!$L$8+1)),"*")) -> 内容4,10 | M15: =IF($F$5=1,項目表示入力!$M$10,IF($F$5=2,IF(ISERROR(VLOOKUP(B9,入力AA1!$B$8:$CY$258,オフセット番号A!$M$8+1))=TRUE,"",VLOOKUP(B9,入力AA1!$B$8:$CY$258,オフセット番号A!$M$8+1)),"*")) -> 内容4,11 | N15: =IF($F$5=1,項目表示入力!$N$10,IF($F$5=2,IF(ISERROR(VLOOKUP(B9,入力AA1!$B$8:$CY$258,オフセット番号A!$N$8+1))=TRUE,"",VLOOKUP(B9,入力AA1!$B$8:$CY$258,オフセット番号A!$N$8+1)),"*")) -> 内容4,12 | O15: =IF($F$5=1,項目表示入力!$O$10,IF($F$5=2,IF(ISERROR(VLOOKUP(B9,入力AA1!$B$8:$CY$258,オフセット番号A!$O$8+1))=TRUE,"",VLOOKUP(B9,入力AA1!$B$8:$CY$258,オフセット番号A!$O$8+1)),"*")) -> 内容4,13 | P15: =IF($F$5=1,項目表示入力!$P$10,IF($F$5=2,IF(ISERROR(VLOOKUP(B9,入力AA1!$B$8:$CY$258,オフセット番号A!$P$8+1))=TRUE,"",VLOOKUP(B9,入力AA1!$B$8:$CY$258,オフセット番号A!$P$8+1)),"*")) -> 内容4,14 | Q15: =IF($F$5=1,項目表示入力!$Q$10,IF($F$5=2,IF(ISERROR(VLOOKUP(B9,入力AA1!$B$8:$CY$258,オフセット番号A!$Q$8+1))=TRUE,"",VLOOKUP(B9,入力AA1!$B$8:$CY$258,オフセット番号A!$Q$8+1)),"*")) -> 内容4,15 | R15: =IF($F$5=1,項目表示入力!$R$10,IF($F$5=2,IF(ISERROR(VLOOKUP(B9,入力AA1!$B$8:$CY$258,オフセット番号A!$R$8+1))=TRUE,"",VLOOKUP(B9,入力AA1!$B$8:$CY$258,オフセット番号A!$R$8+1)),"*")) -> 内容4,16 | S15: =IF($F$5=1,項目表示入力!$S$10,IF($F$5=2,IF(ISERROR(VLOOKUP(B9,入力AA1!$B$8:$CY$258,オフセット番号A!$S$8+1))=TRUE,"",VLOOKUP(B9,入力AA1!$B$8:$CY$258,オフセット番号A!$S$8+1)),"*")) -> 内容4,17 | T15: =IF($F$5=1,項目表示入力!$T$10,IF($F$5=2,IF(ISERROR(VLOOKUP(B9,入力AA1!$B$8:$CY$258,オフセット番号A!$T$8+1))=TRUE,"",VLOOKUP(B9,入力AA1!$B$8:$CY$258,オフセット番号A!$T$8+1)),"*")) -> 内容4,18 | U15: =IF($F$5=1,項目表示入力!$U$10,IF($F$5=2,IF(ISERROR(VLOOKUP(B9,入力AA1!$B$8:$CY$258,オフセット番号A!$U$8+1))=TRUE,"",VLOOKUP(B9,入力AA1!$B$8:$CY$258,オフセット番号A!$U$8+1)),"*")) -> 内容4,19 | V15: =IF($F$5=1,項目表示入力!$V$10,IF($F$5=2,IF(ISERROR(VLOOKUP(B9,入力AA1!$B$8:$CY$258,オフセット番号A!$V$8+1))=TRUE,"",VLOOKUP(B9,入力AA1!$B$8:$CY$258,オフセット番号A!$V$8+1)),"*")) -> 内容4,20
B16: =IF(行列入力項目!$C$9="","",行列入力項目!$C$9) -> 行5 | C16: =IF($F$5=1,項目表示入力!$C$11,IF($F$5=2,IF(ISERROR(VLOOKUP(B9,入力AA1!$B$8:$CY$258,オフセット番号A!$C$9+1))=TRUE,"",VLOOKUP(B9,入力AA1!$B$8:$CY$258,オフセット番号A!$C$9+1)),"*")) -> １・２学期共通項目支出計 | D16: =IF($F$5=1,項目表示入力!$D$11,IF($F$5=2,IF(ISERROR(VLOOKUP(B9,入力AA1!$B$8:$CY$258,オフセット番号A!$D$9+1))=TRUE,"",VLOOKUP(B9,入力AA1!$B$8:$CY$258,オフセット番号A!$D$9+1)),"*")) -> １・２学期一部該当者支出計 | E16: =IF($F$5=1,項目表示入力!$E$11,IF($F$5=2,IF(ISERROR(VLOOKUP(B9,入力AA1!$B$8:$CY$258,オフセット番号A!$E$9+1))=TRUE,"",VLOOKUP(B9,入力AA1!$B$8:$CY$258,オフセット番号A!$E$9+1)),"*")) -> １・２学期支出合計 | F16: =IF($F$5=1,項目表示入力!$F$11,IF($F$5=2,IF(ISERROR(VLOOKUP(B9,入力AA1!$B$8:$CY$258,オフセット番号A!$F$9+1))=TRUE,"",VLOOKUP(B9,入力AA1!$B$8:$CY$258,オフセット番号A!$F$9+1)),"*")) -> 前年度からの繰越金 | G16: =IF($F$5=1,項目表示入力!$G$11,IF($F$5=2,IF(ISERROR(VLOOKUP(B9,入力AA1!$B$8:$CY$258,オフセット番号A!$G$9+1))=TRUE,"",VLOOKUP(B9,入力AA1!$B$8:$CY$258,オフセット番号A!$G$9+1)),"*")) -> 今年度学年積立金 | H16: =IF($F$5=1,項目表示入力!$H$11,IF($F$5=2,IF(ISERROR(VLOOKUP(B9,入力AA1!$B$8:$CY$258,オフセット番号A!$H$9+1))=TRUE,"",VLOOKUP(B9,入力AA1!$B$8:$CY$258,オフセット番号A!$H$9+1)),"*")) -> 今年度利息 | I16: =IF($F$5=1,項目表示入力!$I$11,IF($F$5=2,IF(ISERROR(VLOOKUP(B9,入力AA1!$B$8:$CY$258,オフセット番号A!$I$9+1))=TRUE,"",VLOOKUP(B9,入力AA1!$B$8:$CY$258,オフセット番号A!$I$9+1)),"*")) -> 今年度収入合計 | J16: =IF($F$5=1,項目表示入力!$J$11,IF($F$5=2,IF(ISERROR(VLOOKUP(B9,入力AA1!$B$8:$CY$258,オフセット番号A!$J$9+1))=TRUE,"",VLOOKUP(B9,入力AA1!$B$8:$CY$258,オフセット番号A!$J$9+1)),"*")) -> ３学期への繰越金 | K16: =IF($F$5=1,項目表示入力!$K$11,IF($F$5=2,IF(ISERROR(VLOOKUP(B9,入力AA1!$B$8:$CY$258,オフセット番号A!$K$9+1))=TRUE,"",VLOOKUP(B9,入力AA1!$B$8:$CY$258,オフセット番号A!$K$9+1)),"*")) -> 内容5,9 | L16: =IF($F$5=1,項目表示入力!$L$11,IF($F$5=2,IF(ISERROR(VLOOKUP(B9,入力AA1!$B$8:$CY$258,オフセット番号A!$L$9+1))=TRUE,"",VLOOKUP(B9,入力AA1!$B$8:$CY$258,オフセット番号A!$L$9+1)),"*")) -> 内容5,10 | M16: =IF($F$5=1,項目表示入力!$M$11,IF($F$5=2,IF(ISERROR(VLOOKUP(B9,入力AA1!$B$8:$CY$258,オフセット番号A!$M$9+1))=TRUE,"",VLOOKUP(B9,入力AA1!$B$8:$CY$258,オフセット番号A!$M$9+1)),"*")) -> 内容5,11 | N16: =IF($F$5=1,項目表示入力!$N$11,IF($F$5=2,IF(ISERROR(VLOOKUP(B9,入力AA1!$B$8:$CY$258,オフセット番号A!$N$9+1))=TRUE,"",VLOOKUP(B9,入力AA1!$B$8:$CY$258,オフセット番号A!$N$9+1)),"*")) -> 内容5,12 | O16: =IF($F$5=1,項目表示入力!$O$11,IF($F$5=2,IF(ISERROR(VLOOKUP(B9,入力AA1!$B$8:$CY$258,オフセット番号A!$O$9+1))=TRUE,"",VLOOKUP(B9,入力AA1!$B$8:$CY$258,オフセット番号A!$O$9+1)),"*")) -> 内容5,13 | P16: =IF($F$5=1,項目表示入力!$P$11,IF($F$5=2,IF(ISERROR(VLOOKUP(B9,入力AA1!$B$8:$CY$258,オフセット番号A!$P$9+1))=TRUE,"",VLOOKUP(B9,入力AA1!$B$8:$CY$258,オフセット番号A!$P$9+1)),"*")) -> 内容5,14 | Q16: =IF($F$5=1,項目表示入力!$Q$11,IF($F$5=2,IF(ISERROR(VLOOKUP(B9,入力AA1!$B$8:$CY$258,オフセット番号A!$Q$9+1))=TRUE,"",VLOOKUP(B9,入力AA1!$B$8:$CY$258,オフセット番号A!$Q$9+1)),"*")) -> 内容5,15 | R16: =IF($F$5=1,項目表示入力!$R$11,IF($F$5=2,IF(ISERROR(VLOOKUP(B9,入力AA1!$B$8:$CY$258,オフセット番号A!$R$9+1))=TRUE,"",VLOOKUP(B9,入力AA1!$B$8:$CY$258,オフセット番号A!$R$9+1)),"*")) -> 内容5,16 | S16: =IF($F$5=1,項目表示入力!$S$11,IF($F$5=2,IF(ISERROR(VLOOKUP(B9,入力AA1!$B$8:$CY$258,オフセット番号A!$S$9+1))=TRUE,"",VLOOKUP(B9,入力AA1!$B$8:$CY$258,オフセット番号A!$S$9+1)),"*")) -> 未納授業料への充当 | T16: =IF($F$5=1,項目表示入力!$T$11,IF($F$5=2,IF(ISERROR(VLOOKUP(B9,入力AA1!$B$8:$CY$258,オフセット番号A!$T$9+1))=TRUE,"",VLOOKUP(B9,入力AA1!$B$8:$CY$258,オフセット番号A!$T$9+1)),"*")) -> 保護者への返金額 | U16: =IF($F$5=1,項目表示入力!$U$11,IF($F$5=2,IF(ISERROR(VLOOKUP(B9,入力AA1!$B$8:$CY$258,オフセット番号A!$U$9+1))=TRUE,"",VLOOKUP(B9,入力AA1!$B$8:$CY$258,オフセット番号A!$U$9+1)),"*")) -> 振込手数料 | V16: =IF($F$5=1,項目表示入力!$V$11,IF($F$5=2,IF(ISERROR(VLOOKUP(B9,入力AA1!$B$8:$CY$258,オフセット番号A!$V$9+1))=TRUE,"",VLOOKUP(B9,入力AA1!$B$8:$CY$258,オフセット番号A!$V$9+1)),"*")) -> 口座振込金額

Sheet ３学年学年積立金会計報告(学年分)個人別印刷設定
B3: =シート名設定!C9 -> ３学年学年積立金会計報告(学年分)個人別印刷設定
B4: １．入力元の設定
B5: 項 目 | C5: 設定内容
B6: シート名 | C6: 学年積立金会計報告個人別（通年）ソートデーター
B7: データ先頭セル行番号 | C7: 6
B8: データ先頭セル列番号 | C8: 2
B9: 異同比較列番号 | C9: 2
B10: データー数 | C10: 229
B11: For Next の増分 | C11: 1
B13: ２．入力先の設定
B14: 項 目 | C14: 設定内容
B15: シート名 | C15: 平成１７年度第３学年会計報告個人別（通年）
B16: 入力先頭セル行番号 | C16: 8
B17: 入力先頭セル列番号 | C17: 2
B18: 入力最終セル行番号 | C18: 8
B19: 入力最終セル列番号 | C19: 2
B20: 入力データー数 | C20: 1
B21: 通しページ入力セル行番号 | C21: 106
B22: 通しページ入力セル列番号 | C22: 6
B23: 区分内ページ入力セル行番号 | C23: 106
B24: 区分内ページ入力セル列番号 | C24: 8
B25: ３．印刷処理かファイルのメール送信の設定
B26: 項 目 | C26: 設定内容
B27: 印刷処理か ファイルの メール送信 の選択 | C27: メールで送信する | D27: 2
B28: ファイルのメール送信の場合の印刷フォームソートデーターシートのメールアドレスが入力されている列番号 | C28: 44
B29: ファイルのメール送信の場合の印刷フォームソートデーターシートの件名が入力されている列番号 | C29: 45
B30: ファイルのメール送信の場合の印刷フォームソートデーターシートの本文が入力されている列番号 | C30: 46
B31: ファイルのメール送信の場合の添付ファイルの保存先ドライブ及びフォルダー | C31: D:\B
C37: =IF(シート名設定!C35=0,"",シート名設定!C35) -> 平成１７年度第３学年会計報告個人別（通年） | D37: 1 | E37: 印刷する
C38: =IF(シート名設定!C36=0,"",シート名設定!C36) -> ○○○子学年積立金会計報告印刷フォーム | D38: 2 | E38: メールで送信する
C39: =IF(シート名設定!C37=0,"",シート名設定!C37) -> □□□子学年積立金会計報告印刷フォーム | D39: 3 | E39: 添付ファイルなし件名本文のみのメール
C40: =IF(シート名設定!C38=0,"",シート名設定!C38) -> 学年積立金の返金並びに返金振込口座の確認フォーム
C41: =IF(シート名設定!C39=0,"",シート名設定!C39) -> 印刷フォーム5
C42: =IF(シート名設定!C40=0,"",シート名設定!C40) -> 印刷フォーム6
C43: =IF(シート名設定!C41=0,"",シート名設定!C41) -> 印刷フォーム7
C44: =IF(シート名設定!C42=0,"",シート名設定!C42) -> 印刷フォーム8
C45: =IF(シート名設定!C43=0,"",シート名設定!C43) -> 印刷フォーム9
C46: =IF(シート名設定!C44=0,"",シート名設定!C44) -> 印刷フォーム10
C47: =IF(シート名設定!C45=0,"",シート名設定!C45) -> 印刷フォーム11
C48: =IF(シート名設定!C46=0,"",シート名設定!C46) -> 印刷フォーム12
C49: =IF(シート名設定!C47=0,"",シート名設定!C47) -> 印刷フォーム13
C50: =IF(シート名設定!C48=0,"",シート名設定!C48) -> 印刷フォーム14
C51: =IF(シート名設定!C49=0,"",シート名設定!C49) -> 印刷フォーム15
C52: =IF(シート名設定!C50=0,"",シート名設定!C50) -> 印刷フォーム16
C53: =IF(シート名設定!C51=0,"",シート名設定!C51) -> 印刷フォーム17
C54: =IF(シート名設定!C52=0,"",シート名設定!C52) -> 印刷フォーム18
C55: =IF(シート名設定!C53=0,"",シート名設定!C53) -> 印刷フォーム19
C56: =IF(シート名設定!C54=0,"",シート名設定!C54) -> 印刷フォーム20
C57: =IF(シート名設定!E5=0,"",シート名設定!E5) -> 印刷フォーム21
C58: =IF(シート名設定!E6=0,"",シート名設定!E6) -> 印刷フォーム22
C59: =IF(シート名設定!E7=0,"",シート名設定!E7) -> 印刷フォーム23
C60: =IF(シート名設定!E8=0,"",シート名設定!E8) -> 印刷フォーム24
C61: =IF(シート名設定!E9=0,"",シート名設定!E9) -> 印刷フォーム25
C62: =IF(シート名設定!E10=0,"",シート名設定!E10) -> 印刷フォーム26
C63: =IF(シート名設定!E11=0,"",シート名設定!E11) -> 印刷フォーム27
C64: =IF(シート名設定!E12=0,"",シート名設定!E12) -> 印刷フォーム28
C65: =IF(シート名設定!E13=0,"",シート名設定!E13) -> 印刷フォーム29
C66: =IF(シート名設定!E14=0,"",シート名設定!E14) -> 印刷フォーム30
C67: =IF(シート名設定!E15=0,"",シート名設定!E15) -> 学年積立金会計報告個人別（通年）ソートデーター
C68: =IF(シート名設定!E16=0,"",シート名設定!E16) -> 学年積立金の返金並びに返金振込口座の確認フォームソートデーター
C69: =IF(シート名設定!E17=0,"",シート名設定!E17) -> 印刷フォーム3ソートデーター
C70: =IF(シート名設定!E18=0,"",シート名設定!E18) -> 印刷フォーム4ソートデーター
C71: =IF(シート名設定!E19=0,"",シート名設定!E19) -> 印刷フォーム5ソートデーター
C72: =IF(シート名設定!E20=0,"",シート名設定!E20) -> 印刷フォーム6ソートデーター
C73: =IF(シート名設定!E21=0,"",シート名設定!E21) -> 印刷フォーム7ソートデーター
C74: =IF(シート名設定!E22=0,"",シート名設定!E22) -> 印刷フォーム8ソートデーター
C75: =IF(シート名設定!E23=0,"",シート名設定!E23) -> 印刷フォーム9ソートデーター
C76: =IF(シート名設定!E24=0,"",シート名設定!E24) -> 印刷フォーム10ソートデーター
C77: =IF(シート名設定!E25=0,"",シート名設定!E25) -> 印刷フォーム11ソートデーター
C78: =IF(シート名設定!E26=0,"",シート名設定!E26) -> 印刷フォーム12ソートデーター
C79: =IF(シート名設定!E27=0,"",シート名設定!E27) -> 印刷フォーム13ソートデーター
C80: =IF(シート名設定!E28=0,"",シート名設定!E28) -> 印刷フォーム14ソートデーター
C81: =IF(シート名設定!E29=0,"",シート名設定!E29) -> 印刷フォーム15ソートデーター
C82: =IF(シート名設定!E30=0,"",シート名設定!E30) -> 印刷フォーム16ソートデーター
C83: =IF(シート名設定!E31=0,"",シート名設定!E31) -> 印刷フォーム17ソートデーター
C84: =IF(シート名設定!E32=0,"",シート名設定!E32) -> 印刷フォーム18ソートデーター
C85: =IF(シート名設定!E33=0,"",シート名設定!E33) -> 印刷フォーム19ソートデーター
C86: =IF(シート名設定!E34=0,"",シート名設定!E34) -> 印刷フォーム20ソートデーター
C87: =IF(シート名設定!E35=0,"",シート名設定!E35) -> 印刷フォーム21ソートデーター
C88: =IF(シート名設定!E36=0,"",シート名設定!E36) -> 印刷フォーム22ソートデーター
C89: =IF(シート名設定!E37=0,"",シート名設定!E37) -> 印刷フォーム23ソートデーター
C90: =IF(シート名設定!E38=0,"",シート名設定!E38) -> 印刷フォーム24ソートデーター
C91: =IF(シート名設定!E39=0,"",シート名設定!E39) -> 印刷フォーム25ソートデーター
C92: =IF(シート名設定!E40=0,"",シート名設定!E40) -> 印刷フォーム26ソートデーター
C93: =IF(シート名設定!E41=0,"",シート名設定!E41) -> 印刷フォーム27ソートデーター
C94: =IF(シート名設定!E42=0,"",シート名設定!E42) -> 印刷フォーム28ソートデーター
C95: =IF(シート名設定!E43=0,"",シート名設定!E43) -> 印刷フォーム29ソートデーター
C96: =IF(シート名設定!E44=0,"",シート名設定!E44) -> 印刷フォーム30ソートデーター
C97: =IF(追加ワークシート名設定!D6=0,"",追加ワークシート名設定!D6) -> 退学者○○○子学年積立金会計
C98: =IF(追加ワークシート名設定!D7=0,"",追加ワークシート名設定!D7) -> 退学者□□□子学年積立金会計
C99: =IF(追加ワークシート名設定!D8=0,"",追加ワークシート名設定!D8) -> 特別会計処理該当
C100: =IF(追加ワークシート名設定!D9=0,"",追加ワークシート名設定!D9) -> 
C101: =IF(追加ワークシート名設定!D10=0,"",追加ワークシート名設定!D10) -> 
C102: =IF(追加ワークシート名設定!D11=0,"",追加ワークシート名設定!D11) -> 
C103: =IF(追加ワークシート名設定!D12=0,"",追加ワークシート名設定!D12) -> 
C104: =IF(追加ワークシート名設定!D13=0,"",追加ワークシート名設定!D13) -> 
C105: =IF(追加ワークシート名設定!D14=0,"",追加ワークシート名設定!D14) -> 
C106: =IF(追加ワークシート名設定!D15=0,"",追加ワークシート名設定!D15) -> 
C107: =IF(追加ワークシート名設定!D16=0,"",追加ワークシート名設定!D16) -> 
C108: =IF(追加ワークシート名設定!D17=0,"",追加ワークシート名設定!D17) -> 
C109: =IF(追加ワークシート名設定!D18=0,"",追加ワークシート名設定!D18) -> 
C110: =IF(追加ワークシート名設定!D19=0,"",追加ワークシート名設定!D19) -> 
C111: =IF(追加ワークシート名設定!D20=0,"",追加ワークシート名設定!D20) -> 
C112: =IF(追加ワークシート名設定!D21=0,"",追加ワークシート名設定!D21) -> 
C113: =IF(追加ワークシート名設定!D22=0,"",追加ワークシート名設定!D22) -> 
C114: =IF(追加ワークシート名設定!D23=0,"",追加ワークシート名設定!D23) -> 
C115: =IF(追加ワークシート名設定!D24=0,"",追加ワークシート名設定!D24) -> 
C116: =IF(追加ワークシート名設定!D25=0,"",追加ワークシート名設定!D25) -> 
C117: =IF(追加ワークシート名設定!D26=0,"",追加ワークシート名設定!D26) -> 
C118: =IF(追加ワークシート名設定!D27=0,"",追加ワークシート名設定!D27) -> 
C119: =IF(追加ワークシート名設定!D28=0,"",追加ワークシート名設定!D28) -> 
C120: =IF(追加ワークシート名設定!D29=0,"",追加ワークシート名設定!D29) -> 
C121: =IF(追加ワークシート名設定!D30=0,"",追加ワークシート名設定!D30) -> 
C122: =IF(追加ワークシート名設定!D31=0,"",追加ワークシート名設定!D31) -> 
C123: =IF(追加ワークシート名設定!D32=0,"",追加ワークシート名設定!D32) -> 
C124: =IF(追加ワークシート名設定!D33=0,"",追加ワークシート名設定!D33) -> 
C125: =IF(追加ワークシート名設定!D34=0,"",追加ワークシート名設定!D34) -> 
C126: =IF(追加ワークシート名設定!D35=0,"",追加ワークシート名設定!D35) -> 
C127: =IF(追加ワークシート名設定!D36=0,"",追加ワークシート名設定!D36) -> 
C128: =IF(追加ワークシート名設定!D37=0,"",追加ワークシート名設定!D37) -> 
C129: =IF(追加ワークシート名設定!D38=0,"",追加ワークシート名設定!D38) -> 
C130: =IF(追加ワークシート名設定!D39=0,"",追加ワークシート名設定!D39) -> 
C131: =IF(追加ワークシート名設定!D40=0,"",追加ワークシート名設定!D40) -> 
C132: =IF(追加ワークシート名設定!D41=0,"",追加ワークシート名設定!D41) -> 
C133: =IF(追加ワークシート名設定!D42=0,"",追加ワークシート名設定!D42) -> 
C134: =IF(追加ワークシート名設定!D43=0,"",追加ワークシート名設定!D43) -> 
C135: =IF(追加ワークシート名設定!D44=0,"",追加ワークシート名設定!D44) -> 
C136: =IF(追加ワークシート名設定!D45=0,"",追加ワークシート名設定!D45) -> 
C137: =IF(追加ワークシート名設定!D46=0,"",追加ワークシート名設定!D46) -> 
C138: =IF(追加ワークシート名設定!D47=0,"",追加ワークシート名設定!D47) -> 
C139: =IF(追加ワークシート名設定!D48=0,"",追加ワークシート名設定!D48) -> 
C140: =IF(追加ワークシート名設定!D49=0,"",追加ワークシート名設定!D49) -> 
C141: =IF(追加ワークシート名設定!D50=0,"",追加ワークシート名設定!D50) -> 
C142: =IF(追加ワークシート名設定!D51=0,"",追加ワークシート名設定!D51) -> 
C143: =IF(追加ワークシート名設定!D52=0,"",追加ワークシート名設定!D52) -> 
C144: =IF(追加ワークシート名設定!D53=0,"",追加ワークシート名設定!D53) -> 
C145: =IF(追加ワークシート名設定!D54=0,"",追加ワークシート名設定!D54) -> 
C146: =IF(追加ワークシート名設定!D55=0,"",追加ワークシート名設定!D55) -> 
C147: =IF(追加ワークシート名設定!D56=0,"",追加ワークシート名設定!D56) -> 
C148: =IF(追加ワークシート名設定!D57=0,"",追加ワークシート名設定!D57) -> 
C149: =IF(追加ワークシート名設定!D58=0,"",追加ワークシート名設定!D58) -> 
C150: =IF(追加ワークシート名設定!D59=0,"",追加ワークシート名設定!D59) -> 
C151: =IF(追加ワークシート名設定!D60=0,"",追加ワークシート名設定!D60) -> 
C152: =IF(追加ワークシート名設定!D61=0,"",追加ワークシート名設定!D61) -> 
C153: =IF(追加ワークシート名設定!D62=0,"",追加ワークシート名設定!D62) -> 
C154: =IF(追加ワークシート名設定!D63=0,"",追加ワークシート名設定!D63) -> 
C155: =IF(追加ワークシート名設定!D64=0,"",追加ワークシート名設定!D64) -> 
C156: =IF(追加ワークシート名設定!D65=0,"",追加ワークシート名設定!D65) -> 
C157: =IF(追加ワークシート名設定!D66=0,"",追加ワークシート名設定!D66) -> 
C158: =IF(追加ワークシート名設定!D67=0,"",追加ワークシート名設定!D67) -> 
C159: =IF(追加ワークシート名設定!D68=0,"",追加ワークシート名設定!D68) -> 
C160: =IF(追加ワークシート名設定!D69=0,"",追加ワークシート名設定!D69) -> 
C161: =IF(シート名設定!C30=0,"",シート名設定!C30) -> 入力AA1

Sheet ○○○子学年積立金会計報告個人別印刷設定
B3: =シート名設定!C10 -> ○○○子学年積立金会計報告個人別印刷設定
B4: １．入力元の設定
B5: 項 目 | C5: 設定内容
B6: シート名 | C6: 学年積立金会計報告個人別（通年）ソートデーター
B7: データ先頭セル行番号 | C7: 6
B8: データ先頭セル列番号 | C8: 2
B9: 異同比較列番号 | C9: 10
B10: データー数 | C10: 229
B11: For Next の増分 | C11: 1
B13: ２．入力先の設定
B14: 項 目 | C14: 設定内容
B15: シート名 | C15: ○○○子学年積立金会計報告印刷フォーム
B16: 入力先頭セル行番号 | C16: 8
B17: 入力先頭セル列番号 | C17: 2
B18: 入力最終セル行番号 | C18: 8
B19: 入力最終セル列番号 | C19: 2
B20: 入力データー数 | C20: 1
B21: 通しページ入力セル行番号 | C21: 91
B22: 通しページ入力セル列番号 | C22: 6
B23: 区分内ページ入力セル行番号 | C23: 91
B24: 区分内ページ入力セル列番号 | C24: 8
B25: ３．印刷処理かファイルのメール送信の設定
B26: 項 目 | C26: 設定内容
B27: 印刷処理か ファイルの メール送信 の選択 | C27: 印刷する | D27: 1
B28: ファイルのメール送信の場合の印刷フォームソートデーターシートのメールアドレスが入力されている列番号
B29: ファイルのメール送信の場合の印刷フォームソートデーターシートの件名が入力されている列番号
B30: ファイルのメール送信の場合の印刷フォームソートデーターシートの本文が入力されている列番号
B31: ファイルのメール送信の場合の添付ファイルの保存先ドライブ及びフォルダー
C37: =IF(シート名設定!C35=0,"",シート名設定!C35) -> 平成１７年度第３学年会計報告個人別（通年） | D37: 1 | E37: 印刷する
C38: =IF(シート名設定!C36=0,"",シート名設定!C36) -> ○○○子学年積立金会計報告印刷フォーム | D38: 2 | E38: メールで送信する
C39: =IF(シート名設定!C37=0,"",シート名設定!C37) -> □□□子学年積立金会計報告印刷フォーム | D39: 3 | E39: 添付ファイルなし件名本文のみのメール
C40: =IF(シート名設定!C38=0,"",シート名設定!C38) -> 学年積立金の返金並びに返金振込口座の確認フォーム
C41: =IF(シート名設定!C39=0,"",シート名設定!C39) -> 印刷フォーム5
C42: =IF(シート名設定!C40=0,"",シート名設定!C40) -> 印刷フォーム6
C43: =IF(シート名設定!C41=0,"",シート名設定!C41) -> 印刷フォーム7
C44: =IF(シート名設定!C42=0,"",シート名設定!C42) -> 印刷フォーム8
C45: =IF(シート名設定!C43=0,"",シート名設定!C43) -> 印刷フォーム9
C46: =IF(シート名設定!C44=0,"",シート名設定!C44) -> 印刷フォーム10
C47: =IF(シート名設定!C45=0,"",シート名設定!C45) -> 印刷フォーム11
C48: =IF(シート名設定!C46=0,"",シート名設定!C46) -> 印刷フォーム12
C49: =IF(シート名設定!C47=0,"",シート名設定!C47) -> 印刷フォーム13
C50: =IF(シート名設定!C48=0,"",シート名設定!C48) -> 印刷フォーム14
C51: =IF(シート名設定!C49=0,"",シート名設定!C49) -> 印刷フォーム15
C52: =IF(シート名設定!C50=0,"",シート名設定!C50) -> 印刷フォーム16
C53: =IF(シート名設定!C51=0,"",シート名設定!C51) -> 印刷フォーム17
C54: =IF(シート名設定!C52=0,"",シート名設定!C52) -> 印刷フォーム18
C55: =IF(シート名設定!C53=0,"",シート名設定!C53) -> 印刷フォーム19
C56: =IF(シート名設定!C54=0,"",シート名設定!C54) -> 印刷フォーム20
C57: =IF(シート名設定!E5=0,"",シート名設定!E5) -> 印刷フォーム21
C58: =IF(シート名設定!E6=0,"",シート名設定!E6) -> 印刷フォーム22
C59: =IF(シート名設定!E7=0,"",シート名設定!E7) -> 印刷フォーム23
C60: =IF(シート名設定!E8=0,"",シート名設定!E8) -> 印刷フォーム24
C61: =IF(シート名設定!E9=0,"",シート名設定!E9) -> 印刷フォーム25
C62: =IF(シート名設定!E10=0,"",シート名設定!E10) -> 印刷フォーム26
C63: =IF(シート名設定!E11=0,"",シート名設定!E11) -> 印刷フォーム27
C64: =IF(シート名設定!E12=0,"",シート名設定!E12) -> 印刷フォーム28
C65: =IF(シート名設定!E13=0,"",シート名設定!E13) -> 印刷フォーム29
C66: =IF(シート名設定!E14=0,"",シート名設定!E14) -> 印刷フォーム30
C67: =IF(シート名設定!E15=0,"",シート名設定!E15) -> 学年積立金会計報告個人別（通年）ソートデーター
C68: =IF(シート名設定!E16=0,"",シート名設定!E16) -> 学年積立金の返金並びに返金振込口座の確認フォームソートデーター
C69: =IF(シート名設定!E17=0,"",シート名設定!E17) -> 印刷フォーム3ソートデーター
C70: =IF(シート名設定!E18=0,"",シート名設定!E18) -> 印刷フォーム4ソートデーター
C71: =IF(シート名設定!E19=0,"",シート名設定!E19) -> 印刷フォーム5ソートデーター
C72: =IF(シート名設定!E20=0,"",シート名設定!E20) -> 印刷フォーム6ソートデーター
C73: =IF(シート名設定!E21=0,"",シート名設定!E21) -> 印刷フォーム7ソートデーター
C74: =IF(シート名設定!E22=0,"",シート名設定!E22) -> 印刷フォーム8ソートデーター
C75: =IF(シート名設定!E23=0,"",シート名設定!E23) -> 印刷フォーム9ソートデーター
C76: =IF(シート名設定!E24=0,"",シート名設定!E24) -> 印刷フォーム10ソートデーター
C77: =IF(シート名設定!E25=0,"",シート名設定!E25) -> 印刷フォーム11ソートデーター
C78: =IF(シート名設定!E26=0,"",シート名設定!E26) -> 印刷フォーム12ソートデーター
C79: =IF(シート名設定!E27=0,"",シート名設定!E27) -> 印刷フォーム13ソートデーター
C80: =IF(シート名設定!E28=0,"",シート名設定!E28) -> 印刷フォーム14ソートデーター
C81: =IF(シート名設定!E29=0,"",シート名設定!E29) -> 印刷フォーム15ソートデーター
C82: =IF(シート名設定!E30=0,"",シート名設定!E30) -> 印刷フォーム16ソートデーター
C83: =IF(シート名設定!E31=0,"",シート名設定!E31) -> 印刷フォーム17ソートデーター
C84: =IF(シート名設定!E32=0,"",シート名設定!E32) -> 印刷フォーム18ソートデーター
C85: =IF(シート名設定!E33=0,"",シート名設定!E33) -> 印刷フォーム19ソートデーター
C86: =IF(シート名設定!E34=0,"",シート名設定!E34) -> 印刷フォーム20ソートデーター
C87: =IF(シート名設定!E35=0,"",シート名設定!E35) -> 印刷フォーム21ソートデーター
C88: =IF(シート名設定!E36=0,"",シート名設定!E36) -> 印刷フォーム22ソートデーター
C89: =IF(シート名設定!E37=0,"",シート名設定!E37) -> 印刷フォーム23ソートデーター
C90: =IF(シート名設定!E38=0,"",シート名設定!E38) -> 印刷フォーム24ソートデーター
C91: =IF(シート名設定!E39=0,"",シート名設定!E39) -> 印刷フォーム25ソートデーター
C92: =IF(シート名設定!E40=0,"",シート名設定!E40) -> 印刷フォーム26ソートデーター
C93: =IF(シート名設定!E41=0,"",シート名設定!E41) -> 印刷フォーム27ソートデーター
C94: =IF(シート名設定!E42=0,"",シート名設定!E42) -> 印刷フォーム28ソートデーター
C95: =IF(シート名設定!E43=0,"",シート名設定!E43) -> 印刷フォーム29ソートデーター
C96: =IF(シート名設定!E44=0,"",シート名設定!E44) -> 印刷フォーム30ソートデーター
C97: =IF(追加ワークシート名設定!D6=0,"",追加ワークシート名設定!D6) -> 退学者○○○子学年積立金会計
C98: =IF(追加ワークシート名設定!D7=0,"",追加ワークシート名設定!D7) -> 退学者□□□子学年積立金会計
C99: =IF(追加ワークシート名設定!D8=0,"",追加ワークシート名設定!D8) -> 特別会計処理該当
C100: =IF(追加ワークシート名設定!D9=0,"",追加ワークシート名設定!D9) -> 
C101: =IF(追加ワークシート名設定!D10=0,"",追加ワークシート名設定!D10) -> 
C102: =IF(追加ワークシート名設定!D11=0,"",追加ワークシート名設定!D11) -> 
C103: =IF(追加ワークシート名設定!D12=0,"",追加ワークシート名設定!D12) -> 
C104: =IF(追加ワークシート名設定!D13=0,"",追加ワークシート名設定!D13) -> 
C105: =IF(追加ワークシート名設定!D14=0,"",追加ワークシート名設定!D14) -> 
C106: =IF(追加ワークシート名設定!D15=0,"",追加ワークシート名設定!D15) -> 
C107: =IF(追加ワークシート名設定!D16=0,"",追加ワークシート名設定!D16) -> 
C108: =IF(追加ワークシート名設定!D17=0,"",追加ワークシート名設定!D17) -> 
C109: =IF(追加ワークシート名設定!D18=0,"",追加ワークシート名設定!D18) -> 
C110: =IF(追加ワークシート名設定!D19=0,"",追加ワークシート名設定!D19) -> 
C111: =IF(追加ワークシート名設定!D20=0,"",追加ワークシート名設定!D20) -> 
C112: =IF(追加ワークシート名設定!D21=0,"",追加ワークシート名設定!D21) -> 
C113: =IF(追加ワークシート名設定!D22=0,"",追加ワークシート名設定!D22) -> 
C114: =IF(追加ワークシート名設定!D23=0,"",追加ワークシート名設定!D23) -> 
C115: =IF(追加ワークシート名設定!D24=0,"",追加ワークシート名設定!D24) -> 
C116: =IF(追加ワークシート名設定!D25=0,"",追加ワークシート名設定!D25) -> 
C117: =IF(追加ワークシート名設定!D26=0,"",追加ワークシート名設定!D26) -> 
C118: =IF(追加ワークシート名設定!D27=0,"",追加ワークシート名設定!D27) -> 
C119: =IF(追加ワークシート名設定!D28=0,"",追加ワークシート名設定!D28) -> 
C120: =IF(追加ワークシート名設定!D29=0,"",追加ワークシート名設定!D29) -> 
C121: =IF(追加ワークシート名設定!D30=0,"",追加ワークシート名設定!D30) -> 
C122: =IF(追加ワークシート名設定!D31=0,"",追加ワークシート名設定!D31) -> 
C123: =IF(追加ワークシート名設定!D32=0,"",追加ワークシート名設定!D32) -> 
C124: =IF(追加ワークシート名設定!D33=0,"",追加ワークシート名設定!D33) -> 
C125: =IF(追加ワークシート名設定!D34=0,"",追加ワークシート名設定!D34) -> 
C126: =IF(追加ワークシート名設定!D35=0,"",追加ワークシート名設定!D35) -> 
C127: =IF(追加ワークシート名設定!D36=0,"",追加ワークシート名設定!D36) -> 
C128: =IF(追加ワークシート名設定!D37=0,"",追加ワークシート名設定!D37) -> 
C129: =IF(追加ワークシート名設定!D38=0,"",追加ワークシート名設定!D38) -> 
C130: =IF(追加ワークシート名設定!D39=0,"",追加ワークシート名設定!D39) -> 
C131: =IF(追加ワークシート名設定!D40=0,"",追加ワークシート名設定!D40) -> 
C132: =IF(追加ワークシート名設定!D41=0,"",追加ワークシート名設定!D41) -> 
C133: =IF(追加ワークシート名設定!D42=0,"",追加ワークシート名設定!D42) -> 
C134: =IF(追加ワークシート名設定!D43=0,"",追加ワークシート名設定!D43) -> 
C135: =IF(追加ワークシート名設定!D44=0,"",追加ワークシート名設定!D44) -> 
C136: =IF(追加ワークシート名設定!D45=0,"",追加ワークシート名設定!D45) -> 
C137: =IF(追加ワークシート名設定!D46=0,"",追加ワークシート名設定!D46) -> 
C138: =IF(追加ワークシート名設定!D47=0,"",追加ワークシート名設定!D47) -> 
C139: =IF(追加ワークシート名設定!D48=0,"",追加ワークシート名設定!D48) -> 
C140: =IF(追加ワークシート名設定!D49=0,"",追加ワークシート名設定!D49) -> 
C141: =IF(追加ワークシート名設定!D50=0,"",追加ワークシート名設定!D50) -> 
C142: =IF(追加ワークシート名設定!D51=0,"",追加ワークシート名設定!D51) -> 
C143: =IF(追加ワークシート名設定!D52=0,"",追加ワークシート名設定!D52) -> 
C144: =IF(追加ワークシート名設定!D53=0,"",追加ワークシート名設定!D53) -> 
C145: =IF(追加ワークシート名設定!D54=0,"",追加ワークシート名設定!D54) -> 
C146: =IF(追加ワークシート名設定!D55=0,"",追加ワークシート名設定!D55) -> 
C147: =IF(追加ワークシート名設定!D56=0,"",追加ワークシート名設定!D56) -> 
C148: =IF(追加ワークシート名設定!D57=0,"",追加ワークシート名設定!D57) -> 
C149: =IF(追加ワークシート名設定!D58=0,"",追加ワークシート名設定!D58) -> 
C150: =IF(追加ワークシート名設定!D59=0,"",追加ワークシート名設定!D59) -> 
C151: =IF(追加ワークシート名設定!D60=0,"",追加ワークシート名設定!D60) -> 
C152: =IF(追加ワークシート名設定!D61=0,"",追加ワークシート名設定!D61) -> 
C153: =IF(追加ワークシート名設定!D62=0,"",追加ワークシート名設定!D62) -> 
C154: =IF(追加ワークシート名設定!D63=0,"",追加ワークシート名設定!D63) -> 
C155: =IF(追加ワークシート名設定!D64=0,"",追加ワークシート名設定!D64) -> 
C156: =IF(追加ワークシート名設定!D65=0,"",追加ワークシート名設定!D65) -> 
C157: =IF(追加ワークシート名設定!D66=0,"",追加ワークシート名設定!D66) -> 
C158: =IF(追加ワークシート名設定!D67=0,"",追加ワークシート名設定!D67) -> 
C159: =IF(追加ワークシート名設定!D68=0,"",追加ワークシート名設定!D68) -> 
C160: =IF(追加ワークシート名設定!D69=0,"",追加ワークシート名設定!D69) -> 
C161: =IF(シート名設定!C30=0,"",シート名設定!C30) -> 入力AA1

Sheet □□□子学年積立金会計報告個人別印刷設定
B3: =シート名設定!C11 -> □□□子学年積立金会計報告個人別印刷設定
B4: １．入力元の設定
B5: 項 目 | C5: 設定内容
B6: シート名 | C6: 学年積立金会計報告個人別（通年）ソートデーター
B7: データ先頭セル行番号 | C7: 6
B8: データ先頭セル列番号 | C8: 2
B9: 異同比較列番号 | C9: 10
B10: データー数 | C10: 229
B11: For Next の増分 | C11: 1
B13: ２．入力先の設定
B14: 項 目 | C14: 設定内容
B15: シート名 | C15: 平成１７年度第３学年会計報告個人別（通年）
B16: 入力先頭セル行番号 | C16: 8
B17: 入力先頭セル列番号 | C17: 2
B18: 入力最終セル行番号 | C18: 8
B19: 入力最終セル列番号 | C19: 2
B20: 入力データー数 | C20: 1
B21: 通しページ入力セル行番号 | C21: 92
B22: 通しページ入力セル列番号 | C22: 6
B23: 区分内ページ入力セル行番号 | C23: 92
B24: 区分内ページ入力セル列番号 | C24: 8
B25: ３．印刷処理かファイルのメール送信の設定
B26: 項 目 | C26: 設定内容
B27: 印刷処理か ファイルの メール送信 の選択 | C27: 印刷する | D27: 1
B28: ファイルのメール送信の場合の印刷フォームソートデーターシートのメールアドレスが入力されている列番号
B29: ファイルのメール送信の場合の印刷フォームソートデーターシートの件名が入力されている列番号
B30: ファイルのメール送信の場合の印刷フォームソートデーターシートの本文が入力されている列番号
B31: ファイルのメール送信の場合の添付ファイルの保存先ドライブ及びフォルダー
C37: =IF(シート名設定!C35=0,"",シート名設定!C35) -> 平成１７年度第３学年会計報告個人別（通年） | D37: 1 | E37: 印刷する
C38: =IF(シート名設定!C36=0,"",シート名設定!C36) -> ○○○子学年積立金会計報告印刷フォーム | D38: 2 | E38: メールで送信する
C39: =IF(シート名設定!C37=0,"",シート名設定!C37) -> □□□子学年積立金会計報告印刷フォーム | D39: 3 | E39: 添付ファイルなし件名本文のみのメール
C40: =IF(シート名設定!C38=0,"",シート名設定!C38) -> 学年積立金の返金並びに返金振込口座の確認フォーム
C41: =IF(シート名設定!C39=0,"",シート名設定!C39) -> 印刷フォーム5
C42: =IF(シート名設定!C40=0,"",シート名設定!C40) -> 印刷フォーム6
C43: =IF(シート名設定!C41=0,"",シート名設定!C41) -> 印刷フォーム7
C44: =IF(シート名設定!C42=0,"",シート名設定!C42) -> 印刷フォーム8
C45: =IF(シート名設定!C43=0,"",シート名設定!C43) -> 印刷フォーム9
C46: =IF(シート名設定!C44=0,"",シート名設定!C44) -> 印刷フォーム10
C47: =IF(シート名設定!C45=0,"",シート名設定!C45) -> 印刷フォーム11
C48: =IF(シート名設定!C46=0,"",シート名設定!C46) -> 印刷フォーム12
C49: =IF(シート名設定!C47=0,"",シート名設定!C47) -> 印刷フォーム13
C50: =IF(シート名設定!C48=0,"",シート名設定!C48) -> 印刷フォーム14
C51: =IF(シート名設定!C49=0,"",シート名設定!C49) -> 印刷フォーム15
C52: =IF(シート名設定!C50=0,"",シート名設定!C50) -> 印刷フォーム16
C53: =IF(シート名設定!C51=0,"",シート名設定!C51) -> 印刷フォーム17
C54: =IF(シート名設定!C52=0,"",シート名設定!C52) -> 印刷フォーム18
C55: =IF(シート名設定!C53=0,"",シート名設定!C53) -> 印刷フォーム19
C56: =IF(シート名設定!C54=0,"",シート名設定!C54) -> 印刷フォーム20
C57: =IF(シート名設定!E5=0,"",シート名設定!E5) -> 印刷フォーム21
C58: =IF(シート名設定!E6=0,"",シート名設定!E6) -> 印刷フォーム22
C59: =IF(シート名設定!E7=0,"",シート名設定!E7) -> 印刷フォーム23
C60: =IF(シート名設定!E8=0,"",シート名設定!E8) -> 印刷フォーム24
C61: =IF(シート名設定!E9=0,"",シート名設定!E9) -> 印刷フォーム25
C62: =IF(シート名設定!E10=0,"",シート名設定!E10) -> 印刷フォーム26
C63: =IF(シート名設定!E11=0,"",シート名設定!E11) -> 印刷フォーム27
C64: =IF(シート名設定!E12=0,"",シート名設定!E12) -> 印刷フォーム28
C65: =IF(シート名設定!E13=0,"",シート名設定!E13) -> 印刷フォーム29
C66: =IF(シート名設定!E14=0,"",シート名設定!E14) -> 印刷フォーム30
C67: =IF(シート名設定!E15=0,"",シート名設定!E15) -> 学年積立金会計報告個人別（通年）ソートデーター
C68: =IF(シート名設定!E16=0,"",シート名設定!E16) -> 学年積立金の返金並びに返金振込口座の確認フォームソートデーター
C69: =IF(シート名設定!E17=0,"",シート名設定!E17) -> 印刷フォーム3ソートデーター
C70: =IF(シート名設定!E18=0,"",シート名設定!E18) -> 印刷フォーム4ソートデーター
C71: =IF(シート名設定!E19=0,"",シート名設定!E19) -> 印刷フォーム5ソートデーター
C72: =IF(シート名設定!E20=0,"",シート名設定!E20) -> 印刷フォーム6ソートデーター
C73: =IF(シート名設定!E21=0,"",シート名設定!E21) -> 印刷フォーム7ソートデーター
C74: =IF(シート名設定!E22=0,"",シート名設定!E22) -> 印刷フォーム8ソートデーター
C75: =IF(シート名設定!E23=0,"",シート名設定!E23) -> 印刷フォーム9ソートデーター
C76: =IF(シート名設定!E24=0,"",シート名設定!E24) -> 印刷フォーム10ソートデーター
C77: =IF(シート名設定!E25=0,"",シート名設定!E25) -> 印刷フォーム11ソートデーター
C78: =IF(シート名設定!E26=0,"",シート名設定!E26) -> 印刷フォーム12ソートデーター
C79: =IF(シート名設定!E27=0,"",シート名設定!E27) -> 印刷フォーム13ソートデーター
C80: =IF(シート名設定!E28=0,"",シート名設定!E28) -> 印刷フォーム14ソートデーター
C81: =IF(シート名設定!E29=0,"",シート名設定!E29) -> 印刷フォーム15ソートデーター
C82: =IF(シート名設定!E30=0,"",シート名設定!E30) -> 印刷フォーム16ソートデーター
C83: =IF(シート名設定!E31=0,"",シート名設定!E31) -> 印刷フォーム17ソートデーター
C84: =IF(シート名設定!E32=0,"",シート名設定!E32) -> 印刷フォーム18ソートデーター
C85: =IF(シート名設定!E33=0,"",シート名設定!E33) -> 印刷フォーム19ソートデーター
C86: =IF(シート名設定!E34=0,"",シート名設定!E34) -> 印刷フォーム20ソートデーター
C87: =IF(シート名設定!E35=0,"",シート名設定!E35) -> 印刷フォーム21ソートデーター
C88: =IF(シート名設定!E36=0,"",シート名設定!E36) -> 印刷フォーム22ソートデーター
C89: =IF(シート名設定!E37=0,"",シート名設定!E37) -> 印刷フォーム23ソートデーター
C90: =IF(シート名設定!E38=0,"",シート名設定!E38) -> 印刷フォーム24ソートデーター
C91: =IF(シート名設定!E39=0,"",シート名設定!E39) -> 印刷フォーム25ソートデーター
C92: =IF(シート名設定!E40=0,"",シート名設定!E40) -> 印刷フォーム26ソートデーター
C93: =IF(シート名設定!E41=0,"",シート名設定!E41) -> 印刷フォーム27ソートデーター
C94: =IF(シート名設定!E42=0,"",シート名設定!E42) -> 印刷フォーム28ソートデーター
C95: =IF(シート名設定!E43=0,"",シート名設定!E43) -> 印刷フォーム29ソートデーター
C96: =IF(シート名設定!E44=0,"",シート名設定!E44) -> 印刷フォーム30ソートデーター
C97: =IF(追加ワークシート名設定!D6=0,"",追加ワークシート名設定!D6) -> 退学者○○○子学年積立金会計
C98: =IF(追加ワークシート名設定!D7=0,"",追加ワークシート名設定!D7) -> 退学者□□□子学年積立金会計
C99: =IF(追加ワークシート名設定!D8=0,"",追加ワークシート名設定!D8) -> 特別会計処理該当
C100: =IF(追加ワークシート名設定!D9=0,"",追加ワークシート名設定!D9) -> 
C101: =IF(追加ワークシート名設定!D10=0,"",追加ワークシート名設定!D10) -> 
C102: =IF(追加ワークシート名設定!D11=0,"",追加ワークシート名設定!D11) -> 
C103: =IF(追加ワークシート名設定!D12=0,"",追加ワークシート名設定!D12) -> 
C104: =IF(追加ワークシート名設定!D13=0,"",追加ワークシート名設定!D13) -> 
C105: =IF(追加ワークシート名設定!D14=0,"",追加ワークシート名設定!D14) -> 
C106: =IF(追加ワークシート名設定!D15=0,"",追加ワークシート名設定!D15) -> 
C107: =IF(追加ワークシート名設定!D16=0,"",追加ワークシート名設定!D16) -> 
C108: =IF(追加ワークシート名設定!D17=0,"",追加ワークシート名設定!D17) -> 
C109: =IF(追加ワークシート名設定!D18=0,"",追加ワークシート名設定!D18) -> 
C110: =IF(追加ワークシート名設定!D19=0,"",追加ワークシート名設定!D19) -> 
C111: =IF(追加ワークシート名設定!D20=0,"",追加ワークシート名設定!D20) -> 
C112: =IF(追加ワークシート名設定!D21=0,"",追加ワークシート名設定!D21) -> 
C113: =IF(追加ワークシート名設定!D22=0,"",追加ワークシート名設定!D22) -> 
C114: =IF(追加ワークシート名設定!D23=0,"",追加ワークシート名設定!D23) -> 
C115: =IF(追加ワークシート名設定!D24=0,"",追加ワークシート名設定!D24) -> 
C116: =IF(追加ワークシート名設定!D25=0,"",追加ワークシート名設定!D25) -> 
C117: =IF(追加ワークシート名設定!D26=0,"",追加ワークシート名設定!D26) -> 
C118: =IF(追加ワークシート名設定!D27=0,"",追加ワークシート名設定!D27) -> 
C119: =IF(追加ワークシート名設定!D28=0,"",追加ワークシート名設定!D28) -> 
C120: =IF(追加ワークシート名設定!D29=0,"",追加ワークシート名設定!D29) -> 
C121: =IF(追加ワークシート名設定!D30=0,"",追加ワークシート名設定!D30) -> 
C122: =IF(追加ワークシート名設定!D31=0,"",追加ワークシート名設定!D31) -> 
C123: =IF(追加ワークシート名設定!D32=0,"",追加ワークシート名設定!D32) -> 
C124: =IF(追加ワークシート名設定!D33=0,"",追加ワークシート名設定!D33) -> 
C125: =IF(追加ワークシート名設定!D34=0,"",追加ワークシート名設定!D34) -> 
C126: =IF(追加ワークシート名設定!D35=0,"",追加ワークシート名設定!D35) -> 
C127: =IF(追加ワークシート名設定!D36=0,"",追加ワークシート名設定!D36) -> 
C128: =IF(追加ワークシート名設定!D37=0,"",追加ワークシート名設定!D37) -> 
C129: =IF(追加ワークシート名設定!D38=0,"",追加ワークシート名設定!D38) -> 
C130: =IF(追加ワークシート名設定!D39=0,"",追加ワークシート名設定!D39) -> 
C131: =IF(追加ワークシート名設定!D40=0,"",追加ワークシート名設定!D40) -> 
C132: =IF(追加ワークシート名設定!D41=0,"",追加ワークシート名設定!D41) -> 
C133: =IF(追加ワークシート名設定!D42=0,"",追加ワークシート名設定!D42) -> 
C134: =IF(追加ワークシート名設定!D43=0,"",追加ワークシート名設定!D43) -> 
C135: =IF(追加ワークシート名設定!D44=0,"",追加ワークシート名設定!D44) -> 
C136: =IF(追加ワークシート名設定!D45=0,"",追加ワークシート名設定!D45) -> 
C137: =IF(追加ワークシート名設定!D46=0,"",追加ワークシート名設定!D46) -> 
C138: =IF(追加ワークシート名設定!D47=0,"",追加ワークシート名設定!D47) -> 
C139: =IF(追加ワークシート名設定!D48=0,"",追加ワークシート名設定!D48) -> 
C140: =IF(追加ワークシート名設定!D49=0,"",追加ワークシート名設定!D49) -> 
C141: =IF(追加ワークシート名設定!D50=0,"",追加ワークシート名設定!D50) -> 
C142: =IF(追加ワークシート名設定!D51=0,"",追加ワークシート名設定!D51) -> 
C143: =IF(追加ワークシート名設定!D52=0,"",追加ワークシート名設定!D52) -> 
C144: =IF(追加ワークシート名設定!D53=0,"",追加ワークシート名設定!D53) -> 
C145: =IF(追加ワークシート名設定!D54=0,"",追加ワークシート名設定!D54) -> 
C146: =IF(追加ワークシート名設定!D55=0,"",追加ワークシート名設定!D55) -> 
C147: =IF(追加ワークシート名設定!D56=0,"",追加ワークシート名設定!D56) -> 
C148: =IF(追加ワークシート名設定!D57=0,"",追加ワークシート名設定!D57) -> 
C149: =IF(追加ワークシート名設定!D58=0,"",追加ワークシート名設定!D58) -> 
C150: =IF(追加ワークシート名設定!D59=0,"",追加ワークシート名設定!D59) -> 
C151: =IF(追加ワークシート名設定!D60=0,"",追加ワークシート名設定!D60) -> 
C152: =IF(追加ワークシート名設定!D61=0,"",追加ワークシート名設定!D61) -> 
C153: =IF(追加ワークシート名設定!D62=0,"",追加ワークシート名設定!D62) -> 
C154: =IF(追加ワークシート名設定!D63=0,"",追加ワークシート名設定!D63) -> 
C155: =IF(追加ワークシート名設定!D64=0,"",追加ワークシート名設定!D64) -> 
C156: =IF(追加ワークシート名設定!D65=0,"",追加ワークシート名設定!D65) -> 
C157: =IF(追加ワークシート名設定!D66=0,"",追加ワークシート名設定!D66) -> 
C158: =IF(追加ワークシート名設定!D67=0,"",追加ワークシート名設定!D67) -> 
C159: =IF(追加ワークシート名設定!D68=0,"",追加ワークシート名設定!D68) -> 
C160: =IF(追加ワークシート名設定!D69=0,"",追加ワークシート名設定!D69) -> 
C161: =IF(シート名設定!C30=0,"",シート名設定!C30) -> 入力AA1

Sheet 学年積立金の返金並びに返金振込口座の確認印刷設定
B3: =シート名設定!C12 -> 学年積立金の返金並びに返金振込口座の確認印刷設定
B4: １．入力元の設定
B5: 項 目 | C5: 設定内容
B6: シート名 | C6: 学年積立金会計報告個人別（通年）ソートデーター
B7: データ先頭セル行番号 | C7: 6
B8: データ先頭セル列番号 | C8: 2
B9: 異同比較列番号 | C9: 4
B10: データー数 | C10: 229
B11: For Next の増分 | C11: 1
B13: ２．入力先の設定
B14: 項 目 | C14: 設定内容
B15: シート名 | C15: 学年積立金の返金並びに返金振込口座の確認フォーム
B16: 入力先頭セル行番号 | C16: 9
B17: 入力先頭セル列番号 | C17: 1
B18: 入力最終セル行番号 | C18: 9
B19: 入力最終セル列番号 | C19: 1
B20: 入力データー数 | C20: 1
B21: 通しページ入力セル行番号 | C21: 45
B22: 通しページ入力セル列番号 | C22: 4
B23: 区分内ページ入力セル行番号 | C23: 45
B24: 区分内ページ入力セル列番号 | C24: 8
B25: ３．印刷処理かファイルのメール送信の設定
B26: 項 目 | C26: 設定内容
B27: 印刷処理か ファイルの メール送信 の選択 | C27: メールで送信する | D27: 2
B28: ファイルのメール送信の場合の印刷フォームソートデーターシートのメールアドレスが入力されている列番号 | C28: 44
B29: ファイルのメール送信の場合の印刷フォームソートデーターシートの件名が入力されている列番号 | C29: 45
B30: ファイルのメール送信の場合の印刷フォームソートデーターシートの本文が入力されている列番号 | C30: 46
B31: ファイルのメール送信の場合の添付ファイルの保存先ドライブ及びフォルダー | C31: D:\B
C37: =IF(シート名設定!C35=0,"",シート名設定!C35) -> 平成１７年度第３学年会計報告個人別（通年） | D37: 1 | E37: 印刷する
C38: =IF(シート名設定!C36=0,"",シート名設定!C36) -> ○○○子学年積立金会計報告印刷フォーム | D38: 2 | E38: メールで送信する
C39: =IF(シート名設定!C37=0,"",シート名設定!C37) -> □□□子学年積立金会計報告印刷フォーム | D39: 3 | E39: 添付ファイルなし件名本文のみのメール
C40: =IF(シート名設定!C38=0,"",シート名設定!C38) -> 学年積立金の返金並びに返金振込口座の確認フォーム
C41: =IF(シート名設定!C39=0,"",シート名設定!C39) -> 印刷フォーム5
C42: =IF(シート名設定!C40=0,"",シート名設定!C40) -> 印刷フォーム6
C43: =IF(シート名設定!C41=0,"",シート名設定!C41) -> 印刷フォーム7
C44: =IF(シート名設定!C42=0,"",シート名設定!C42) -> 印刷フォーム8
C45: =IF(シート名設定!C43=0,"",シート名設定!C43) -> 印刷フォーム9
C46: =IF(シート名設定!C44=0,"",シート名設定!C44) -> 印刷フォーム10
C47: =IF(シート名設定!C45=0,"",シート名設定!C45) -> 印刷フォーム11
C48: =IF(シート名設定!C46=0,"",シート名設定!C46) -> 印刷フォーム12
C49: =IF(シート名設定!C47=0,"",シート名設定!C47) -> 印刷フォーム13
C50: =IF(シート名設定!C48=0,"",シート名設定!C48) -> 印刷フォーム14
C51: =IF(シート名設定!C49=0,"",シート名設定!C49) -> 印刷フォーム15
C52: =IF(シート名設定!C50=0,"",シート名設定!C50) -> 印刷フォーム16
C53: =IF(シート名設定!C51=0,"",シート名設定!C51) -> 印刷フォーム17
C54: =IF(シート名設定!C52=0,"",シート名設定!C52) -> 印刷フォーム18
C55: =IF(シート名設定!C53=0,"",シート名設定!C53) -> 印刷フォーム19
C56: =IF(シート名設定!C54=0,"",シート名設定!C54) -> 印刷フォーム20
C57: =IF(シート名設定!E5=0,"",シート名設定!E5) -> 印刷フォーム21
C58: =IF(シート名設定!E6=0,"",シート名設定!E6) -> 印刷フォーム22
C59: =IF(シート名設定!E7=0,"",シート名設定!E7) -> 印刷フォーム23
C60: =IF(シート名設定!E8=0,"",シート名設定!E8) -> 印刷フォーム24
C61: =IF(シート名設定!E9=0,"",シート名設定!E9) -> 印刷フォーム25
C62: =IF(シート名設定!E10=0,"",シート名設定!E10) -> 印刷フォーム26
C63: =IF(シート名設定!E11=0,"",シート名設定!E11) -> 印刷フォーム27
C64: =IF(シート名設定!E12=0,"",シート名設定!E12) -> 印刷フォーム28
C65: =IF(シート名設定!E13=0,"",シート名設定!E13) -> 印刷フォーム29
C66: =IF(シート名設定!E14=0,"",シート名設定!E14) -> 印刷フォーム30
C67: =IF(シート名設定!E15=0,"",シート名設定!E15) -> 学年積立金会計報告個人別（通年）ソートデーター
C68: =IF(シート名設定!E16=0,"",シート名設定!E16) -> 学年積立金の返金並びに返金振込口座の確認フォームソートデーター
C69: =IF(シート名設定!E17=0,"",シート名設定!E17) -> 印刷フォーム3ソートデーター
C70: =IF(シート名設定!E18=0,"",シート名設定!E18) -> 印刷フォーム4ソートデーター
C71: =IF(シート名設定!E19=0,"",シート名設定!E19) -> 印刷フォーム5ソートデーター
C72: =IF(シート名設定!E20=0,"",シート名設定!E20) -> 印刷フォーム6ソートデーター
C73: =IF(シート名設定!E21=0,"",シート名設定!E21) -> 印刷フォーム7ソートデーター
C74: =IF(シート名設定!E22=0,"",シート名設定!E22) -> 印刷フォーム8ソートデーター
C75: =IF(シート名設定!E23=0,"",シート名設定!E23) -> 印刷フォーム9ソートデーター
C76: =IF(シート名設定!E24=0,"",シート名設定!E24) -> 印刷フォーム10ソートデーター
C77: =IF(シート名設定!E25=0,"",シート名設定!E25) -> 印刷フォーム11ソートデーター
C78: =IF(シート名設定!E26=0,"",シート名設定!E26) -> 印刷フォーム12ソートデーター
C79: =IF(シート名設定!E27=0,"",シート名設定!E27) -> 印刷フォーム13ソートデーター
C80: =IF(シート名設定!E28=0,"",シート名設定!E28) -> 印刷フォーム14ソートデーター
C81: =IF(シート名設定!E29=0,"",シート名設定!E29) -> 印刷フォーム15ソートデーター
C82: =IF(シート名設定!E30=0,"",シート名設定!E30) -> 印刷フォーム16ソートデーター
C83: =IF(シート名設定!E31=0,"",シート名設定!E31) -> 印刷フォーム17ソートデーター
C84: =IF(シート名設定!E32=0,"",シート名設定!E32) -> 印刷フォーム18ソートデーター
C85: =IF(シート名設定!E33=0,"",シート名設定!E33) -> 印刷フォーム19ソートデーター
C86: =IF(シート名設定!E34=0,"",シート名設定!E34) -> 印刷フォーム20ソートデーター
C87: =IF(シート名設定!E35=0,"",シート名設定!E35) -> 印刷フォーム21ソートデーター
C88: =IF(シート名設定!E36=0,"",シート名設定!E36) -> 印刷フォーム22ソートデーター
C89: =IF(シート名設定!E37=0,"",シート名設定!E37) -> 印刷フォーム23ソートデーター
C90: =IF(シート名設定!E38=0,"",シート名設定!E38) -> 印刷フォーム24ソートデーター
C91: =IF(シート名設定!E39=0,"",シート名設定!E39) -> 印刷フォーム25ソートデーター
C92: =IF(シート名設定!E40=0,"",シート名設定!E40) -> 印刷フォーム26ソートデーター
C93: =IF(シート名設定!E41=0,"",シート名設定!E41) -> 印刷フォーム27ソートデーター
C94: =IF(シート名設定!E42=0,"",シート名設定!E42) -> 印刷フォーム28ソートデーター
C95: =IF(シート名設定!E43=0,"",シート名設定!E43) -> 印刷フォーム29ソートデーター
C96: =IF(シート名設定!E44=0,"",シート名設定!E44) -> 印刷フォーム30ソートデーター
C97: =IF(追加ワークシート名設定!D6=0,"",追加ワークシート名設定!D6) -> 退学者○○○子学年積立金会計
C98: =IF(追加ワークシート名設定!D7=0,"",追加ワークシート名設定!D7) -> 退学者□□□子学年積立金会計
C99: =IF(追加ワークシート名設定!D8=0,"",追加ワークシート名設定!D8) -> 特別会計処理該当
C100: =IF(追加ワークシート名設定!D9=0,"",追加ワークシート名設定!D9) -> 
C101: =IF(追加ワークシート名設定!D10=0,"",追加ワークシート名設定!D10) -> 
C102: =IF(追加ワークシート名設定!D11=0,"",追加ワークシート名設定!D11) -> 
C103: =IF(追加ワークシート名設定!D12=0,"",追加ワークシート名設定!D12) -> 
C104: =IF(追加ワークシート名設定!D13=0,"",追加ワークシート名設定!D13) -> 
C105: =IF(追加ワークシート名設定!D14=0,"",追加ワークシート名設定!D14) -> 
C106: =IF(追加ワークシート名設定!D15=0,"",追加ワークシート名設定!D15) -> 
C107: =IF(追加ワークシート名設定!D16=0,"",追加ワークシート名設定!D16) -> 
C108: =IF(追加ワークシート名設定!D17=0,"",追加ワークシート名設定!D17) -> 
C109: =IF(追加ワークシート名設定!D18=0,"",追加ワークシート名設定!D18) -> 
C110: =IF(追加ワークシート名設定!D19=0,"",追加ワークシート名設定!D19) -> 
C111: =IF(追加ワークシート名設定!D20=0,"",追加ワークシート名設定!D20) -> 
C112: =IF(追加ワークシート名設定!D21=0,"",追加ワークシート名設定!D21) -> 
C113: =IF(追加ワークシート名設定!D22=0,"",追加ワークシート名設定!D22) -> 
C114: =IF(追加ワークシート名設定!D23=0,"",追加ワークシート名設定!D23) -> 
C115: =IF(追加ワークシート名設定!D24=0,"",追加ワークシート名設定!D24) -> 
C116: =IF(追加ワークシート名設定!D25=0,"",追加ワークシート名設定!D25) -> 
C117: =IF(追加ワークシート名設定!D26=0,"",追加ワークシート名設定!D26) -> 
C118: =IF(追加ワークシート名設定!D27=0,"",追加ワークシート名設定!D27) -> 
C119: =IF(追加ワークシート名設定!D28=0,"",追加ワークシート名設定!D28) -> 
C120: =IF(追加ワークシート名設定!D29=0,"",追加ワークシート名設定!D29) -> 
C121: =IF(追加ワークシート名設定!D30=0,"",追加ワークシート名設定!D30) -> 
C122: =IF(追加ワークシート名設定!D31=0,"",追加ワークシート名設定!D31) -> 
C123: =IF(追加ワークシート名設定!D32=0,"",追加ワークシート名設定!D32) -> 
C124: =IF(追加ワークシート名設定!D33=0,"",追加ワークシート名設定!D33) -> 
C125: =IF(追加ワークシート名設定!D34=0,"",追加ワークシート名設定!D34) -> 
C126: =IF(追加ワークシート名設定!D35=0,"",追加ワークシート名設定!D35) -> 
C127: =IF(追加ワークシート名設定!D36=0,"",追加ワークシート名設定!D36) -> 
C128: =IF(追加ワークシート名設定!D37=0,"",追加ワークシート名設定!D37) -> 
C129: =IF(追加ワークシート名設定!D38=0,"",追加ワークシート名設定!D38) -> 
C130: =IF(追加ワークシート名設定!D39=0,"",追加ワークシート名設定!D39) -> 
C131: =IF(追加ワークシート名設定!D40=0,"",追加ワークシート名設定!D40) -> 
C132: =IF(追加ワークシート名設定!D41=0,"",追加ワークシート名設定!D41) -> 
C133: =IF(追加ワークシート名設定!D42=0,"",追加ワークシート名設定!D42) -> 
C134: =IF(追加ワークシート名設定!D43=0,"",追加ワークシート名設定!D43) -> 
C135: =IF(追加ワークシート名設定!D44=0,"",追加ワークシート名設定!D44) -> 
C136: =IF(追加ワークシート名設定!D45=0,"",追加ワークシート名設定!D45) -> 
C137: =IF(追加ワークシート名設定!D46=0,"",追加ワークシート名設定!D46) -> 
C138: =IF(追加ワークシート名設定!D47=0,"",追加ワークシート名設定!D47) -> 
C139: =IF(追加ワークシート名設定!D48=0,"",追加ワークシート名設定!D48) -> 
C140: =IF(追加ワークシート名設定!D49=0,"",追加ワークシート名設定!D49) -> 
C141: =IF(追加ワークシート名設定!D50=0,"",追加ワークシート名設定!D50) -> 
C142: =IF(追加ワークシート名設定!D51=0,"",追加ワークシート名設定!D51) -> 
C143: =IF(追加ワークシート名設定!D52=0,"",追加ワークシート名設定!D52) -> 
C144: =IF(追加ワークシート名設定!D53=0,"",追加ワークシート名設定!D53) -> 
C145: =IF(追加ワークシート名設定!D54=0,"",追加ワークシート名設定!D54) -> 
C146: =IF(追加ワークシート名設定!D55=0,"",追加ワークシート名設定!D55) -> 
C147: =IF(追加ワークシート名設定!D56=0,"",追加ワークシート名設定!D56) -> 
C148: =IF(追加ワークシート名設定!D57=0,"",追加ワークシート名設定!D57) -> 
C149: =IF(追加ワークシート名設定!D58=0,"",追加ワークシート名設定!D58) -> 
C150: =IF(追加ワークシート名設定!D59=0,"",追加ワークシート名設定!D59) -> 
C151: =IF(追加ワークシート名設定!D60=0,"",追加ワークシート名設定!D60) -> 
C152: =IF(追加ワークシート名設定!D61=0,"",追加ワークシート名設定!D61) -> 
C153: =IF(追加ワークシート名設定!D62=0,"",追加ワークシート名設定!D62) -> 
C154: =IF(追加ワークシート名設定!D63=0,"",追加ワークシート名設定!D63) -> 
C155: =IF(追加ワークシート名設定!D64=0,"",追加ワークシート名設定!D64) -> 
C156: =IF(追加ワークシート名設定!D65=0,"",追加ワークシート名設定!D65) -> 
C157: =IF(追加ワークシート名設定!D66=0,"",追加ワークシート名設定!D66) -> 
C158: =IF(追加ワークシート名設定!D67=0,"",追加ワークシート名設定!D67) -> 
C159: =IF(追加ワークシート名設定!D68=0,"",追加ワークシート名設定!D68) -> 
C160: =IF(追加ワークシート名設定!D69=0,"",追加ワークシート名設定!D69) -> 
C161: =IF(シート名設定!C30=0,"",シート名設定!C30) -> 入力AA1

Sheet 一覧表付ファイル作成入力設定5
B3: =シート名設定!C13 -> 一覧表付ファイル作成入力設定5
B4: １．入力元の設定
B5: 項 目 | C5: 設定内容
B6: シート名
B7: データ先頭セル行番号
B8: データ先頭セル列番号
B9: 異同比較列番号
B10: データー数
B11: For Next の増分
B13: ２．入力先の設定
B14: 項 目 | C14: 設定内容
B15: シート名
B16: 入力先頭セル行番号
B17: 入力先頭セル列番号
B18: 入力最終セル行番号
B19: 入力最終セル列番号
B20: 入力データー数
B21: 通しページ入力セル行番号
B22: 通しページ入力セル列番号
B23: 区分内ページ入力セル行番号
B24: 区分内ページ入力セル列番号
B25: ３．印刷処理かファイルのメール送信の設定
B26: 項 目 | C26: 設定内容
B27: 印刷処理か ファイルの メール送信 の選択 | D27: 1
B28: ファイルのメール送信の場合の印刷フォームソートデーターシートのメールアドレスが入力されている列番号
B29: ファイルのメール送信の場合の印刷フォームソートデーターシートの件名が入力されている列番号
B30: ファイルのメール送信の場合の印刷フォームソートデーターシートの本文が入力されている列番号
B31: ファイルのメール送信の場合の添付ファイルの保存先ドライブ及びフォルダー
C37: =IF(シート名設定!C35=0,"",シート名設定!C35) -> 平成１７年度第３学年会計報告個人別（通年） | D37: 1 | E37: 印刷する
C38: =IF(シート名設定!C36=0,"",シート名設定!C36) -> ○○○子学年積立金会計報告印刷フォーム | D38: 2 | E38: メールで送信する
C39: =IF(シート名設定!C37=0,"",シート名設定!C37) -> □□□子学年積立金会計報告印刷フォーム | D39: 3 | E39: 添付ファイルなし件名本文のみのメール
C40: =IF(シート名設定!C38=0,"",シート名設定!C38) -> 学年積立金の返金並びに返金振込口座の確認フォーム
C41: =IF(シート名設定!C39=0,"",シート名設定!C39) -> 印刷フォーム5
C42: =IF(シート名設定!C40=0,"",シート名設定!C40) -> 印刷フォーム6
C43: =IF(シート名設定!C41=0,"",シート名設定!C41) -> 印刷フォーム7
C44: =IF(シート名設定!C42=0,"",シート名設定!C42) -> 印刷フォーム8
C45: =IF(シート名設定!C43=0,"",シート名設定!C43) -> 印刷フォーム9
C46: =IF(シート名設定!C44=0,"",シート名設定!C44) -> 印刷フォーム10
C47: =IF(シート名設定!C45=0,"",シート名設定!C45) -> 印刷フォーム11
C48: =IF(シート名設定!C46=0,"",シート名設定!C46) -> 印刷フォーム12
C49: =IF(シート名設定!C47=0,"",シート名設定!C47) -> 印刷フォーム13
C50: =IF(シート名設定!C48=0,"",シート名設定!C48) -> 印刷フォーム14
C51: =IF(シート名設定!C49=0,"",シート名設定!C49) -> 印刷フォーム15
C52: =IF(シート名設定!C50=0,"",シート名設定!C50) -> 印刷フォーム16
C53: =IF(シート名設定!C51=0,"",シート名設定!C51) -> 印刷フォーム17
C54: =IF(シート名設定!C52=0,"",シート名設定!C52) -> 印刷フォーム18
C55: =IF(シート名設定!C53=0,"",シート名設定!C53) -> 印刷フォーム19
C56: =IF(シート名設定!C54=0,"",シート名設定!C54) -> 印刷フォーム20
C57: =IF(シート名設定!E5=0,"",シート名設定!E5) -> 印刷フォーム21
C58: =IF(シート名設定!E6=0,"",シート名設定!E6) -> 印刷フォーム22
C59: =IF(シート名設定!E7=0,"",シート名設定!E7) -> 印刷フォーム23
C60: =IF(シート名設定!E8=0,"",シート名設定!E8) -> 印刷フォーム24
C61: =IF(シート名設定!E9=0,"",シート名設定!E9) -> 印刷フォーム25
C62: =IF(シート名設定!E10=0,"",シート名設定!E10) -> 印刷フォーム26
C63: =IF(シート名設定!E11=0,"",シート名設定!E11) -> 印刷フォーム27
C64: =IF(シート名設定!E12=0,"",シート名設定!E12) -> 印刷フォーム28
C65: =IF(シート名設定!E13=0,"",シート名設定!E13) -> 印刷フォーム29
C66: =IF(シート名設定!E14=0,"",シート名設定!E14) -> 印刷フォーム30
C67: =IF(シート名設定!E15=0,"",シート名設定!E15) -> 学年積立金会計報告個人別（通年）ソートデーター
C68: =IF(シート名設定!E16=0,"",シート名設定!E16) -> 学年積立金の返金並びに返金振込口座の確認フォームソートデーター
C69: =IF(シート名設定!E17=0,"",シート名設定!E17) -> 印刷フォーム3ソートデーター
C70: =IF(シート名設定!E18=0,"",シート名設定!E18) -> 印刷フォーム4ソートデーター
C71: =IF(シート名設定!E19=0,"",シート名設定!E19) -> 印刷フォーム5ソートデーター
C72: =IF(シート名設定!E20=0,"",シート名設定!E20) -> 印刷フォーム6ソートデーター
C73: =IF(シート名設定!E21=0,"",シート名設定!E21) -> 印刷フォーム7ソートデーター
C74: =IF(シート名設定!E22=0,"",シート名設定!E22) -> 印刷フォーム8ソートデーター
C75: =IF(シート名設定!E23=0,"",シート名設定!E23) -> 印刷フォーム9ソートデーター
C76: =IF(シート名設定!E24=0,"",シート名設定!E24) -> 印刷フォーム10ソートデーター
C77: =IF(シート名設定!E25=0,"",シート名設定!E25) -> 印刷フォーム11ソートデーター
C78: =IF(シート名設定!E26=0,"",シート名設定!E26) -> 印刷フォーム12ソートデーター
C79: =IF(シート名設定!E27=0,"",シート名設定!E27) -> 印刷フォーム13ソートデーター
C80: =IF(シート名設定!E28=0,"",シート名設定!E28) -> 印刷フォーム14ソートデーター
C81: =IF(シート名設定!E29=0,"",シート名設定!E29) -> 印刷フォーム15ソートデーター
C82: =IF(シート名設定!E30=0,"",シート名設定!E30) -> 印刷フォーム16ソートデーター
C83: =IF(シート名設定!E31=0,"",シート名設定!E31) -> 印刷フォーム17ソートデーター
C84: =IF(シート名設定!E32=0,"",シート名設定!E32) -> 印刷フォーム18ソートデーター
C85: =IF(シート名設定!E33=0,"",シート名設定!E33) -> 印刷フォーム19ソートデーター
C86: =IF(シート名設定!E34=0,"",シート名設定!E34) -> 印刷フォーム20ソートデーター
C87: =IF(シート名設定!E35=0,"",シート名設定!E35) -> 印刷フォーム21ソートデーター
C88: =IF(シート名設定!E36=0,"",シート名設定!E36) -> 印刷フォーム22ソートデーター
C89: =IF(シート名設定!E37=0,"",シート名設定!E37) -> 印刷フォーム23ソートデーター
C90: =IF(シート名設定!E38=0,"",シート名設定!E38) -> 印刷フォーム24ソートデーター
C91: =IF(シート名設定!E39=0,"",シート名設定!E39) -> 印刷フォーム25ソートデーター
C92: =IF(シート名設定!E40=0,"",シート名設定!E40) -> 印刷フォーム26ソートデーター
C93: =IF(シート名設定!E41=0,"",シート名設定!E41) -> 印刷フォーム27ソートデーター
C94: =IF(シート名設定!E42=0,"",シート名設定!E42) -> 印刷フォーム28ソートデーター
C95: =IF(シート名設定!E43=0,"",シート名設定!E43) -> 印刷フォーム29ソートデーター
C96: =IF(シート名設定!E44=0,"",シート名設定!E44) -> 印刷フォーム30ソートデーター
C97: =IF(追加ワークシート名設定!D6=0,"",追加ワークシート名設定!D6) -> 退学者○○○子学年積立金会計
C98: =IF(追加ワークシート名設定!D7=0,"",追加ワークシート名設定!D7) -> 退学者□□□子学年積立金会計
C99: =IF(追加ワークシート名設定!D8=0,"",追加ワークシート名設定!D8) -> 特別会計処理該当
C100: =IF(追加ワークシート名設定!D9=0,"",追加ワークシート名設定!D9) -> 
C101: =IF(追加ワークシート名設定!D10=0,"",追加ワークシート名設定!D10) -> 
C102: =IF(追加ワークシート名設定!D11=0,"",追加ワークシート名設定!D11) -> 
C103: =IF(追加ワークシート名設定!D12=0,"",追加ワークシート名設定!D12) -> 
C104: =IF(追加ワークシート名設定!D13=0,"",追加ワークシート名設定!D13) -> 
C105: =IF(追加ワークシート名設定!D14=0,"",追加ワークシート名設定!D14) -> 
C106: =IF(追加ワークシート名設定!D15=0,"",追加ワークシート名設定!D15) -> 
C107: =IF(追加ワークシート名設定!D16=0,"",追加ワークシート名設定!D16) -> 
C108: =IF(追加ワークシート名設定!D17=0,"",追加ワークシート名設定!D17) -> 
C109: =IF(追加ワークシート名設定!D18=0,"",追加ワークシート名設定!D18) -> 
C110: =IF(追加ワークシート名設定!D19=0,"",追加ワークシート名設定!D19) -> 
C111: =IF(追加ワークシート名設定!D20=0,"",追加ワークシート名設定!D20) -> 
C112: =IF(追加ワークシート名設定!D21=0,"",追加ワークシート名設定!D21) -> 
C113: =IF(追加ワークシート名設定!D22=0,"",追加ワークシート名設定!D22) -> 
C114: =IF(追加ワークシート名設定!D23=0,"",追加ワークシート名設定!D23) -> 
C115: =IF(追加ワークシート名設定!D24=0,"",追加ワークシート名設定!D24) -> 
C116: =IF(追加ワークシート名設定!D25=0,"",追加ワークシート名設定!D25) -> 
C117: =IF(追加ワークシート名設定!D26=0,"",追加ワークシート名設定!D26) -> 
C118: =IF(追加ワークシート名設定!D27=0,"",追加ワークシート名設定!D27) -> 
C119: =IF(追加ワークシート名設定!D28=0,"",追加ワークシート名設定!D28) -> 
C120: =IF(追加ワークシート名設定!D29=0,"",追加ワークシート名設定!D29) -> 
C121: =IF(追加ワークシート名設定!D30=0,"",追加ワークシート名設定!D30) -> 
C122: =IF(追加ワークシート名設定!D31=0,"",追加ワークシート名設定!D31) -> 
C123: =IF(追加ワークシート名設定!D32=0,"",追加ワークシート名設定!D32) -> 
C124: =IF(追加ワークシート名設定!D33=0,"",追加ワークシート名設定!D33) -> 
C125: =IF(追加ワークシート名設定!D34=0,"",追加ワークシート名設定!D34) -> 
C126: =IF(追加ワークシート名設定!D35=0,"",追加ワークシート名設定!D35) -> 
C127: =IF(追加ワークシート名設定!D36=0,"",追加ワークシート名設定!D36) -> 
C128: =IF(追加ワークシート名設定!D37=0,"",追加ワークシート名設定!D37) -> 
C129: =IF(追加ワークシート名設定!D38=0,"",追加ワークシート名設定!D38) -> 
C130: =IF(追加ワークシート名設定!D39=0,"",追加ワークシート名設定!D39) -> 
C131: =IF(追加ワークシート名設定!D40=0,"",追加ワークシート名設定!D40) -> 
C132: =IF(追加ワークシート名設定!D41=0,"",追加ワークシート名設定!D41) -> 
C133: =IF(追加ワークシート名設定!D42=0,"",追加ワークシート名設定!D42) -> 
C134: =IF(追加ワークシート名設定!D43=0,"",追加ワークシート名設定!D43) -> 
C135: =IF(追加ワークシート名設定!D44=0,"",追加ワークシート名設定!D44) -> 
C136: =IF(追加ワークシート名設定!D45=0,"",追加ワークシート名設定!D45) -> 
C137: =IF(追加ワークシート名設定!D46=0,"",追加ワークシート名設定!D46) -> 
C138: =IF(追加ワークシート名設定!D47=0,"",追加ワークシート名設定!D47) -> 
C139: =IF(追加ワークシート名設定!D48=0,"",追加ワークシート名設定!D48) -> 
C140: =IF(追加ワークシート名設定!D49=0,"",追加ワークシート名設定!D49) -> 
C141: =IF(追加ワークシート名設定!D50=0,"",追加ワークシート名設定!D50) -> 
C142: =IF(追加ワークシート名設定!D51=0,"",追加ワークシート名設定!D51) -> 
C143: =IF(追加ワークシート名設定!D52=0,"",追加ワークシート名設定!D52) -> 
C144: =IF(追加ワークシート名設定!D53=0,"",追加ワークシート名設定!D53) -> 
C145: =IF(追加ワークシート名設定!D54=0,"",追加ワークシート名設定!D54) -> 
C146: =IF(追加ワークシート名設定!D55=0,"",追加ワークシート名設定!D55) -> 
C147: =IF(追加ワークシート名設定!D56=0,"",追加ワークシート名設定!D56) -> 
C148: =IF(追加ワークシート名設定!D57=0,"",追加ワークシート名設定!D57) -> 
C149: =IF(追加ワークシート名設定!D58=0,"",追加ワークシート名設定!D58) -> 
C150: =IF(追加ワークシート名設定!D59=0,"",追加ワークシート名設定!D59) -> 
C151: =IF(追加ワークシート名設定!D60=0,"",追加ワークシート名設定!D60) -> 
C152: =IF(追加ワークシート名設定!D61=0,"",追加ワークシート名設定!D61) -> 
C153: =IF(追加ワークシート名設定!D62=0,"",追加ワークシート名設定!D62) -> 
C154: =IF(追加ワークシート名設定!D63=0,"",追加ワークシート名設定!D63) -> 
C155: =IF(追加ワークシート名設定!D64=0,"",追加ワークシート名設定!D64) -> 
C156: =IF(追加ワークシート名設定!D65=0,"",追加ワークシート名設定!D65) -> 
C157: =IF(追加ワークシート名設定!D66=0,"",追加ワークシート名設定!D66) -> 
C158: =IF(追加ワークシート名設定!D67=0,"",追加ワークシート名設定!D67) -> 
C159: =IF(追加ワークシート名設定!D68=0,"",追加ワークシート名設定!D68) -> 
C160: =IF(追加ワークシート名設定!D69=0,"",追加ワークシート名設定!D69) -> 
C161: =IF(シート名設定!C30=0,"",シート名設定!C30) -> 入力AA1

Sheet 一覧表付ファイル作成入力設定6
B3: =シート名設定!C14 -> 一覧表付ファイル作成入力設定6
B4: １．入力元の設定
B5: 項 目 | C5: 設定内容
B6: シート名
B7: データ先頭セル行番号
B8: データ先頭セル列番号
B9: 異同比較列番号
B10: データー数
B11: For Next の増分
B13: ２．入力先の設定
B14: 項 目 | C14: 設定内容
B15: シート名
B16: 入力先頭セル行番号
B17: 入力先頭セル列番号
B18: 入力最終セル行番号
B19: 入力最終セル列番号
B20: 入力データー数
B21: 通しページ入力セル行番号
B22: 通しページ入力セル列番号
B23: 区分内ページ入力セル行番号
B24: 区分内ページ入力セル列番号
B25: ３．印刷処理かファイルのメール送信の設定
B26: 項 目 | C26: 設定内容
B27: 印刷処理か ファイルの メール送信 の選択 | D27: 1
B28: ファイルのメール送信の場合の印刷フォームソートデーターシートのメールアドレスが入力されている列番号
B29: ファイルのメール送信の場合の印刷フォームソートデーターシートの件名が入力されている列番号
B30: ファイルのメール送信の場合の印刷フォームソートデーターシートの本文が入力されている列番号
B31: ファイルのメール送信の場合の添付ファイルの保存先ドライブ及びフォルダー
C37: =IF(シート名設定!C35=0,"",シート名設定!C35) -> 平成１７年度第３学年会計報告個人別（通年） | D37: 1 | E37: 印刷する
C38: =IF(シート名設定!C36=0,"",シート名設定!C36) -> ○○○子学年積立金会計報告印刷フォーム | D38: 2 | E38: メールで送信する
C39: =IF(シート名設定!C37=0,"",シート名設定!C37) -> □□□子学年積立金会計報告印刷フォーム | D39: 3 | E39: 添付ファイルなし件名本文のみのメール
C40: =IF(シート名設定!C38=0,"",シート名設定!C38) -> 学年積立金の返金並びに返金振込口座の確認フォーム
C41: =IF(シート名設定!C39=0,"",シート名設定!C39) -> 印刷フォーム5
C42: =IF(シート名設定!C40=0,"",シート名設定!C40) -> 印刷フォーム6
C43: =IF(シート名設定!C41=0,"",シート名設定!C41) -> 印刷フォーム7
C44: =IF(シート名設定!C42=0,"",シート名設定!C42) -> 印刷フォーム8
C45: =IF(シート名設定!C43=0,"",シート名設定!C43) -> 印刷フォーム9
C46: =IF(シート名設定!C44=0,"",シート名設定!C44) -> 印刷フォーム10
C47: =IF(シート名設定!C45=0,"",シート名設定!C45) -> 印刷フォーム11
C48: =IF(シート名設定!C46=0,"",シート名設定!C46) -> 印刷フォーム12
C49: =IF(シート名設定!C47=0,"",シート名設定!C47) -> 印刷フォーム13
C50: =IF(シート名設定!C48=0,"",シート名設定!C48) -> 印刷フォーム14
C51: =IF(シート名設定!C49=0,"",シート名設定!C49) -> 印刷フォーム15
C52: =IF(シート名設定!C50=0,"",シート名設定!C50) -> 印刷フォーム16
C53: =IF(シート名設定!C51=0,"",シート名設定!C51) -> 印刷フォーム17
C54: =IF(シート名設定!C52=0,"",シート名設定!C52) -> 印刷フォーム18
C55: =IF(シート名設定!C53=0,"",シート名設定!C53) -> 印刷フォーム19
C56: =IF(シート名設定!C54=0,"",シート名設定!C54) -> 印刷フォーム20
C57: =IF(シート名設定!E5=0,"",シート名設定!E5) -> 印刷フォーム21
C58: =IF(シート名設定!E6=0,"",シート名設定!E6) -> 印刷フォーム22
C59: =IF(シート名設定!E7=0,"",シート名設定!E7) -> 印刷フォーム23
C60: =IF(シート名設定!E8=0,"",シート名設定!E8) -> 印刷フォーム24
C61: =IF(シート名設定!E9=0,"",シート名設定!E9) -> 印刷フォーム25
C62: =IF(シート名設定!E10=0,"",シート名設定!E10) -> 印刷フォーム26
C63: =IF(シート名設定!E11=0,"",シート名設定!E11) -> 印刷フォーム27
C64: =IF(シート名設定!E12=0,"",シート名設定!E12) -> 印刷フォーム28
C65: =IF(シート名設定!E13=0,"",シート名設定!E13) -> 印刷フォーム29
C66: =IF(シート名設定!E14=0,"",シート名設定!E14) -> 印刷フォーム30
C67: =IF(シート名設定!E15=0,"",シート名設定!E15) -> 学年積立金会計報告個人別（通年）ソートデーター
C68: =IF(シート名設定!E16=0,"",シート名設定!E16) -> 学年積立金の返金並びに返金振込口座の確認フォームソートデーター
C69: =IF(シート名設定!E17=0,"",シート名設定!E17) -> 印刷フォーム3ソートデーター
C70: =IF(シート名設定!E18=0,"",シート名設定!E18) -> 印刷フォーム4ソートデーター
C71: =IF(シート名設定!E19=0,"",シート名設定!E19) -> 印刷フォーム5ソートデーター
C72: =IF(シート名設定!E20=0,"",シート名設定!E20) -> 印刷フォーム6ソートデーター
C73: =IF(シート名設定!E21=0,"",シート名設定!E21) -> 印刷フォーム7ソートデーター
C74: =IF(シート名設定!E22=0,"",シート名設定!E22) -> 印刷フォーム8ソートデーター
C75: =IF(シート名設定!E23=0,"",シート名設定!E23) -> 印刷フォーム9ソートデーター
C76: =IF(シート名設定!E24=0,"",シート名設定!E24) -> 印刷フォーム10ソートデーター
C77: =IF(シート名設定!E25=0,"",シート名設定!E25) -> 印刷フォーム11ソートデーター
C78: =IF(シート名設定!E26=0,"",シート名設定!E26) -> 印刷フォーム12ソートデーター
C79: =IF(シート名設定!E27=0,"",シート名設定!E27) -> 印刷フォーム13ソートデーター
C80: =IF(シート名設定!E28=0,"",シート名設定!E28) -> 印刷フォーム14ソートデーター
C81: =IF(シート名設定!E29=0,"",シート名設定!E29) -> 印刷フォーム15ソートデーター
C82: =IF(シート名設定!E30=0,"",シート名設定!E30) -> 印刷フォーム16ソートデーター
C83: =IF(シート名設定!E31=0,"",シート名設定!E31) -> 印刷フォーム17ソートデーター
C84: =IF(シート名設定!E32=0,"",シート名設定!E32) -> 印刷フォーム18ソートデーター
C85: =IF(シート名設定!E33=0,"",シート名設定!E33) -> 印刷フォーム19ソートデーター
C86: =IF(シート名設定!E34=0,"",シート名設定!E34) -> 印刷フォーム20ソートデーター
C87: =IF(シート名設定!E35=0,"",シート名設定!E35) -> 印刷フォーム21ソートデーター
C88: =IF(シート名設定!E36=0,"",シート名設定!E36) -> 印刷フォーム22ソートデーター
C89: =IF(シート名設定!E37=0,"",シート名設定!E37) -> 印刷フォーム23ソートデーター
C90: =IF(シート名設定!E38=0,"",シート名設定!E38) -> 印刷フォーム24ソートデーター
C91: =IF(シート名設定!E39=0,"",シート名設定!E39) -> 印刷フォーム25ソートデーター
C92: =IF(シート名設定!E40=0,"",シート名設定!E40) -> 印刷フォーム26ソートデーター
C93: =IF(シート名設定!E41=0,"",シート名設定!E41) -> 印刷フォーム27ソートデーター
C94: =IF(シート名設定!E42=0,"",シート名設定!E42) -> 印刷フォーム28ソートデーター
C95: =IF(シート名設定!E43=0,"",シート名設定!E43) -> 印刷フォーム29ソートデーター
C96: =IF(シート名設定!E44=0,"",シート名設定!E44) -> 印刷フォーム30ソートデーター
C97: =IF(追加ワークシート名設定!D6=0,"",追加ワークシート名設定!D6) -> 退学者○○○子学年積立金会計
C98: =IF(追加ワークシート名設定!D7=0,"",追加ワークシート名設定!D7) -> 退学者□□□子学年積立金会計
C99: =IF(追加ワークシート名設定!D8=0,"",追加ワークシート名設定!D8) -> 特別会計処理該当
C100: =IF(追加ワークシート名設定!D9=0,"",追加ワークシート名設定!D9) -> 
C101: =IF(追加ワークシート名設定!D10=0,"",追加ワークシート名設定!D10) -> 
C102: =IF(追加ワークシート名設定!D11=0,"",追加ワークシート名設定!D11) -> 
C103: =IF(追加ワークシート名設定!D12=0,"",追加ワークシート名設定!D12) -> 
C104: =IF(追加ワークシート名設定!D13=0,"",追加ワークシート名設定!D13) -> 
C105: =IF(追加ワークシート名設定!D14=0,"",追加ワークシート名設定!D14) -> 
C106: =IF(追加ワークシート名設定!D15=0,"",追加ワークシート名設定!D15) -> 
C107: =IF(追加ワークシート名設定!D16=0,"",追加ワークシート名設定!D16) -> 
C108: =IF(追加ワークシート名設定!D17=0,"",追加ワークシート名設定!D17) -> 
C109: =IF(追加ワークシート名設定!D18=0,"",追加ワークシート名設定!D18) -> 
C110: =IF(追加ワークシート名設定!D19=0,"",追加ワークシート名設定!D19) -> 
C111: =IF(追加ワークシート名設定!D20=0,"",追加ワークシート名設定!D20) -> 
C112: =IF(追加ワークシート名設定!D21=0,"",追加ワークシート名設定!D21) -> 
C113: =IF(追加ワークシート名設定!D22=0,"",追加ワークシート名設定!D22) -> 
C114: =IF(追加ワークシート名設定!D23=0,"",追加ワークシート名設定!D23) -> 
C115: =IF(追加ワークシート名設定!D24=0,"",追加ワークシート名設定!D24) -> 
C116: =IF(追加ワークシート名設定!D25=0,"",追加ワークシート名設定!D25) -> 
C117: =IF(追加ワークシート名設定!D26=0,"",追加ワークシート名設定!D26) -> 
C118: =IF(追加ワークシート名設定!D27=0,"",追加ワークシート名設定!D27) -> 
C119: =IF(追加ワークシート名設定!D28=0,"",追加ワークシート名設定!D28) -> 
C120: =IF(追加ワークシート名設定!D29=0,"",追加ワークシート名設定!D29) -> 
C121: =IF(追加ワークシート名設定!D30=0,"",追加ワークシート名設定!D30) -> 
C122: =IF(追加ワークシート名設定!D31=0,"",追加ワークシート名設定!D31) -> 
C123: =IF(追加ワークシート名設定!D32=0,"",追加ワークシート名設定!D32) -> 
C124: =IF(追加ワークシート名設定!D33=0,"",追加ワークシート名設定!D33) -> 
C125: =IF(追加ワークシート名設定!D34=0,"",追加ワークシート名設定!D34) -> 
C126: =IF(追加ワークシート名設定!D35=0,"",追加ワークシート名設定!D35) -> 
C127: =IF(追加ワークシート名設定!D36=0,"",追加ワークシート名設定!D36) -> 
C128: =IF(追加ワークシート名設定!D37=0,"",追加ワークシート名設定!D37) -> 
C129: =IF(追加ワークシート名設定!D38=0,"",追加ワークシート名設定!D38) -> 
C130: =IF(追加ワークシート名設定!D39=0,"",追加ワークシート名設定!D39) -> 
C131: =IF(追加ワークシート名設定!D40=0,"",追加ワークシート名設定!D40) -> 
C132: =IF(追加ワークシート名設定!D41=0,"",追加ワークシート名設定!D41) -> 
C133: =IF(追加ワークシート名設定!D42=0,"",追加ワークシート名設定!D42) -> 
C134: =IF(追加ワークシート名設定!D43=0,"",追加ワークシート名設定!D43) -> 
C135: =IF(追加ワークシート名設定!D44=0,"",追加ワークシート名設定!D44) -> 
C136: =IF(追加ワークシート名設定!D45=0,"",追加ワークシート名設定!D45) -> 
C137: =IF(追加ワークシート名設定!D46=0,"",追加ワークシート名設定!D46) -> 
C138: =IF(追加ワークシート名設定!D47=0,"",追加ワークシート名設定!D47) -> 
C139: =IF(追加ワークシート名設定!D48=0,"",追加ワークシート名設定!D48) -> 
C140: =IF(追加ワークシート名設定!D49=0,"",追加ワークシート名設定!D49) -> 
C141: =IF(追加ワークシート名設定!D50=0,"",追加ワークシート名設定!D50) -> 
C142: =IF(追加ワークシート名設定!D51=0,"",追加ワークシート名設定!D51) -> 
C143: =IF(追加ワークシート名設定!D52=0,"",追加ワークシート名設定!D52) -> 
C144: =IF(追加ワークシート名設定!D53=0,"",追加ワークシート名設定!D53) -> 
C145: =IF(追加ワークシート名設定!D54=0,"",追加ワークシート名設定!D54) -> 
C146: =IF(追加ワークシート名設定!D55=0,"",追加ワークシート名設定!D55) -> 
C147: =IF(追加ワークシート名設定!D56=0,"",追加ワークシート名設定!D56) -> 
C148: =IF(追加ワークシート名設定!D57=0,"",追加ワークシート名設定!D57) -> 
C149: =IF(追加ワークシート名設定!D58=0,"",追加ワークシート名設定!D58) -> 
C150: =IF(追加ワークシート名設定!D59=0,"",追加ワークシート名設定!D59) -> 
C151: =IF(追加ワークシート名設定!D60=0,"",追加ワークシート名設定!D60) -> 
C152: =IF(追加ワークシート名設定!D61=0,"",追加ワークシート名設定!D61) -> 
C153: =IF(追加ワークシート名設定!D62=0,"",追加ワークシート名設定!D62) -> 
C154: =IF(追加ワークシート名設定!D63=0,"",追加ワークシート名設定!D63) -> 
C155: =IF(追加ワークシート名設定!D64=0,"",追加ワークシート名設定!D64) -> 
C156: =IF(追加ワークシート名設定!D65=0,"",追加ワークシート名設定!D65) -> 
C157: =IF(追加ワークシート名設定!D66=0,"",追加ワークシート名設定!D66) -> 
C158: =IF(追加ワークシート名設定!D67=0,"",追加ワークシート名設定!D67) -> 
C159: =IF(追加ワークシート名設定!D68=0,"",追加ワークシート名設定!D68) -> 
C160: =IF(追加ワークシート名設定!D69=0,"",追加ワークシート名設定!D69) -> 
C161: =IF(シート名設定!C30=0,"",シート名設定!C30) -> 入力AA1

Sheet 一覧表付ファイル作成入力設定7
B3: =シート名設定!C15 -> 一覧表付ファイル作成入力設定7
B4: １．入力元の設定
B5: 項 目 | C5: 設定内容
B6: シート名
B7: データ先頭セル行番号
B8: データ先頭セル列番号
B9: 異同比較列番号
B10: データー数
B11: For Next の増分
B13: ２．入力先の設定
B14: 項 目 | C14: 設定内容
B15: シート名
B16: 入力先頭セル行番号
B17: 入力先頭セル列番号
B18: 入力最終セル行番号
B19: 入力最終セル列番号
B20: 入力データー数
B21: 通しページ入力セル行番号
B22: 通しページ入力セル列番号
B23: 区分内ページ入力セル行番号
B24: 区分内ページ入力セル列番号
B25: ３．印刷処理かファイルのメール送信の設定
B26: 項 目 | C26: 設定内容
B27: 印刷処理か ファイルの メール送信 の選択 | D27: 1
B28: ファイルのメール送信の場合の印刷フォームソートデーターシートのメールアドレスが入力されている列番号
B29: ファイルのメール送信の場合の印刷フォームソートデーターシートの件名が入力されている列番号
B30: ファイルのメール送信の場合の印刷フォームソートデーターシートの本文が入力されている列番号
B31: ファイルのメール送信の場合の添付ファイルの保存先ドライブ及びフォルダー
C37: =IF(シート名設定!C35=0,"",シート名設定!C35) -> 平成１７年度第３学年会計報告個人別（通年） | D37: 1 | E37: 印刷する
C38: =IF(シート名設定!C36=0,"",シート名設定!C36) -> ○○○子学年積立金会計報告印刷フォーム | D38: 2 | E38: メールで送信する
C39: =IF(シート名設定!C37=0,"",シート名設定!C37) -> □□□子学年積立金会計報告印刷フォーム | D39: 3 | E39: 添付ファイルなし件名本文のみのメール
C40: =IF(シート名設定!C38=0,"",シート名設定!C38) -> 学年積立金の返金並びに返金振込口座の確認フォーム
C41: =IF(シート名設定!C39=0,"",シート名設定!C39) -> 印刷フォーム5
C42: =IF(シート名設定!C40=0,"",シート名設定!C40) -> 印刷フォーム6
C43: =IF(シート名設定!C41=0,"",シート名設定!C41) -> 印刷フォーム7
C44: =IF(シート名設定!C42=0,"",シート名設定!C42) -> 印刷フォーム8
C45: =IF(シート名設定!C43=0,"",シート名設定!C43) -> 印刷フォーム9
C46: =IF(シート名設定!C44=0,"",シート名設定!C44) -> 印刷フォーム10
C47: =IF(シート名設定!C45=0,"",シート名設定!C45) -> 印刷フォーム11
C48: =IF(シート名設定!C46=0,"",シート名設定!C46) -> 印刷フォーム12
C49: =IF(シート名設定!C47=0,"",シート名設定!C47) -> 印刷フォーム13
C50: =IF(シート名設定!C48=0,"",シート名設定!C48) -> 印刷フォーム14
C51: =IF(シート名設定!C49=0,"",シート名設定!C49) -> 印刷フォーム15
C52: =IF(シート名設定!C50=0,"",シート名設定!C50) -> 印刷フォーム16
C53: =IF(シート名設定!C51=0,"",シート名設定!C51) -> 印刷フォーム17
C54: =IF(シート名設定!C52=0,"",シート名設定!C52) -> 印刷フォーム18
C55: =IF(シート名設定!C53=0,"",シート名設定!C53) -> 印刷フォーム19
C56: =IF(シート名設定!C54=0,"",シート名設定!C54) -> 印刷フォーム20
C57: =IF(シート名設定!E5=0,"",シート名設定!E5) -> 印刷フォーム21
C58: =IF(シート名設定!E6=0,"",シート名設定!E6) -> 印刷フォーム22
C59: =IF(シート名設定!E7=0,"",シート名設定!E7) -> 印刷フォーム23
C60: =IF(シート名設定!E8=0,"",シート名設定!E8) -> 印刷フォーム24
C61: =IF(シート名設定!E9=0,"",シート名設定!E9) -> 印刷フォーム25
C62: =IF(シート名設定!E10=0,"",シート名設定!E10) -> 印刷フォーム26
C63: =IF(シート名設定!E11=0,"",シート名設定!E11) -> 印刷フォーム27
C64: =IF(シート名設定!E12=0,"",シート名設定!E12) -> 印刷フォーム28
C65: =IF(シート名設定!E13=0,"",シート名設定!E13) -> 印刷フォーム29
C66: =IF(シート名設定!E14=0,"",シート名設定!E14) -> 印刷フォーム30
C67: =IF(シート名設定!E15=0,"",シート名設定!E15) -> 学年積立金会計報告個人別（通年）ソートデーター
C68: =IF(シート名設定!E16=0,"",シート名設定!E16) -> 学年積立金の返金並びに返金振込口座の確認フォームソートデーター
C69: =IF(シート名設定!E17=0,"",シート名設定!E17) -> 印刷フォーム3ソートデーター
C70: =IF(シート名設定!E18=0,"",シート名設定!E18) -> 印刷フォーム4ソートデーター
C71: =IF(シート名設定!E19=0,"",シート名設定!E19) -> 印刷フォーム5ソートデーター
C72: =IF(シート名設定!E20=0,"",シート名設定!E20) -> 印刷フォーム6ソートデーター
C73: =IF(シート名設定!E21=0,"",シート名設定!E21) -> 印刷フォーム7ソートデーター
C74: =IF(シート名設定!E22=0,"",シート名設定!E22) -> 印刷フォーム8ソートデーター
C75: =IF(シート名設定!E23=0,"",シート名設定!E23) -> 印刷フォーム9ソートデーター
C76: =IF(シート名設定!E24=0,"",シート名設定!E24) -> 印刷フォーム10ソートデーター
C77: =IF(シート名設定!E25=0,"",シート名設定!E25) -> 印刷フォーム11ソートデーター
C78: =IF(シート名設定!E26=0,"",シート名設定!E26) -> 印刷フォーム12ソートデーター
C79: =IF(シート名設定!E27=0,"",シート名設定!E27) -> 印刷フォーム13ソートデーター
C80: =IF(シート名設定!E28=0,"",シート名設定!E28) -> 印刷フォーム14ソートデーター
C81: =IF(シート名設定!E29=0,"",シート名設定!E29) -> 印刷フォーム15ソートデーター
C82: =IF(シート名設定!E30=0,"",シート名設定!E30) -> 印刷フォーム16ソートデーター
C83: =IF(シート名設定!E31=0,"",シート名設定!E31) -> 印刷フォーム17ソートデーター
C84: =IF(シート名設定!E32=0,"",シート名設定!E32) -> 印刷フォーム18ソートデーター
C85: =IF(シート名設定!E33=0,"",シート名設定!E33) -> 印刷フォーム19ソートデーター
C86: =IF(シート名設定!E34=0,"",シート名設定!E34) -> 印刷フォーム20ソートデーター
C87: =IF(シート名設定!E35=0,"",シート名設定!E35) -> 印刷フォーム21ソートデーター
C88: =IF(シート名設定!E36=0,"",シート名設定!E36) -> 印刷フォーム22ソートデーター
C89: =IF(シート名設定!E37=0,"",シート名設定!E37) -> 印刷フォーム23ソートデーター
C90: =IF(シート名設定!E38=0,"",シート名設定!E38) -> 印刷フォーム24ソートデーター
C91: =IF(シート名設定!E39=0,"",シート名設定!E39) -> 印刷フォーム25ソートデーター
C92: =IF(シート名設定!E40=0,"",シート名設定!E40) -> 印刷フォーム26ソートデーター
C93: =IF(シート名設定!E41=0,"",シート名設定!E41) -> 印刷フォーム27ソートデーター
C94: =IF(シート名設定!E42=0,"",シート名設定!E42) -> 印刷フォーム28ソートデーター
C95: =IF(シート名設定!E43=0,"",シート名設定!E43) -> 印刷フォーム29ソートデーター
C96: =IF(シート名設定!E44=0,"",シート名設定!E44) -> 印刷フォーム30ソートデーター
C97: =IF(追加ワークシート名設定!D6=0,"",追加ワークシート名設定!D6) -> 退学者○○○子学年積立金会計
C98: =IF(追加ワークシート名設定!D7=0,"",追加ワークシート名設定!D7) -> 退学者□□□子学年積立金会計
C99: =IF(追加ワークシート名設定!D8=0,"",追加ワークシート名設定!D8) -> 特別会計処理該当
C100: =IF(追加ワークシート名設定!D9=0,"",追加ワークシート名設定!D9) -> 
C101: =IF(追加ワークシート名設定!D10=0,"",追加ワークシート名設定!D10) -> 
C102: =IF(追加ワークシート名設定!D11=0,"",追加ワークシート名設定!D11) -> 
C103: =IF(追加ワークシート名設定!D12=0,"",追加ワークシート名設定!D12) -> 
C104: =IF(追加ワークシート名設定!D13=0,"",追加ワークシート名設定!D13) -> 
C105: =IF(追加ワークシート名設定!D14=0,"",追加ワークシート名設定!D14) -> 
C106: =IF(追加ワークシート名設定!D15=0,"",追加ワークシート名設定!D15) -> 
C107: =IF(追加ワークシート名設定!D16=0,"",追加ワークシート名設定!D16) -> 
C108: =IF(追加ワークシート名設定!D17=0,"",追加ワークシート名設定!D17) -> 
C109: =IF(追加ワークシート名設定!D18=0,"",追加ワークシート名設定!D18) -> 
C110: =IF(追加ワークシート名設定!D19=0,"",追加ワークシート名設定!D19) -> 
C111: =IF(追加ワークシート名設定!D20=0,"",追加ワークシート名設定!D20) -> 
C112: =IF(追加ワークシート名設定!D21=0,"",追加ワークシート名設定!D21) -> 
C113: =IF(追加ワークシート名設定!D22=0,"",追加ワークシート名設定!D22) -> 
C114: =IF(追加ワークシート名設定!D23=0,"",追加ワークシート名設定!D23) -> 
C115: =IF(追加ワークシート名設定!D24=0,"",追加ワークシート名設定!D24) -> 
C116: =IF(追加ワークシート名設定!D25=0,"",追加ワークシート名設定!D25) -> 
C117: =IF(追加ワークシート名設定!D26=0,"",追加ワークシート名設定!D26) -> 
C118: =IF(追加ワークシート名設定!D27=0,"",追加ワークシート名設定!D27) -> 
C119: =IF(追加ワークシート名設定!D28=0,"",追加ワークシート名設定!D28) -> 
C120: =IF(追加ワークシート名設定!D29=0,"",追加ワークシート名設定!D29) -> 
C121: =IF(追加ワークシート名設定!D30=0,"",追加ワークシート名設定!D30) -> 
C122: =IF(追加ワークシート名設定!D31=0,"",追加ワークシート名設定!D31) -> 
C123: =IF(追加ワークシート名設定!D32=0,"",追加ワークシート名設定!D32) -> 
C124: =IF(追加ワークシート名設定!D33=0,"",追加ワークシート名設定!D33) -> 
C125: =IF(追加ワークシート名設定!D34=0,"",追加ワークシート名設定!D34) -> 
C126: =IF(追加ワークシート名設定!D35=0,"",追加ワークシート名設定!D35) -> 
C127: =IF(追加ワークシート名設定!D36=0,"",追加ワークシート名設定!D36) -> 
C128: =IF(追加ワークシート名設定!D37=0,"",追加ワークシート名設定!D37) -> 
C129: =IF(追加ワークシート名設定!D38=0,"",追加ワークシート名設定!D38) -> 
C130: =IF(追加ワークシート名設定!D39=0,"",追加ワークシート名設定!D39) -> 
C131: =IF(追加ワークシート名設定!D40=0,"",追加ワークシート名設定!D40) -> 
C132: =IF(追加ワークシート名設定!D41=0,"",追加ワークシート名設定!D41) -> 
C133: =IF(追加ワークシート名設定!D42=0,"",追加ワークシート名設定!D42) -> 
C134: =IF(追加ワークシート名設定!D43=0,"",追加ワークシート名設定!D43) -> 
C135: =IF(追加ワークシート名設定!D44=0,"",追加ワークシート名設定!D44) -> 
C136: =IF(追加ワークシート名設定!D45=0,"",追加ワークシート名設定!D45) -> 
C137: =IF(追加ワークシート名設定!D46=0,"",追加ワークシート名設定!D46) -> 
C138: =IF(追加ワークシート名設定!D47=0,"",追加ワークシート名設定!D47) -> 
C139: =IF(追加ワークシート名設定!D48=0,"",追加ワークシート名設定!D48) -> 
C140: =IF(追加ワークシート名設定!D49=0,"",追加ワークシート名設定!D49) -> 
C141: =IF(追加ワークシート名設定!D50=0,"",追加ワークシート名設定!D50) -> 
C142: =IF(追加ワークシート名設定!D51=0,"",追加ワークシート名設定!D51) -> 
C143: =IF(追加ワークシート名設定!D52=0,"",追加ワークシート名設定!D52) -> 
C144: =IF(追加ワークシート名設定!D53=0,"",追加ワークシート名設定!D53) -> 
C145: =IF(追加ワークシート名設定!D54=0,"",追加ワークシート名設定!D54) -> 
C146: =IF(追加ワークシート名設定!D55=0,"",追加ワークシート名設定!D55) -> 
C147: =IF(追加ワークシート名設定!D56=0,"",追加ワークシート名設定!D56) -> 
C148: =IF(追加ワークシート名設定!D57=0,"",追加ワークシート名設定!D57) -> 
C149: =IF(追加ワークシート名設定!D58=0,"",追加ワークシート名設定!D58) -> 
C150: =IF(追加ワークシート名設定!D59=0,"",追加ワークシート名設定!D59) -> 
C151: =IF(追加ワークシート名設定!D60=0,"",追加ワークシート名設定!D60) -> 
C152: =IF(追加ワークシート名設定!D61=0,"",追加ワークシート名設定!D61) -> 
C153: =IF(追加ワークシート名設定!D62=0,"",追加ワークシート名設定!D62) -> 
C154: =IF(追加ワークシート名設定!D63=0,"",追加ワークシート名設定!D63) -> 
C155: =IF(追加ワークシート名設定!D64=0,"",追加ワークシート名設定!D64) -> 
C156: =IF(追加ワークシート名設定!D65=0,"",追加ワークシート名設定!D65) -> 
C157: =IF(追加ワークシート名設定!D66=0,"",追加ワークシート名設定!D66) -> 
C158: =IF(追加ワークシート名設定!D67=0,"",追加ワークシート名設定!D67) -> 
C159: =IF(追加ワークシート名設定!D68=0,"",追加ワークシート名設定!D68) -> 
C160: =IF(追加ワークシート名設定!D69=0,"",追加ワークシート名設定!D69) -> 
C161: =IF(シート名設定!C30=0,"",シート名設定!C30) -> 入力AA1

Sheet 一覧表付ファイル作成入力設定8
B3: =シート名設定!C16 -> 一覧表付ファイル作成入力設定8
B4: １．入力元の設定
B5: 項 目 | C5: 設定内容
B6: シート名
B7: データ先頭セル行番号
B8: データ先頭セル列番号
B9: 異同比較列番号
B10: データー数
B11: For Next の増分
B13: ２．入力先の設定
B14: 項 目 | C14: 設定内容
B15: シート名
B16: 入力先頭セル行番号
B17: 入力先頭セル列番号
B18: 入力最終セル行番号
B19: 入力最終セル列番号
B20: 入力データー数
B21: 通しページ入力セル行番号
B22: 通しページ入力セル列番号
B23: 区分内ページ入力セル行番号
B24: 区分内ページ入力セル列番号
B25: ３．印刷処理かファイルのメール送信の設定
B26: 項 目 | C26: 設定内容
B27: 印刷処理か ファイルの メール送信 の選択 | D27: 1
B28: ファイルのメール送信の場合の印刷フォームソートデーターシートのメールアドレスが入力されている列番号
B29: ファイルのメール送信の場合の印刷フォームソートデーターシートの件名が入力されている列番号
B30: ファイルのメール送信の場合の印刷フォームソートデーターシートの本文が入力されている列番号
B31: ファイルのメール送信の場合の添付ファイルの保存先ドライブ及びフォルダー
C37: =IF(シート名設定!C35=0,"",シート名設定!C35) -> 平成１７年度第３学年会計報告個人別（通年） | D37: 1 | E37: 印刷する
C38: =IF(シート名設定!C36=0,"",シート名設定!C36) -> ○○○子学年積立金会計報告印刷フォーム | D38: 2 | E38: メールで送信する
C39: =IF(シート名設定!C37=0,"",シート名設定!C37) -> □□□子学年積立金会計報告印刷フォーム | D39: 3 | E39: 添付ファイルなし件名本文のみのメール
C40: =IF(シート名設定!C38=0,"",シート名設定!C38) -> 学年積立金の返金並びに返金振込口座の確認フォーム
C41: =IF(シート名設定!C39=0,"",シート名設定!C39) -> 印刷フォーム5
C42: =IF(シート名設定!C40=0,"",シート名設定!C40) -> 印刷フォーム6
C43: =IF(シート名設定!C41=0,"",シート名設定!C41) -> 印刷フォーム7
C44: =IF(シート名設定!C42=0,"",シート名設定!C42) -> 印刷フォーム8
C45: =IF(シート名設定!C43=0,"",シート名設定!C43) -> 印刷フォーム9
C46: =IF(シート名設定!C44=0,"",シート名設定!C44) -> 印刷フォーム10
C47: =IF(シート名設定!C45=0,"",シート名設定!C45) -> 印刷フォーム11
C48: =IF(シート名設定!C46=0,"",シート名設定!C46) -> 印刷フォーム12
C49: =IF(シート名設定!C47=0,"",シート名設定!C47) -> 印刷フォーム13
C50: =IF(シート名設定!C48=0,"",シート名設定!C48) -> 印刷フォーム14
C51: =IF(シート名設定!C49=0,"",シート名設定!C49) -> 印刷フォーム15
C52: =IF(シート名設定!C50=0,"",シート名設定!C50) -> 印刷フォーム16
C53: =IF(シート名設定!C51=0,"",シート名設定!C51) -> 印刷フォーム17
C54: =IF(シート名設定!C52=0,"",シート名設定!C52) -> 印刷フォーム18
C55: =IF(シート名設定!C53=0,"",シート名設定!C53) -> 印刷フォーム19
C56: =IF(シート名設定!C54=0,"",シート名設定!C54) -> 印刷フォーム20
C57: =IF(シート名設定!E5=0,"",シート名設定!E5) -> 印刷フォーム21
C58: =IF(シート名設定!E6=0,"",シート名設定!E6) -> 印刷フォーム22
C59: =IF(シート名設定!E7=0,"",シート名設定!E7) -> 印刷フォーム23
C60: =IF(シート名設定!E8=0,"",シート名設定!E8) -> 印刷フォーム24
C61: =IF(シート名設定!E9=0,"",シート名設定!E9) -> 印刷フォーム25
C62: =IF(シート名設定!E10=0,"",シート名設定!E10) -> 印刷フォーム26
C63: =IF(シート名設定!E11=0,"",シート名設定!E11) -> 印刷フォーム27
C64: =IF(シート名設定!E12=0,"",シート名設定!E12) -> 印刷フォーム28
C65: =IF(シート名設定!E13=0,"",シート名設定!E13) -> 印刷フォーム29
C66: =IF(シート名設定!E14=0,"",シート名設定!E14) -> 印刷フォーム30
C67: =IF(シート名設定!E15=0,"",シート名設定!E15) -> 学年積立金会計報告個人別（通年）ソートデーター
C68: =IF(シート名設定!E16=0,"",シート名設定!E16) -> 学年積立金の返金並びに返金振込口座の確認フォームソートデーター
C69: =IF(シート名設定!E17=0,"",シート名設定!E17) -> 印刷フォーム3ソートデーター
C70: =IF(シート名設定!E18=0,"",シート名設定!E18) -> 印刷フォーム4ソートデーター
C71: =IF(シート名設定!E19=0,"",シート名設定!E19) -> 印刷フォーム5ソートデーター
C72: =IF(シート名設定!E20=0,"",シート名設定!E20) -> 印刷フォーム6ソートデーター
C73: =IF(シート名設定!E21=0,"",シート名設定!E21) -> 印刷フォーム7ソートデーター
C74: =IF(シート名設定!E22=0,"",シート名設定!E22) -> 印刷フォーム8ソートデーター
C75: =IF(シート名設定!E23=0,"",シート名設定!E23) -> 印刷フォーム9ソートデーター
C76: =IF(シート名設定!E24=0,"",シート名設定!E24) -> 印刷フォーム10ソートデーター
C77: =IF(シート名設定!E25=0,"",シート名設定!E25) -> 印刷フォーム11ソートデーター
C78: =IF(シート名設定!E26=0,"",シート名設定!E26) -> 印刷フォーム12ソートデーター
C79: =IF(シート名設定!E27=0,"",シート名設定!E27) -> 印刷フォーム13ソートデーター
C80: =IF(シート名設定!E28=0,"",シート名設定!E28) -> 印刷フォーム14ソートデーター
C81: =IF(シート名設定!E29=0,"",シート名設定!E29) -> 印刷フォーム15ソートデーター
C82: =IF(シート名設定!E30=0,"",シート名設定!E30) -> 印刷フォーム16ソートデーター
C83: =IF(シート名設定!E31=0,"",シート名設定!E31) -> 印刷フォーム17ソートデーター
C84: =IF(シート名設定!E32=0,"",シート名設定!E32) -> 印刷フォーム18ソートデーター
C85: =IF(シート名設定!E33=0,"",シート名設定!E33) -> 印刷フォーム19ソートデーター
C86: =IF(シート名設定!E34=0,"",シート名設定!E34) -> 印刷フォーム20ソートデーター
C87: =IF(シート名設定!E35=0,"",シート名設定!E35) -> 印刷フォーム21ソートデーター
C88: =IF(シート名設定!E36=0,"",シート名設定!E36) -> 印刷フォーム22ソートデーター
C89: =IF(シート名設定!E37=0,"",シート名設定!E37) -> 印刷フォーム23ソートデーター
C90: =IF(シート名設定!E38=0,"",シート名設定!E38) -> 印刷フォーム24ソートデーター
C91: =IF(シート名設定!E39=0,"",シート名設定!E39) -> 印刷フォーム25ソートデーター
C92: =IF(シート名設定!E40=0,"",シート名設定!E40) -> 印刷フォーム26ソートデーター
C93: =IF(シート名設定!E41=0,"",シート名設定!E41) -> 印刷フォーム27ソートデーター
C94: =IF(シート名設定!E42=0,"",シート名設定!E42) -> 印刷フォーム28ソートデーター
C95: =IF(シート名設定!E43=0,"",シート名設定!E43) -> 印刷フォーム29ソートデーター
C96: =IF(シート名設定!E44=0,"",シート名設定!E44) -> 印刷フォーム30ソートデーター
C97: =IF(追加ワークシート名設定!D6=0,"",追加ワークシート名設定!D6) -> 退学者○○○子学年積立金会計
C98: =IF(追加ワークシート名設定!D7=0,"",追加ワークシート名設定!D7) -> 退学者□□□子学年積立金会計
C99: =IF(追加ワークシート名設定!D8=0,"",追加ワークシート名設定!D8) -> 特別会計処理該当
C100: =IF(追加ワークシート名設定!D9=0,"",追加ワークシート名設定!D9) -> 
C101: =IF(追加ワークシート名設定!D10=0,"",追加ワークシート名設定!D10) -> 
C102: =IF(追加ワークシート名設定!D11=0,"",追加ワークシート名設定!D11) -> 
C103: =IF(追加ワークシート名設定!D12=0,"",追加ワークシート名設定!D12) -> 
C104: =IF(追加ワークシート名設定!D13=0,"",追加ワークシート名設定!D13) -> 
C105: =IF(追加ワークシート名設定!D14=0,"",追加ワークシート名設定!D14) -> 
C106: =IF(追加ワークシート名設定!D15=0,"",追加ワークシート名設定!D15) -> 
C107: =IF(追加ワークシート名設定!D16=0,"",追加ワークシート名設定!D16) -> 
C108: =IF(追加ワークシート名設定!D17=0,"",追加ワークシート名設定!D17) -> 
C109: =IF(追加ワークシート名設定!D18=0,"",追加ワークシート名設定!D18) -> 
C110: =IF(追加ワークシート名設定!D19=0,"",追加ワークシート名設定!D19) -> 
C111: =IF(追加ワークシート名設定!D20=0,"",追加ワークシート名設定!D20) -> 
C112: =IF(追加ワークシート名設定!D21=0,"",追加ワークシート名設定!D21) -> 
C113: =IF(追加ワークシート名設定!D22=0,"",追加ワークシート名設定!D22) -> 
C114: =IF(追加ワークシート名設定!D23=0,"",追加ワークシート名設定!D23) -> 
C115: =IF(追加ワークシート名設定!D24=0,"",追加ワークシート名設定!D24) -> 
C116: =IF(追加ワークシート名設定!D25=0,"",追加ワークシート名設定!D25) -> 
C117: =IF(追加ワークシート名設定!D26=0,"",追加ワークシート名設定!D26) -> 
C118: =IF(追加ワークシート名設定!D27=0,"",追加ワークシート名設定!D27) -> 
C119: =IF(追加ワークシート名設定!D28=0,"",追加ワークシート名設定!D28) -> 
C120: =IF(追加ワークシート名設定!D29=0,"",追加ワークシート名設定!D29) -> 
C121: =IF(追加ワークシート名設定!D30=0,"",追加ワークシート名設定!D30) -> 
C122: =IF(追加ワークシート名設定!D31=0,"",追加ワークシート名設定!D31) -> 
C123: =IF(追加ワークシート名設定!D32=0,"",追加ワークシート名設定!D32) -> 
C124: =IF(追加ワークシート名設定!D33=0,"",追加ワークシート名設定!D33) -> 
C125: =IF(追加ワークシート名設定!D34=0,"",追加ワークシート名設定!D34) -> 
C126: =IF(追加ワークシート名設定!D35=0,"",追加ワークシート名設定!D35) -> 
C127: =IF(追加ワークシート名設定!D36=0,"",追加ワークシート名設定!D36) -> 
C128: =IF(追加ワークシート名設定!D37=0,"",追加ワークシート名設定!D37) -> 
C129: =IF(追加ワークシート名設定!D38=0,"",追加ワークシート名設定!D38) -> 
C130: =IF(追加ワークシート名設定!D39=0,"",追加ワークシート名設定!D39) -> 
C131: =IF(追加ワークシート名設定!D40=0,"",追加ワークシート名設定!D40) -> 
C132: =IF(追加ワークシート名設定!D41=0,"",追加ワークシート名設定!D41) -> 
C133: =IF(追加ワークシート名設定!D42=0,"",追加ワークシート名設定!D42) -> 
C134: =IF(追加ワークシート名設定!D43=0,"",追加ワークシート名設定!D43) -> 
C135: =IF(追加ワークシート名設定!D44=0,"",追加ワークシート名設定!D44) -> 
C136: =IF(追加ワークシート名設定!D45=0,"",追加ワークシート名設定!D45) -> 
C137: =IF(追加ワークシート名設定!D46=0,"",追加ワークシート名設定!D46) -> 
C138: =IF(追加ワークシート名設定!D47=0,"",追加ワークシート名設定!D47) -> 
C139: =IF(追加ワークシート名設定!D48=0,"",追加ワークシート名設定!D48) -> 
C140: =IF(追加ワークシート名設定!D49=0,"",追加ワークシート名設定!D49) -> 
C141: =IF(追加ワークシート名設定!D50=0,"",追加ワークシート名設定!D50) -> 
C142: =IF(追加ワークシート名設定!D51=0,"",追加ワークシート名設定!D51) -> 
C143: =IF(追加ワークシート名設定!D52=0,"",追加ワークシート名設定!D52) -> 
C144: =IF(追加ワークシート名設定!D53=0,"",追加ワークシート名設定!D53) -> 
C145: =IF(追加ワークシート名設定!D54=0,"",追加ワークシート名設定!D54) -> 
C146: =IF(追加ワークシート名設定!D55=0,"",追加ワークシート名設定!D55) -> 
C147: =IF(追加ワークシート名設定!D56=0,"",追加ワークシート名設定!D56) -> 
C148: =IF(追加ワークシート名設定!D57=0,"",追加ワークシート名設定!D57) -> 
C149: =IF(追加ワークシート名設定!D58=0,"",追加ワークシート名設定!D58) -> 
C150: =IF(追加ワークシート名設定!D59=0,"",追加ワークシート名設定!D59) -> 
C151: =IF(追加ワークシート名設定!D60=0,"",追加ワークシート名設定!D60) -> 
C152: =IF(追加ワークシート名設定!D61=0,"",追加ワークシート名設定!D61) -> 
C153: =IF(追加ワークシート名設定!D62=0,"",追加ワークシート名設定!D62) -> 
C154: =IF(追加ワークシート名設定!D63=0,"",追加ワークシート名設定!D63) -> 
C155: =IF(追加ワークシート名設定!D64=0,"",追加ワークシート名設定!D64) -> 
C156: =IF(追加ワークシート名設定!D65=0,"",追加ワークシート名設定!D65) -> 
C157: =IF(追加ワークシート名設定!D66=0,"",追加ワークシート名設定!D66) -> 
C158: =IF(追加ワークシート名設定!D67=0,"",追加ワークシート名設定!D67) -> 
C159: =IF(追加ワークシート名設定!D68=0,"",追加ワークシート名設定!D68) -> 
C160: =IF(追加ワークシート名設定!D69=0,"",追加ワークシート名設定!D69) -> 
C161: =IF(シート名設定!C30=0,"",シート名設定!C30) -> 入力AA1

Sheet 一覧表付ファイル作成入力設定9
B3: =シート名設定!C17 -> 一覧表付ファイル作成入力設定9
B4: １．入力元の設定
B5: 項 目 | C5: 設定内容
B6: シート名
B7: データ先頭セル行番号
B8: データ先頭セル列番号
B9: 異同比較列番号
B10: データー数
B11: For Next の増分
B13: ２．入力先の設定
B14: 項 目 | C14: 設定内容
B15: シート名
B16: 入力先頭セル行番号
B17: 入力先頭セル列番号
B18: 入力最終セル行番号
B19: 入力最終セル列番号
B20: 入力データー数
B21: 通しページ入力セル行番号
B22: 通しページ入力セル列番号
B23: 区分内ページ入力セル行番号
B24: 区分内ページ入力セル列番号
B25: ３．印刷処理かファイルのメール送信の設定
B26: 項 目 | C26: 設定内容
B27: 印刷処理か ファイルの メール送信 の選択 | D27: 1
B28: ファイルのメール送信の場合の印刷フォームソートデーターシートのメールアドレスが入力されている列番号
B29: ファイルのメール送信の場合の印刷フォームソートデーターシートの件名が入力されている列番号
B30: ファイルのメール送信の場合の印刷フォームソートデーターシートの本文が入力されている列番号
B31: ファイルのメール送信の場合の添付ファイルの保存先ドライブ及びフォルダー
C37: =IF(シート名設定!C35=0,"",シート名設定!C35) -> 平成１７年度第３学年会計報告個人別（通年） | D37: 1 | E37: 印刷する
C38: =IF(シート名設定!C36=0,"",シート名設定!C36) -> ○○○子学年積立金会計報告印刷フォーム | D38: 2 | E38: メールで送信する
C39: =IF(シート名設定!C37=0,"",シート名設定!C37) -> □□□子学年積立金会計報告印刷フォーム | D39: 3 | E39: 添付ファイルなし件名本文のみのメール
C40: =IF(シート名設定!C38=0,"",シート名設定!C38) -> 学年積立金の返金並びに返金振込口座の確認フォーム
C41: =IF(シート名設定!C39=0,"",シート名設定!C39) -> 印刷フォーム5
C42: =IF(シート名設定!C40=0,"",シート名設定!C40) -> 印刷フォーム6
C43: =IF(シート名設定!C41=0,"",シート名設定!C41) -> 印刷フォーム7
C44: =IF(シート名設定!C42=0,"",シート名設定!C42) -> 印刷フォーム8
C45: =IF(シート名設定!C43=0,"",シート名設定!C43) -> 印刷フォーム9
C46: =IF(シート名設定!C44=0,"",シート名設定!C44) -> 印刷フォーム10
C47: =IF(シート名設定!C45=0,"",シート名設定!C45) -> 印刷フォーム11
C48: =IF(シート名設定!C46=0,"",シート名設定!C46) -> 印刷フォーム12
C49: =IF(シート名設定!C47=0,"",シート名設定!C47) -> 印刷フォーム13
C50: =IF(シート名設定!C48=0,"",シート名設定!C48) -> 印刷フォーム14
C51: =IF(シート名設定!C49=0,"",シート名設定!C49) -> 印刷フォーム15
C52: =IF(シート名設定!C50=0,"",シート名設定!C50) -> 印刷フォーム16
C53: =IF(シート名設定!C51=0,"",シート名設定!C51) -> 印刷フォーム17
C54: =IF(シート名設定!C52=0,"",シート名設定!C52) -> 印刷フォーム18
C55: =IF(シート名設定!C53=0,"",シート名設定!C53) -> 印刷フォーム19
C56: =IF(シート名設定!C54=0,"",シート名設定!C54) -> 印刷フォーム20
C57: =IF(シート名設定!E5=0,"",シート名設定!E5) -> 印刷フォーム21
C58: =IF(シート名設定!E6=0,"",シート名設定!E6) -> 印刷フォーム22
C59: =IF(シート名設定!E7=0,"",シート名設定!E7) -> 印刷フォーム23
C60: =IF(シート名設定!E8=0,"",シート名設定!E8) -> 印刷フォーム24
C61: =IF(シート名設定!E9=0,"",シート名設定!E9) -> 印刷フォーム25
C62: =IF(シート名設定!E10=0,"",シート名設定!E10) -> 印刷フォーム26
C63: =IF(シート名設定!E11=0,"",シート名設定!E11) -> 印刷フォーム27
C64: =IF(シート名設定!E12=0,"",シート名設定!E12) -> 印刷フォーム28
C65: =IF(シート名設定!E13=0,"",シート名設定!E13) -> 印刷フォーム29
C66: =IF(シート名設定!E14=0,"",シート名設定!E14) -> 印刷フォーム30
C67: =IF(シート名設定!E15=0,"",シート名設定!E15) -> 学年積立金会計報告個人別（通年）ソートデーター
C68: =IF(シート名設定!E16=0,"",シート名設定!E16) -> 学年積立金の返金並びに返金振込口座の確認フォームソートデーター
C69: =IF(シート名設定!E17=0,"",シート名設定!E17) -> 印刷フォーム3ソートデーター
C70: =IF(シート名設定!E18=0,"",シート名設定!E18) -> 印刷フォーム4ソートデーター
C71: =IF(シート名設定!E19=0,"",シート名設定!E19) -> 印刷フォーム5ソートデーター
C72: =IF(シート名設定!E20=0,"",シート名設定!E20) -> 印刷フォーム6ソートデーター
C73: =IF(シート名設定!E21=0,"",シート名設定!E21) -> 印刷フォーム7ソートデーター
C74: =IF(シート名設定!E22=0,"",シート名設定!E22) -> 印刷フォーム8ソートデーター
C75: =IF(シート名設定!E23=0,"",シート名設定!E23) -> 印刷フォーム9ソートデーター
C76: =IF(シート名設定!E24=0,"",シート名設定!E24) -> 印刷フォーム10ソートデーター
C77: =IF(シート名設定!E25=0,"",シート名設定!E25) -> 印刷フォーム11ソートデーター
C78: =IF(シート名設定!E26=0,"",シート名設定!E26) -> 印刷フォーム12ソートデーター
C79: =IF(シート名設定!E27=0,"",シート名設定!E27) -> 印刷フォーム13ソートデーター
C80: =IF(シート名設定!E28=0,"",シート名設定!E28) -> 印刷フォーム14ソートデーター
C81: =IF(シート名設定!E29=0,"",シート名設定!E29) -> 印刷フォーム15ソートデーター
C82: =IF(シート名設定!E30=0,"",シート名設定!E30) -> 印刷フォーム16ソートデーター
C83: =IF(シート名設定!E31=0,"",シート名設定!E31) -> 印刷フォーム17ソートデーター
C84: =IF(シート名設定!E32=0,"",シート名設定!E32) -> 印刷フォーム18ソートデーター
C85: =IF(シート名設定!E33=0,"",シート名設定!E33) -> 印刷フォーム19ソートデーター
C86: =IF(シート名設定!E34=0,"",シート名設定!E34) -> 印刷フォーム20ソートデーター
C87: =IF(シート名設定!E35=0,"",シート名設定!E35) -> 印刷フォーム21ソートデーター
C88: =IF(シート名設定!E36=0,"",シート名設定!E36) -> 印刷フォーム22ソートデーター
C89: =IF(シート名設定!E37=0,"",シート名設定!E37) -> 印刷フォーム23ソートデーター
C90: =IF(シート名設定!E38=0,"",シート名設定!E38) -> 印刷フォーム24ソートデーター
C91: =IF(シート名設定!E39=0,"",シート名設定!E39) -> 印刷フォーム25ソートデーター
C92: =IF(シート名設定!E40=0,"",シート名設定!E40) -> 印刷フォーム26ソートデーター
C93: =IF(シート名設定!E41=0,"",シート名設定!E41) -> 印刷フォーム27ソートデーター
C94: =IF(シート名設定!E42=0,"",シート名設定!E42) -> 印刷フォーム28ソートデーター
C95: =IF(シート名設定!E43=0,"",シート名設定!E43) -> 印刷フォーム29ソートデーター
C96: =IF(シート名設定!E44=0,"",シート名設定!E44) -> 印刷フォーム30ソートデーター
C97: =IF(追加ワークシート名設定!D6=0,"",追加ワークシート名設定!D6) -> 退学者○○○子学年積立金会計
C98: =IF(追加ワークシート名設定!D7=0,"",追加ワークシート名設定!D7) -> 退学者□□□子学年積立金会計
C99: =IF(追加ワークシート名設定!D8=0,"",追加ワークシート名設定!D8) -> 特別会計処理該当
C100: =IF(追加ワークシート名設定!D9=0,"",追加ワークシート名設定!D9) -> 
C101: =IF(追加ワークシート名設定!D10=0,"",追加ワークシート名設定!D10) -> 
C102: =IF(追加ワークシート名設定!D11=0,"",追加ワークシート名設定!D11) -> 
C103: =IF(追加ワークシート名設定!D12=0,"",追加ワークシート名設定!D12) -> 
C104: =IF(追加ワークシート名設定!D13=0,"",追加ワークシート名設定!D13) -> 
C105: =IF(追加ワークシート名設定!D14=0,"",追加ワークシート名設定!D14) -> 
C106: =IF(追加ワークシート名設定!D15=0,"",追加ワークシート名設定!D15) -> 
C107: =IF(追加ワークシート名設定!D16=0,"",追加ワークシート名設定!D16) -> 
C108: =IF(追加ワークシート名設定!D17=0,"",追加ワークシート名設定!D17) -> 
C109: =IF(追加ワークシート名設定!D18=0,"",追加ワークシート名設定!D18) -> 
C110: =IF(追加ワークシート名設定!D19=0,"",追加ワークシート名設定!D19) -> 
C111: =IF(追加ワークシート名設定!D20=0,"",追加ワークシート名設定!D20) -> 
C112: =IF(追加ワークシート名設定!D21=0,"",追加ワークシート名設定!D21) -> 
C113: =IF(追加ワークシート名設定!D22=0,"",追加ワークシート名設定!D22) -> 
C114: =IF(追加ワークシート名設定!D23=0,"",追加ワークシート名設定!D23) -> 
C115: =IF(追加ワークシート名設定!D24=0,"",追加ワークシート名設定!D24) -> 
C116: =IF(追加ワークシート名設定!D25=0,"",追加ワークシート名設定!D25) -> 
C117: =IF(追加ワークシート名設定!D26=0,"",追加ワークシート名設定!D26) -> 
C118: =IF(追加ワークシート名設定!D27=0,"",追加ワークシート名設定!D27) -> 
C119: =IF(追加ワークシート名設定!D28=0,"",追加ワークシート名設定!D28) -> 
C120: =IF(追加ワークシート名設定!D29=0,"",追加ワークシート名設定!D29) -> 
C121: =IF(追加ワークシート名設定!D30=0,"",追加ワークシート名設定!D30) -> 
C122: =IF(追加ワークシート名設定!D31=0,"",追加ワークシート名設定!D31) -> 
C123: =IF(追加ワークシート名設定!D32=0,"",追加ワークシート名設定!D32) -> 
C124: =IF(追加ワークシート名設定!D33=0,"",追加ワークシート名設定!D33) -> 
C125: =IF(追加ワークシート名設定!D34=0,"",追加ワークシート名設定!D34) -> 
C126: =IF(追加ワークシート名設定!D35=0,"",追加ワークシート名設定!D35) -> 
C127: =IF(追加ワークシート名設定!D36=0,"",追加ワークシート名設定!D36) -> 
C128: =IF(追加ワークシート名設定!D37=0,"",追加ワークシート名設定!D37) -> 
C129: =IF(追加ワークシート名設定!D38=0,"",追加ワークシート名設定!D38) -> 
C130: =IF(追加ワークシート名設定!D39=0,"",追加ワークシート名設定!D39) -> 
C131: =IF(追加ワークシート名設定!D40=0,"",追加ワークシート名設定!D40) -> 
C132: =IF(追加ワークシート名設定!D41=0,"",追加ワークシート名設定!D41) -> 
C133: =IF(追加ワークシート名設定!D42=0,"",追加ワークシート名設定!D42) -> 
C134: =IF(追加ワークシート名設定!D43=0,"",追加ワークシート名設定!D43) -> 
C135: =IF(追加ワークシート名設定!D44=0,"",追加ワークシート名設定!D44) -> 
C136: =IF(追加ワークシート名設定!D45=0,"",追加ワークシート名設定!D45) -> 
C137: =IF(追加ワークシート名設定!D46=0,"",追加ワークシート名設定!D46) -> 
C138: =IF(追加ワークシート名設定!D47=0,"",追加ワークシート名設定!D47) -> 
C139: =IF(追加ワークシート名設定!D48=0,"",追加ワークシート名設定!D48) -> 
C140: =IF(追加ワークシート名設定!D49=0,"",追加ワークシート名設定!D49) -> 
C141: =IF(追加ワークシート名設定!D50=0,"",追加ワークシート名設定!D50) -> 
C142: =IF(追加ワークシート名設定!D51=0,"",追加ワークシート名設定!D51) -> 
C143: =IF(追加ワークシート名設定!D52=0,"",追加ワークシート名設定!D52) -> 
C144: =IF(追加ワークシート名設定!D53=0,"",追加ワークシート名設定!D53) -> 
C145: =IF(追加ワークシート名設定!D54=0,"",追加ワークシート名設定!D54) -> 
C146: =IF(追加ワークシート名設定!D55=0,"",追加ワークシート名設定!D55) -> 
C147: =IF(追加ワークシート名設定!D56=0,"",追加ワークシート名設定!D56) -> 
C148: =IF(追加ワークシート名設定!D57=0,"",追加ワークシート名設定!D57) -> 
C149: =IF(追加ワークシート名設定!D58=0,"",追加ワークシート名設定!D58) -> 
C150: =IF(追加ワークシート名設定!D59=0,"",追加ワークシート名設定!D59) -> 
C151: =IF(追加ワークシート名設定!D60=0,"",追加ワークシート名設定!D60) -> 
C152: =IF(追加ワークシート名設定!D61=0,"",追加ワークシート名設定!D61) -> 
C153: =IF(追加ワークシート名設定!D62=0,"",追加ワークシート名設定!D62) -> 
C154: =IF(追加ワークシート名設定!D63=0,"",追加ワークシート名設定!D63) -> 
C155: =IF(追加ワークシート名設定!D64=0,"",追加ワークシート名設定!D64) -> 
C156: =IF(追加ワークシート名設定!D65=0,"",追加ワークシート名設定!D65) -> 
C157: =IF(追加ワークシート名設定!D66=0,"",追加ワークシート名設定!D66) -> 
C158: =IF(追加ワークシート名設定!D67=0,"",追加ワークシート名設定!D67) -> 
C159: =IF(追加ワークシート名設定!D68=0,"",追加ワークシート名設定!D68) -> 
C160: =IF(追加ワークシート名設定!D69=0,"",追加ワークシート名設定!D69) -> 
C161: =IF(シート名設定!C30=0,"",シート名設定!C30) -> 入力AA1

Sheet 一覧表付ファイル作成入力設定10
B3: =シート名設定!C18 -> 一覧表付ファイル作成入力設定10
B4: １．入力元の設定
B5: 項 目 | C5: 設定内容
B6: シート名
B7: データ先頭セル行番号
B8: データ先頭セル列番号
B9: 異同比較列番号
B10: データー数
B11: For Next の増分
B13: ２．入力先の設定
B14: 項 目 | C14: 設定内容
B15: シート名
B16: 入力先頭セル行番号
B17: 入力先頭セル列番号
B18: 入力最終セル行番号
B19: 入力最終セル列番号
B20: 入力データー数
B21: 通しページ入力セル行番号
B22: 通しページ入力セル列番号
B23: 区分内ページ入力セル行番号
B24: 区分内ページ入力セル列番号
B25: ３．印刷処理かファイルのメール送信の設定
B26: 項 目 | C26: 設定内容
B27: 印刷処理か ファイルの メール送信 の選択 | D27: 1
B28: ファイルのメール送信の場合の印刷フォームソートデーターシートのメールアドレスが入力されている列番号
B29: ファイルのメール送信の場合の印刷フォームソートデーターシートの件名が入力されている列番号
B30: ファイルのメール送信の場合の印刷フォームソートデーターシートの本文が入力されている列番号
B31: ファイルのメール送信の場合の添付ファイルの保存先ドライブ及びフォルダー
C37: =IF(シート名設定!C35=0,"",シート名設定!C35) -> 平成１７年度第３学年会計報告個人別（通年） | D37: 1 | E37: 印刷する
C38: =IF(シート名設定!C36=0,"",シート名設定!C36) -> ○○○子学年積立金会計報告印刷フォーム | D38: 2 | E38: メールで送信する
C39: =IF(シート名設定!C37=0,"",シート名設定!C37) -> □□□子学年積立金会計報告印刷フォーム | D39: 3 | E39: 添付ファイルなし件名本文のみのメール
C40: =IF(シート名設定!C38=0,"",シート名設定!C38) -> 学年積立金の返金並びに返金振込口座の確認フォーム
C41: =IF(シート名設定!C39=0,"",シート名設定!C39) -> 印刷フォーム5
C42: =IF(シート名設定!C40=0,"",シート名設定!C40) -> 印刷フォーム6
C43: =IF(シート名設定!C41=0,"",シート名設定!C41) -> 印刷フォーム7
C44: =IF(シート名設定!C42=0,"",シート名設定!C42) -> 印刷フォーム8
C45: =IF(シート名設定!C43=0,"",シート名設定!C43) -> 印刷フォーム9
C46: =IF(シート名設定!C44=0,"",シート名設定!C44) -> 印刷フォーム10
C47: =IF(シート名設定!C45=0,"",シート名設定!C45) -> 印刷フォーム11
C48: =IF(シート名設定!C46=0,"",シート名設定!C46) -> 印刷フォーム12
C49: =IF(シート名設定!C47=0,"",シート名設定!C47) -> 印刷フォーム13
C50: =IF(シート名設定!C48=0,"",シート名設定!C48) -> 印刷フォーム14
C51: =IF(シート名設定!C49=0,"",シート名設定!C49) -> 印刷フォーム15
C52: =IF(シート名設定!C50=0,"",シート名設定!C50) -> 印刷フォーム16
C53: =IF(シート名設定!C51=0,"",シート名設定!C51) -> 印刷フォーム17
C54: =IF(シート名設定!C52=0,"",シート名設定!C52) -> 印刷フォーム18
C55: =IF(シート名設定!C53=0,"",シート名設定!C53) -> 印刷フォーム19
C56: =IF(シート名設定!C54=0,"",シート名設定!C54) -> 印刷フォーム20
C57: =IF(シート名設定!E5=0,"",シート名設定!E5) -> 印刷フォーム21
C58: =IF(シート名設定!E6=0,"",シート名設定!E6) -> 印刷フォーム22
C59: =IF(シート名設定!E7=0,"",シート名設定!E7) -> 印刷フォーム23
C60: =IF(シート名設定!E8=0,"",シート名設定!E8) -> 印刷フォーム24
C61: =IF(シート名設定!E9=0,"",シート名設定!E9) -> 印刷フォーム25
C62: =IF(シート名設定!E10=0,"",シート名設定!E10) -> 印刷フォーム26
C63: =IF(シート名設定!E11=0,"",シート名設定!E11) -> 印刷フォーム27
C64: =IF(シート名設定!E12=0,"",シート名設定!E12) -> 印刷フォーム28
C65: =IF(シート名設定!E13=0,"",シート名設定!E13) -> 印刷フォーム29
C66: =IF(シート名設定!E14=0,"",シート名設定!E14) -> 印刷フォーム30
C67: =IF(シート名設定!E15=0,"",シート名設定!E15) -> 学年積立金会計報告個人別（通年）ソートデーター
C68: =IF(シート名設定!E16=0,"",シート名設定!E16) -> 学年積立金の返金並びに返金振込口座の確認フォームソートデーター
C69: =IF(シート名設定!E17=0,"",シート名設定!E17) -> 印刷フォーム3ソートデーター
C70: =IF(シート名設定!E18=0,"",シート名設定!E18) -> 印刷フォーム4ソートデーター
C71: =IF(シート名設定!E19=0,"",シート名設定!E19) -> 印刷フォーム5ソートデーター
C72: =IF(シート名設定!E20=0,"",シート名設定!E20) -> 印刷フォーム6ソートデーター
C73: =IF(シート名設定!E21=0,"",シート名設定!E21) -> 印刷フォーム7ソートデーター
C74: =IF(シート名設定!E22=0,"",シート名設定!E22) -> 印刷フォーム8ソートデーター
C75: =IF(シート名設定!E23=0,"",シート名設定!E23) -> 印刷フォーム9ソートデーター
C76: =IF(シート名設定!E24=0,"",シート名設定!E24) -> 印刷フォーム10ソートデーター
C77: =IF(シート名設定!E25=0,"",シート名設定!E25) -> 印刷フォーム11ソートデーター
C78: =IF(シート名設定!E26=0,"",シート名設定!E26) -> 印刷フォーム12ソートデーター
C79: =IF(シート名設定!E27=0,"",シート名設定!E27) -> 印刷フォーム13ソートデーター
C80: =IF(シート名設定!E28=0,"",シート名設定!E28) -> 印刷フォーム14ソートデーター
C81: =IF(シート名設定!E29=0,"",シート名設定!E29) -> 印刷フォーム15ソートデーター
C82: =IF(シート名設定!E30=0,"",シート名設定!E30) -> 印刷フォーム16ソートデーター
C83: =IF(シート名設定!E31=0,"",シート名設定!E31) -> 印刷フォーム17ソートデーター
C84: =IF(シート名設定!E32=0,"",シート名設定!E32) -> 印刷フォーム18ソートデーター
C85: =IF(シート名設定!E33=0,"",シート名設定!E33) -> 印刷フォーム19ソートデーター
C86: =IF(シート名設定!E34=0,"",シート名設定!E34) -> 印刷フォーム20ソートデーター
C87: =IF(シート名設定!E35=0,"",シート名設定!E35) -> 印刷フォーム21ソートデーター
C88: =IF(シート名設定!E36=0,"",シート名設定!E36) -> 印刷フォーム22ソートデーター
C89: =IF(シート名設定!E37=0,"",シート名設定!E37) -> 印刷フォーム23ソートデーター
C90: =IF(シート名設定!E38=0,"",シート名設定!E38) -> 印刷フォーム24ソートデーター
C91: =IF(シート名設定!E39=0,"",シート名設定!E39) -> 印刷フォーム25ソートデーター
C92: =IF(シート名設定!E40=0,"",シート名設定!E40) -> 印刷フォーム26ソートデーター
C93: =IF(シート名設定!E41=0,"",シート名設定!E41) -> 印刷フォーム27ソートデーター
C94: =IF(シート名設定!E42=0,"",シート名設定!E42) -> 印刷フォーム28ソートデーター
C95: =IF(シート名設定!E43=0,"",シート名設定!E43) -> 印刷フォーム29ソートデーター
C96: =IF(シート名設定!E44=0,"",シート名設定!E44) -> 印刷フォーム30ソートデーター
C97: =IF(追加ワークシート名設定!D6=0,"",追加ワークシート名設定!D6) -> 退学者○○○子学年積立金会計
C98: =IF(追加ワークシート名設定!D7=0,"",追加ワークシート名設定!D7) -> 退学者□□□子学年積立金会計
C99: =IF(追加ワークシート名設定!D8=0,"",追加ワークシート名設定!D8) -> 特別会計処理該当
C100: =IF(追加ワークシート名設定!D9=0,"",追加ワークシート名設定!D9) -> 
C101: =IF(追加ワークシート名設定!D10=0,"",追加ワークシート名設定!D10) -> 
C102: =IF(追加ワークシート名設定!D11=0,"",追加ワークシート名設定!D11) -> 
C103: =IF(追加ワークシート名設定!D12=0,"",追加ワークシート名設定!D12) -> 
C104: =IF(追加ワークシート名設定!D13=0,"",追加ワークシート名設定!D13) -> 
C105: =IF(追加ワークシート名設定!D14=0,"",追加ワークシート名設定!D14) -> 
C106: =IF(追加ワークシート名設定!D15=0,"",追加ワークシート名設定!D15) -> 
C107: =IF(追加ワークシート名設定!D16=0,"",追加ワークシート名設定!D16) -> 
C108: =IF(追加ワークシート名設定!D17=0,"",追加ワークシート名設定!D17) -> 
C109: =IF(追加ワークシート名設定!D18=0,"",追加ワークシート名設定!D18) -> 
C110: =IF(追加ワークシート名設定!D19=0,"",追加ワークシート名設定!D19) -> 
C111: =IF(追加ワークシート名設定!D20=0,"",追加ワークシート名設定!D20) -> 
C112: =IF(追加ワークシート名設定!D21=0,"",追加ワークシート名設定!D21) -> 
C113: =IF(追加ワークシート名設定!D22=0,"",追加ワークシート名設定!D22) -> 
C114: =IF(追加ワークシート名設定!D23=0,"",追加ワークシート名設定!D23) -> 
C115: =IF(追加ワークシート名設定!D24=0,"",追加ワークシート名設定!D24) -> 
C116: =IF(追加ワークシート名設定!D25=0,"",追加ワークシート名設定!D25) -> 
C117: =IF(追加ワークシート名設定!D26=0,"",追加ワークシート名設定!D26) -> 
C118: =IF(追加ワークシート名設定!D27=0,"",追加ワークシート名設定!D27) -> 
C119: =IF(追加ワークシート名設定!D28=0,"",追加ワークシート名設定!D28) -> 
C120: =IF(追加ワークシート名設定!D29=0,"",追加ワークシート名設定!D29) -> 
C121: =IF(追加ワークシート名設定!D30=0,"",追加ワークシート名設定!D30) -> 
C122: =IF(追加ワークシート名設定!D31=0,"",追加ワークシート名設定!D31) -> 
C123: =IF(追加ワークシート名設定!D32=0,"",追加ワークシート名設定!D32) -> 
C124: =IF(追加ワークシート名設定!D33=0,"",追加ワークシート名設定!D33) -> 
C125: =IF(追加ワークシート名設定!D34=0,"",追加ワークシート名設定!D34) -> 
C126: =IF(追加ワークシート名設定!D35=0,"",追加ワークシート名設定!D35) -> 
C127: =IF(追加ワークシート名設定!D36=0,"",追加ワークシート名設定!D36) -> 
C128: =IF(追加ワークシート名設定!D37=0,"",追加ワークシート名設定!D37) -> 
C129: =IF(追加ワークシート名設定!D38=0,"",追加ワークシート名設定!D38) -> 
C130: =IF(追加ワークシート名設定!D39=0,"",追加ワークシート名設定!D39) -> 
C131: =IF(追加ワークシート名設定!D40=0,"",追加ワークシート名設定!D40) -> 
C132: =IF(追加ワークシート名設定!D41=0,"",追加ワークシート名設定!D41) -> 
C133: =IF(追加ワークシート名設定!D42=0,"",追加ワークシート名設定!D42) -> 
C134: =IF(追加ワークシート名設定!D43=0,"",追加ワークシート名設定!D43) -> 
C135: =IF(追加ワークシート名設定!D44=0,"",追加ワークシート名設定!D44) -> 
C136: =IF(追加ワークシート名設定!D45=0,"",追加ワークシート名設定!D45) -> 
C137: =IF(追加ワークシート名設定!D46=0,"",追加ワークシート名設定!D46) -> 
C138: =IF(追加ワークシート名設定!D47=0,"",追加ワークシート名設定!D47) -> 
C139: =IF(追加ワークシート名設定!D48=0,"",追加ワークシート名設定!D48) -> 
C140: =IF(追加ワークシート名設定!D49=0,"",追加ワークシート名設定!D49) -> 
C141: =IF(追加ワークシート名設定!D50=0,"",追加ワークシート名設定!D50) -> 
C142: =IF(追加ワークシート名設定!D51=0,"",追加ワークシート名設定!D51) -> 
C143: =IF(追加ワークシート名設定!D52=0,"",追加ワークシート名設定!D52) -> 
C144: =IF(追加ワークシート名設定!D53=0,"",追加ワークシート名設定!D53) -> 
C145: =IF(追加ワークシート名設定!D54=0,"",追加ワークシート名設定!D54) -> 
C146: =IF(追加ワークシート名設定!D55=0,"",追加ワークシート名設定!D55) -> 
C147: =IF(追加ワークシート名設定!D56=0,"",追加ワークシート名設定!D56) -> 
C148: =IF(追加ワークシート名設定!D57=0,"",追加ワークシート名設定!D57) -> 
C149: =IF(追加ワークシート名設定!D58=0,"",追加ワークシート名設定!D58) -> 
C150: =IF(追加ワークシート名設定!D59=0,"",追加ワークシート名設定!D59) -> 
C151: =IF(追加ワークシート名設定!D60=0,"",追加ワークシート名設定!D60) -> 
C152: =IF(追加ワークシート名設定!D61=0,"",追加ワークシート名設定!D61) -> 
C153: =IF(追加ワークシート名設定!D62=0,"",追加ワークシート名設定!D62) -> 
C154: =IF(追加ワークシート名設定!D63=0,"",追加ワークシート名設定!D63) -> 
C155: =IF(追加ワークシート名設定!D64=0,"",追加ワークシート名設定!D64) -> 
C156: =IF(追加ワークシート名設定!D65=0,"",追加ワークシート名設定!D65) -> 
C157: =IF(追加ワークシート名設定!D66=0,"",追加ワークシート名設定!D66) -> 
C158: =IF(追加ワークシート名設定!D67=0,"",追加ワークシート名設定!D67) -> 
C159: =IF(追加ワークシート名設定!D68=0,"",追加ワークシート名設定!D68) -> 
C160: =IF(追加ワークシート名設定!D69=0,"",追加ワークシート名設定!D69) -> 
C161: =IF(シート名設定!C30=0,"",シート名設定!C30) -> 入力AA1

Sheet 一覧表付ファイル作成入力設定11
B3: =シート名設定!C19 -> 一覧表付ファイル作成入力設定11
B4: １．入力元の設定
B5: 項 目 | C5: 設定内容
B6: シート名
B7: データ先頭セル行番号
B8: データ先頭セル列番号
B9: 異同比較列番号
B10: データー数
B11: For Next の増分
B13: ２．入力先の設定
B14: 項 目 | C14: 設定内容
B15: シート名
B16: 入力先頭セル行番号
B17: 入力先頭セル列番号
B18: 入力最終セル行番号
B19: 入力最終セル列番号
B20: 入力データー数
B21: 通しページ入力セル行番号
B22: 通しページ入力セル列番号
B23: 区分内ページ入力セル行番号
B24: 区分内ページ入力セル列番号
B25: ３．印刷処理かファイルのメール送信の設定
B26: 項 目 | C26: 設定内容
B27: 印刷処理か ファイルの メール送信 の選択 | D27: 1
B28: ファイルのメール送信の場合の印刷フォームソートデーターシートのメールアドレスが入力されている列番号
B29: ファイルのメール送信の場合の印刷フォームソートデーターシートの件名が入力されている列番号
B30: ファイルのメール送信の場合の印刷フォームソートデーターシートの本文が入力されている列番号
B31: ファイルのメール送信の場合の添付ファイルの保存先ドライブ及びフォルダー
C37: =IF(シート名設定!C35=0,"",シート名設定!C35) -> 平成１７年度第３学年会計報告個人別（通年） | D37: 1 | E37: 印刷する
C38: =IF(シート名設定!C36=0,"",シート名設定!C36) -> ○○○子学年積立金会計報告印刷フォーム | D38: 2 | E38: メールで送信する
C39: =IF(シート名設定!C37=0,"",シート名設定!C37) -> □□□子学年積立金会計報告印刷フォーム | D39: 3 | E39: 添付ファイルなし件名本文のみのメール
C40: =IF(シート名設定!C38=0,"",シート名設定!C38) -> 学年積立金の返金並びに返金振込口座の確認フォーム
C41: =IF(シート名設定!C39=0,"",シート名設定!C39) -> 印刷フォーム5
C42: =IF(シート名設定!C40=0,"",シート名設定!C40) -> 印刷フォーム6
C43: =IF(シート名設定!C41=0,"",シート名設定!C41) -> 印刷フォーム7
C44: =IF(シート名設定!C42=0,"",シート名設定!C42) -> 印刷フォーム8
C45: =IF(シート名設定!C43=0,"",シート名設定!C43) -> 印刷フォーム9
C46: =IF(シート名設定!C44=0,"",シート名設定!C44) -> 印刷フォーム10
C47: =IF(シート名設定!C45=0,"",シート名設定!C45) -> 印刷フォーム11
C48: =IF(シート名設定!C46=0,"",シート名設定!C46) -> 印刷フォーム12
C49: =IF(シート名設定!C47=0,"",シート名設定!C47) -> 印刷フォーム13
C50: =IF(シート名設定!C48=0,"",シート名設定!C48) -> 印刷フォーム14
C51: =IF(シート名設定!C49=0,"",シート名設定!C49) -> 印刷フォーム15
C52: =IF(シート名設定!C50=0,"",シート名設定!C50) -> 印刷フォーム16
C53: =IF(シート名設定!C51=0,"",シート名設定!C51) -> 印刷フォーム17
C54: =IF(シート名設定!C52=0,"",シート名設定!C52) -> 印刷フォーム18
C55: =IF(シート名設定!C53=0,"",シート名設定!C53) -> 印刷フォーム19
C56: =IF(シート名設定!C54=0,"",シート名設定!C54) -> 印刷フォーム20
C57: =IF(シート名設定!E5=0,"",シート名設定!E5) -> 印刷フォーム21
C58: =IF(シート名設定!E6=0,"",シート名設定!E6) -> 印刷フォーム22
C59: =IF(シート名設定!E7=0,"",シート名設定!E7) -> 印刷フォーム23
C60: =IF(シート名設定!E8=0,"",シート名設定!E8) -> 印刷フォーム24
C61: =IF(シート名設定!E9=0,"",シート名設定!E9) -> 印刷フォーム25
C62: =IF(シート名設定!E10=0,"",シート名設定!E10) -> 印刷フォーム26
C63: =IF(シート名設定!E11=0,"",シート名設定!E11) -> 印刷フォーム27
C64: =IF(シート名設定!E12=0,"",シート名設定!E12) -> 印刷フォーム28
C65: =IF(シート名設定!E13=0,"",シート名設定!E13) -> 印刷フォーム29
C66: =IF(シート名設定!E14=0,"",シート名設定!E14) -> 印刷フォーム30
C67: =IF(シート名設定!E15=0,"",シート名設定!E15) -> 学年積立金会計報告個人別（通年）ソートデーター
C68: =IF(シート名設定!E16=0,"",シート名設定!E16) -> 学年積立金の返金並びに返金振込口座の確認フォームソートデーター
C69: =IF(シート名設定!E17=0,"",シート名設定!E17) -> 印刷フォーム3ソートデーター
C70: =IF(シート名設定!E18=0,"",シート名設定!E18) -> 印刷フォーム4ソートデーター
C71: =IF(シート名設定!E19=0,"",シート名設定!E19) -> 印刷フォーム5ソートデーター
C72: =IF(シート名設定!E20=0,"",シート名設定!E20) -> 印刷フォーム6ソートデーター
C73: =IF(シート名設定!E21=0,"",シート名設定!E21) -> 印刷フォーム7ソートデーター
C74: =IF(シート名設定!E22=0,"",シート名設定!E22) -> 印刷フォーム8ソートデーター
C75: =IF(シート名設定!E23=0,"",シート名設定!E23) -> 印刷フォーム9ソートデーター
C76: =IF(シート名設定!E24=0,"",シート名設定!E24) -> 印刷フォーム10ソートデーター
C77: =IF(シート名設定!E25=0,"",シート名設定!E25) -> 印刷フォーム11ソートデーター
C78: =IF(シート名設定!E26=0,"",シート名設定!E26) -> 印刷フォーム12ソートデーター
C79: =IF(シート名設定!E27=0,"",シート名設定!E27) -> 印刷フォーム13ソートデーター
C80: =IF(シート名設定!E28=0,"",シート名設定!E28) -> 印刷フォーム14ソートデーター
C81: =IF(シート名設定!E29=0,"",シート名設定!E29) -> 印刷フォーム15ソートデーター
C82: =IF(シート名設定!E30=0,"",シート名設定!E30) -> 印刷フォーム16ソートデーター
C83: =IF(シート名設定!E31=0,"",シート名設定!E31) -> 印刷フォーム17ソートデーター
C84: =IF(シート名設定!E32=0,"",シート名設定!E32) -> 印刷フォーム18ソートデーター
C85: =IF(シート名設定!E33=0,"",シート名設定!E33) -> 印刷フォーム19ソートデーター
C86: =IF(シート名設定!E34=0,"",シート名設定!E34) -> 印刷フォーム20ソートデーター
C87: =IF(シート名設定!E35=0,"",シート名設定!E35) -> 印刷フォーム21ソートデーター
C88: =IF(シート名設定!E36=0,"",シート名設定!E36) -> 印刷フォーム22ソートデーター
C89: =IF(シート名設定!E37=0,"",シート名設定!E37) -> 印刷フォーム23ソートデーター
C90: =IF(シート名設定!E38=0,"",シート名設定!E38) -> 印刷フォーム24ソートデーター
C91: =IF(シート名設定!E39=0,"",シート名設定!E39) -> 印刷フォーム25ソートデーター
C92: =IF(シート名設定!E40=0,"",シート名設定!E40) -> 印刷フォーム26ソートデーター
C93: =IF(シート名設定!E41=0,"",シート名設定!E41) -> 印刷フォーム27ソートデーター
C94: =IF(シート名設定!E42=0,"",シート名設定!E42) -> 印刷フォーム28ソートデーター
C95: =IF(シート名設定!E43=0,"",シート名設定!E43) -> 印刷フォーム29ソートデーター
C96: =IF(シート名設定!E44=0,"",シート名設定!E44) -> 印刷フォーム30ソートデーター
C97: =IF(追加ワークシート名設定!D6=0,"",追加ワークシート名設定!D6) -> 退学者○○○子学年積立金会計
C98: =IF(追加ワークシート名設定!D7=0,"",追加ワークシート名設定!D7) -> 退学者□□□子学年積立金会計
C99: =IF(追加ワークシート名設定!D8=0,"",追加ワークシート名設定!D8) -> 特別会計処理該当
C100: =IF(追加ワークシート名設定!D9=0,"",追加ワークシート名設定!D9) -> 
C101: =IF(追加ワークシート名設定!D10=0,"",追加ワークシート名設定!D10) -> 
C102: =IF(追加ワークシート名設定!D11=0,"",追加ワークシート名設定!D11) -> 
C103: =IF(追加ワークシート名設定!D12=0,"",追加ワークシート名設定!D12) -> 
C104: =IF(追加ワークシート名設定!D13=0,"",追加ワークシート名設定!D13) -> 
C105: =IF(追加ワークシート名設定!D14=0,"",追加ワークシート名設定!D14) -> 
C106: =IF(追加ワークシート名設定!D15=0,"",追加ワークシート名設定!D15) -> 
C107: =IF(追加ワークシート名設定!D16=0,"",追加ワークシート名設定!D16) -> 
C108: =IF(追加ワークシート名設定!D17=0,"",追加ワークシート名設定!D17) -> 
C109: =IF(追加ワークシート名設定!D18=0,"",追加ワークシート名設定!D18) -> 
C110: =IF(追加ワークシート名設定!D19=0,"",追加ワークシート名設定!D19) -> 
C111: =IF(追加ワークシート名設定!D20=0,"",追加ワークシート名設定!D20) -> 
C112: =IF(追加ワークシート名設定!D21=0,"",追加ワークシート名設定!D21) -> 
C113: =IF(追加ワークシート名設定!D22=0,"",追加ワークシート名設定!D22) -> 
C114: =IF(追加ワークシート名設定!D23=0,"",追加ワークシート名設定!D23) -> 
C115: =IF(追加ワークシート名設定!D24=0,"",追加ワークシート名設定!D24) -> 
C116: =IF(追加ワークシート名設定!D25=0,"",追加ワークシート名設定!D25) -> 
C117: =IF(追加ワークシート名設定!D26=0,"",追加ワークシート名設定!D26) -> 
C118: =IF(追加ワークシート名設定!D27=0,"",追加ワークシート名設定!D27) -> 
C119: =IF(追加ワークシート名設定!D28=0,"",追加ワークシート名設定!D28) -> 
C120: =IF(追加ワークシート名設定!D29=0,"",追加ワークシート名設定!D29) -> 
C121: =IF(追加ワークシート名設定!D30=0,"",追加ワークシート名設定!D30) -> 
C122: =IF(追加ワークシート名設定!D31=0,"",追加ワークシート名設定!D31) -> 
C123: =IF(追加ワークシート名設定!D32=0,"",追加ワークシート名設定!D32) -> 
C124: =IF(追加ワークシート名設定!D33=0,"",追加ワークシート名設定!D33) -> 
C125: =IF(追加ワークシート名設定!D34=0,"",追加ワークシート名設定!D34) -> 
C126: =IF(追加ワークシート名設定!D35=0,"",追加ワークシート名設定!D35) -> 
C127: =IF(追加ワークシート名設定!D36=0,"",追加ワークシート名設定!D36) -> 
C128: =IF(追加ワークシート名設定!D37=0,"",追加ワークシート名設定!D37) -> 
C129: =IF(追加ワークシート名設定!D38=0,"",追加ワークシート名設定!D38) -> 
C130: =IF(追加ワークシート名設定!D39=0,"",追加ワークシート名設定!D39) -> 
C131: =IF(追加ワークシート名設定!D40=0,"",追加ワークシート名設定!D40) -> 
C132: =IF(追加ワークシート名設定!D41=0,"",追加ワークシート名設定!D41) -> 
C133: =IF(追加ワークシート名設定!D42=0,"",追加ワークシート名設定!D42) -> 
C134: =IF(追加ワークシート名設定!D43=0,"",追加ワークシート名設定!D43) -> 
C135: =IF(追加ワークシート名設定!D44=0,"",追加ワークシート名設定!D44) -> 
C136: =IF(追加ワークシート名設定!D45=0,"",追加ワークシート名設定!D45) -> 
C137: =IF(追加ワークシート名設定!D46=0,"",追加ワークシート名設定!D46) -> 
C138: =IF(追加ワークシート名設定!D47=0,"",追加ワークシート名設定!D47) -> 
C139: =IF(追加ワークシート名設定!D48=0,"",追加ワークシート名設定!D48) -> 
C140: =IF(追加ワークシート名設定!D49=0,"",追加ワークシート名設定!D49) -> 
C141: =IF(追加ワークシート名設定!D50=0,"",追加ワークシート名設定!D50) -> 
C142: =IF(追加ワークシート名設定!D51=0,"",追加ワークシート名設定!D51) -> 
C143: =IF(追加ワークシート名設定!D52=0,"",追加ワークシート名設定!D52) -> 
C144: =IF(追加ワークシート名設定!D53=0,"",追加ワークシート名設定!D53) -> 
C145: =IF(追加ワークシート名設定!D54=0,"",追加ワークシート名設定!D54) -> 
C146: =IF(追加ワークシート名設定!D55=0,"",追加ワークシート名設定!D55) -> 
C147: =IF(追加ワークシート名設定!D56=0,"",追加ワークシート名設定!D56) -> 
C148: =IF(追加ワークシート名設定!D57=0,"",追加ワークシート名設定!D57) -> 
C149: =IF(追加ワークシート名設定!D58=0,"",追加ワークシート名設定!D58) -> 
C150: =IF(追加ワークシート名設定!D59=0,"",追加ワークシート名設定!D59) -> 
C151: =IF(追加ワークシート名設定!D60=0,"",追加ワークシート名設定!D60) -> 
C152: =IF(追加ワークシート名設定!D61=0,"",追加ワークシート名設定!D61) -> 
C153: =IF(追加ワークシート名設定!D62=0,"",追加ワークシート名設定!D62) -> 
C154: =IF(追加ワークシート名設定!D63=0,"",追加ワークシート名設定!D63) -> 
C155: =IF(追加ワークシート名設定!D64=0,"",追加ワークシート名設定!D64) -> 
C156: =IF(追加ワークシート名設定!D65=0,"",追加ワークシート名設定!D65) -> 
C157: =IF(追加ワークシート名設定!D66=0,"",追加ワークシート名設定!D66) -> 
C158: =IF(追加ワークシート名設定!D67=0,"",追加ワークシート名設定!D67) -> 
C159: =IF(追加ワークシート名設定!D68=0,"",追加ワークシート名設定!D68) -> 
C160: =IF(追加ワークシート名設定!D69=0,"",追加ワークシート名設定!D69) -> 
C161: =IF(シート名設定!C30=0,"",シート名設定!C30) -> 入力AA1

Sheet 一覧表付ファイル作成入力設定12
B3: =シート名設定!C20 -> 一覧表付ファイル作成入力設定12
B4: １．入力元の設定
B5: 項 目 | C5: 設定内容
B6: シート名
B7: データ先頭セル行番号
B8: データ先頭セル列番号
B9: 異同比較列番号
B10: データー数
B11: For Next の増分
B13: ２．入力先の設定
B14: 項 目 | C14: 設定内容
B15: シート名
B16: 入力先頭セル行番号
B17: 入力先頭セル列番号
B18: 入力最終セル行番号
B19: 入力最終セル列番号
B20: 入力データー数
B21: 通しページ入力セル行番号
B22: 通しページ入力セル列番号
B23: 区分内ページ入力セル行番号
B24: 区分内ページ入力セル列番号
B25: ３．印刷処理かファイルのメール送信の設定
B26: 項 目 | C26: 設定内容
B27: 印刷処理か ファイルの メール送信 の選択 | D27: 1
B28: ファイルのメール送信の場合の印刷フォームソートデーターシートのメールアドレスが入力されている列番号
B29: ファイルのメール送信の場合の印刷フォームソートデーターシートの件名が入力されている列番号
B30: ファイルのメール送信の場合の印刷フォームソートデーターシートの本文が入力されている列番号
B31: ファイルのメール送信の場合の添付ファイルの保存先ドライブ及びフォルダー
C37: =IF(シート名設定!C35=0,"",シート名設定!C35) -> 平成１７年度第３学年会計報告個人別（通年） | D37: 1 | E37: 印刷する
C38: =IF(シート名設定!C36=0,"",シート名設定!C36) -> ○○○子学年積立金会計報告印刷フォーム | D38: 2 | E38: メールで送信する
C39: =IF(シート名設定!C37=0,"",シート名設定!C37) -> □□□子学年積立金会計報告印刷フォーム | D39: 3 | E39: 添付ファイルなし件名本文のみのメール
C40: =IF(シート名設定!C38=0,"",シート名設定!C38) -> 学年積立金の返金並びに返金振込口座の確認フォーム
C41: =IF(シート名設定!C39=0,"",シート名設定!C39) -> 印刷フォーム5
C42: =IF(シート名設定!C40=0,"",シート名設定!C40) -> 印刷フォーム6
C43: =IF(シート名設定!C41=0,"",シート名設定!C41) -> 印刷フォーム7
C44: =IF(シート名設定!C42=0,"",シート名設定!C42) -> 印刷フォーム8
C45: =IF(シート名設定!C43=0,"",シート名設定!C43) -> 印刷フォーム9
C46: =IF(シート名設定!C44=0,"",シート名設定!C44) -> 印刷フォーム10
C47: =IF(シート名設定!C45=0,"",シート名設定!C45) -> 印刷フォーム11
C48: =IF(シート名設定!C46=0,"",シート名設定!C46) -> 印刷フォーム12
C49: =IF(シート名設定!C47=0,"",シート名設定!C47) -> 印刷フォーム13
C50: =IF(シート名設定!C48=0,"",シート名設定!C48) -> 印刷フォーム14
C51: =IF(シート名設定!C49=0,"",シート名設定!C49) -> 印刷フォーム15
C52: =IF(シート名設定!C50=0,"",シート名設定!C50) -> 印刷フォーム16
C53: =IF(シート名設定!C51=0,"",シート名設定!C51) -> 印刷フォーム17
C54: =IF(シート名設定!C52=0,"",シート名設定!C52) -> 印刷フォーム18
C55: =IF(シート名設定!C53=0,"",シート名設定!C53) -> 印刷フォーム19
C56: =IF(シート名設定!C54=0,"",シート名設定!C54) -> 印刷フォーム20
C57: =IF(シート名設定!E5=0,"",シート名設定!E5) -> 印刷フォーム21
C58: =IF(シート名設定!E6=0,"",シート名設定!E6) -> 印刷フォーム22
C59: =IF(シート名設定!E7=0,"",シート名設定!E7) -> 印刷フォーム23
C60: =IF(シート名設定!E8=0,"",シート名設定!E8) -> 印刷フォーム24
C61: =IF(シート名設定!E9=0,"",シート名設定!E9) -> 印刷フォーム25
C62: =IF(シート名設定!E10=0,"",シート名設定!E10) -> 印刷フォーム26
C63: =IF(シート名設定!E11=0,"",シート名設定!E11) -> 印刷フォーム27
C64: =IF(シート名設定!E12=0,"",シート名設定!E12) -> 印刷フォーム28
C65: =IF(シート名設定!E13=0,"",シート名設定!E13) -> 印刷フォーム29
C66: =IF(シート名設定!E14=0,"",シート名設定!E14) -> 印刷フォーム30
C67: =IF(シート名設定!E15=0,"",シート名設定!E15) -> 学年積立金会計報告個人別（通年）ソートデーター
C68: =IF(シート名設定!E16=0,"",シート名設定!E16) -> 学年積立金の返金並びに返金振込口座の確認フォームソートデーター
C69: =IF(シート名設定!E17=0,"",シート名設定!E17) -> 印刷フォーム3ソートデーター
C70: =IF(シート名設定!E18=0,"",シート名設定!E18) -> 印刷フォーム4ソートデーター
C71: =IF(シート名設定!E19=0,"",シート名設定!E19) -> 印刷フォーム5ソートデーター
C72: =IF(シート名設定!E20=0,"",シート名設定!E20) -> 印刷フォーム6ソートデーター
C73: =IF(シート名設定!E21=0,"",シート名設定!E21) -> 印刷フォーム7ソートデーター
C74: =IF(シート名設定!E22=0,"",シート名設定!E22) -> 印刷フォーム8ソートデーター
C75: =IF(シート名設定!E23=0,"",シート名設定!E23) -> 印刷フォーム9ソートデーター
C76: =IF(シート名設定!E24=0,"",シート名設定!E24) -> 印刷フォーム10ソートデーター
C77: =IF(シート名設定!E25=0,"",シート名設定!E25) -> 印刷フォーム11ソートデーター
C78: =IF(シート名設定!E26=0,"",シート名設定!E26) -> 印刷フォーム12ソートデーター
C79: =IF(シート名設定!E27=0,"",シート名設定!E27) -> 印刷フォーム13ソートデーター
C80: =IF(シート名設定!E28=0,"",シート名設定!E28) -> 印刷フォーム14ソートデーター
C81: =IF(シート名設定!E29=0,"",シート名設定!E29) -> 印刷フォーム15ソートデーター
C82: =IF(シート名設定!E30=0,"",シート名設定!E30) -> 印刷フォーム16ソートデーター
C83: =IF(シート名設定!E31=0,"",シート名設定!E31) -> 印刷フォーム17ソートデーター
C84: =IF(シート名設定!E32=0,"",シート名設定!E32) -> 印刷フォーム18ソートデーター
C85: =IF(シート名設定!E33=0,"",シート名設定!E33) -> 印刷フォーム19ソートデーター
C86: =IF(シート名設定!E34=0,"",シート名設定!E34) -> 印刷フォーム20ソートデーター
C87: =IF(シート名設定!E35=0,"",シート名設定!E35) -> 印刷フォーム21ソートデーター
C88: =IF(シート名設定!E36=0,"",シート名設定!E36) -> 印刷フォーム22ソートデーター
C89: =IF(シート名設定!E37=0,"",シート名設定!E37) -> 印刷フォーム23ソートデーター
C90: =IF(シート名設定!E38=0,"",シート名設定!E38) -> 印刷フォーム24ソートデーター
C91: =IF(シート名設定!E39=0,"",シート名設定!E39) -> 印刷フォーム25ソートデーター
C92: =IF(シート名設定!E40=0,"",シート名設定!E40) -> 印刷フォーム26ソートデーター
C93: =IF(シート名設定!E41=0,"",シート名設定!E41) -> 印刷フォーム27ソートデーター
C94: =IF(シート名設定!E42=0,"",シート名設定!E42) -> 印刷フォーム28ソートデーター
C95: =IF(シート名設定!E43=0,"",シート名設定!E43) -> 印刷フォーム29ソートデーター
C96: =IF(シート名設定!E44=0,"",シート名設定!E44) -> 印刷フォーム30ソートデーター
C97: =IF(追加ワークシート名設定!D6=0,"",追加ワークシート名設定!D6) -> 退学者○○○子学年積立金会計
C98: =IF(追加ワークシート名設定!D7=0,"",追加ワークシート名設定!D7) -> 退学者□□□子学年積立金会計
C99: =IF(追加ワークシート名設定!D8=0,"",追加ワークシート名設定!D8) -> 特別会計処理該当
C100: =IF(追加ワークシート名設定!D9=0,"",追加ワークシート名設定!D9) -> 
C101: =IF(追加ワークシート名設定!D10=0,"",追加ワークシート名設定!D10) -> 
C102: =IF(追加ワークシート名設定!D11=0,"",追加ワークシート名設定!D11) -> 
C103: =IF(追加ワークシート名設定!D12=0,"",追加ワークシート名設定!D12) -> 
C104: =IF(追加ワークシート名設定!D13=0,"",追加ワークシート名設定!D13) -> 
C105: =IF(追加ワークシート名設定!D14=0,"",追加ワークシート名設定!D14) -> 
C106: =IF(追加ワークシート名設定!D15=0,"",追加ワークシート名設定!D15) -> 
C107: =IF(追加ワークシート名設定!D16=0,"",追加ワークシート名設定!D16) -> 
C108: =IF(追加ワークシート名設定!D17=0,"",追加ワークシート名設定!D17) -> 
C109: =IF(追加ワークシート名設定!D18=0,"",追加ワークシート名設定!D18) -> 
C110: =IF(追加ワークシート名設定!D19=0,"",追加ワークシート名設定!D19) -> 
C111: =IF(追加ワークシート名設定!D20=0,"",追加ワークシート名設定!D20) -> 
C112: =IF(追加ワークシート名設定!D21=0,"",追加ワークシート名設定!D21) -> 
C113: =IF(追加ワークシート名設定!D22=0,"",追加ワークシート名設定!D22) -> 
C114: =IF(追加ワークシート名設定!D23=0,"",追加ワークシート名設定!D23) -> 
C115: =IF(追加ワークシート名設定!D24=0,"",追加ワークシート名設定!D24) -> 
C116: =IF(追加ワークシート名設定!D25=0,"",追加ワークシート名設定!D25) -> 
C117: =IF(追加ワークシート名設定!D26=0,"",追加ワークシート名設定!D26) -> 
C118: =IF(追加ワークシート名設定!D27=0,"",追加ワークシート名設定!D27) -> 
C119: =IF(追加ワークシート名設定!D28=0,"",追加ワークシート名設定!D28) -> 
C120: =IF(追加ワークシート名設定!D29=0,"",追加ワークシート名設定!D29) -> 
C121: =IF(追加ワークシート名設定!D30=0,"",追加ワークシート名設定!D30) -> 
C122: =IF(追加ワークシート名設定!D31=0,"",追加ワークシート名設定!D31) -> 
C123: =IF(追加ワークシート名設定!D32=0,"",追加ワークシート名設定!D32) -> 
C124: =IF(追加ワークシート名設定!D33=0,"",追加ワークシート名設定!D33) -> 
C125: =IF(追加ワークシート名設定!D34=0,"",追加ワークシート名設定!D34) -> 
C126: =IF(追加ワークシート名設定!D35=0,"",追加ワークシート名設定!D35) -> 
C127: =IF(追加ワークシート名設定!D36=0,"",追加ワークシート名設定!D36) -> 
C128: =IF(追加ワークシート名設定!D37=0,"",追加ワークシート名設定!D37) -> 
C129: =IF(追加ワークシート名設定!D38=0,"",追加ワークシート名設定!D38) -> 
C130: =IF(追加ワークシート名設定!D39=0,"",追加ワークシート名設定!D39) -> 
C131: =IF(追加ワークシート名設定!D40=0,"",追加ワークシート名設定!D40) -> 
C132: =IF(追加ワークシート名設定!D41=0,"",追加ワークシート名設定!D41) -> 
C133: =IF(追加ワークシート名設定!D42=0,"",追加ワークシート名設定!D42) -> 
C134: =IF(追加ワークシート名設定!D43=0,"",追加ワークシート名設定!D43) -> 
C135: =IF(追加ワークシート名設定!D44=0,"",追加ワークシート名設定!D44) -> 
C136: =IF(追加ワークシート名設定!D45=0,"",追加ワークシート名設定!D45) -> 
C137: =IF(追加ワークシート名設定!D46=0,"",追加ワークシート名設定!D46) -> 
C138: =IF(追加ワークシート名設定!D47=0,"",追加ワークシート名設定!D47) -> 
C139: =IF(追加ワークシート名設定!D48=0,"",追加ワークシート名設定!D48) -> 
C140: =IF(追加ワークシート名設定!D49=0,"",追加ワークシート名設定!D49) -> 
C141: =IF(追加ワークシート名設定!D50=0,"",追加ワークシート名設定!D50) -> 
C142: =IF(追加ワークシート名設定!D51=0,"",追加ワークシート名設定!D51) -> 
C143: =IF(追加ワークシート名設定!D52=0,"",追加ワークシート名設定!D52) -> 
C144: =IF(追加ワークシート名設定!D53=0,"",追加ワークシート名設定!D53) -> 
C145: =IF(追加ワークシート名設定!D54=0,"",追加ワークシート名設定!D54) -> 
C146: =IF(追加ワークシート名設定!D55=0,"",追加ワークシート名設定!D55) -> 
C147: =IF(追加ワークシート名設定!D56=0,"",追加ワークシート名設定!D56) -> 
C148: =IF(追加ワークシート名設定!D57=0,"",追加ワークシート名設定!D57) -> 
C149: =IF(追加ワークシート名設定!D58=0,"",追加ワークシート名設定!D58) -> 
C150: =IF(追加ワークシート名設定!D59=0,"",追加ワークシート名設定!D59) -> 
C151: =IF(追加ワークシート名設定!D60=0,"",追加ワークシート名設定!D60) -> 
C152: =IF(追加ワークシート名設定!D61=0,"",追加ワークシート名設定!D61) -> 
C153: =IF(追加ワークシート名設定!D62=0,"",追加ワークシート名設定!D62) -> 
C154: =IF(追加ワークシート名設定!D63=0,"",追加ワークシート名設定!D63) -> 
C155: =IF(追加ワークシート名設定!D64=0,"",追加ワークシート名設定!D64) -> 
C156: =IF(追加ワークシート名設定!D65=0,"",追加ワークシート名設定!D65) -> 
C157: =IF(追加ワークシート名設定!D66=0,"",追加ワークシート名設定!D66) -> 
C158: =IF(追加ワークシート名設定!D67=0,"",追加ワークシート名設定!D67) -> 
C159: =IF(追加ワークシート名設定!D68=0,"",追加ワークシート名設定!D68) -> 
C160: =IF(追加ワークシート名設定!D69=0,"",追加ワークシート名設定!D69) -> 
C161: =IF(シート名設定!C30=0,"",シート名設定!C30) -> 入力AA1

Sheet 一覧表付ファイル作成入力設定13
B3: =シート名設定!C21 -> 一覧表付ファイル作成入力設定13
B4: １．入力元の設定
B5: 項 目 | C5: 設定内容
B6: シート名
B7: データ先頭セル行番号
B8: データ先頭セル列番号
B9: 異同比較列番号
B10: データー数
B11: For Next の増分
B13: ２．入力先の設定
B14: 項 目 | C14: 設定内容
B15: シート名
B16: 入力先頭セル行番号
B17: 入力先頭セル列番号
B18: 入力最終セル行番号
B19: 入力最終セル列番号
B20: 入力データー数
B21: 通しページ入力セル行番号
B22: 通しページ入力セル列番号
B23: 区分内ページ入力セル行番号
B24: 区分内ページ入力セル列番号
B25: ３．印刷処理かファイルのメール送信の設定
B26: 項 目 | C26: 設定内容
B27: 印刷処理か ファイルの メール送信 の選択 | D27: 1
B28: ファイルのメール送信の場合の印刷フォームソートデーターシートのメールアドレスが入力されている列番号
B29: ファイルのメール送信の場合の印刷フォームソートデーターシートの件名が入力されている列番号
B30: ファイルのメール送信の場合の印刷フォームソートデーターシートの本文が入力されている列番号
B31: ファイルのメール送信の場合の添付ファイルの保存先ドライブ及びフォルダー
C37: =IF(シート名設定!C35=0,"",シート名設定!C35) -> 平成１７年度第３学年会計報告個人別（通年） | D37: 1 | E37: 印刷する
C38: =IF(シート名設定!C36=0,"",シート名設定!C36) -> ○○○子学年積立金会計報告印刷フォーム | D38: 2 | E38: メールで送信する
C39: =IF(シート名設定!C37=0,"",シート名設定!C37) -> □□□子学年積立金会計報告印刷フォーム | D39: 3 | E39: 添付ファイルなし件名本文のみのメール
C40: =IF(シート名設定!C38=0,"",シート名設定!C38) -> 学年積立金の返金並びに返金振込口座の確認フォーム
C41: =IF(シート名設定!C39=0,"",シート名設定!C39) -> 印刷フォーム5
C42: =IF(シート名設定!C40=0,"",シート名設定!C40) -> 印刷フォーム6
C43: =IF(シート名設定!C41=0,"",シート名設定!C41) -> 印刷フォーム7
C44: =IF(シート名設定!C42=0,"",シート名設定!C42) -> 印刷フォーム8
C45: =IF(シート名設定!C43=0,"",シート名設定!C43) -> 印刷フォーム9
C46: =IF(シート名設定!C44=0,"",シート名設定!C44) -> 印刷フォーム10
C47: =IF(シート名設定!C45=0,"",シート名設定!C45) -> 印刷フォーム11
C48: =IF(シート名設定!C46=0,"",シート名設定!C46) -> 印刷フォーム12
C49: =IF(シート名設定!C47=0,"",シート名設定!C47) -> 印刷フォーム13
C50: =IF(シート名設定!C48=0,"",シート名設定!C48) -> 印刷フォーム14
C51: =IF(シート名設定!C49=0,"",シート名設定!C49) -> 印刷フォーム15
C52: =IF(シート名設定!C50=0,"",シート名設定!C50) -> 印刷フォーム16
C53: =IF(シート名設定!C51=0,"",シート名設定!C51) -> 印刷フォーム17
C54: =IF(シート名設定!C52=0,"",シート名設定!C52) -> 印刷フォーム18
C55: =IF(シート名設定!C53=0,"",シート名設定!C53) -> 印刷フォーム19
C56: =IF(シート名設定!C54=0,"",シート名設定!C54) -> 印刷フォーム20
C57: =IF(シート名設定!E5=0,"",シート名設定!E5) -> 印刷フォーム21
C58: =IF(シート名設定!E6=0,"",シート名設定!E6) -> 印刷フォーム22
C59: =IF(シート名設定!E7=0,"",シート名設定!E7) -> 印刷フォーム23
C60: =IF(シート名設定!E8=0,"",シート名設定!E8) -> 印刷フォーム24
C61: =IF(シート名設定!E9=0,"",シート名設定!E9) -> 印刷フォーム25
C62: =IF(シート名設定!E10=0,"",シート名設定!E10) -> 印刷フォーム26
C63: =IF(シート名設定!E11=0,"",シート名設定!E11) -> 印刷フォーム27
C64: =IF(シート名設定!E12=0,"",シート名設定!E12) -> 印刷フォーム28
C65: =IF(シート名設定!E13=0,"",シート名設定!E13) -> 印刷フォーム29
C66: =IF(シート名設定!E14=0,"",シート名設定!E14) -> 印刷フォーム30
C67: =IF(シート名設定!E15=0,"",シート名設定!E15) -> 学年積立金会計報告個人別（通年）ソートデーター
C68: =IF(シート名設定!E16=0,"",シート名設定!E16) -> 学年積立金の返金並びに返金振込口座の確認フォームソートデーター
C69: =IF(シート名設定!E17=0,"",シート名設定!E17) -> 印刷フォーム3ソートデーター
C70: =IF(シート名設定!E18=0,"",シート名設定!E18) -> 印刷フォーム4ソートデーター
C71: =IF(シート名設定!E19=0,"",シート名設定!E19) -> 印刷フォーム5ソートデーター
C72: =IF(シート名設定!E20=0,"",シート名設定!E20) -> 印刷フォーム6ソートデーター
C73: =IF(シート名設定!E21=0,"",シート名設定!E21) -> 印刷フォーム7ソートデーター
C74: =IF(シート名設定!E22=0,"",シート名設定!E22) -> 印刷フォーム8ソートデーター
C75: =IF(シート名設定!E23=0,"",シート名設定!E23) -> 印刷フォーム9ソートデーター
C76: =IF(シート名設定!E24=0,"",シート名設定!E24) -> 印刷フォーム10ソートデーター
C77: =IF(シート名設定!E25=0,"",シート名設定!E25) -> 印刷フォーム11ソートデーター
C78: =IF(シート名設定!E26=0,"",シート名設定!E26) -> 印刷フォーム12ソートデーター
C79: =IF(シート名設定!E27=0,"",シート名設定!E27) -> 印刷フォーム13ソートデーター
C80: =IF(シート名設定!E28=0,"",シート名設定!E28) -> 印刷フォーム14ソートデーター
C81: =IF(シート名設定!E29=0,"",シート名設定!E29) -> 印刷フォーム15ソートデーター
C82: =IF(シート名設定!E30=0,"",シート名設定!E30) -> 印刷フォーム16ソートデーター
C83: =IF(シート名設定!E31=0,"",シート名設定!E31) -> 印刷フォーム17ソートデーター
C84: =IF(シート名設定!E32=0,"",シート名設定!E32) -> 印刷フォーム18ソートデーター
C85: =IF(シート名設定!E33=0,"",シート名設定!E33) -> 印刷フォーム19ソートデーター
C86: =IF(シート名設定!E34=0,"",シート名設定!E34) -> 印刷フォーム20ソートデーター
C87: =IF(シート名設定!E35=0,"",シート名設定!E35) -> 印刷フォーム21ソートデーター
C88: =IF(シート名設定!E36=0,"",シート名設定!E36) -> 印刷フォーム22ソートデーター
C89: =IF(シート名設定!E37=0,"",シート名設定!E37) -> 印刷フォーム23ソートデーター
C90: =IF(シート名設定!E38=0,"",シート名設定!E38) -> 印刷フォーム24ソートデーター
C91: =IF(シート名設定!E39=0,"",シート名設定!E39) -> 印刷フォーム25ソートデーター
C92: =IF(シート名設定!E40=0,"",シート名設定!E40) -> 印刷フォーム26ソートデーター
C93: =IF(シート名設定!E41=0,"",シート名設定!E41) -> 印刷フォーム27ソートデーター
C94: =IF(シート名設定!E42=0,"",シート名設定!E42) -> 印刷フォーム28ソートデーター
C95: =IF(シート名設定!E43=0,"",シート名設定!E43) -> 印刷フォーム29ソートデーター
C96: =IF(シート名設定!E44=0,"",シート名設定!E44) -> 印刷フォーム30ソートデーター
C97: =IF(追加ワークシート名設定!D6=0,"",追加ワークシート名設定!D6) -> 退学者○○○子学年積立金会計
C98: =IF(追加ワークシート名設定!D7=0,"",追加ワークシート名設定!D7) -> 退学者□□□子学年積立金会計
C99: =IF(追加ワークシート名設定!D8=0,"",追加ワークシート名設定!D8) -> 特別会計処理該当
C100: =IF(追加ワークシート名設定!D9=0,"",追加ワークシート名設定!D9) -> 
C101: =IF(追加ワークシート名設定!D10=0,"",追加ワークシート名設定!D10) -> 
C102: =IF(追加ワークシート名設定!D11=0,"",追加ワークシート名設定!D11) -> 
C103: =IF(追加ワークシート名設定!D12=0,"",追加ワークシート名設定!D12) -> 
C104: =IF(追加ワークシート名設定!D13=0,"",追加ワークシート名設定!D13) -> 
C105: =IF(追加ワークシート名設定!D14=0,"",追加ワークシート名設定!D14) -> 
C106: =IF(追加ワークシート名設定!D15=0,"",追加ワークシート名設定!D15) -> 
C107: =IF(追加ワークシート名設定!D16=0,"",追加ワークシート名設定!D16) -> 
C108: =IF(追加ワークシート名設定!D17=0,"",追加ワークシート名設定!D17) -> 
C109: =IF(追加ワークシート名設定!D18=0,"",追加ワークシート名設定!D18) -> 
C110: =IF(追加ワークシート名設定!D19=0,"",追加ワークシート名設定!D19) -> 
C111: =IF(追加ワークシート名設定!D20=0,"",追加ワークシート名設定!D20) -> 
C112: =IF(追加ワークシート名設定!D21=0,"",追加ワークシート名設定!D21) -> 
C113: =IF(追加ワークシート名設定!D22=0,"",追加ワークシート名設定!D22) -> 
C114: =IF(追加ワークシート名設定!D23=0,"",追加ワークシート名設定!D23) -> 
C115: =IF(追加ワークシート名設定!D24=0,"",追加ワークシート名設定!D24) -> 
C116: =IF(追加ワークシート名設定!D25=0,"",追加ワークシート名設定!D25) -> 
C117: =IF(追加ワークシート名設定!D26=0,"",追加ワークシート名設定!D26) -> 
C118: =IF(追加ワークシート名設定!D27=0,"",追加ワークシート名設定!D27) -> 
C119: =IF(追加ワークシート名設定!D28=0,"",追加ワークシート名設定!D28) -> 
C120: =IF(追加ワークシート名設定!D29=0,"",追加ワークシート名設定!D29) -> 
C121: =IF(追加ワークシート名設定!D30=0,"",追加ワークシート名設定!D30) -> 
C122: =IF(追加ワークシート名設定!D31=0,"",追加ワークシート名設定!D31) -> 
C123: =IF(追加ワークシート名設定!D32=0,"",追加ワークシート名設定!D32) -> 
C124: =IF(追加ワークシート名設定!D33=0,"",追加ワークシート名設定!D33) -> 
C125: =IF(追加ワークシート名設定!D34=0,"",追加ワークシート名設定!D34) -> 
C126: =IF(追加ワークシート名設定!D35=0,"",追加ワークシート名設定!D35) -> 
C127: =IF(追加ワークシート名設定!D36=0,"",追加ワークシート名設定!D36) -> 
C128: =IF(追加ワークシート名設定!D37=0,"",追加ワークシート名設定!D37) -> 
C129: =IF(追加ワークシート名設定!D38=0,"",追加ワークシート名設定!D38) -> 
C130: =IF(追加ワークシート名設定!D39=0,"",追加ワークシート名設定!D39) -> 
C131: =IF(追加ワークシート名設定!D40=0,"",追加ワークシート名設定!D40) -> 
C132: =IF(追加ワークシート名設定!D41=0,"",追加ワークシート名設定!D41) -> 
C133: =IF(追加ワークシート名設定!D42=0,"",追加ワークシート名設定!D42) -> 
C134: =IF(追加ワークシート名設定!D43=0,"",追加ワークシート名設定!D43) -> 
C135: =IF(追加ワークシート名設定!D44=0,"",追加ワークシート名設定!D44) -> 
C136: =IF(追加ワークシート名設定!D45=0,"",追加ワークシート名設定!D45) -> 
C137: =IF(追加ワークシート名設定!D46=0,"",追加ワークシート名設定!D46) -> 
C138: =IF(追加ワークシート名設定!D47=0,"",追加ワークシート名設定!D47) -> 
C139: =IF(追加ワークシート名設定!D48=0,"",追加ワークシート名設定!D48) -> 
C140: =IF(追加ワークシート名設定!D49=0,"",追加ワークシート名設定!D49) -> 
C141: =IF(追加ワークシート名設定!D50=0,"",追加ワークシート名設定!D50) -> 
C142: =IF(追加ワークシート名設定!D51=0,"",追加ワークシート名設定!D51) -> 
C143: =IF(追加ワークシート名設定!D52=0,"",追加ワークシート名設定!D52) -> 
C144: =IF(追加ワークシート名設定!D53=0,"",追加ワークシート名設定!D53) -> 
C145: =IF(追加ワークシート名設定!D54=0,"",追加ワークシート名設定!D54) -> 
C146: =IF(追加ワークシート名設定!D55=0,"",追加ワークシート名設定!D55) -> 
C147: =IF(追加ワークシート名設定!D56=0,"",追加ワークシート名設定!D56) -> 
C148: =IF(追加ワークシート名設定!D57=0,"",追加ワークシート名設定!D57) -> 
C149: =IF(追加ワークシート名設定!D58=0,"",追加ワークシート名設定!D58) -> 
C150: =IF(追加ワークシート名設定!D59=0,"",追加ワークシート名設定!D59) -> 
C151: =IF(追加ワークシート名設定!D60=0,"",追加ワークシート名設定!D60) -> 
C152: =IF(追加ワークシート名設定!D61=0,"",追加ワークシート名設定!D61) -> 
C153: =IF(追加ワークシート名設定!D62=0,"",追加ワークシート名設定!D62) -> 
C154: =IF(追加ワークシート名設定!D63=0,"",追加ワークシート名設定!D63) -> 
C155: =IF(追加ワークシート名設定!D64=0,"",追加ワークシート名設定!D64) -> 
C156: =IF(追加ワークシート名設定!D65=0,"",追加ワークシート名設定!D65) -> 
C157: =IF(追加ワークシート名設定!D66=0,"",追加ワークシート名設定!D66) -> 
C158: =IF(追加ワークシート名設定!D67=0,"",追加ワークシート名設定!D67) -> 
C159: =IF(追加ワークシート名設定!D68=0,"",追加ワークシート名設定!D68) -> 
C160: =IF(追加ワークシート名設定!D69=0,"",追加ワークシート名設定!D69) -> 
C161: =IF(シート名設定!C30=0,"",シート名設定!C30) -> 入力AA1

Sheet 一覧表付ファイル作成入力設定14
B3: =シート名設定!C22 -> 一覧表付ファイル作成入力設定14
B4: １．入力元の設定
B5: 項 目 | C5: 設定内容
B6: シート名
B7: データ先頭セル行番号
B8: データ先頭セル列番号
B9: 異同比較列番号
B10: データー数
B11: For Next の増分
B13: ２．入力先の設定
B14: 項 目 | C14: 設定内容
B15: シート名
B16: 入力先頭セル行番号
B17: 入力先頭セル列番号
B18: 入力最終セル行番号
B19: 入力最終セル列番号
B20: 入力データー数
B21: 通しページ入力セル行番号
B22: 通しページ入力セル列番号
B23: 区分内ページ入力セル行番号
B24: 区分内ページ入力セル列番号
B25: ３．印刷処理かファイルのメール送信の設定
B26: 項 目 | C26: 設定内容
B27: 印刷処理か ファイルの メール送信 の選択 | D27: 1
B28: ファイルのメール送信の場合の印刷フォームソートデーターシートのメールアドレスが入力されている列番号
B29: ファイルのメール送信の場合の印刷フォームソートデーターシートの件名が入力されている列番号
B30: ファイルのメール送信の場合の印刷フォームソートデーターシートの本文が入力されている列番号
B31: ファイルのメール送信の場合の添付ファイルの保存先ドライブ及びフォルダー
C37: =IF(シート名設定!C35=0,"",シート名設定!C35) -> 平成１７年度第３学年会計報告個人別（通年） | D37: 1 | E37: 印刷する
C38: =IF(シート名設定!C36=0,"",シート名設定!C36) -> ○○○子学年積立金会計報告印刷フォーム | D38: 2 | E38: メールで送信する
C39: =IF(シート名設定!C37=0,"",シート名設定!C37) -> □□□子学年積立金会計報告印刷フォーム | D39: 3 | E39: 添付ファイルなし件名本文のみのメール
C40: =IF(シート名設定!C38=0,"",シート名設定!C38) -> 学年積立金の返金並びに返金振込口座の確認フォーム
C41: =IF(シート名設定!C39=0,"",シート名設定!C39) -> 印刷フォーム5
C42: =IF(シート名設定!C40=0,"",シート名設定!C40) -> 印刷フォーム6
C43: =IF(シート名設定!C41=0,"",シート名設定!C41) -> 印刷フォーム7
C44: =IF(シート名設定!C42=0,"",シート名設定!C42) -> 印刷フォーム8
C45: =IF(シート名設定!C43=0,"",シート名設定!C43) -> 印刷フォーム9
C46: =IF(シート名設定!C44=0,"",シート名設定!C44) -> 印刷フォーム10
C47: =IF(シート名設定!C45=0,"",シート名設定!C45) -> 印刷フォーム11
C48: =IF(シート名設定!C46=0,"",シート名設定!C46) -> 印刷フォーム12
C49: =IF(シート名設定!C47=0,"",シート名設定!C47) -> 印刷フォーム13
C50: =IF(シート名設定!C48=0,"",シート名設定!C48) -> 印刷フォーム14
C51: =IF(シート名設定!C49=0,"",シート名設定!C49) -> 印刷フォーム15
C52: =IF(シート名設定!C50=0,"",シート名設定!C50) -> 印刷フォーム16
C53: =IF(シート名設定!C51=0,"",シート名設定!C51) -> 印刷フォーム17
C54: =IF(シート名設定!C52=0,"",シート名設定!C52) -> 印刷フォーム18
C55: =IF(シート名設定!C53=0,"",シート名設定!C53) -> 印刷フォーム19
C56: =IF(シート名設定!C54=0,"",シート名設定!C54) -> 印刷フォーム20
C57: =IF(シート名設定!E5=0,"",シート名設定!E5) -> 印刷フォーム21
C58: =IF(シート名設定!E6=0,"",シート名設定!E6) -> 印刷フォーム22
C59: =IF(シート名設定!E7=0,"",シート名設定!E7) -> 印刷フォーム23
C60: =IF(シート名設定!E8=0,"",シート名設定!E8) -> 印刷フォーム24
C61: =IF(シート名設定!E9=0,"",シート名設定!E9) -> 印刷フォーム25
C62: =IF(シート名設定!E10=0,"",シート名設定!E10) -> 印刷フォーム26
C63: =IF(シート名設定!E11=0,"",シート名設定!E11) -> 印刷フォーム27
C64: =IF(シート名設定!E12=0,"",シート名設定!E12) -> 印刷フォーム28
C65: =IF(シート名設定!E13=0,"",シート名設定!E13) -> 印刷フォーム29
C66: =IF(シート名設定!E14=0,"",シート名設定!E14) -> 印刷フォーム30
C67: =IF(シート名設定!E15=0,"",シート名設定!E15) -> 学年積立金会計報告個人別（通年）ソートデーター
C68: =IF(シート名設定!E16=0,"",シート名設定!E16) -> 学年積立金の返金並びに返金振込口座の確認フォームソートデーター
C69: =IF(シート名設定!E17=0,"",シート名設定!E17) -> 印刷フォーム3ソートデーター
C70: =IF(シート名設定!E18=0,"",シート名設定!E18) -> 印刷フォーム4ソートデーター
C71: =IF(シート名設定!E19=0,"",シート名設定!E19) -> 印刷フォーム5ソートデーター
C72: =IF(シート名設定!E20=0,"",シート名設定!E20) -> 印刷フォーム6ソートデーター
C73: =IF(シート名設定!E21=0,"",シート名設定!E21) -> 印刷フォーム7ソートデーター
C74: =IF(シート名設定!E22=0,"",シート名設定!E22) -> 印刷フォーム8ソートデーター
C75: =IF(シート名設定!E23=0,"",シート名設定!E23) -> 印刷フォーム9ソートデーター
C76: =IF(シート名設定!E24=0,"",シート名設定!E24) -> 印刷フォーム10ソートデーター
C77: =IF(シート名設定!E25=0,"",シート名設定!E25) -> 印刷フォーム11ソートデーター
C78: =IF(シート名設定!E26=0,"",シート名設定!E26) -> 印刷フォーム12ソートデーター
C79: =IF(シート名設定!E27=0,"",シート名設定!E27) -> 印刷フォーム13ソートデーター
C80: =IF(シート名設定!E28=0,"",シート名設定!E28) -> 印刷フォーム14ソートデーター
C81: =IF(シート名設定!E29=0,"",シート名設定!E29) -> 印刷フォーム15ソートデーター
C82: =IF(シート名設定!E30=0,"",シート名設定!E30) -> 印刷フォーム16ソートデーター
C83: =IF(シート名設定!E31=0,"",シート名設定!E31) -> 印刷フォーム17ソートデーター
C84: =IF(シート名設定!E32=0,"",シート名設定!E32) -> 印刷フォーム18ソートデーター
C85: =IF(シート名設定!E33=0,"",シート名設定!E33) -> 印刷フォーム19ソートデーター
C86: =IF(シート名設定!E34=0,"",シート名設定!E34) -> 印刷フォーム20ソートデーター
C87: =IF(シート名設定!E35=0,"",シート名設定!E35) -> 印刷フォーム21ソートデーター
C88: =IF(シート名設定!E36=0,"",シート名設定!E36) -> 印刷フォーム22ソートデーター
C89: =IF(シート名設定!E37=0,"",シート名設定!E37) -> 印刷フォーム23ソートデーター
C90: =IF(シート名設定!E38=0,"",シート名設定!E38) -> 印刷フォーム24ソートデーター
C91: =IF(シート名設定!E39=0,"",シート名設定!E39) -> 印刷フォーム25ソートデーター
C92: =IF(シート名設定!E40=0,"",シート名設定!E40) -> 印刷フォーム26ソートデーター
C93: =IF(シート名設定!E41=0,"",シート名設定!E41) -> 印刷フォーム27ソートデーター
C94: =IF(シート名設定!E42=0,"",シート名設定!E42) -> 印刷フォーム28ソートデーター
C95: =IF(シート名設定!E43=0,"",シート名設定!E43) -> 印刷フォーム29ソートデーター
C96: =IF(シート名設定!E44=0,"",シート名設定!E44) -> 印刷フォーム30ソートデーター
C97: =IF(追加ワークシート名設定!D6=0,"",追加ワークシート名設定!D6) -> 退学者○○○子学年積立金会計
C98: =IF(追加ワークシート名設定!D7=0,"",追加ワークシート名設定!D7) -> 退学者□□□子学年積立金会計
C99: =IF(追加ワークシート名設定!D8=0,"",追加ワークシート名設定!D8) -> 特別会計処理該当
C100: =IF(追加ワークシート名設定!D9=0,"",追加ワークシート名設定!D9) -> 
C101: =IF(追加ワークシート名設定!D10=0,"",追加ワークシート名設定!D10) -> 
C102: =IF(追加ワークシート名設定!D11=0,"",追加ワークシート名設定!D11) -> 
C103: =IF(追加ワークシート名設定!D12=0,"",追加ワークシート名設定!D12) -> 
C104: =IF(追加ワークシート名設定!D13=0,"",追加ワークシート名設定!D13) -> 
C105: =IF(追加ワークシート名設定!D14=0,"",追加ワークシート名設定!D14) -> 
C106: =IF(追加ワークシート名設定!D15=0,"",追加ワークシート名設定!D15) -> 
C107: =IF(追加ワークシート名設定!D16=0,"",追加ワークシート名設定!D16) -> 
C108: =IF(追加ワークシート名設定!D17=0,"",追加ワークシート名設定!D17) -> 
C109: =IF(追加ワークシート名設定!D18=0,"",追加ワークシート名設定!D18) -> 
C110: =IF(追加ワークシート名設定!D19=0,"",追加ワークシート名設定!D19) -> 
C111: =IF(追加ワークシート名設定!D20=0,"",追加ワークシート名設定!D20) -> 
C112: =IF(追加ワークシート名設定!D21=0,"",追加ワークシート名設定!D21) -> 
C113: =IF(追加ワークシート名設定!D22=0,"",追加ワークシート名設定!D22) -> 
C114: =IF(追加ワークシート名設定!D23=0,"",追加ワークシート名設定!D23) -> 
C115: =IF(追加ワークシート名設定!D24=0,"",追加ワークシート名設定!D24) -> 
C116: =IF(追加ワークシート名設定!D25=0,"",追加ワークシート名設定!D25) -> 
C117: =IF(追加ワークシート名設定!D26=0,"",追加ワークシート名設定!D26) -> 
C118: =IF(追加ワークシート名設定!D27=0,"",追加ワークシート名設定!D27) -> 
C119: =IF(追加ワークシート名設定!D28=0,"",追加ワークシート名設定!D28) -> 
C120: =IF(追加ワークシート名設定!D29=0,"",追加ワークシート名設定!D29) -> 
C121: =IF(追加ワークシート名設定!D30=0,"",追加ワークシート名設定!D30) -> 
C122: =IF(追加ワークシート名設定!D31=0,"",追加ワークシート名設定!D31) -> 
C123: =IF(追加ワークシート名設定!D32=0,"",追加ワークシート名設定!D32) -> 
C124: =IF(追加ワークシート名設定!D33=0,"",追加ワークシート名設定!D33) -> 
C125: =IF(追加ワークシート名設定!D34=0,"",追加ワークシート名設定!D34) -> 
C126: =IF(追加ワークシート名設定!D35=0,"",追加ワークシート名設定!D35) -> 
C127: =IF(追加ワークシート名設定!D36=0,"",追加ワークシート名設定!D36) -> 
C128: =IF(追加ワークシート名設定!D37=0,"",追加ワークシート名設定!D37) -> 
C129: =IF(追加ワークシート名設定!D38=0,"",追加ワークシート名設定!D38) -> 
C130: =IF(追加ワークシート名設定!D39=0,"",追加ワークシート名設定!D39) -> 
C131: =IF(追加ワークシート名設定!D40=0,"",追加ワークシート名設定!D40) -> 
C132: =IF(追加ワークシート名設定!D41=0,"",追加ワークシート名設定!D41) -> 
C133: =IF(追加ワークシート名設定!D42=0,"",追加ワークシート名設定!D42) -> 
C134: =IF(追加ワークシート名設定!D43=0,"",追加ワークシート名設定!D43) -> 
C135: =IF(追加ワークシート名設定!D44=0,"",追加ワークシート名設定!D44) -> 
C136: =IF(追加ワークシート名設定!D45=0,"",追加ワークシート名設定!D45) -> 
C137: =IF(追加ワークシート名設定!D46=0,"",追加ワークシート名設定!D46) -> 
C138: =IF(追加ワークシート名設定!D47=0,"",追加ワークシート名設定!D47) -> 
C139: =IF(追加ワークシート名設定!D48=0,"",追加ワークシート名設定!D48) -> 
C140: =IF(追加ワークシート名設定!D49=0,"",追加ワークシート名設定!D49) -> 
C141: =IF(追加ワークシート名設定!D50=0,"",追加ワークシート名設定!D50) -> 
C142: =IF(追加ワークシート名設定!D51=0,"",追加ワークシート名設定!D51) -> 
C143: =IF(追加ワークシート名設定!D52=0,"",追加ワークシート名設定!D52) -> 
C144: =IF(追加ワークシート名設定!D53=0,"",追加ワークシート名設定!D53) -> 
C145: =IF(追加ワークシート名設定!D54=0,"",追加ワークシート名設定!D54) -> 
C146: =IF(追加ワークシート名設定!D55=0,"",追加ワークシート名設定!D55) -> 
C147: =IF(追加ワークシート名設定!D56=0,"",追加ワークシート名設定!D56) -> 
C148: =IF(追加ワークシート名設定!D57=0,"",追加ワークシート名設定!D57) -> 
C149: =IF(追加ワークシート名設定!D58=0,"",追加ワークシート名設定!D58) -> 
C150: =IF(追加ワークシート名設定!D59=0,"",追加ワークシート名設定!D59) -> 
C151: =IF(追加ワークシート名設定!D60=0,"",追加ワークシート名設定!D60) -> 
C152: =IF(追加ワークシート名設定!D61=0,"",追加ワークシート名設定!D61) -> 
C153: =IF(追加ワークシート名設定!D62=0,"",追加ワークシート名設定!D62) -> 
C154: =IF(追加ワークシート名設定!D63=0,"",追加ワークシート名設定!D63) -> 
C155: =IF(追加ワークシート名設定!D64=0,"",追加ワークシート名設定!D64) -> 
C156: =IF(追加ワークシート名設定!D65=0,"",追加ワークシート名設定!D65) -> 
C157: =IF(追加ワークシート名設定!D66=0,"",追加ワークシート名設定!D66) -> 
C158: =IF(追加ワークシート名設定!D67=0,"",追加ワークシート名設定!D67) -> 
C159: =IF(追加ワークシート名設定!D68=0,"",追加ワークシート名設定!D68) -> 
C160: =IF(追加ワークシート名設定!D69=0,"",追加ワークシート名設定!D69) -> 
C161: =IF(シート名設定!C30=0,"",シート名設定!C30) -> 入力AA1

Sheet 一覧表付ファイル作成入力設定15
B3: =シート名設定!C23 -> 一覧表付ファイル作成入力設定15
B4: １．入力元の設定
B5: 項 目 | C5: 設定内容
B6: シート名
B7: データ先頭セル行番号
B8: データ先頭セル列番号
B9: 異同比較列番号
B10: データー数
B11: For Next の増分
B13: ２．入力先の設定
B14: 項 目 | C14: 設定内容
B15: シート名
B16: 入力先頭セル行番号
B17: 入力先頭セル列番号
B18: 入力最終セル行番号
B19: 入力最終セル列番号
B20: 入力データー数
B21: 通しページ入力セル行番号
B22: 通しページ入力セル列番号
B23: 区分内ページ入力セル行番号
B24: 区分内ページ入力セル列番号
B25: ３．印刷処理かファイルのメール送信の設定
B26: 項 目 | C26: 設定内容
B27: 印刷処理か ファイルの メール送信 の選択 | D27: 1
B28: ファイルのメール送信の場合の印刷フォームソートデーターシートのメールアドレスが入力されている列番号
B29: ファイルのメール送信の場合の印刷フォームソートデーターシートの件名が入力されている列番号
B30: ファイルのメール送信の場合の印刷フォームソートデーターシートの本文が入力されている列番号
B31: ファイルのメール送信の場合の添付ファイルの保存先ドライブ及びフォルダー
C37: =IF(シート名設定!C35=0,"",シート名設定!C35) -> 平成１７年度第３学年会計報告個人別（通年） | D37: 1 | E37: 印刷する
C38: =IF(シート名設定!C36=0,"",シート名設定!C36) -> ○○○子学年積立金会計報告印刷フォーム | D38: 2 | E38: メールで送信する
C39: =IF(シート名設定!C37=0,"",シート名設定!C37) -> □□□子学年積立金会計報告印刷フォーム | D39: 3 | E39: 添付ファイルなし件名本文のみのメール
C40: =IF(シート名設定!C38=0,"",シート名設定!C38) -> 学年積立金の返金並びに返金振込口座の確認フォーム
C41: =IF(シート名設定!C39=0,"",シート名設定!C39) -> 印刷フォーム5
C42: =IF(シート名設定!C40=0,"",シート名設定!C40) -> 印刷フォーム6
C43: =IF(シート名設定!C41=0,"",シート名設定!C41) -> 印刷フォーム7
C44: =IF(シート名設定!C42=0,"",シート名設定!C42) -> 印刷フォーム8
C45: =IF(シート名設定!C43=0,"",シート名設定!C43) -> 印刷フォーム9
C46: =IF(シート名設定!C44=0,"",シート名設定!C44) -> 印刷フォーム10
C47: =IF(シート名設定!C45=0,"",シート名設定!C45) -> 印刷フォーム11
C48: =IF(シート名設定!C46=0,"",シート名設定!C46) -> 印刷フォーム12
C49: =IF(シート名設定!C47=0,"",シート名設定!C47) -> 印刷フォーム13
C50: =IF(シート名設定!C48=0,"",シート名設定!C48) -> 印刷フォーム14
C51: =IF(シート名設定!C49=0,"",シート名設定!C49) -> 印刷フォーム15
C52: =IF(シート名設定!C50=0,"",シート名設定!C50) -> 印刷フォーム16
C53: =IF(シート名設定!C51=0,"",シート名設定!C51) -> 印刷フォーム17
C54: =IF(シート名設定!C52=0,"",シート名設定!C52) -> 印刷フォーム18
C55: =IF(シート名設定!C53=0,"",シート名設定!C53) -> 印刷フォーム19
C56: =IF(シート名設定!C54=0,"",シート名設定!C54) -> 印刷フォーム20
C57: =IF(シート名設定!E5=0,"",シート名設定!E5) -> 印刷フォーム21
C58: =IF(シート名設定!E6=0,"",シート名設定!E6) -> 印刷フォーム22
C59: =IF(シート名設定!E7=0,"",シート名設定!E7) -> 印刷フォーム23
C60: =IF(シート名設定!E8=0,"",シート名設定!E8) -> 印刷フォーム24
C61: =IF(シート名設定!E9=0,"",シート名設定!E9) -> 印刷フォーム25
C62: =IF(シート名設定!E10=0,"",シート名設定!E10) -> 印刷フォーム26
C63: =IF(シート名設定!E11=0,"",シート名設定!E11) -> 印刷フォーム27
C64: =IF(シート名設定!E12=0,"",シート名設定!E12) -> 印刷フォーム28
C65: =IF(シート名設定!E13=0,"",シート名設定!E13) -> 印刷フォーム29
C66: =IF(シート名設定!E14=0,"",シート名設定!E14) -> 印刷フォーム30
C67: =IF(シート名設定!E15=0,"",シート名設定!E15) -> 学年積立金会計報告個人別（通年）ソートデーター
C68: =IF(シート名設定!E16=0,"",シート名設定!E16) -> 学年積立金の返金並びに返金振込口座の確認フォームソートデーター
C69: =IF(シート名設定!E17=0,"",シート名設定!E17) -> 印刷フォーム3ソートデーター
C70: =IF(シート名設定!E18=0,"",シート名設定!E18) -> 印刷フォーム4ソートデーター
C71: =IF(シート名設定!E19=0,"",シート名設定!E19) -> 印刷フォーム5ソートデーター
C72: =IF(シート名設定!E20=0,"",シート名設定!E20) -> 印刷フォーム6ソートデーター
C73: =IF(シート名設定!E21=0,"",シート名設定!E21) -> 印刷フォーム7ソートデーター
C74: =IF(シート名設定!E22=0,"",シート名設定!E22) -> 印刷フォーム8ソートデーター
C75: =IF(シート名設定!E23=0,"",シート名設定!E23) -> 印刷フォーム9ソートデーター
C76: =IF(シート名設定!E24=0,"",シート名設定!E24) -> 印刷フォーム10ソートデーター
C77: =IF(シート名設定!E25=0,"",シート名設定!E25) -> 印刷フォーム11ソートデーター
C78: =IF(シート名設定!E26=0,"",シート名設定!E26) -> 印刷フォーム12ソートデーター
C79: =IF(シート名設定!E27=0,"",シート名設定!E27) -> 印刷フォーム13ソートデーター
C80: =IF(シート名設定!E28=0,"",シート名設定!E28) -> 印刷フォーム14ソートデーター
C81: =IF(シート名設定!E29=0,"",シート名設定!E29) -> 印刷フォーム15ソートデーター
C82: =IF(シート名設定!E30=0,"",シート名設定!E30) -> 印刷フォーム16ソートデーター
C83: =IF(シート名設定!E31=0,"",シート名設定!E31) -> 印刷フォーム17ソートデーター
C84: =IF(シート名設定!E32=0,"",シート名設定!E32) -> 印刷フォーム18ソートデーター
C85: =IF(シート名設定!E33=0,"",シート名設定!E33) -> 印刷フォーム19ソートデーター
C86: =IF(シート名設定!E34=0,"",シート名設定!E34) -> 印刷フォーム20ソートデーター
C87: =IF(シート名設定!E35=0,"",シート名設定!E35) -> 印刷フォーム21ソートデーター
C88: =IF(シート名設定!E36=0,"",シート名設定!E36) -> 印刷フォーム22ソートデーター
C89: =IF(シート名設定!E37=0,"",シート名設定!E37) -> 印刷フォーム23ソートデーター
C90: =IF(シート名設定!E38=0,"",シート名設定!E38) -> 印刷フォーム24ソートデーター
C91: =IF(シート名設定!E39=0,"",シート名設定!E39) -> 印刷フォーム25ソートデーター
C92: =IF(シート名設定!E40=0,"",シート名設定!E40) -> 印刷フォーム26ソートデーター
C93: =IF(シート名設定!E41=0,"",シート名設定!E41) -> 印刷フォーム27ソートデーター
C94: =IF(シート名設定!E42=0,"",シート名設定!E42) -> 印刷フォーム28ソートデーター
C95: =IF(シート名設定!E43=0,"",シート名設定!E43) -> 印刷フォーム29ソートデーター
C96: =IF(シート名設定!E44=0,"",シート名設定!E44) -> 印刷フォーム30ソートデーター
C97: =IF(追加ワークシート名設定!D6=0,"",追加ワークシート名設定!D6) -> 退学者○○○子学年積立金会計
C98: =IF(追加ワークシート名設定!D7=0,"",追加ワークシート名設定!D7) -> 退学者□□□子学年積立金会計
C99: =IF(追加ワークシート名設定!D8=0,"",追加ワークシート名設定!D8) -> 特別会計処理該当
C100: =IF(追加ワークシート名設定!D9=0,"",追加ワークシート名設定!D9) -> 
C101: =IF(追加ワークシート名設定!D10=0,"",追加ワークシート名設定!D10) -> 
C102: =IF(追加ワークシート名設定!D11=0,"",追加ワークシート名設定!D11) -> 
C103: =IF(追加ワークシート名設定!D12=0,"",追加ワークシート名設定!D12) -> 
C104: =IF(追加ワークシート名設定!D13=0,"",追加ワークシート名設定!D13) -> 
C105: =IF(追加ワークシート名設定!D14=0,"",追加ワークシート名設定!D14) -> 
C106: =IF(追加ワークシート名設定!D15=0,"",追加ワークシート名設定!D15) -> 
C107: =IF(追加ワークシート名設定!D16=0,"",追加ワークシート名設定!D16) -> 
C108: =IF(追加ワークシート名設定!D17=0,"",追加ワークシート名設定!D17) -> 
C109: =IF(追加ワークシート名設定!D18=0,"",追加ワークシート名設定!D18) -> 
C110: =IF(追加ワークシート名設定!D19=0,"",追加ワークシート名設定!D19) -> 
C111: =IF(追加ワークシート名設定!D20=0,"",追加ワークシート名設定!D20) -> 
C112: =IF(追加ワークシート名設定!D21=0,"",追加ワークシート名設定!D21) -> 
C113: =IF(追加ワークシート名設定!D22=0,"",追加ワークシート名設定!D22) -> 
C114: =IF(追加ワークシート名設定!D23=0,"",追加ワークシート名設定!D23) -> 
C115: =IF(追加ワークシート名設定!D24=0,"",追加ワークシート名設定!D24) -> 
C116: =IF(追加ワークシート名設定!D25=0,"",追加ワークシート名設定!D25) -> 
C117: =IF(追加ワークシート名設定!D26=0,"",追加ワークシート名設定!D26) -> 
C118: =IF(追加ワークシート名設定!D27=0,"",追加ワークシート名設定!D27) -> 
C119: =IF(追加ワークシート名設定!D28=0,"",追加ワークシート名設定!D28) -> 
C120: =IF(追加ワークシート名設定!D29=0,"",追加ワークシート名設定!D29) -> 
C121: =IF(追加ワークシート名設定!D30=0,"",追加ワークシート名設定!D30) -> 
C122: =IF(追加ワークシート名設定!D31=0,"",追加ワークシート名設定!D31) -> 
C123: =IF(追加ワークシート名設定!D32=0,"",追加ワークシート名設定!D32) -> 
C124: =IF(追加ワークシート名設定!D33=0,"",追加ワークシート名設定!D33) -> 
C125: =IF(追加ワークシート名設定!D34=0,"",追加ワークシート名設定!D34) -> 
C126: =IF(追加ワークシート名設定!D35=0,"",追加ワークシート名設定!D35) -> 
C127: =IF(追加ワークシート名設定!D36=0,"",追加ワークシート名設定!D36) -> 
C128: =IF(追加ワークシート名設定!D37=0,"",追加ワークシート名設定!D37) -> 
C129: =IF(追加ワークシート名設定!D38=0,"",追加ワークシート名設定!D38) -> 
C130: =IF(追加ワークシート名設定!D39=0,"",追加ワークシート名設定!D39) -> 
C131: =IF(追加ワークシート名設定!D40=0,"",追加ワークシート名設定!D40) -> 
C132: =IF(追加ワークシート名設定!D41=0,"",追加ワークシート名設定!D41) -> 
C133: =IF(追加ワークシート名設定!D42=0,"",追加ワークシート名設定!D42) -> 
C134: =IF(追加ワークシート名設定!D43=0,"",追加ワークシート名設定!D43) -> 
C135: =IF(追加ワークシート名設定!D44=0,"",追加ワークシート名設定!D44) -> 
C136: =IF(追加ワークシート名設定!D45=0,"",追加ワークシート名設定!D45) -> 
C137: =IF(追加ワークシート名設定!D46=0,"",追加ワークシート名設定!D46) -> 
C138: =IF(追加ワークシート名設定!D47=0,"",追加ワークシート名設定!D47) -> 
C139: =IF(追加ワークシート名設定!D48=0,"",追加ワークシート名設定!D48) -> 
C140: =IF(追加ワークシート名設定!D49=0,"",追加ワークシート名設定!D49) -> 
C141: =IF(追加ワークシート名設定!D50=0,"",追加ワークシート名設定!D50) -> 
C142: =IF(追加ワークシート名設定!D51=0,"",追加ワークシート名設定!D51) -> 
C143: =IF(追加ワークシート名設定!D52=0,"",追加ワークシート名設定!D52) -> 
C144: =IF(追加ワークシート名設定!D53=0,"",追加ワークシート名設定!D53) -> 
C145: =IF(追加ワークシート名設定!D54=0,"",追加ワークシート名設定!D54) -> 
C146: =IF(追加ワークシート名設定!D55=0,"",追加ワークシート名設定!D55) -> 
C147: =IF(追加ワークシート名設定!D56=0,"",追加ワークシート名設定!D56) -> 
C148: =IF(追加ワークシート名設定!D57=0,"",追加ワークシート名設定!D57) -> 
C149: =IF(追加ワークシート名設定!D58=0,"",追加ワークシート名設定!D58) -> 
C150: =IF(追加ワークシート名設定!D59=0,"",追加ワークシート名設定!D59) -> 
C151: =IF(追加ワークシート名設定!D60=0,"",追加ワークシート名設定!D60) -> 
C152: =IF(追加ワークシート名設定!D61=0,"",追加ワークシート名設定!D61) -> 
C153: =IF(追加ワークシート名設定!D62=0,"",追加ワークシート名設定!D62) -> 
C154: =IF(追加ワークシート名設定!D63=0,"",追加ワークシート名設定!D63) -> 
C155: =IF(追加ワークシート名設定!D64=0,"",追加ワークシート名設定!D64) -> 
C156: =IF(追加ワークシート名設定!D65=0,"",追加ワークシート名設定!D65) -> 
C157: =IF(追加ワークシート名設定!D66=0,"",追加ワークシート名設定!D66) -> 
C158: =IF(追加ワークシート名設定!D67=0,"",追加ワークシート名設定!D67) -> 
C159: =IF(追加ワークシート名設定!D68=0,"",追加ワークシート名設定!D68) -> 
C160: =IF(追加ワークシート名設定!D69=0,"",追加ワークシート名設定!D69) -> 
C161: =IF(シート名設定!C30=0,"",シート名設定!C30) -> 入力AA1

Sheet 一覧表付ファイル作成入力設定16
B3: =シート名設定!C24 -> 一覧表付ファイル作成入力設定16
B4: １．入力元の設定
B5: 項 目 | C5: 設定内容
B6: シート名
B7: データ先頭セル行番号
B8: データ先頭セル列番号
B9: 異同比較列番号
B10: データー数
B11: For Next の増分
B13: ２．入力先の設定
B14: 項 目 | C14: 設定内容
B15: シート名
B16: 入力先頭セル行番号
B17: 入力先頭セル列番号
B18: 入力最終セル行番号
B19: 入力最終セル列番号
B20: 入力データー数
B21: 通しページ入力セル行番号
B22: 通しページ入力セル列番号
B23: 区分内ページ入力セル行番号
B24: 区分内ページ入力セル列番号
B25: ３．印刷処理かファイルのメール送信の設定
B26: 項 目 | C26: 設定内容
B27: 印刷処理か ファイルの メール送信 の選択 | D27: 1
B28: ファイルのメール送信の場合の印刷フォームソートデーターシートのメールアドレスが入力されている列番号
B29: ファイルのメール送信の場合の印刷フォームソートデーターシートの件名が入力されている列番号
B30: ファイルのメール送信の場合の印刷フォームソートデーターシートの本文が入力されている列番号
B31: ファイルのメール送信の場合の添付ファイルの保存先ドライブ及びフォルダー
C37: =IF(シート名設定!C35=0,"",シート名設定!C35) -> 平成１７年度第３学年会計報告個人別（通年） | D37: 1 | E37: 印刷する
C38: =IF(シート名設定!C36=0,"",シート名設定!C36) -> ○○○子学年積立金会計報告印刷フォーム | D38: 2 | E38: メールで送信する
C39: =IF(シート名設定!C37=0,"",シート名設定!C37) -> □□□子学年積立金会計報告印刷フォーム | D39: 3 | E39: 添付ファイルなし件名本文のみのメール
C40: =IF(シート名設定!C38=0,"",シート名設定!C38) -> 学年積立金の返金並びに返金振込口座の確認フォーム
C41: =IF(シート名設定!C39=0,"",シート名設定!C39) -> 印刷フォーム5
C42: =IF(シート名設定!C40=0,"",シート名設定!C40) -> 印刷フォーム6
C43: =IF(シート名設定!C41=0,"",シート名設定!C41) -> 印刷フォーム7
C44: =IF(シート名設定!C42=0,"",シート名設定!C42) -> 印刷フォーム8
C45: =IF(シート名設定!C43=0,"",シート名設定!C43) -> 印刷フォーム9
C46: =IF(シート名設定!C44=0,"",シート名設定!C44) -> 印刷フォーム10
C47: =IF(シート名設定!C45=0,"",シート名設定!C45) -> 印刷フォーム11
C48: =IF(シート名設定!C46=0,"",シート名設定!C46) -> 印刷フォーム12
C49: =IF(シート名設定!C47=0,"",シート名設定!C47) -> 印刷フォーム13
C50: =IF(シート名設定!C48=0,"",シート名設定!C48) -> 印刷フォーム14
C51: =IF(シート名設定!C49=0,"",シート名設定!C49) -> 印刷フォーム15
C52: =IF(シート名設定!C50=0,"",シート名設定!C50) -> 印刷フォーム16
C53: =IF(シート名設定!C51=0,"",シート名設定!C51) -> 印刷フォーム17
C54: =IF(シート名設定!C52=0,"",シート名設定!C52) -> 印刷フォーム18
C55: =IF(シート名設定!C53=0,"",シート名設定!C53) -> 印刷フォーム19
C56: =IF(シート名設定!C54=0,"",シート名設定!C54) -> 印刷フォーム20
C57: =IF(シート名設定!E5=0,"",シート名設定!E5) -> 印刷フォーム21
C58: =IF(シート名設定!E6=0,"",シート名設定!E6) -> 印刷フォーム22
C59: =IF(シート名設定!E7=0,"",シート名設定!E7) -> 印刷フォーム23
C60: =IF(シート名設定!E8=0,"",シート名設定!E8) -> 印刷フォーム24
C61: =IF(シート名設定!E9=0,"",シート名設定!E9) -> 印刷フォーム25
C62: =IF(シート名設定!E10=0,"",シート名設定!E10) -> 印刷フォーム26
C63: =IF(シート名設定!E11=0,"",シート名設定!E11) -> 印刷フォーム27
C64: =IF(シート名設定!E12=0,"",シート名設定!E12) -> 印刷フォーム28
C65: =IF(シート名設定!E13=0,"",シート名設定!E13) -> 印刷フォーム29
C66: =IF(シート名設定!E14=0,"",シート名設定!E14) -> 印刷フォーム30
C67: =IF(シート名設定!E15=0,"",シート名設定!E15) -> 学年積立金会計報告個人別（通年）ソートデーター
C68: =IF(シート名設定!E16=0,"",シート名設定!E16) -> 学年積立金の返金並びに返金振込口座の確認フォームソートデーター
C69: =IF(シート名設定!E17=0,"",シート名設定!E17) -> 印刷フォーム3ソートデーター
C70: =IF(シート名設定!E18=0,"",シート名設定!E18) -> 印刷フォーム4ソートデーター
C71: =IF(シート名設定!E19=0,"",シート名設定!E19) -> 印刷フォーム5ソートデーター
C72: =IF(シート名設定!E20=0,"",シート名設定!E20) -> 印刷フォーム6ソートデーター
C73: =IF(シート名設定!E21=0,"",シート名設定!E21) -> 印刷フォーム7ソートデーター
C74: =IF(シート名設定!E22=0,"",シート名設定!E22) -> 印刷フォーム8ソートデーター
C75: =IF(シート名設定!E23=0,"",シート名設定!E23) -> 印刷フォーム9ソートデーター
C76: =IF(シート名設定!E24=0,"",シート名設定!E24) -> 印刷フォーム10ソートデーター
C77: =IF(シート名設定!E25=0,"",シート名設定!E25) -> 印刷フォーム11ソートデーター
C78: =IF(シート名設定!E26=0,"",シート名設定!E26) -> 印刷フォーム12ソートデーター
C79: =IF(シート名設定!E27=0,"",シート名設定!E27) -> 印刷フォーム13ソートデーター
C80: =IF(シート名設定!E28=0,"",シート名設定!E28) -> 印刷フォーム14ソートデーター
C81: =IF(シート名設定!E29=0,"",シート名設定!E29) -> 印刷フォーム15ソートデーター
C82: =IF(シート名設定!E30=0,"",シート名設定!E30) -> 印刷フォーム16ソートデーター
C83: =IF(シート名設定!E31=0,"",シート名設定!E31) -> 印刷フォーム17ソートデーター
C84: =IF(シート名設定!E32=0,"",シート名設定!E32) -> 印刷フォーム18ソートデーター
C85: =IF(シート名設定!E33=0,"",シート名設定!E33) -> 印刷フォーム19ソートデーター
C86: =IF(シート名設定!E34=0,"",シート名設定!E34) -> 印刷フォーム20ソートデーター
C87: =IF(シート名設定!E35=0,"",シート名設定!E35) -> 印刷フォーム21ソートデーター
C88: =IF(シート名設定!E36=0,"",シート名設定!E36) -> 印刷フォーム22ソートデーター
C89: =IF(シート名設定!E37=0,"",シート名設定!E37) -> 印刷フォーム23ソートデーター
C90: =IF(シート名設定!E38=0,"",シート名設定!E38) -> 印刷フォーム24ソートデーター
C91: =IF(シート名設定!E39=0,"",シート名設定!E39) -> 印刷フォーム25ソートデーター
C92: =IF(シート名設定!E40=0,"",シート名設定!E40) -> 印刷フォーム26ソートデーター
C93: =IF(シート名設定!E41=0,"",シート名設定!E41) -> 印刷フォーム27ソートデーター
C94: =IF(シート名設定!E42=0,"",シート名設定!E42) -> 印刷フォーム28ソートデーター
C95: =IF(シート名設定!E43=0,"",シート名設定!E43) -> 印刷フォーム29ソートデーター
C96: =IF(シート名設定!E44=0,"",シート名設定!E44) -> 印刷フォーム30ソートデーター
C97: =IF(追加ワークシート名設定!D6=0,"",追加ワークシート名設定!D6) -> 退学者○○○子学年積立金会計
C98: =IF(追加ワークシート名設定!D7=0,"",追加ワークシート名設定!D7) -> 退学者□□□子学年積立金会計
C99: =IF(追加ワークシート名設定!D8=0,"",追加ワークシート名設定!D8) -> 特別会計処理該当
C100: =IF(追加ワークシート名設定!D9=0,"",追加ワークシート名設定!D9) -> 
C101: =IF(追加ワークシート名設定!D10=0,"",追加ワークシート名設定!D10) -> 
C102: =IF(追加ワークシート名設定!D11=0,"",追加ワークシート名設定!D11) -> 
C103: =IF(追加ワークシート名設定!D12=0,"",追加ワークシート名設定!D12) -> 
C104: =IF(追加ワークシート名設定!D13=0,"",追加ワークシート名設定!D13) -> 
C105: =IF(追加ワークシート名設定!D14=0,"",追加ワークシート名設定!D14) -> 
C106: =IF(追加ワークシート名設定!D15=0,"",追加ワークシート名設定!D15) -> 
C107: =IF(追加ワークシート名設定!D16=0,"",追加ワークシート名設定!D16) -> 
C108: =IF(追加ワークシート名設定!D17=0,"",追加ワークシート名設定!D17) -> 
C109: =IF(追加ワークシート名設定!D18=0,"",追加ワークシート名設定!D18) -> 
C110: =IF(追加ワークシート名設定!D19=0,"",追加ワークシート名設定!D19) -> 
C111: =IF(追加ワークシート名設定!D20=0,"",追加ワークシート名設定!D20) -> 
C112: =IF(追加ワークシート名設定!D21=0,"",追加ワークシート名設定!D21) -> 
C113: =IF(追加ワークシート名設定!D22=0,"",追加ワークシート名設定!D22) -> 
C114: =IF(追加ワークシート名設定!D23=0,"",追加ワークシート名設定!D23) -> 
C115: =IF(追加ワークシート名設定!D24=0,"",追加ワークシート名設定!D24) -> 
C116: =IF(追加ワークシート名設定!D25=0,"",追加ワークシート名設定!D25) -> 
C117: =IF(追加ワークシート名設定!D26=0,"",追加ワークシート名設定!D26) -> 
C118: =IF(追加ワークシート名設定!D27=0,"",追加ワークシート名設定!D27) -> 
C119: =IF(追加ワークシート名設定!D28=0,"",追加ワークシート名設定!D28) -> 
C120: =IF(追加ワークシート名設定!D29=0,"",追加ワークシート名設定!D29) -> 
C121: =IF(追加ワークシート名設定!D30=0,"",追加ワークシート名設定!D30) -> 
C122: =IF(追加ワークシート名設定!D31=0,"",追加ワークシート名設定!D31) -> 
C123: =IF(追加ワークシート名設定!D32=0,"",追加ワークシート名設定!D32) -> 
C124: =IF(追加ワークシート名設定!D33=0,"",追加ワークシート名設定!D33) -> 
C125: =IF(追加ワークシート名設定!D34=0,"",追加ワークシート名設定!D34) -> 
C126: =IF(追加ワークシート名設定!D35=0,"",追加ワークシート名設定!D35) -> 
C127: =IF(追加ワークシート名設定!D36=0,"",追加ワークシート名設定!D36) -> 
C128: =IF(追加ワークシート名設定!D37=0,"",追加ワークシート名設定!D37) -> 
C129: =IF(追加ワークシート名設定!D38=0,"",追加ワークシート名設定!D38) -> 
C130: =IF(追加ワークシート名設定!D39=0,"",追加ワークシート名設定!D39) -> 
C131: =IF(追加ワークシート名設定!D40=0,"",追加ワークシート名設定!D40) -> 
C132: =IF(追加ワークシート名設定!D41=0,"",追加ワークシート名設定!D41) -> 
C133: =IF(追加ワークシート名設定!D42=0,"",追加ワークシート名設定!D42) -> 
C134: =IF(追加ワークシート名設定!D43=0,"",追加ワークシート名設定!D43) -> 
C135: =IF(追加ワークシート名設定!D44=0,"",追加ワークシート名設定!D44) -> 
C136: =IF(追加ワークシート名設定!D45=0,"",追加ワークシート名設定!D45) -> 
C137: =IF(追加ワークシート名設定!D46=0,"",追加ワークシート名設定!D46) -> 
C138: =IF(追加ワークシート名設定!D47=0,"",追加ワークシート名設定!D47) -> 
C139: =IF(追加ワークシート名設定!D48=0,"",追加ワークシート名設定!D48) -> 
C140: =IF(追加ワークシート名設定!D49=0,"",追加ワークシート名設定!D49) -> 
C141: =IF(追加ワークシート名設定!D50=0,"",追加ワークシート名設定!D50) -> 
C142: =IF(追加ワークシート名設定!D51=0,"",追加ワークシート名設定!D51) -> 
C143: =IF(追加ワークシート名設定!D52=0,"",追加ワークシート名設定!D52) -> 
C144: =IF(追加ワークシート名設定!D53=0,"",追加ワークシート名設定!D53) -> 
C145: =IF(追加ワークシート名設定!D54=0,"",追加ワークシート名設定!D54) -> 
C146: =IF(追加ワークシート名設定!D55=0,"",追加ワークシート名設定!D55) -> 
C147: =IF(追加ワークシート名設定!D56=0,"",追加ワークシート名設定!D56) -> 
C148: =IF(追加ワークシート名設定!D57=0,"",追加ワークシート名設定!D57) -> 
C149: =IF(追加ワークシート名設定!D58=0,"",追加ワークシート名設定!D58) -> 
C150: =IF(追加ワークシート名設定!D59=0,"",追加ワークシート名設定!D59) -> 
C151: =IF(追加ワークシート名設定!D60=0,"",追加ワークシート名設定!D60) -> 
C152: =IF(追加ワークシート名設定!D61=0,"",追加ワークシート名設定!D61) -> 
C153: =IF(追加ワークシート名設定!D62=0,"",追加ワークシート名設定!D62) -> 
C154: =IF(追加ワークシート名設定!D63=0,"",追加ワークシート名設定!D63) -> 
C155: =IF(追加ワークシート名設定!D64=0,"",追加ワークシート名設定!D64) -> 
C156: =IF(追加ワークシート名設定!D65=0,"",追加ワークシート名設定!D65) -> 
C157: =IF(追加ワークシート名設定!D66=0,"",追加ワークシート名設定!D66) -> 
C158: =IF(追加ワークシート名設定!D67=0,"",追加ワークシート名設定!D67) -> 
C159: =IF(追加ワークシート名設定!D68=0,"",追加ワークシート名設定!D68) -> 
C160: =IF(追加ワークシート名設定!D69=0,"",追加ワークシート名設定!D69) -> 
C161: =IF(シート名設定!C30=0,"",シート名設定!C30) -> 入力AA1

Sheet 一覧表付ファイル作成入力設定17
B3: =シート名設定!C25 -> 一覧表付ファイル作成入力設定17
B4: １．入力元の設定
B5: 項 目 | C5: 設定内容
B6: シート名
B7: データ先頭セル行番号
B8: データ先頭セル列番号
B9: 異同比較列番号
B10: データー数
B11: For Next の増分
B13: ２．入力先の設定
B14: 項 目 | C14: 設定内容
B15: シート名
B16: 入力先頭セル行番号
B17: 入力先頭セル列番号
B18: 入力最終セル行番号
B19: 入力最終セル列番号
B20: 入力データー数
B21: 通しページ入力セル行番号
B22: 通しページ入力セル列番号
B23: 区分内ページ入力セル行番号
B24: 区分内ページ入力セル列番号
B25: ３．印刷処理かファイルのメール送信の設定
B26: 項 目 | C26: 設定内容
B27: 印刷処理か ファイルの メール送信 の選択 | D27: 1
B28: ファイルのメール送信の場合の印刷フォームソートデーターシートのメールアドレスが入力されている列番号
B29: ファイルのメール送信の場合の印刷フォームソートデーターシートの件名が入力されている列番号
B30: ファイルのメール送信の場合の印刷フォームソートデーターシートの本文が入力されている列番号
B31: ファイルのメール送信の場合の添付ファイルの保存先ドライブ及びフォルダー
C37: =IF(シート名設定!C35=0,"",シート名設定!C35) -> 平成１７年度第３学年会計報告個人別（通年） | D37: 1 | E37: 印刷する
C38: =IF(シート名設定!C36=0,"",シート名設定!C36) -> ○○○子学年積立金会計報告印刷フォーム | D38: 2 | E38: メールで送信する
C39: =IF(シート名設定!C37=0,"",シート名設定!C37) -> □□□子学年積立金会計報告印刷フォーム | D39: 3 | E39: 添付ファイルなし件名本文のみのメール
C40: =IF(シート名設定!C38=0,"",シート名設定!C38) -> 学年積立金の返金並びに返金振込口座の確認フォーム
C41: =IF(シート名設定!C39=0,"",シート名設定!C39) -> 印刷フォーム5
C42: =IF(シート名設定!C40=0,"",シート名設定!C40) -> 印刷フォーム6
C43: =IF(シート名設定!C41=0,"",シート名設定!C41) -> 印刷フォーム7
C44: =IF(シート名設定!C42=0,"",シート名設定!C42) -> 印刷フォーム8
C45: =IF(シート名設定!C43=0,"",シート名設定!C43) -> 印刷フォーム9
C46: =IF(シート名設定!C44=0,"",シート名設定!C44) -> 印刷フォーム10
C47: =IF(シート名設定!C45=0,"",シート名設定!C45) -> 印刷フォーム11
C48: =IF(シート名設定!C46=0,"",シート名設定!C46) -> 印刷フォーム12
C49: =IF(シート名設定!C47=0,"",シート名設定!C47) -> 印刷フォーム13
C50: =IF(シート名設定!C48=0,"",シート名設定!C48) -> 印刷フォーム14
C51: =IF(シート名設定!C49=0,"",シート名設定!C49) -> 印刷フォーム15
C52: =IF(シート名設定!C50=0,"",シート名設定!C50) -> 印刷フォーム16
C53: =IF(シート名設定!C51=0,"",シート名設定!C51) -> 印刷フォーム17
C54: =IF(シート名設定!C52=0,"",シート名設定!C52) -> 印刷フォーム18
C55: =IF(シート名設定!C53=0,"",シート名設定!C53) -> 印刷フォーム19
C56: =IF(シート名設定!C54=0,"",シート名設定!C54) -> 印刷フォーム20
C57: =IF(シート名設定!E5=0,"",シート名設定!E5) -> 印刷フォーム21
C58: =IF(シート名設定!E6=0,"",シート名設定!E6) -> 印刷フォーム22
C59: =IF(シート名設定!E7=0,"",シート名設定!E7) -> 印刷フォーム23
C60: =IF(シート名設定!E8=0,"",シート名設定!E8) -> 印刷フォーム24
C61: =IF(シート名設定!E9=0,"",シート名設定!E9) -> 印刷フォーム25
C62: =IF(シート名設定!E10=0,"",シート名設定!E10) -> 印刷フォーム26
C63: =IF(シート名設定!E11=0,"",シート名設定!E11) -> 印刷フォーム27
C64: =IF(シート名設定!E12=0,"",シート名設定!E12) -> 印刷フォーム28
C65: =IF(シート名設定!E13=0,"",シート名設定!E13) -> 印刷フォーム29
C66: =IF(シート名設定!E14=0,"",シート名設定!E14) -> 印刷フォーム30
C67: =IF(シート名設定!E15=0,"",シート名設定!E15) -> 学年積立金会計報告個人別（通年）ソートデーター
C68: =IF(シート名設定!E16=0,"",シート名設定!E16) -> 学年積立金の返金並びに返金振込口座の確認フォームソートデーター
C69: =IF(シート名設定!E17=0,"",シート名設定!E17) -> 印刷フォーム3ソートデーター
C70: =IF(シート名設定!E18=0,"",シート名設定!E18) -> 印刷フォーム4ソートデーター
C71: =IF(シート名設定!E19=0,"",シート名設定!E19) -> 印刷フォーム5ソートデーター
C72: =IF(シート名設定!E20=0,"",シート名設定!E20) -> 印刷フォーム6ソートデーター
C73: =IF(シート名設定!E21=0,"",シート名設定!E21) -> 印刷フォーム7ソートデーター
C74: =IF(シート名設定!E22=0,"",シート名設定!E22) -> 印刷フォーム8ソートデーター
C75: =IF(シート名設定!E23=0,"",シート名設定!E23) -> 印刷フォーム9ソートデーター
C76: =IF(シート名設定!E24=0,"",シート名設定!E24) -> 印刷フォーム10ソートデーター
C77: =IF(シート名設定!E25=0,"",シート名設定!E25) -> 印刷フォーム11ソートデーター
C78: =IF(シート名設定!E26=0,"",シート名設定!E26) -> 印刷フォーム12ソートデーター
C79: =IF(シート名設定!E27=0,"",シート名設定!E27) -> 印刷フォーム13ソートデーター
C80: =IF(シート名設定!E28=0,"",シート名設定!E28) -> 印刷フォーム14ソートデーター
C81: =IF(シート名設定!E29=0,"",シート名設定!E29) -> 印刷フォーム15ソートデーター
C82: =IF(シート名設定!E30=0,"",シート名設定!E30) -> 印刷フォーム16ソートデーター
C83: =IF(シート名設定!E31=0,"",シート名設定!E31) -> 印刷フォーム17ソートデーター
C84: =IF(シート名設定!E32=0,"",シート名設定!E32) -> 印刷フォーム18ソートデーター
C85: =IF(シート名設定!E33=0,"",シート名設定!E33) -> 印刷フォーム19ソートデーター
C86: =IF(シート名設定!E34=0,"",シート名設定!E34) -> 印刷フォーム20ソートデーター
C87: =IF(シート名設定!E35=0,"",シート名設定!E35) -> 印刷フォーム21ソートデーター
C88: =IF(シート名設定!E36=0,"",シート名設定!E36) -> 印刷フォーム22ソートデーター
C89: =IF(シート名設定!E37=0,"",シート名設定!E37) -> 印刷フォーム23ソートデーター
C90: =IF(シート名設定!E38=0,"",シート名設定!E38) -> 印刷フォーム24ソートデーター
C91: =IF(シート名設定!E39=0,"",シート名設定!E39) -> 印刷フォーム25ソートデーター
C92: =IF(シート名設定!E40=0,"",シート名設定!E40) -> 印刷フォーム26ソートデーター
C93: =IF(シート名設定!E41=0,"",シート名設定!E41) -> 印刷フォーム27ソートデーター
C94: =IF(シート名設定!E42=0,"",シート名設定!E42) -> 印刷フォーム28ソートデーター
C95: =IF(シート名設定!E43=0,"",シート名設定!E43) -> 印刷フォーム29ソートデーター
C96: =IF(シート名設定!E44=0,"",シート名設定!E44) -> 印刷フォーム30ソートデーター
C97: =IF(追加ワークシート名設定!D6=0,"",追加ワークシート名設定!D6) -> 退学者○○○子学年積立金会計
C98: =IF(追加ワークシート名設定!D7=0,"",追加ワークシート名設定!D7) -> 退学者□□□子学年積立金会計
C99: =IF(追加ワークシート名設定!D8=0,"",追加ワークシート名設定!D8) -> 特別会計処理該当
C100: =IF(追加ワークシート名設定!D9=0,"",追加ワークシート名設定!D9) -> 
C101: =IF(追加ワークシート名設定!D10=0,"",追加ワークシート名設定!D10) -> 
C102: =IF(追加ワークシート名設定!D11=0,"",追加ワークシート名設定!D11) -> 
C103: =IF(追加ワークシート名設定!D12=0,"",追加ワークシート名設定!D12) -> 
C104: =IF(追加ワークシート名設定!D13=0,"",追加ワークシート名設定!D13) -> 
C105: =IF(追加ワークシート名設定!D14=0,"",追加ワークシート名設定!D14) -> 
C106: =IF(追加ワークシート名設定!D15=0,"",追加ワークシート名設定!D15) -> 
C107: =IF(追加ワークシート名設定!D16=0,"",追加ワークシート名設定!D16) -> 
C108: =IF(追加ワークシート名設定!D17=0,"",追加ワークシート名設定!D17) -> 
C109: =IF(追加ワークシート名設定!D18=0,"",追加ワークシート名設定!D18) -> 
C110: =IF(追加ワークシート名設定!D19=0,"",追加ワークシート名設定!D19) -> 
C111: =IF(追加ワークシート名設定!D20=0,"",追加ワークシート名設定!D20) -> 
C112: =IF(追加ワークシート名設定!D21=0,"",追加ワークシート名設定!D21) -> 
C113: =IF(追加ワークシート名設定!D22=0,"",追加ワークシート名設定!D22) -> 
C114: =IF(追加ワークシート名設定!D23=0,"",追加ワークシート名設定!D23) -> 
C115: =IF(追加ワークシート名設定!D24=0,"",追加ワークシート名設定!D24) -> 
C116: =IF(追加ワークシート名設定!D25=0,"",追加ワークシート名設定!D25) -> 
C117: =IF(追加ワークシート名設定!D26=0,"",追加ワークシート名設定!D26) -> 
C118: =IF(追加ワークシート名設定!D27=0,"",追加ワークシート名設定!D27) -> 
C119: =IF(追加ワークシート名設定!D28=0,"",追加ワークシート名設定!D28) -> 
C120: =IF(追加ワークシート名設定!D29=0,"",追加ワークシート名設定!D29) -> 
C121: =IF(追加ワークシート名設定!D30=0,"",追加ワークシート名設定!D30) -> 
C122: =IF(追加ワークシート名設定!D31=0,"",追加ワークシート名設定!D31) -> 
C123: =IF(追加ワークシート名設定!D32=0,"",追加ワークシート名設定!D32) -> 
C124: =IF(追加ワークシート名設定!D33=0,"",追加ワークシート名設定!D33) -> 
C125: =IF(追加ワークシート名設定!D34=0,"",追加ワークシート名設定!D34) -> 
C126: =IF(追加ワークシート名設定!D35=0,"",追加ワークシート名設定!D35) -> 
C127: =IF(追加ワークシート名設定!D36=0,"",追加ワークシート名設定!D36) -> 
C128: =IF(追加ワークシート名設定!D37=0,"",追加ワークシート名設定!D37) -> 
C129: =IF(追加ワークシート名設定!D38=0,"",追加ワークシート名設定!D38) -> 
C130: =IF(追加ワークシート名設定!D39=0,"",追加ワークシート名設定!D39) -> 
C131: =IF(追加ワークシート名設定!D40=0,"",追加ワークシート名設定!D40) -> 
C132: =IF(追加ワークシート名設定!D41=0,"",追加ワークシート名設定!D41) -> 
C133: =IF(追加ワークシート名設定!D42=0,"",追加ワークシート名設定!D42) -> 
C134: =IF(追加ワークシート名設定!D43=0,"",追加ワークシート名設定!D43) -> 
C135: =IF(追加ワークシート名設定!D44=0,"",追加ワークシート名設定!D44) -> 
C136: =IF(追加ワークシート名設定!D45=0,"",追加ワークシート名設定!D45) -> 
C137: =IF(追加ワークシート名設定!D46=0,"",追加ワークシート名設定!D46) -> 
C138: =IF(追加ワークシート名設定!D47=0,"",追加ワークシート名設定!D47) -> 
C139: =IF(追加ワークシート名設定!D48=0,"",追加ワークシート名設定!D48) -> 
C140: =IF(追加ワークシート名設定!D49=0,"",追加ワークシート名設定!D49) -> 
C141: =IF(追加ワークシート名設定!D50=0,"",追加ワークシート名設定!D50) -> 
C142: =IF(追加ワークシート名設定!D51=0,"",追加ワークシート名設定!D51) -> 
C143: =IF(追加ワークシート名設定!D52=0,"",追加ワークシート名設定!D52) -> 
C144: =IF(追加ワークシート名設定!D53=0,"",追加ワークシート名設定!D53) -> 
C145: =IF(追加ワークシート名設定!D54=0,"",追加ワークシート名設定!D54) -> 
C146: =IF(追加ワークシート名設定!D55=0,"",追加ワークシート名設定!D55) -> 
C147: =IF(追加ワークシート名設定!D56=0,"",追加ワークシート名設定!D56) -> 
C148: =IF(追加ワークシート名設定!D57=0,"",追加ワークシート名設定!D57) -> 
C149: =IF(追加ワークシート名設定!D58=0,"",追加ワークシート名設定!D58) -> 
C150: =IF(追加ワークシート名設定!D59=0,"",追加ワークシート名設定!D59) -> 
C151: =IF(追加ワークシート名設定!D60=0,"",追加ワークシート名設定!D60) -> 
C152: =IF(追加ワークシート名設定!D61=0,"",追加ワークシート名設定!D61) -> 
C153: =IF(追加ワークシート名設定!D62=0,"",追加ワークシート名設定!D62) -> 
C154: =IF(追加ワークシート名設定!D63=0,"",追加ワークシート名設定!D63) -> 
C155: =IF(追加ワークシート名設定!D64=0,"",追加ワークシート名設定!D64) -> 
C156: =IF(追加ワークシート名設定!D65=0,"",追加ワークシート名設定!D65) -> 
C157: =IF(追加ワークシート名設定!D66=0,"",追加ワークシート名設定!D66) -> 
C158: =IF(追加ワークシート名設定!D67=0,"",追加ワークシート名設定!D67) -> 
C159: =IF(追加ワークシート名設定!D68=0,"",追加ワークシート名設定!D68) -> 
C160: =IF(追加ワークシート名設定!D69=0,"",追加ワークシート名設定!D69) -> 
C161: =IF(シート名設定!C30=0,"",シート名設定!C30) -> 入力AA1

Sheet 一覧表付ファイル作成入力設定18
B3: =シート名設定!C26 -> 一覧表付ファイル作成入力設定18
B4: １．入力元の設定
B5: 項 目 | C5: 設定内容
B6: シート名
B7: データ先頭セル行番号
B8: データ先頭セル列番号
B9: 異同比較列番号
B10: データー数
B11: For Next の増分
B13: ２．入力先の設定
B14: 項 目 | C14: 設定内容
B15: シート名
B16: 入力先頭セル行番号
B17: 入力先頭セル列番号
B18: 入力最終セル行番号
B19: 入力最終セル列番号
B20: 入力データー数
B21: 通しページ入力セル行番号
B22: 通しページ入力セル列番号
B23: 区分内ページ入力セル行番号
B24: 区分内ページ入力セル列番号
B25: ３．印刷処理かファイルのメール送信の設定
B26: 項 目 | C26: 設定内容
B27: 印刷処理か ファイルの メール送信 の選択 | C27: =VLOOKUP(D27,D37:E39,2) -> 印刷する | D27: 1
B28: ファイルのメール送信の場合の印刷フォームソートデーターシートのメールアドレスが入力されている列番号
B29: ファイルのメール送信の場合の印刷フォームソートデーターシートの件名が入力されている列番号
B30: ファイルのメール送信の場合の印刷フォームソートデーターシートの本文が入力されている列番号
B31: ファイルのメール送信の場合の添付ファイルの保存先ドライブ及びフォルダー
C37: =IF(シート名設定!C35=0,"",シート名設定!C35) -> 平成１７年度第３学年会計報告個人別（通年） | D37: 1 | E37: 印刷する
C38: =IF(シート名設定!C36=0,"",シート名設定!C36) -> ○○○子学年積立金会計報告印刷フォーム | D38: 2 | E38: メールで送信する
C39: =IF(シート名設定!C37=0,"",シート名設定!C37) -> □□□子学年積立金会計報告印刷フォーム | D39: 3 | E39: 添付ファイルなし件名本文のみのメール
C40: =IF(シート名設定!C38=0,"",シート名設定!C38) -> 学年積立金の返金並びに返金振込口座の確認フォーム
C41: =IF(シート名設定!C39=0,"",シート名設定!C39) -> 印刷フォーム5
C42: =IF(シート名設定!C40=0,"",シート名設定!C40) -> 印刷フォーム6
C43: =IF(シート名設定!C41=0,"",シート名設定!C41) -> 印刷フォーム7
C44: =IF(シート名設定!C42=0,"",シート名設定!C42) -> 印刷フォーム8
C45: =IF(シート名設定!C43=0,"",シート名設定!C43) -> 印刷フォーム9
C46: =IF(シート名設定!C44=0,"",シート名設定!C44) -> 印刷フォーム10
C47: =IF(シート名設定!C45=0,"",シート名設定!C45) -> 印刷フォーム11
C48: =IF(シート名設定!C46=0,"",シート名設定!C46) -> 印刷フォーム12
C49: =IF(シート名設定!C47=0,"",シート名設定!C47) -> 印刷フォーム13
C50: =IF(シート名設定!C48=0,"",シート名設定!C48) -> 印刷フォーム14
C51: =IF(シート名設定!C49=0,"",シート名設定!C49) -> 印刷フォーム15
C52: =IF(シート名設定!C50=0,"",シート名設定!C50) -> 印刷フォーム16
C53: =IF(シート名設定!C51=0,"",シート名設定!C51) -> 印刷フォーム17
C54: =IF(シート名設定!C52=0,"",シート名設定!C52) -> 印刷フォーム18
C55: =IF(シート名設定!C53=0,"",シート名設定!C53) -> 印刷フォーム19
C56: =IF(シート名設定!C54=0,"",シート名設定!C54) -> 印刷フォーム20
C57: =IF(シート名設定!E5=0,"",シート名設定!E5) -> 印刷フォーム21
C58: =IF(シート名設定!E6=0,"",シート名設定!E6) -> 印刷フォーム22
C59: =IF(シート名設定!E7=0,"",シート名設定!E7) -> 印刷フォーム23
C60: =IF(シート名設定!E8=0,"",シート名設定!E8) -> 印刷フォーム24
C61: =IF(シート名設定!E9=0,"",シート名設定!E9) -> 印刷フォーム25
C62: =IF(シート名設定!E10=0,"",シート名設定!E10) -> 印刷フォーム26
C63: =IF(シート名設定!E11=0,"",シート名設定!E11) -> 印刷フォーム27
C64: =IF(シート名設定!E12=0,"",シート名設定!E12) -> 印刷フォーム28
C65: =IF(シート名設定!E13=0,"",シート名設定!E13) -> 印刷フォーム29
C66: =IF(シート名設定!E14=0,"",シート名設定!E14) -> 印刷フォーム30
C67: =IF(シート名設定!E15=0,"",シート名設定!E15) -> 学年積立金会計報告個人別（通年）ソートデーター
C68: =IF(シート名設定!E16=0,"",シート名設定!E16) -> 学年積立金の返金並びに返金振込口座の確認フォームソートデーター
C69: =IF(シート名設定!E17=0,"",シート名設定!E17) -> 印刷フォーム3ソートデーター
C70: =IF(シート名設定!E18=0,"",シート名設定!E18) -> 印刷フォーム4ソートデーター
C71: =IF(シート名設定!E19=0,"",シート名設定!E19) -> 印刷フォーム5ソートデーター
C72: =IF(シート名設定!E20=0,"",シート名設定!E20) -> 印刷フォーム6ソートデーター
C73: =IF(シート名設定!E21=0,"",シート名設定!E21) -> 印刷フォーム7ソートデーター
C74: =IF(シート名設定!E22=0,"",シート名設定!E22) -> 印刷フォーム8ソートデーター
C75: =IF(シート名設定!E23=0,"",シート名設定!E23) -> 印刷フォーム9ソートデーター
C76: =IF(シート名設定!E24=0,"",シート名設定!E24) -> 印刷フォーム10ソートデーター
C77: =IF(シート名設定!E25=0,"",シート名設定!E25) -> 印刷フォーム11ソートデーター
C78: =IF(シート名設定!E26=0,"",シート名設定!E26) -> 印刷フォーム12ソートデーター
C79: =IF(シート名設定!E27=0,"",シート名設定!E27) -> 印刷フォーム13ソートデーター
C80: =IF(シート名設定!E28=0,"",シート名設定!E28) -> 印刷フォーム14ソートデーター
C81: =IF(シート名設定!E29=0,"",シート名設定!E29) -> 印刷フォーム15ソートデーター
C82: =IF(シート名設定!E30=0,"",シート名設定!E30) -> 印刷フォーム16ソートデーター
C83: =IF(シート名設定!E31=0,"",シート名設定!E31) -> 印刷フォーム17ソートデーター
C84: =IF(シート名設定!E32=0,"",シート名設定!E32) -> 印刷フォーム18ソートデーター
C85: =IF(シート名設定!E33=0,"",シート名設定!E33) -> 印刷フォーム19ソートデーター
C86: =IF(シート名設定!E34=0,"",シート名設定!E34) -> 印刷フォーム20ソートデーター
C87: =IF(シート名設定!E35=0,"",シート名設定!E35) -> 印刷フォーム21ソートデーター
C88: =IF(シート名設定!E36=0,"",シート名設定!E36) -> 印刷フォーム22ソートデーター
C89: =IF(シート名設定!E37=0,"",シート名設定!E37) -> 印刷フォーム23ソートデーター
C90: =IF(シート名設定!E38=0,"",シート名設定!E38) -> 印刷フォーム24ソートデーター
C91: =IF(シート名設定!E39=0,"",シート名設定!E39) -> 印刷フォーム25ソートデーター
C92: =IF(シート名設定!E40=0,"",シート名設定!E40) -> 印刷フォーム26ソートデーター
C93: =IF(シート名設定!E41=0,"",シート名設定!E41) -> 印刷フォーム27ソートデーター
C94: =IF(シート名設定!E42=0,"",シート名設定!E42) -> 印刷フォーム28ソートデーター
C95: =IF(シート名設定!E43=0,"",シート名設定!E43) -> 印刷フォーム29ソートデーター
C96: =IF(シート名設定!E44=0,"",シート名設定!E44) -> 印刷フォーム30ソートデーター
C97: =IF(追加ワークシート名設定!D6=0,"",追加ワークシート名設定!D6) -> 退学者○○○子学年積立金会計
C98: =IF(追加ワークシート名設定!D7=0,"",追加ワークシート名設定!D7) -> 退学者□□□子学年積立金会計
C99: =IF(追加ワークシート名設定!D8=0,"",追加ワークシート名設定!D8) -> 特別会計処理該当
C100: =IF(追加ワークシート名設定!D9=0,"",追加ワークシート名設定!D9) -> 
C101: =IF(追加ワークシート名設定!D10=0,"",追加ワークシート名設定!D10) -> 
C102: =IF(追加ワークシート名設定!D11=0,"",追加ワークシート名設定!D11) -> 
C103: =IF(追加ワークシート名設定!D12=0,"",追加ワークシート名設定!D12) -> 
C104: =IF(追加ワークシート名設定!D13=0,"",追加ワークシート名設定!D13) -> 
C105: =IF(追加ワークシート名設定!D14=0,"",追加ワークシート名設定!D14) -> 
C106: =IF(追加ワークシート名設定!D15=0,"",追加ワークシート名設定!D15) -> 
C107: =IF(追加ワークシート名設定!D16=0,"",追加ワークシート名設定!D16) -> 
C108: =IF(追加ワークシート名設定!D17=0,"",追加ワークシート名設定!D17) -> 
C109: =IF(追加ワークシート名設定!D18=0,"",追加ワークシート名設定!D18) -> 
C110: =IF(追加ワークシート名設定!D19=0,"",追加ワークシート名設定!D19) -> 
C111: =IF(追加ワークシート名設定!D20=0,"",追加ワークシート名設定!D20) -> 
C112: =IF(追加ワークシート名設定!D21=0,"",追加ワークシート名設定!D21) -> 
C113: =IF(追加ワークシート名設定!D22=0,"",追加ワークシート名設定!D22) -> 
C114: =IF(追加ワークシート名設定!D23=0,"",追加ワークシート名設定!D23) -> 
C115: =IF(追加ワークシート名設定!D24=0,"",追加ワークシート名設定!D24) -> 
C116: =IF(追加ワークシート名設定!D25=0,"",追加ワークシート名設定!D25) -> 
C117: =IF(追加ワークシート名設定!D26=0,"",追加ワークシート名設定!D26) -> 
C118: =IF(追加ワークシート名設定!D27=0,"",追加ワークシート名設定!D27) -> 
C119: =IF(追加ワークシート名設定!D28=0,"",追加ワークシート名設定!D28) -> 
C120: =IF(追加ワークシート名設定!D29=0,"",追加ワークシート名設定!D29) -> 
C121: =IF(追加ワークシート名設定!D30=0,"",追加ワークシート名設定!D30) -> 
C122: =IF(追加ワークシート名設定!D31=0,"",追加ワークシート名設定!D31) -> 
C123: =IF(追加ワークシート名設定!D32=0,"",追加ワークシート名設定!D32) -> 
C124: =IF(追加ワークシート名設定!D33=0,"",追加ワークシート名設定!D33) -> 
C125: =IF(追加ワークシート名設定!D34=0,"",追加ワークシート名設定!D34) -> 
C126: =IF(追加ワークシート名設定!D35=0,"",追加ワークシート名設定!D35) -> 
C127: =IF(追加ワークシート名設定!D36=0,"",追加ワークシート名設定!D36) -> 
C128: =IF(追加ワークシート名設定!D37=0,"",追加ワークシート名設定!D37) -> 
C129: =IF(追加ワークシート名設定!D38=0,"",追加ワークシート名設定!D38) -> 
C130: =IF(追加ワークシート名設定!D39=0,"",追加ワークシート名設定!D39) -> 
C131: =IF(追加ワークシート名設定!D40=0,"",追加ワークシート名設定!D40) -> 
C132: =IF(追加ワークシート名設定!D41=0,"",追加ワークシート名設定!D41) -> 
C133: =IF(追加ワークシート名設定!D42=0,"",追加ワークシート名設定!D42) -> 
C134: =IF(追加ワークシート名設定!D43=0,"",追加ワークシート名設定!D43) -> 
C135: =IF(追加ワークシート名設定!D44=0,"",追加ワークシート名設定!D44) -> 
C136: =IF(追加ワークシート名設定!D45=0,"",追加ワークシート名設定!D45) -> 
C137: =IF(追加ワークシート名設定!D46=0,"",追加ワークシート名設定!D46) -> 
C138: =IF(追加ワークシート名設定!D47=0,"",追加ワークシート名設定!D47) -> 
C139: =IF(追加ワークシート名設定!D48=0,"",追加ワークシート名設定!D48) -> 
C140: =IF(追加ワークシート名設定!D49=0,"",追加ワークシート名設定!D49) -> 
C141: =IF(追加ワークシート名設定!D50=0,"",追加ワークシート名設定!D50) -> 
C142: =IF(追加ワークシート名設定!D51=0,"",追加ワークシート名設定!D51) -> 
C143: =IF(追加ワークシート名設定!D52=0,"",追加ワークシート名設定!D52) -> 
C144: =IF(追加ワークシート名設定!D53=0,"",追加ワークシート名設定!D53) -> 
C145: =IF(追加ワークシート名設定!D54=0,"",追加ワークシート名設定!D54) -> 
C146: =IF(追加ワークシート名設定!D55=0,"",追加ワークシート名設定!D55) -> 
C147: =IF(追加ワークシート名設定!D56=0,"",追加ワークシート名設定!D56) -> 
C148: =IF(追加ワークシート名設定!D57=0,"",追加ワークシート名設定!D57) -> 
C149: =IF(追加ワークシート名設定!D58=0,"",追加ワークシート名設定!D58) -> 
C150: =IF(追加ワークシート名設定!D59=0,"",追加ワークシート名設定!D59) -> 
C151: =IF(追加ワークシート名設定!D60=0,"",追加ワークシート名設定!D60) -> 
C152: =IF(追加ワークシート名設定!D61=0,"",追加ワークシート名設定!D61) -> 
C153: =IF(追加ワークシート名設定!D62=0,"",追加ワークシート名設定!D62) -> 
C154: =IF(追加ワークシート名設定!D63=0,"",追加ワークシート名設定!D63) -> 
C155: =IF(追加ワークシート名設定!D64=0,"",追加ワークシート名設定!D64) -> 
C156: =IF(追加ワークシート名設定!D65=0,"",追加ワークシート名設定!D65) -> 
C157: =IF(追加ワークシート名設定!D66=0,"",追加ワークシート名設定!D66) -> 
C158: =IF(追加ワークシート名設定!D67=0,"",追加ワークシート名設定!D67) -> 
C159: =IF(追加ワークシート名設定!D68=0,"",追加ワークシート名設定!D68) -> 
C160: =IF(追加ワークシート名設定!D69=0,"",追加ワークシート名設定!D69) -> 
C161: =IF(シート名設定!C30=0,"",シート名設定!C30) -> 入力AA1

Sheet 一覧表付ファイル作成入力設定19
B3: =シート名設定!C27 -> 一覧表付ファイル作成入力設定19
B4: １．入力元の設定
B5: 項 目 | C5: 設定内容
B6: シート名
B7: データ先頭セル行番号
B8: データ先頭セル列番号
B9: 異同比較列番号
B10: データー数
B11: For Next の増分
B13: ２．入力先の設定
B14: 項 目 | C14: 設定内容
B15: シート名
B16: 入力先頭セル行番号
B17: 入力先頭セル列番号
B18: 入力最終セル行番号
B19: 入力最終セル列番号
B20: 入力データー数
B21: 通しページ入力セル行番号
B22: 通しページ入力セル列番号
B23: 区分内ページ入力セル行番号
B24: 区分内ページ入力セル列番号
B25: ３．印刷処理かファイルのメール送信の設定
B26: 項 目 | C26: 設定内容
B27: 印刷処理か ファイルの メール送信 の選択 | D27: 1
B28: ファイルのメール送信の場合の印刷フォームソートデーターシートのメールアドレスが入力されている列番号
B29: ファイルのメール送信の場合の印刷フォームソートデーターシートの件名が入力されている列番号
B30: ファイルのメール送信の場合の印刷フォームソートデーターシートの本文が入力されている列番号
B31: ファイルのメール送信の場合の添付ファイルの保存先ドライブ及びフォルダー
C37: =IF(シート名設定!C35=0,"",シート名設定!C35) -> 平成１７年度第３学年会計報告個人別（通年） | D37: 1 | E37: 印刷する
C38: =IF(シート名設定!C36=0,"",シート名設定!C36) -> ○○○子学年積立金会計報告印刷フォーム | D38: 2 | E38: メールで送信する
C39: =IF(シート名設定!C37=0,"",シート名設定!C37) -> □□□子学年積立金会計報告印刷フォーム | D39: 3 | E39: 添付ファイルなし件名本文のみのメール
C40: =IF(シート名設定!C38=0,"",シート名設定!C38) -> 学年積立金の返金並びに返金振込口座の確認フォーム
C41: =IF(シート名設定!C39=0,"",シート名設定!C39) -> 印刷フォーム5
C42: =IF(シート名設定!C40=0,"",シート名設定!C40) -> 印刷フォーム6
C43: =IF(シート名設定!C41=0,"",シート名設定!C41) -> 印刷フォーム7
C44: =IF(シート名設定!C42=0,"",シート名設定!C42) -> 印刷フォーム8
C45: =IF(シート名設定!C43=0,"",シート名設定!C43) -> 印刷フォーム9
C46: =IF(シート名設定!C44=0,"",シート名設定!C44) -> 印刷フォーム10
C47: =IF(シート名設定!C45=0,"",シート名設定!C45) -> 印刷フォーム11
C48: =IF(シート名設定!C46=0,"",シート名設定!C46) -> 印刷フォーム12
C49: =IF(シート名設定!C47=0,"",シート名設定!C47) -> 印刷フォーム13
C50: =IF(シート名設定!C48=0,"",シート名設定!C48) -> 印刷フォーム14
C51: =IF(シート名設定!C49=0,"",シート名設定!C49) -> 印刷フォーム15
C52: =IF(シート名設定!C50=0,"",シート名設定!C50) -> 印刷フォーム16
C53: =IF(シート名設定!C51=0,"",シート名設定!C51) -> 印刷フォーム17
C54: =IF(シート名設定!C52=0,"",シート名設定!C52) -> 印刷フォーム18
C55: =IF(シート名設定!C53=0,"",シート名設定!C53) -> 印刷フォーム19
C56: =IF(シート名設定!C54=0,"",シート名設定!C54) -> 印刷フォーム20
C57: =IF(シート名設定!E5=0,"",シート名設定!E5) -> 印刷フォーム21
C58: =IF(シート名設定!E6=0,"",シート名設定!E6) -> 印刷フォーム22
C59: =IF(シート名設定!E7=0,"",シート名設定!E7) -> 印刷フォーム23
C60: =IF(シート名設定!E8=0,"",シート名設定!E8) -> 印刷フォーム24
C61: =IF(シート名設定!E9=0,"",シート名設定!E9) -> 印刷フォーム25
C62: =IF(シート名設定!E10=0,"",シート名設定!E10) -> 印刷フォーム26
C63: =IF(シート名設定!E11=0,"",シート名設定!E11) -> 印刷フォーム27
C64: =IF(シート名設定!E12=0,"",シート名設定!E12) -> 印刷フォーム28
C65: =IF(シート名設定!E13=0,"",シート名設定!E13) -> 印刷フォーム29
C66: =IF(シート名設定!E14=0,"",シート名設定!E14) -> 印刷フォーム30
C67: =IF(シート名設定!E15=0,"",シート名設定!E15) -> 学年積立金会計報告個人別（通年）ソートデーター
C68: =IF(シート名設定!E16=0,"",シート名設定!E16) -> 学年積立金の返金並びに返金振込口座の確認フォームソートデーター
C69: =IF(シート名設定!E17=0,"",シート名設定!E17) -> 印刷フォーム3ソートデーター
C70: =IF(シート名設定!E18=0,"",シート名設定!E18) -> 印刷フォーム4ソートデーター
C71: =IF(シート名設定!E19=0,"",シート名設定!E19) -> 印刷フォーム5ソートデーター
C72: =IF(シート名設定!E20=0,"",シート名設定!E20) -> 印刷フォーム6ソートデーター
C73: =IF(シート名設定!E21=0,"",シート名設定!E21) -> 印刷フォーム7ソートデーター
C74: =IF(シート名設定!E22=0,"",シート名設定!E22) -> 印刷フォーム8ソートデーター
C75: =IF(シート名設定!E23=0,"",シート名設定!E23) -> 印刷フォーム9ソートデーター
C76: =IF(シート名設定!E24=0,"",シート名設定!E24) -> 印刷フォーム10ソートデーター
C77: =IF(シート名設定!E25=0,"",シート名設定!E25) -> 印刷フォーム11ソートデーター
C78: =IF(シート名設定!E26=0,"",シート名設定!E26) -> 印刷フォーム12ソートデーター
C79: =IF(シート名設定!E27=0,"",シート名設定!E27) -> 印刷フォーム13ソートデーター
C80: =IF(シート名設定!E28=0,"",シート名設定!E28) -> 印刷フォーム14ソートデーター
C81: =IF(シート名設定!E29=0,"",シート名設定!E29) -> 印刷フォーム15ソートデーター
C82: =IF(シート名設定!E30=0,"",シート名設定!E30) -> 印刷フォーム16ソートデーター
C83: =IF(シート名設定!E31=0,"",シート名設定!E31) -> 印刷フォーム17ソートデーター
C84: =IF(シート名設定!E32=0,"",シート名設定!E32) -> 印刷フォーム18ソートデーター
C85: =IF(シート名設定!E33=0,"",シート名設定!E33) -> 印刷フォーム19ソートデーター
C86: =IF(シート名設定!E34=0,"",シート名設定!E34) -> 印刷フォーム20ソートデーター
C87: =IF(シート名設定!E35=0,"",シート名設定!E35) -> 印刷フォーム21ソートデーター
C88: =IF(シート名設定!E36=0,"",シート名設定!E36) -> 印刷フォーム22ソートデーター
C89: =IF(シート名設定!E37=0,"",シート名設定!E37) -> 印刷フォーム23ソートデーター
C90: =IF(シート名設定!E38=0,"",シート名設定!E38) -> 印刷フォーム24ソートデーター
C91: =IF(シート名設定!E39=0,"",シート名設定!E39) -> 印刷フォーム25ソートデーター
C92: =IF(シート名設定!E40=0,"",シート名設定!E40) -> 印刷フォーム26ソートデーター
C93: =IF(シート名設定!E41=0,"",シート名設定!E41) -> 印刷フォーム27ソートデーター
C94: =IF(シート名設定!E42=0,"",シート名設定!E42) -> 印刷フォーム28ソートデーター
C95: =IF(シート名設定!E43=0,"",シート名設定!E43) -> 印刷フォーム29ソートデーター
C96: =IF(シート名設定!E44=0,"",シート名設定!E44) -> 印刷フォーム30ソートデーター
C97: =IF(追加ワークシート名設定!D6=0,"",追加ワークシート名設定!D6) -> 退学者○○○子学年積立金会計
C98: =IF(追加ワークシート名設定!D7=0,"",追加ワークシート名設定!D7) -> 退学者□□□子学年積立金会計
C99: =IF(追加ワークシート名設定!D8=0,"",追加ワークシート名設定!D8) -> 特別会計処理該当
C100: =IF(追加ワークシート名設定!D9=0,"",追加ワークシート名設定!D9) -> 
C101: =IF(追加ワークシート名設定!D10=0,"",追加ワークシート名設定!D10) -> 
C102: =IF(追加ワークシート名設定!D11=0,"",追加ワークシート名設定!D11) -> 
C103: =IF(追加ワークシート名設定!D12=0,"",追加ワークシート名設定!D12) -> 
C104: =IF(追加ワークシート名設定!D13=0,"",追加ワークシート名設定!D13) -> 
C105: =IF(追加ワークシート名設定!D14=0,"",追加ワークシート名設定!D14) -> 
C106: =IF(追加ワークシート名設定!D15=0,"",追加ワークシート名設定!D15) -> 
C107: =IF(追加ワークシート名設定!D16=0,"",追加ワークシート名設定!D16) -> 
C108: =IF(追加ワークシート名設定!D17=0,"",追加ワークシート名設定!D17) -> 
C109: =IF(追加ワークシート名設定!D18=0,"",追加ワークシート名設定!D18) -> 
C110: =IF(追加ワークシート名設定!D19=0,"",追加ワークシート名設定!D19) -> 
C111: =IF(追加ワークシート名設定!D20=0,"",追加ワークシート名設定!D20) -> 
C112: =IF(追加ワークシート名設定!D21=0,"",追加ワークシート名設定!D21) -> 
C113: =IF(追加ワークシート名設定!D22=0,"",追加ワークシート名設定!D22) -> 
C114: =IF(追加ワークシート名設定!D23=0,"",追加ワークシート名設定!D23) -> 
C115: =IF(追加ワークシート名設定!D24=0,"",追加ワークシート名設定!D24) -> 
C116: =IF(追加ワークシート名設定!D25=0,"",追加ワークシート名設定!D25) -> 
C117: =IF(追加ワークシート名設定!D26=0,"",追加ワークシート名設定!D26) -> 
C118: =IF(追加ワークシート名設定!D27=0,"",追加ワークシート名設定!D27) -> 
C119: =IF(追加ワークシート名設定!D28=0,"",追加ワークシート名設定!D28) -> 
C120: =IF(追加ワークシート名設定!D29=0,"",追加ワークシート名設定!D29) -> 
C121: =IF(追加ワークシート名設定!D30=0,"",追加ワークシート名設定!D30) -> 
C122: =IF(追加ワークシート名設定!D31=0,"",追加ワークシート名設定!D31) -> 
C123: =IF(追加ワークシート名設定!D32=0,"",追加ワークシート名設定!D32) -> 
C124: =IF(追加ワークシート名設定!D33=0,"",追加ワークシート名設定!D33) -> 
C125: =IF(追加ワークシート名設定!D34=0,"",追加ワークシート名設定!D34) -> 
C126: =IF(追加ワークシート名設定!D35=0,"",追加ワークシート名設定!D35) -> 
C127: =IF(追加ワークシート名設定!D36=0,"",追加ワークシート名設定!D36) -> 
C128: =IF(追加ワークシート名設定!D37=0,"",追加ワークシート名設定!D37) -> 
C129: =IF(追加ワークシート名設定!D38=0,"",追加ワークシート名設定!D38) -> 
C130: =IF(追加ワークシート名設定!D39=0,"",追加ワークシート名設定!D39) -> 
C131: =IF(追加ワークシート名設定!D40=0,"",追加ワークシート名設定!D40) -> 
C132: =IF(追加ワークシート名設定!D41=0,"",追加ワークシート名設定!D41) -> 
C133: =IF(追加ワークシート名設定!D42=0,"",追加ワークシート名設定!D42) -> 
C134: =IF(追加ワークシート名設定!D43=0,"",追加ワークシート名設定!D43) -> 
C135: =IF(追加ワークシート名設定!D44=0,"",追加ワークシート名設定!D44) -> 
C136: =IF(追加ワークシート名設定!D45=0,"",追加ワークシート名設定!D45) -> 
C137: =IF(追加ワークシート名設定!D46=0,"",追加ワークシート名設定!D46) -> 
C138: =IF(追加ワークシート名設定!D47=0,"",追加ワークシート名設定!D47) -> 
C139: =IF(追加ワークシート名設定!D48=0,"",追加ワークシート名設定!D48) -> 
C140: =IF(追加ワークシート名設定!D49=0,"",追加ワークシート名設定!D49) -> 
C141: =IF(追加ワークシート名設定!D50=0,"",追加ワークシート名設定!D50) -> 
C142: =IF(追加ワークシート名設定!D51=0,"",追加ワークシート名設定!D51) -> 
C143: =IF(追加ワークシート名設定!D52=0,"",追加ワークシート名設定!D52) -> 
C144: =IF(追加ワークシート名設定!D53=0,"",追加ワークシート名設定!D53) -> 
C145: =IF(追加ワークシート名設定!D54=0,"",追加ワークシート名設定!D54) -> 
C146: =IF(追加ワークシート名設定!D55=0,"",追加ワークシート名設定!D55) -> 
C147: =IF(追加ワークシート名設定!D56=0,"",追加ワークシート名設定!D56) -> 
C148: =IF(追加ワークシート名設定!D57=0,"",追加ワークシート名設定!D57) -> 
C149: =IF(追加ワークシート名設定!D58=0,"",追加ワークシート名設定!D58) -> 
C150: =IF(追加ワークシート名設定!D59=0,"",追加ワークシート名設定!D59) -> 
C151: =IF(追加ワークシート名設定!D60=0,"",追加ワークシート名設定!D60) -> 
C152: =IF(追加ワークシート名設定!D61=0,"",追加ワークシート名設定!D61) -> 
C153: =IF(追加ワークシート名設定!D62=0,"",追加ワークシート名設定!D62) -> 
C154: =IF(追加ワークシート名設定!D63=0,"",追加ワークシート名設定!D63) -> 
C155: =IF(追加ワークシート名設定!D64=0,"",追加ワークシート名設定!D64) -> 
C156: =IF(追加ワークシート名設定!D65=0,"",追加ワークシート名設定!D65) -> 
C157: =IF(追加ワークシート名設定!D66=0,"",追加ワークシート名設定!D66) -> 
C158: =IF(追加ワークシート名設定!D67=0,"",追加ワークシート名設定!D67) -> 
C159: =IF(追加ワークシート名設定!D68=0,"",追加ワークシート名設定!D68) -> 
C160: =IF(追加ワークシート名設定!D69=0,"",追加ワークシート名設定!D69) -> 
C161: =IF(シート名設定!C30=0,"",シート名設定!C30) -> 入力AA1

Sheet 一覧表付ファイル作成入力設定20
B3: =シート名設定!C28 -> 一覧表付ファイル作成入力設定20
B4: １．入力元の設定
B5: 項 目 | C5: 設定内容
B6: シート名
B7: データ先頭セル行番号
B8: データ先頭セル列番号
B9: 異同比較列番号
B10: データー数
B11: For Next の増分
B13: ２．入力先の設定
B14: 項 目 | C14: 設定内容
B15: シート名
B16: 入力先頭セル行番号
B17: 入力先頭セル列番号
B18: 入力最終セル行番号
B19: 入力最終セル列番号
B20: 入力データー数
B21: 通しページ入力セル行番号
B22: 通しページ入力セル列番号
B23: 区分内ページ入力セル行番号
B24: 区分内ページ入力セル列番号
B25: ３．印刷処理かファイルのメール送信の設定
B26: 項 目 | C26: 設定内容
B27: 印刷処理か ファイルの メール送信 の選択 | D27: 1
B28: ファイルのメール送信の場合の印刷フォームソートデーターシートのメールアドレスが入力されている列番号
B29: ファイルのメール送信の場合の印刷フォームソートデーターシートの件名が入力されている列番号
B30: ファイルのメール送信の場合の印刷フォームソートデーターシートの本文が入力されている列番号
B31: ファイルのメール送信の場合の添付ファイルの保存先ドライブ及びフォルダー
C37: =IF(シート名設定!C35=0,"",シート名設定!C35) -> 平成１７年度第３学年会計報告個人別（通年） | D37: 1 | E37: 印刷する
C38: =IF(シート名設定!C36=0,"",シート名設定!C36) -> ○○○子学年積立金会計報告印刷フォーム | D38: 2 | E38: メールで送信する
C39: =IF(シート名設定!C37=0,"",シート名設定!C37) -> □□□子学年積立金会計報告印刷フォーム | D39: 3 | E39: 添付ファイルなし件名本文のみのメール
C40: =IF(シート名設定!C38=0,"",シート名設定!C38) -> 学年積立金の返金並びに返金振込口座の確認フォーム
C41: =IF(シート名設定!C39=0,"",シート名設定!C39) -> 印刷フォーム5
C42: =IF(シート名設定!C40=0,"",シート名設定!C40) -> 印刷フォーム6
C43: =IF(シート名設定!C41=0,"",シート名設定!C41) -> 印刷フォーム7
C44: =IF(シート名設定!C42=0,"",シート名設定!C42) -> 印刷フォーム8
C45: =IF(シート名設定!C43=0,"",シート名設定!C43) -> 印刷フォーム9
C46: =IF(シート名設定!C44=0,"",シート名設定!C44) -> 印刷フォーム10
C47: =IF(シート名設定!C45=0,"",シート名設定!C45) -> 印刷フォーム11
C48: =IF(シート名設定!C46=0,"",シート名設定!C46) -> 印刷フォーム12
C49: =IF(シート名設定!C47=0,"",シート名設定!C47) -> 印刷フォーム13
C50: =IF(シート名設定!C48=0,"",シート名設定!C48) -> 印刷フォーム14
C51: =IF(シート名設定!C49=0,"",シート名設定!C49) -> 印刷フォーム15
C52: =IF(シート名設定!C50=0,"",シート名設定!C50) -> 印刷フォーム16
C53: =IF(シート名設定!C51=0,"",シート名設定!C51) -> 印刷フォーム17
C54: =IF(シート名設定!C52=0,"",シート名設定!C52) -> 印刷フォーム18
C55: =IF(シート名設定!C53=0,"",シート名設定!C53) -> 印刷フォーム19
C56: =IF(シート名設定!C54=0,"",シート名設定!C54) -> 印刷フォーム20
C57: =IF(シート名設定!E5=0,"",シート名設定!E5) -> 印刷フォーム21
C58: =IF(シート名設定!E6=0,"",シート名設定!E6) -> 印刷フォーム22
C59: =IF(シート名設定!E7=0,"",シート名設定!E7) -> 印刷フォーム23
C60: =IF(シート名設定!E8=0,"",シート名設定!E8) -> 印刷フォーム24
C61: =IF(シート名設定!E9=0,"",シート名設定!E9) -> 印刷フォーム25
C62: =IF(シート名設定!E10=0,"",シート名設定!E10) -> 印刷フォーム26
C63: =IF(シート名設定!E11=0,"",シート名設定!E11) -> 印刷フォーム27
C64: =IF(シート名設定!E12=0,"",シート名設定!E12) -> 印刷フォーム28
C65: =IF(シート名設定!E13=0,"",シート名設定!E13) -> 印刷フォーム29
C66: =IF(シート名設定!E14=0,"",シート名設定!E14) -> 印刷フォーム30
C67: =IF(シート名設定!E15=0,"",シート名設定!E15) -> 学年積立金会計報告個人別（通年）ソートデーター
C68: =IF(シート名設定!E16=0,"",シート名設定!E16) -> 学年積立金の返金並びに返金振込口座の確認フォームソートデーター
C69: =IF(シート名設定!E17=0,"",シート名設定!E17) -> 印刷フォーム3ソートデーター
C70: =IF(シート名設定!E18=0,"",シート名設定!E18) -> 印刷フォーム4ソートデーター
C71: =IF(シート名設定!E19=0,"",シート名設定!E19) -> 印刷フォーム5ソートデーター
C72: =IF(シート名設定!E20=0,"",シート名設定!E20) -> 印刷フォーム6ソートデーター
C73: =IF(シート名設定!E21=0,"",シート名設定!E21) -> 印刷フォーム7ソートデーター
C74: =IF(シート名設定!E22=0,"",シート名設定!E22) -> 印刷フォーム8ソートデーター
C75: =IF(シート名設定!E23=0,"",シート名設定!E23) -> 印刷フォーム9ソートデーター
C76: =IF(シート名設定!E24=0,"",シート名設定!E24) -> 印刷フォーム10ソートデーター
C77: =IF(シート名設定!E25=0,"",シート名設定!E25) -> 印刷フォーム11ソートデーター
C78: =IF(シート名設定!E26=0,"",シート名設定!E26) -> 印刷フォーム12ソートデーター
C79: =IF(シート名設定!E27=0,"",シート名設定!E27) -> 印刷フォーム13ソートデーター
C80: =IF(シート名設定!E28=0,"",シート名設定!E28) -> 印刷フォーム14ソートデーター
C81: =IF(シート名設定!E29=0,"",シート名設定!E29) -> 印刷フォーム15ソートデーター
C82: =IF(シート名設定!E30=0,"",シート名設定!E30) -> 印刷フォーム16ソートデーター
C83: =IF(シート名設定!E31=0,"",シート名設定!E31) -> 印刷フォーム17ソートデーター
C84: =IF(シート名設定!E32=0,"",シート名設定!E32) -> 印刷フォーム18ソートデーター
C85: =IF(シート名設定!E33=0,"",シート名設定!E33) -> 印刷フォーム19ソートデーター
C86: =IF(シート名設定!E34=0,"",シート名設定!E34) -> 印刷フォーム20ソートデーター
C87: =IF(シート名設定!E35=0,"",シート名設定!E35) -> 印刷フォーム21ソートデーター
C88: =IF(シート名設定!E36=0,"",シート名設定!E36) -> 印刷フォーム22ソートデーター
C89: =IF(シート名設定!E37=0,"",シート名設定!E37) -> 印刷フォーム23ソートデーター
C90: =IF(シート名設定!E38=0,"",シート名設定!E38) -> 印刷フォーム24ソートデーター
C91: =IF(シート名設定!E39=0,"",シート名設定!E39) -> 印刷フォーム25ソートデーター
C92: =IF(シート名設定!E40=0,"",シート名設定!E40) -> 印刷フォーム26ソートデーター
C93: =IF(シート名設定!E41=0,"",シート名設定!E41) -> 印刷フォーム27ソートデーター
C94: =IF(シート名設定!E42=0,"",シート名設定!E42) -> 印刷フォーム28ソートデーター
C95: =IF(シート名設定!E43=0,"",シート名設定!E43) -> 印刷フォーム29ソートデーター
C96: =IF(シート名設定!E44=0,"",シート名設定!E44) -> 印刷フォーム30ソートデーター
C97: =IF(追加ワークシート名設定!D6=0,"",追加ワークシート名設定!D6) -> 退学者○○○子学年積立金会計
C98: =IF(追加ワークシート名設定!D7=0,"",追加ワークシート名設定!D7) -> 退学者□□□子学年積立金会計
C99: =IF(追加ワークシート名設定!D8=0,"",追加ワークシート名設定!D8) -> 特別会計処理該当
C100: =IF(追加ワークシート名設定!D9=0,"",追加ワークシート名設定!D9) -> 
C101: =IF(追加ワークシート名設定!D10=0,"",追加ワークシート名設定!D10) -> 
C102: =IF(追加ワークシート名設定!D11=0,"",追加ワークシート名設定!D11) -> 
C103: =IF(追加ワークシート名設定!D12=0,"",追加ワークシート名設定!D12) -> 
C104: =IF(追加ワークシート名設定!D13=0,"",追加ワークシート名設定!D13) -> 
C105: =IF(追加ワークシート名設定!D14=0,"",追加ワークシート名設定!D14) -> 
C106: =IF(追加ワークシート名設定!D15=0,"",追加ワークシート名設定!D15) -> 
C107: =IF(追加ワークシート名設定!D16=0,"",追加ワークシート名設定!D16) -> 
C108: =IF(追加ワークシート名設定!D17=0,"",追加ワークシート名設定!D17) -> 
C109: =IF(追加ワークシート名設定!D18=0,"",追加ワークシート名設定!D18) -> 
C110: =IF(追加ワークシート名設定!D19=0,"",追加ワークシート名設定!D19) -> 
C111: =IF(追加ワークシート名設定!D20=0,"",追加ワークシート名設定!D20) -> 
C112: =IF(追加ワークシート名設定!D21=0,"",追加ワークシート名設定!D21) -> 
C113: =IF(追加ワークシート名設定!D22=0,"",追加ワークシート名設定!D22) -> 
C114: =IF(追加ワークシート名設定!D23=0,"",追加ワークシート名設定!D23) -> 
C115: =IF(追加ワークシート名設定!D24=0,"",追加ワークシート名設定!D24) -> 
C116: =IF(追加ワークシート名設定!D25=0,"",追加ワークシート名設定!D25) -> 
C117: =IF(追加ワークシート名設定!D26=0,"",追加ワークシート名設定!D26) -> 
C118: =IF(追加ワークシート名設定!D27=0,"",追加ワークシート名設定!D27) -> 
C119: =IF(追加ワークシート名設定!D28=0,"",追加ワークシート名設定!D28) -> 
C120: =IF(追加ワークシート名設定!D29=0,"",追加ワークシート名設定!D29) -> 
C121: =IF(追加ワークシート名設定!D30=0,"",追加ワークシート名設定!D30) -> 
C122: =IF(追加ワークシート名設定!D31=0,"",追加ワークシート名設定!D31) -> 
C123: =IF(追加ワークシート名設定!D32=0,"",追加ワークシート名設定!D32) -> 
C124: =IF(追加ワークシート名設定!D33=0,"",追加ワークシート名設定!D33) -> 
C125: =IF(追加ワークシート名設定!D34=0,"",追加ワークシート名設定!D34) -> 
C126: =IF(追加ワークシート名設定!D35=0,"",追加ワークシート名設定!D35) -> 
C127: =IF(追加ワークシート名設定!D36=0,"",追加ワークシート名設定!D36) -> 
C128: =IF(追加ワークシート名設定!D37=0,"",追加ワークシート名設定!D37) -> 
C129: =IF(追加ワークシート名設定!D38=0,"",追加ワークシート名設定!D38) -> 
C130: =IF(追加ワークシート名設定!D39=0,"",追加ワークシート名設定!D39) -> 
C131: =IF(追加ワークシート名設定!D40=0,"",追加ワークシート名設定!D40) -> 
C132: =IF(追加ワークシート名設定!D41=0,"",追加ワークシート名設定!D41) -> 
C133: =IF(追加ワークシート名設定!D42=0,"",追加ワークシート名設定!D42) -> 
C134: =IF(追加ワークシート名設定!D43=0,"",追加ワークシート名設定!D43) -> 
C135: =IF(追加ワークシート名設定!D44=0,"",追加ワークシート名設定!D44) -> 
C136: =IF(追加ワークシート名設定!D45=0,"",追加ワークシート名設定!D45) -> 
C137: =IF(追加ワークシート名設定!D46=0,"",追加ワークシート名設定!D46) -> 
C138: =IF(追加ワークシート名設定!D47=0,"",追加ワークシート名設定!D47) -> 
C139: =IF(追加ワークシート名設定!D48=0,"",追加ワークシート名設定!D48) -> 
C140: =IF(追加ワークシート名設定!D49=0,"",追加ワークシート名設定!D49) -> 
C141: =IF(追加ワークシート名設定!D50=0,"",追加ワークシート名設定!D50) -> 
C142: =IF(追加ワークシート名設定!D51=0,"",追加ワークシート名設定!D51) -> 
C143: =IF(追加ワークシート名設定!D52=0,"",追加ワークシート名設定!D52) -> 
C144: =IF(追加ワークシート名設定!D53=0,"",追加ワークシート名設定!D53) -> 
C145: =IF(追加ワークシート名設定!D54=0,"",追加ワークシート名設定!D54) -> 
C146: =IF(追加ワークシート名設定!D55=0,"",追加ワークシート名設定!D55) -> 
C147: =IF(追加ワークシート名設定!D56=0,"",追加ワークシート名設定!D56) -> 
C148: =IF(追加ワークシート名設定!D57=0,"",追加ワークシート名設定!D57) -> 
C149: =IF(追加ワークシート名設定!D58=0,"",追加ワークシート名設定!D58) -> 
C150: =IF(追加ワークシート名設定!D59=0,"",追加ワークシート名設定!D59) -> 
C151: =IF(追加ワークシート名設定!D60=0,"",追加ワークシート名設定!D60) -> 
C152: =IF(追加ワークシート名設定!D61=0,"",追加ワークシート名設定!D61) -> 
C153: =IF(追加ワークシート名設定!D62=0,"",追加ワークシート名設定!D62) -> 
C154: =IF(追加ワークシート名設定!D63=0,"",追加ワークシート名設定!D63) -> 
C155: =IF(追加ワークシート名設定!D64=0,"",追加ワークシート名設定!D64) -> 
C156: =IF(追加ワークシート名設定!D65=0,"",追加ワークシート名設定!D65) -> 
C157: =IF(追加ワークシート名設定!D66=0,"",追加ワークシート名設定!D66) -> 
C158: =IF(追加ワークシート名設定!D67=0,"",追加ワークシート名設定!D67) -> 
C159: =IF(追加ワークシート名設定!D68=0,"",追加ワークシート名設定!D68) -> 
C160: =IF(追加ワークシート名設定!D69=0,"",追加ワークシート名設定!D69) -> 
C161: =IF(シート名設定!C30=0,"",シート名設定!C30) -> 入力AA1

Sheet ファイル作成コピー用
B4: =シート名設定!C29 -> ファイル作成コピー用
B5: 入力項目表示とデーター表示の切替 → | F5: 1
B6: 入力項目表示は1，データ表示は2を入力
B9: 1 | C9: =IF(B9=0,"",IF(ISERROR(VLOOKUP(B9,入力AA1!$B$8:$CY$258,2))=TRUE,"",VLOOKUP(B9,入力AA1!$B$8:$CY$258,2))) -> 対象1
C11: =IF(オフセット番号A!$C$4="","",オフセット番号A!$C$4) -> 列1 | D11: =IF(オフセット番号A!$D$4="","",オフセット番号A!$D$4) -> 列2 | E11: =IF(オフセット番号A!$E$4="","",オフセット番号A!$E$4) -> 列3 | F11: =IF(オフセット番号A!$F$4="","",オフセット番号A!$F$4) -> 列4 | G11: =IF(オフセット番号A!$G$4="","",オフセット番号A!$G$4) -> 列5 | H11: =IF(オフセット番号A!$H$4="","",オフセット番号A!$H$4) -> 列6 | I11: =IF(オフセット番号A!$I$4="","",オフセット番号A!$I$4) -> 列7 | J11: =IF(オフセット番号A!$J$4="","",オフセット番号A!$J$4) -> 列8 | K11: =IF(オフセット番号A!$K$4="","",オフセット番号A!$K$4) -> 列9 | L11: =IF(オフセット番号A!$L$4="","",オフセット番号A!$L$4) -> 列10 | M11: =IF(オフセット番号A!$M$4="","",オフセット番号A!$M$4) -> 列11 | N11: =IF(オフセット番号A!$N$4="","",オフセット番号A!$N$4) -> 列12 | O11: =IF(オフセット番号A!$O$4="","",オフセット番号A!$O$4) -> 列13 | P11: =IF(オフセット番号A!$P$4="","",オフセット番号A!$P$4) -> 列14 | Q11: =IF(オフセット番号A!$Q$4="","",オフセット番号A!$Q$4) -> 列15 | R11: =IF(オフセット番号A!$R$4="","",オフセット番号A!$R$4) -> 列16 | S11: =IF(オフセット番号A!$S$4="","",オフセット番号A!$S$4) -> 列17 | T11: =IF(オフセット番号A!$T$4="","",オフセット番号A!$T$4) -> 列18 | U11: =IF(オフセット番号A!$U$4="","",オフセット番号A!$U$4) -> 列19 | V11: =IF(オフセット番号A!$V$4="","",オフセット番号A!$V$4) -> 列20
B12: =IF(行列入力項目!$C$5="","",行列入力項目!$C$5) -> 行1 | C12: =IF($F$5=1,項目表示入力!$C$7,IF($F$5=2,IF(ISERROR(VLOOKUP(B9,入力AA1!$B$8:$CY$258,オフセット番号A!$C$5+1))=TRUE,"",VLOOKUP(B9,入力AA1!$B$8:$CY$258,オフセット番号A!$C$5+1)),"*")) -> ３年次NO | D12: =IF($F$5=1,項目表示入力!$D$7,IF($F$5=2,IF(ISERROR(VLOOKUP(B9,入力AA1!$B$8:$CY$258,オフセット番号A!$D$5+1))=TRUE,"",VLOOKUP(B9,入力AA1!$B$8:$CY$258,オフセット番号A!$D$5+1)),"*")) -> ３年組 | E12: =IF($F$5=1,項目表示入力!$E$7,IF($F$5=2,IF(ISERROR(VLOOKUP(B9,入力AA1!$B$8:$CY$258,オフセット番号A!$E$5+1))=TRUE,"",VLOOKUP(B9,入力AA1!$B$8:$CY$258,オフセット番号A!$E$5+1)),"*")) -> ３No | F12: =IF($F$5=1,項目表示入力!$F$7,IF($F$5=2,IF(ISERROR(VLOOKUP(B9,入力AA1!$B$8:$CY$258,オフセット番号A!$F$5+1))=TRUE,"",VLOOKUP(B9,入力AA1!$B$8:$CY$258,オフセット番号A!$F$5+1)),"*")) -> 氏 名 | G12: =IF($F$5=1,項目表示入力!$G$7,IF($F$5=2,IF(ISERROR(VLOOKUP(B9,入力AA1!$B$8:$CY$258,オフセット番号A!$G$5+1))=TRUE,"",VLOOKUP(B9,入力AA1!$B$8:$CY$258,オフセット番号A!$G$5+1)),"*")) -> ふりがな | H12: =IF($F$5=1,項目表示入力!$H$7,IF($F$5=2,IF(ISERROR(VLOOKUP(B9,入力AA1!$B$8:$CY$258,オフセット番号A!$H$5+1))=TRUE,"",VLOOKUP(B9,入力AA1!$B$8:$CY$258,オフセット番号A!$H$5+1)),"*")) -> 性別 | I12: =IF($F$5=1,項目表示入力!$I$7,IF($F$5=2,IF(ISERROR(VLOOKUP(B9,入力AA1!$B$8:$CY$258,オフセット番号A!$I$5+1))=TRUE,"",VLOOKUP(B9,入力AA1!$B$8:$CY$258,オフセット番号A!$I$5+1)),"*")) -> 保護者氏名 | J12: =IF($F$5=1,項目表示入力!$J$7,IF($F$5=2,IF(ISERROR(VLOOKUP(B9,入力AA1!$B$8:$CY$258,オフセット番号A!$J$5+1))=TRUE,"",VLOOKUP(B9,入力AA1!$B$8:$CY$258,オフセット番号A!$J$5+1)),"*")) -> 郵便番号 | K12: =IF($F$5=1,項目表示入力!$K$7,IF($F$5=2,IF(ISERROR(VLOOKUP(B9,入力AA1!$B$8:$CY$258,オフセット番号A!$K$5+1))=TRUE,"",VLOOKUP(B9,入力AA1!$B$8:$CY$258,オフセット番号A!$K$5+1)),"*")) -> 住所１ | L12: =IF($F$5=1,項目表示入力!$L$7,IF($F$5=2,IF(ISERROR(VLOOKUP(B9,入力AA1!$B$8:$CY$258,オフセット番号A!$L$5+1))=TRUE,"",VLOOKUP(B9,入力AA1!$B$8:$CY$258,オフセット番号A!$L$5+1)),"*")) -> 内容1,10 | M12: =IF($F$5=1,項目表示入力!$M$7,IF($F$5=2,IF(ISERROR(VLOOKUP(B9,入力AA1!$B$8:$CY$258,オフセット番号A!$M$5+1))=TRUE,"",VLOOKUP(B9,入力AA1!$B$8:$CY$258,オフセット番号A!$M$5+1)),"*")) -> 預金者氏名 | N12: =IF($F$5=1,項目表示入力!$N$7,IF($F$5=2,IF(ISERROR(VLOOKUP(B9,入力AA1!$B$8:$CY$258,オフセット番号A!$N$5+1))=TRUE,"",VLOOKUP(B9,入力AA1!$B$8:$CY$258,オフセット番号A!$N$5+1)),"*")) -> 預金者氏名フリガナ | O12: =IF($F$5=1,項目表示入力!$O$7,IF($F$5=2,IF(ISERROR(VLOOKUP(B9,入力AA1!$B$8:$CY$258,オフセット番号A!$O$5+1))=TRUE,"",VLOOKUP(B9,入力AA1!$B$8:$CY$258,オフセット番号A!$O$5+1)),"*")) -> 預金者郵便番号 | P12: =IF($F$5=1,項目表示入力!$P$7,IF($F$5=2,IF(ISERROR(VLOOKUP(B9,入力AA1!$B$8:$CY$258,オフセット番号A!$P$5+1))=TRUE,"",VLOOKUP(B9,入力AA1!$B$8:$CY$258,オフセット番号A!$P$5+1)),"*")) -> 預金者住所 | Q12: =IF($F$5=1,項目表示入力!$Q$7,IF($F$5=2,IF(ISERROR(VLOOKUP(B9,入力AA1!$B$8:$CY$258,オフセット番号A!$Q$5+1))=TRUE,"",VLOOKUP(B9,入力AA1!$B$8:$CY$258,オフセット番号A!$Q$5+1)),"*")) -> 預金者電話番号 | R12: =IF($F$5=1,項目表示入力!$R$7,IF($F$5=2,IF(ISERROR(VLOOKUP(B9,入力AA1!$B$8:$CY$258,オフセット番号A!$R$5+1))=TRUE,"",VLOOKUP(B9,入力AA1!$B$8:$CY$258,オフセット番号A!$R$5+1)),"*")) -> 正式銀行名等 | S12: =IF($F$5=1,項目表示入力!$S$7,IF($F$5=2,IF(ISERROR(VLOOKUP(B9,入力AA1!$B$8:$CY$258,オフセット番号A!$S$5+1))=TRUE,"",VLOOKUP(B9,入力AA1!$B$8:$CY$258,オフセット番号A!$S$5+1)),"*")) -> 正式支店名 | T12: =IF($F$5=1,項目表示入力!$T$7,IF($F$5=2,IF(ISERROR(VLOOKUP(B9,入力AA1!$B$8:$CY$258,オフセット番号A!$T$5+1))=TRUE,"",VLOOKUP(B9,入力AA1!$B$8:$CY$258,オフセット番号A!$T$5+1)),"*")) -> 正式銀行名・支店名等 | U12: =IF($F$5=1,項目表示入力!$U$7,IF($F$5=2,IF(ISERROR(VLOOKUP(B9,入力AA1!$B$8:$CY$258,オフセット番号A!$U$5+1))=TRUE,"",VLOOKUP(B9,入力AA1!$B$8:$CY$258,オフセット番号A!$U$5+1)),"*")) -> 種目 | V12: =IF($F$5=1,項目表示入力!$V$7,IF($F$5=2,IF(ISERROR(VLOOKUP(B9,入力AA1!$B$8:$CY$258,オフセット番号A!$V$5+1))=TRUE,"",VLOOKUP(B9,入力AA1!$B$8:$CY$258,オフセット番号A!$V$5+1)),"*")) -> 口座番号
B13: =IF(行列入力項目!$C$6="","",行列入力項目!$C$6) -> 行2 | C13: =IF($F$5=1,項目表示入力!$C$8,IF($F$5=2,IF(ISERROR(VLOOKUP(B9,入力AA1!$B$8:$CY$258,オフセット番号A!$C$6+1))=TRUE,"",VLOOKUP(B9,入力AA1!$B$8:$CY$258,オフセット番号A!$C$6+1)),"*")) -> **高ノート用 特注リングファイル FC-102RF | D13: =IF($F$5=1,項目表示入力!$D$8,IF($F$5=2,IF(ISERROR(VLOOKUP(B9,入力AA1!$B$8:$CY$258,オフセット番号A!$D$6+1))=TRUE,"",VLOOKUP(B9,入力AA1!$B$8:$CY$258,オフセット番号A!$D$6+1)),"*")) -> 生徒手帳及び身分証明書 | E13: =IF($F$5=1,項目表示入力!$E$8,IF($F$5=2,IF(ISERROR(VLOOKUP(B9,入力AA1!$B$8:$CY$258,オフセット番号A!$E$6+1))=TRUE,"",VLOOKUP(B9,入力AA1!$B$8:$CY$258,オフセット番号A!$E$6+1)),"*")) -> コクヨ クリヤーブック ラーＴ５５０Ｂ | F13: =IF($F$5=1,項目表示入力!$F$8,IF($F$5=2,IF(ISERROR(VLOOKUP(B9,入力AA1!$B$8:$CY$258,オフセット番号A!$F$6+1))=TRUE,"",VLOOKUP(B9,入力AA1!$B$8:$CY$258,オフセット番号A!$F$6+1)),"*")) -> 日本スポーツ振興センター掛金 | G13: =IF($F$5=1,項目表示入力!$G$8,IF($F$5=2,IF(ISERROR(VLOOKUP(B9,入力AA1!$B$8:$CY$258,オフセット番号A!$G$6+1))=TRUE,"",VLOOKUP(B9,入力AA1!$B$8:$CY$258,オフセット番号A!$G$6+1)),"*")) -> 指導用カラー写真 小型９枚セット | H13: =IF($F$5=1,項目表示入力!$H$8,IF($F$5=2,IF(ISERROR(VLOOKUP(B9,入力AA1!$B$8:$CY$258,オフセット番号A!$H$6+1))=TRUE,"",VLOOKUP(B9,入力AA1!$B$8:$CY$258,オフセット番号A!$H$6+1)),"*")) -> ５月２７日学校見学会 傷害保険 | I13: =IF($F$5=1,項目表示入力!$I$8,IF($F$5=2,IF(ISERROR(VLOOKUP(B9,入力AA1!$B$8:$CY$258,オフセット番号A!$I$6+1))=TRUE,"",VLOOKUP(B9,入力AA1!$B$8:$CY$258,オフセット番号A!$I$6+1)),"*")) -> ＰＴＡ支部活動費 | J13: =IF($F$5=1,項目表示入力!$J$8,IF($F$5=2,IF(ISERROR(VLOOKUP(B9,入力AA1!$B$8:$CY$258,オフセット番号A!$J$6+1))=TRUE,"",VLOOKUP(B9,入力AA1!$B$8:$CY$258,オフセット番号A!$J$6+1)),"*")) -> 高等学校安全互助会負担金 | K13: =IF($F$5=1,項目表示入力!$K$8,IF($F$5=2,IF(ISERROR(VLOOKUP(B9,入力AA1!$B$8:$CY$258,オフセット番号A!$K$6+1))=TRUE,"",VLOOKUP(B9,入力AA1!$B$8:$CY$258,オフセット番号A!$K$6+1)),"*")) -> 高Ｐ連賠償責任保証制度掛金 | L13: =IF($F$5=1,項目表示入力!$L$8,IF($F$5=2,IF(ISERROR(VLOOKUP(B9,入力AA1!$B$8:$CY$258,オフセット番号A!$L$6+1))=TRUE,"",VLOOKUP(B9,入力AA1!$B$8:$CY$258,オフセット番号A!$L$6+1)),"*")) -> 平成１７年度卒業アルバム | M13: =IF($F$5=1,項目表示入力!$M$8,IF($F$5=2,IF(ISERROR(VLOOKUP(B9,入力AA1!$B$8:$CY$258,オフセット番号A!$M$6+1))=TRUE,"",VLOOKUP(B9,入力AA1!$B$8:$CY$258,オフセット番号A!$M$6+1)),"*")) -> 高等学校スポーツテスト処理料金 | N13: =IF($F$5=1,項目表示入力!$N$8,IF($F$5=2,IF(ISERROR(VLOOKUP(B9,入力AA1!$B$8:$CY$258,オフセット番号A!$N$6+1))=TRUE,"",VLOOKUP(B9,入力AA1!$B$8:$CY$258,オフセット番号A!$N$6+1)),"*")) -> 中央公論新社 やさしい文章術 | O13: =IF($F$5=1,項目表示入力!$O$8,IF($F$5=2,IF(ISERROR(VLOOKUP(B9,入力AA1!$B$8:$CY$258,オフセット番号A!$O$6+1))=TRUE,"",VLOOKUP(B9,入力AA1!$B$8:$CY$258,オフセット番号A!$O$6+1)),"*")) -> 体育祭ハチマキ | P13: =IF($F$5=1,項目表示入力!$P$8,IF($F$5=2,IF(ISERROR(VLOOKUP(B9,入力AA1!$B$8:$CY$258,オフセット番号A!$P$6+1))=TRUE,"",VLOOKUP(B9,入力AA1!$B$8:$CY$258,オフセット番号A!$P$6+1)),"*")) -> 芸術鑑賞会 | Q13: =IF($F$5=1,項目表示入力!$Q$8,IF($F$5=2,IF(ISERROR(VLOOKUP(B9,入力AA1!$B$8:$CY$258,オフセット番号A!$Q$6+1))=TRUE,"",VLOOKUP(B9,入力AA1!$B$8:$CY$258,オフセット番号A!$Q$6+1)),"*")) -> ロースコサージュ大ピンク | R13: =IF($F$5=1,項目表示入力!$R$8,IF($F$5=2,IF(ISERROR(VLOOKUP(B9,入力AA1!$B$8:$CY$258,オフセット番号A!$R$6+1))=TRUE,"",VLOOKUP(B9,入力AA1!$B$8:$CY$258,オフセット番号A!$R$6+1)),"*")) -> 卒業記念品 ネームペン | S13: =IF($F$5=1,項目表示入力!$S$8,IF($F$5=2,IF(ISERROR(VLOOKUP(B9,入力AA1!$B$8:$CY$258,オフセット番号A!$S$6+1))=TRUE,"",VLOOKUP(B9,入力AA1!$B$8:$CY$258,オフセット番号A!$S$6+1)),"*")) -> 卒業記念品 応援団旗（寄贈分） | T13: =IF($F$5=1,項目表示入力!$T$8,IF($F$5=2,IF(ISERROR(VLOOKUP(B9,入力AA1!$B$8:$CY$258,オフセット番号A!$T$6+1))=TRUE,"",VLOOKUP(B9,入力AA1!$B$8:$CY$258,オフセット番号A!$T$6+1)),"*")) -> 紅白饅頭 | U13: =IF($F$5=1,項目表示入力!$U$8,IF($F$5=2,IF(ISERROR(VLOOKUP(B9,入力AA1!$B$8:$CY$258,オフセット番号A!$U$6+1))=TRUE,"",VLOOKUP(B9,入力AA1!$B$8:$CY$258,オフセット番号A!$U$6+1)),"*")) -> 同窓会費 | V13: =IF($F$5=1,項目表示入力!$V$8,IF($F$5=2,IF(ISERROR(VLOOKUP(B9,入力AA1!$B$8:$CY$258,オフセット番号A!$V$6+1))=TRUE,"",VLOOKUP(B9,入力AA1!$B$8:$CY$258,オフセット番号A!$V$6+1)),"*")) -> 総合的な学習「社会人になるための準備学習」講師接待費
B14: =IF(行列入力項目!$C$7="","",行列入力項目!$C$7) -> 行3 | C14: =IF($F$5=1,項目表示入力!$C$9,IF($F$5=2,IF(ISERROR(VLOOKUP(B9,入力AA1!$B$8:$CY$258,オフセット番号A!$C$7+1))=TRUE,"",VLOOKUP(B9,入力AA1!$B$8:$CY$258,オフセット番号A!$C$7+1)),"*")) -> メール送信先アドレス | D14: =IF($F$5=1,項目表示入力!$D$9,IF($F$5=2,IF(ISERROR(VLOOKUP(B9,入力AA1!$B$8:$CY$258,オフセット番号A!$D$7+1))=TRUE,"",VLOOKUP(B9,入力AA1!$B$8:$CY$258,オフセット番号A!$D$7+1)),"*")) -> メール件名 | E14: =IF($F$5=1,項目表示入力!$E$9,IF($F$5=2,IF(ISERROR(VLOOKUP(B9,入力AA1!$B$8:$CY$258,オフセット番号A!$E$7+1))=TRUE,"",VLOOKUP(B9,入力AA1!$B$8:$CY$258,オフセット番号A!$E$7+1)),"*")) -> メール本文 | F14: =IF($F$5=1,項目表示入力!$F$9,IF($F$5=2,IF(ISERROR(VLOOKUP(B9,入力AA1!$B$8:$CY$258,オフセット番号A!$F$7+1))=TRUE,"",VLOOKUP(B9,入力AA1!$B$8:$CY$258,オフセット番号A!$F$7+1)),"*")) -> 内容3,4 | G14: =IF($F$5=1,項目表示入力!$G$9,IF($F$5=2,IF(ISERROR(VLOOKUP(B9,入力AA1!$B$8:$CY$258,オフセット番号A!$G$7+1))=TRUE,"",VLOOKUP(B9,入力AA1!$B$8:$CY$258,オフセット番号A!$G$7+1)),"*")) -> 内容3,5 | H14: =IF($F$5=1,項目表示入力!$H$9,IF($F$5=2,IF(ISERROR(VLOOKUP(B9,入力AA1!$B$8:$CY$258,オフセット番号A!$H$7+1))=TRUE,"",VLOOKUP(B9,入力AA1!$B$8:$CY$258,オフセット番号A!$H$7+1)),"*")) -> 内容3,6 | I14: =IF($F$5=1,項目表示入力!$I$9,IF($F$5=2,IF(ISERROR(VLOOKUP(B9,入力AA1!$B$8:$CY$258,オフセット番号A!$I$7+1))=TRUE,"",VLOOKUP(B9,入力AA1!$B$8:$CY$258,オフセット番号A!$I$7+1)),"*")) -> 内容3,7 | J14: =IF($F$5=1,項目表示入力!$J$9,IF($F$5=2,IF(ISERROR(VLOOKUP(B9,入力AA1!$B$8:$CY$258,オフセット番号A!$J$7+1))=TRUE,"",VLOOKUP(B9,入力AA1!$B$8:$CY$258,オフセット番号A!$J$7+1)),"*")) -> 内容3,8 | K14: =IF($F$5=1,項目表示入力!$K$9,IF($F$5=2,IF(ISERROR(VLOOKUP(B9,入力AA1!$B$8:$CY$258,オフセット番号A!$K$7+1))=TRUE,"",VLOOKUP(B9,入力AA1!$B$8:$CY$258,オフセット番号A!$K$7+1)),"*")) -> 内容3,9 | L14: =IF($F$5=1,項目表示入力!$L$9,IF($F$5=2,IF(ISERROR(VLOOKUP(B9,入力AA1!$B$8:$CY$258,オフセット番号A!$L$7+1))=TRUE,"",VLOOKUP(B9,入力AA1!$B$8:$CY$258,オフセット番号A!$L$7+1)),"*")) -> 内容3,10 | M14: =IF($F$5=1,項目表示入力!$M$9,IF($F$5=2,IF(ISERROR(VLOOKUP(B9,入力AA1!$B$8:$CY$258,オフセット番号A!$M$7+1))=TRUE,"",VLOOKUP(B9,入力AA1!$B$8:$CY$258,オフセット番号A!$M$7+1)),"*")) -> 内容3,11 | N14: =IF($F$5=1,項目表示入力!$N$9,IF($F$5=2,IF(ISERROR(VLOOKUP(B9,入力AA1!$B$8:$CY$258,オフセット番号A!$N$7+1))=TRUE,"",VLOOKUP(B9,入力AA1!$B$8:$CY$258,オフセット番号A!$N$7+1)),"*")) -> 内容3,12 | O14: =IF($F$5=1,項目表示入力!$O$9,IF($F$5=2,IF(ISERROR(VLOOKUP(B9,入力AA1!$B$8:$CY$258,オフセット番号A!$O$7+1))=TRUE,"",VLOOKUP(B9,入力AA1!$B$8:$CY$258,オフセット番号A!$O$7+1)),"*")) -> 内容3,13 | P14: =IF($F$5=1,項目表示入力!$P$9,IF($F$5=2,IF(ISERROR(VLOOKUP(B9,入力AA1!$B$8:$CY$258,オフセット番号A!$P$7+1))=TRUE,"",VLOOKUP(B9,入力AA1!$B$8:$CY$258,オフセット番号A!$P$7+1)),"*")) -> 内容3,14 | Q14: =IF($F$5=1,項目表示入力!$Q$9,IF($F$5=2,IF(ISERROR(VLOOKUP(B9,入力AA1!$B$8:$CY$258,オフセット番号A!$Q$7+1))=TRUE,"",VLOOKUP(B9,入力AA1!$B$8:$CY$258,オフセット番号A!$Q$7+1)),"*")) -> 内容3,15 | R14: =IF($F$5=1,項目表示入力!$R$9,IF($F$5=2,IF(ISERROR(VLOOKUP(B9,入力AA1!$B$8:$CY$258,オフセット番号A!$R$7+1))=TRUE,"",VLOOKUP(B9,入力AA1!$B$8:$CY$258,オフセット番号A!$R$7+1)),"*")) -> 内容3,16 | S14: =IF($F$5=1,項目表示入力!$S$9,IF($F$5=2,IF(ISERROR(VLOOKUP(B9,入力AA1!$B$8:$CY$258,オフセット番号A!$S$7+1))=TRUE,"",VLOOKUP(B9,入力AA1!$B$8:$CY$258,オフセット番号A!$S$7+1)),"*")) -> 内容3,17 | T14: =IF($F$5=1,項目表示入力!$T$9,IF($F$5=2,IF(ISERROR(VLOOKUP(B9,入力AA1!$B$8:$CY$258,オフセット番号A!$T$7+1))=TRUE,"",VLOOKUP(B9,入力AA1!$B$8:$CY$258,オフセット番号A!$T$7+1)),"*")) -> 内容3,18 | U14: =IF($F$5=1,項目表示入力!$U$9,IF($F$5=2,IF(ISERROR(VLOOKUP(B9,入力AA1!$B$8:$CY$258,オフセット番号A!$U$7+1))=TRUE,"",VLOOKUP(B9,入力AA1!$B$8:$CY$258,オフセット番号A!$U$7+1)),"*")) -> 内容3,19 | V14: =IF($F$5=1,項目表示入力!$V$9,IF($F$5=2,IF(ISERROR(VLOOKUP(B9,入力AA1!$B$8:$CY$258,オフセット番号A!$V$7+1))=TRUE,"",VLOOKUP(B9,入力AA1!$B$8:$CY$258,オフセット番号A!$V$7+1)),"*")) -> 内容3,20
B15: =IF(行列入力項目!$C$8="","",行列入力項目!$C$8) -> 行4 | C15: =IF($F$5=1,項目表示入力!$C$10,IF($F$5=2,IF(ISERROR(VLOOKUP(B9,入力AA1!$B$8:$CY$258,オフセット番号A!$C$8+1))=TRUE,"",VLOOKUP(B9,入力AA1!$B$8:$CY$258,オフセット番号A!$C$8+1)),"*")) -> 理科類型Ａコース生徒副教材 「看護医療系短大・専門学校の数学」 | D15: =IF($F$5=1,項目表示入力!$D$10,IF($F$5=2,IF(ISERROR(VLOOKUP(B9,入力AA1!$B$8:$CY$258,オフセット番号A!$D$8+1))=TRUE,"",VLOOKUP(B9,入力AA1!$B$8:$CY$258,オフセット番号A!$D$8+1)),"*")) -> 就職希望者問題集 一般常識マイテスト（解別） | E15: =IF($F$5=1,項目表示入力!$E$10,IF($F$5=2,IF(ISERROR(VLOOKUP(B9,入力AA1!$B$8:$CY$258,オフセット番号A!$E$8+1))=TRUE,"",VLOOKUP(B9,入力AA1!$B$8:$CY$258,オフセット番号A!$E$8+1)),"*")) -> 理系類型生徒対象 第１回学研高３「新・基礎力テスト」３教科 | F15: =IF($F$5=1,項目表示入力!$F$10,IF($F$5=2,IF(ISERROR(VLOOKUP(B9,入力AA1!$B$8:$CY$258,オフセット番号A!$F$8+1))=TRUE,"",VLOOKUP(B9,入力AA1!$B$8:$CY$258,オフセット番号A!$F$8+1)),"*")) -> 文系類型・外国語類型生徒対象 第１回学研高３「新・基礎力テスト」２教科 | G15: =IF($F$5=1,項目表示入力!$G$10,IF($F$5=2,IF(ISERROR(VLOOKUP(B9,入力AA1!$B$8:$CY$258,オフセット番号A!$G$8+1))=TRUE,"",VLOOKUP(B9,入力AA1!$B$8:$CY$258,オフセット番号A!$G$8+1)),"*")) -> 文系類型・外国語類型生徒対象 第１回学研「常識テスト」 | H15: =IF($F$5=1,項目表示入力!$H$10,IF($F$5=2,IF(ISERROR(VLOOKUP(B9,入力AA1!$B$8:$CY$258,オフセット番号A!$H$8+1))=TRUE,"",VLOOKUP(B9,入力AA1!$B$8:$CY$258,オフセット番号A!$H$8+1)),"*")) -> 内容4,6 | I15: =IF($F$5=1,項目表示入力!$I$10,IF($F$5=2,IF(ISERROR(VLOOKUP(B9,入力AA1!$B$8:$CY$258,オフセット番号A!$I$8+1))=TRUE,"",VLOOKUP(B9,入力AA1!$B$8:$CY$258,オフセット番号A!$I$8+1)),"*")) -> 内容4,7 | J15: =IF($F$5=1,項目表示入力!$J$10,IF($F$5=2,IF(ISERROR(VLOOKUP(B9,入力AA1!$B$8:$CY$258,オフセット番号A!$J$8+1))=TRUE,"",VLOOKUP(B9,入力AA1!$B$8:$CY$258,オフセット番号A!$J$8+1)),"*")) -> 内容4,8 | K15: =IF($F$5=1,項目表示入力!$K$10,IF($F$5=2,IF(ISERROR(VLOOKUP(B9,入力AA1!$B$8:$CY$258,オフセット番号A!$K$8+1))=TRUE,"",VLOOKUP(B9,入力AA1!$B$8:$CY$258,オフセット番号A!$K$8+1)),"*")) -> 内容4,9 | L15: =IF($F$5=1,項目表示入力!$L$10,IF($F$5=2,IF(ISERROR(VLOOKUP(B9,入力AA1!$B$8:$CY$258,オフセット番号A!$L$8+1))=TRUE,"",VLOOKUP(B9,入力AA1!$B$8:$CY$258,オフセット番号A!$L$8+1)),"*")) -> 内容4,10 | M15: =IF($F$5=1,項目表示入力!$M$10,IF($F$5=2,IF(ISERROR(VLOOKUP(B9,入力AA1!$B$8:$CY$258,オフセット番号A!$M$8+1))=TRUE,"",VLOOKUP(B9,入力AA1!$B$8:$CY$258,オフセット番号A!$M$8+1)),"*")) -> 内容4,11 | N15: =IF($F$5=1,項目表示入力!$N$10,IF($F$5=2,IF(ISERROR(VLOOKUP(B9,入力AA1!$B$8:$CY$258,オフセット番号A!$N$8+1))=TRUE,"",VLOOKUP(B9,入力AA1!$B$8:$CY$258,オフセット番号A!$N$8+1)),"*")) -> 内容4,12 | O15: =IF($F$5=1,項目表示入力!$O$10,IF($F$5=2,IF(ISERROR(VLOOKUP(B9,入力AA1!$B$8:$CY$258,オフセット番号A!$O$8+1))=TRUE,"",VLOOKUP(B9,入力AA1!$B$8:$CY$258,オフセット番号A!$O$8+1)),"*")) -> 内容4,13 | P15: =IF($F$5=1,項目表示入力!$P$10,IF($F$5=2,IF(ISERROR(VLOOKUP(B9,入力AA1!$B$8:$CY$258,オフセット番号A!$P$8+1))=TRUE,"",VLOOKUP(B9,入力AA1!$B$8:$CY$258,オフセット番号A!$P$8+1)),"*")) -> 内容4,14 | Q15: =IF($F$5=1,項目表示入力!$Q$10,IF($F$5=2,IF(ISERROR(VLOOKUP(B9,入力AA1!$B$8:$CY$258,オフセット番号A!$Q$8+1))=TRUE,"",VLOOKUP(B9,入力AA1!$B$8:$CY$258,オフセット番号A!$Q$8+1)),"*")) -> 内容4,15 | R15: =IF($F$5=1,項目表示入力!$R$10,IF($F$5=2,IF(ISERROR(VLOOKUP(B9,入力AA1!$B$8:$CY$258,オフセット番号A!$R$8+1))=TRUE,"",VLOOKUP(B9,入力AA1!$B$8:$CY$258,オフセット番号A!$R$8+1)),"*")) -> 内容4,16 | S15: =IF($F$5=1,項目表示入力!$S$10,IF($F$5=2,IF(ISERROR(VLOOKUP(B9,入力AA1!$B$8:$CY$258,オフセット番号A!$S$8+1))=TRUE,"",VLOOKUP(B9,入力AA1!$B$8:$CY$258,オフセット番号A!$S$8+1)),"*")) -> 内容4,17 | T15: =IF($F$5=1,項目表示入力!$T$10,IF($F$5=2,IF(ISERROR(VLOOKUP(B9,入力AA1!$B$8:$CY$258,オフセット番号A!$T$8+1))=TRUE,"",VLOOKUP(B9,入力AA1!$B$8:$CY$258,オフセット番号A!$T$8+1)),"*")) -> 内容4,18 | U15: =IF($F$5=1,項目表示入力!$U$10,IF($F$5=2,IF(ISERROR(VLOOKUP(B9,入力AA1!$B$8:$CY$258,オフセット番号A!$U$8+1))=TRUE,"",VLOOKUP(B9,入力AA1!$B$8:$CY$258,オフセット番号A!$U$8+1)),"*")) -> 内容4,19 | V15: =IF($F$5=1,項目表示入力!$V$10,IF($F$5=2,IF(ISERROR(VLOOKUP(B9,入力AA1!$B$8:$CY$258,オフセット番号A!$V$8+1))=TRUE,"",VLOOKUP(B9,入力AA1!$B$8:$CY$258,オフセット番号A!$V$8+1)),"*")) -> 内容4,20
B16: =IF(行列入力項目!$C$9="","",行列入力項目!$C$9) -> 行5 | C16: =IF($F$5=1,項目表示入力!$C$11,IF($F$5=2,IF(ISERROR(VLOOKUP(B9,入力AA1!$B$8:$CY$258,オフセット番号A!$C$9+1))=TRUE,"",VLOOKUP(B9,入力AA1!$B$8:$CY$258,オフセット番号A!$C$9+1)),"*")) -> １・２学期共通項目支出計 | D16: =IF($F$5=1,項目表示入力!$D$11,IF($F$5=2,IF(ISERROR(VLOOKUP(B9,入力AA1!$B$8:$CY$258,オフセット番号A!$D$9+1))=TRUE,"",VLOOKUP(B9,入力AA1!$B$8:$CY$258,オフセット番号A!$D$9+1)),"*")) -> １・２学期一部該当者支出計 | E16: =IF($F$5=1,項目表示入力!$E$11,IF($F$5=2,IF(ISERROR(VLOOKUP(B9,入力AA1!$B$8:$CY$258,オフセット番号A!$E$9+1))=TRUE,"",VLOOKUP(B9,入力AA1!$B$8:$CY$258,オフセット番号A!$E$9+1)),"*")) -> １・２学期支出合計 | F16: =IF($F$5=1,項目表示入力!$F$11,IF($F$5=2,IF(ISERROR(VLOOKUP(B9,入力AA1!$B$8:$CY$258,オフセット番号A!$F$9+1))=TRUE,"",VLOOKUP(B9,入力AA1!$B$8:$CY$258,オフセット番号A!$F$9+1)),"*")) -> 前年度からの繰越金 | G16: =IF($F$5=1,項目表示入力!$G$11,IF($F$5=2,IF(ISERROR(VLOOKUP(B9,入力AA1!$B$8:$CY$258,オフセット番号A!$G$9+1))=TRUE,"",VLOOKUP(B9,入力AA1!$B$8:$CY$258,オフセット番号A!$G$9+1)),"*")) -> 今年度学年積立金 | H16: =IF($F$5=1,項目表示入力!$H$11,IF($F$5=2,IF(ISERROR(VLOOKUP(B9,入力AA1!$B$8:$CY$258,オフセット番号A!$H$9+1))=TRUE,"",VLOOKUP(B9,入力AA1!$B$8:$CY$258,オフセット番号A!$H$9+1)),"*")) -> 今年度利息 | I16: =IF($F$5=1,項目表示入力!$I$11,IF($F$5=2,IF(ISERROR(VLOOKUP(B9,入力AA1!$B$8:$CY$258,オフセット番号A!$I$9+1))=TRUE,"",VLOOKUP(B9,入力AA1!$B$8:$CY$258,オフセット番号A!$I$9+1)),"*")) -> 今年度収入合計 | J16: =IF($F$5=1,項目表示入力!$J$11,IF($F$5=2,IF(ISERROR(VLOOKUP(B9,入力AA1!$B$8:$CY$258,オフセット番号A!$J$9+1))=TRUE,"",VLOOKUP(B9,入力AA1!$B$8:$CY$258,オフセット番号A!$J$9+1)),"*")) -> ３学期への繰越金 | K16: =IF($F$5=1,項目表示入力!$K$11,IF($F$5=2,IF(ISERROR(VLOOKUP(B9,入力AA1!$B$8:$CY$258,オフセット番号A!$K$9+1))=TRUE,"",VLOOKUP(B9,入力AA1!$B$8:$CY$258,オフセット番号A!$K$9+1)),"*")) -> 内容5,9 | L16: =IF($F$5=1,項目表示入力!$L$11,IF($F$5=2,IF(ISERROR(VLOOKUP(B9,入力AA1!$B$8:$CY$258,オフセット番号A!$L$9+1))=TRUE,"",VLOOKUP(B9,入力AA1!$B$8:$CY$258,オフセット番号A!$L$9+1)),"*")) -> 内容5,10 | M16: =IF($F$5=1,項目表示入力!$M$11,IF($F$5=2,IF(ISERROR(VLOOKUP(B9,入力AA1!$B$8:$CY$258,オフセット番号A!$M$9+1))=TRUE,"",VLOOKUP(B9,入力AA1!$B$8:$CY$258,オフセット番号A!$M$9+1)),"*")) -> 内容5,11 | N16: =IF($F$5=1,項目表示入力!$N$11,IF($F$5=2,IF(ISERROR(VLOOKUP(B9,入力AA1!$B$8:$CY$258,オフセット番号A!$N$9+1))=TRUE,"",VLOOKUP(B9,入力AA1!$B$8:$CY$258,オフセット番号A!$N$9+1)),"*")) -> 内容5,12 | O16: =IF($F$5=1,項目表示入力!$O$11,IF($F$5=2,IF(ISERROR(VLOOKUP(B9,入力AA1!$B$8:$CY$258,オフセット番号A!$O$9+1))=TRUE,"",VLOOKUP(B9,入力AA1!$B$8:$CY$258,オフセット番号A!$O$9+1)),"*")) -> 内容5,13 | P16: =IF($F$5=1,項目表示入力!$P$11,IF($F$5=2,IF(ISERROR(VLOOKUP(B9,入力AA1!$B$8:$CY$258,オフセット番号A!$P$9+1))=TRUE,"",VLOOKUP(B9,入力AA1!$B$8:$CY$258,オフセット番号A!$P$9+1)),"*")) -> 内容5,14 | Q16: =IF($F$5=1,項目表示入力!$Q$11,IF($F$5=2,IF(ISERROR(VLOOKUP(B9,入力AA1!$B$8:$CY$258,オフセット番号A!$Q$9+1))=TRUE,"",VLOOKUP(B9,入力AA1!$B$8:$CY$258,オフセット番号A!$Q$9+1)),"*")) -> 内容5,15 | R16: =IF($F$5=1,項目表示入力!$R$11,IF($F$5=2,IF(ISERROR(VLOOKUP(B9,入力AA1!$B$8:$CY$258,オフセット番号A!$R$9+1))=TRUE,"",VLOOKUP(B9,入力AA1!$B$8:$CY$258,オフセット番号A!$R$9+1)),"*")) -> 内容5,16 | S16: =IF($F$5=1,項目表示入力!$S$11,IF($F$5=2,IF(ISERROR(VLOOKUP(B9,入力AA1!$B$8:$CY$258,オフセット番号A!$S$9+1))=TRUE,"",VLOOKUP(B9,入力AA1!$B$8:$CY$258,オフセット番号A!$S$9+1)),"*")) -> 未納授業料への充当 | T16: =IF($F$5=1,項目表示入力!$T$11,IF($F$5=2,IF(ISERROR(VLOOKUP(B9,入力AA1!$B$8:$CY$258,オフセット番号A!$T$9+1))=TRUE,"",VLOOKUP(B9,入力AA1!$B$8:$CY$258,オフセット番号A!$T$9+1)),"*")) -> 保護者への返金額 | U16: =IF($F$5=1,項目表示入力!$U$11,IF($F$5=2,IF(ISERROR(VLOOKUP(B9,入力AA1!$B$8:$CY$258,オフセット番号A!$U$9+1))=TRUE,"",VLOOKUP(B9,入力AA1!$B$8:$CY$258,オフセット番号A!$U$9+1)),"*")) -> 振込手数料 | V16: =IF($F$5=1,項目表示入力!$V$11,IF($F$5=2,IF(ISERROR(VLOOKUP(B9,入力AA1!$B$8:$CY$258,オフセット番号A!$V$9+1))=TRUE,"",VLOOKUP(B9,入力AA1!$B$8:$CY$258,オフセット番号A!$V$9+1)),"*")) -> 口座振込金額

Sheet ファイル作成作業用シート
B2: =シート名設定!G37 -> ファイル作成作業用シート

Sheet 平成１７年度第３学年会計報告個人別（通年）
B2: =シート名設定!C35 -> 平成１７年度第３学年会計報告個人別（通年）
B4: =シート名設定!C29 -> ファイル作成コピー用
B5: 入力項目表示とデーター表示の切替 → | F5: 2
B6: 入力項目表示は1，データ表示は2を入力
B8: 1 | C8: =IF(ISERR(VLOOKUP(B8,入力AA1!$B$8:$CY$258,2))=1,"",VLOOKUP(B8,入力AA1!$B$8:$CY$258,2)) -> 対象1
F11: ="第３学年 "&'[1]平成２８年度第３学年会計報告個人別（通年）'!D113&"組 "&'[1]平成２８年度第３学年会計報告個人別（通年）'!E113&"番 生徒氏名 "&'[1]平成２８年度第３学年会計報告個人別（通年）'!F113 ->  | I11: 平成２８年３月１０日
F13: 保護者 様
I16: ○○県立××高等学校
I17: 校長 ○○○○
I18: 第３学年主任 ○○○○
I19: 第３学年会計担当 ○○○○
F21: 平成２８年度第３学年学年積立金会計報告（個人別通年）
G23: 次の通り報告いたします。
F25: Ⅰ 収入の部
G27: 項 目 | I27: 金 額
G28: 前年度からの繰越金 | I28: ='[1]平成２８年度第３学年会計報告個人別（通年）'!F117 -> 
G29: 学年積立金 | I29: ='平成１７年度第３学年会計報告個人別（通年）'!G117 -> 0
G30: 預 金 利 子 | I30: ='平成１７年度第３学年会計報告個人別（通年）'!I117 -> 0
G31: 合 計 | I31: =SUM(I28:I30) -> 
F33: Ⅱ 支出の部
G35: ＜注意＞ １円未満の端数は切り上げ処理をしています。
G36: (１)共通な支出
G38: 項 目 | I38: 金 額
G39: **高ノート用特注リングファイル | I39: ='平成１７年度第３学年会計報告個人別（通年）'!C114 -> 514
G40: 生徒手帳及び身分証明書 | I40: ='平成１７年度第３学年会計報告個人別（通年）'!D114 -> 161
G41: コクヨ クリヤーブック | I41: ='平成１７年度第３学年会計報告個人別（通年）'!E114 -> 258
G42: 日本スポーツ振興センター掛金 | I42: ='平成１７年度第３学年会計報告個人別（通年）'!F114 -> 1510
G43: 指導用カラー写真 小型９枚セット | I43: ='平成１７年度第３学年会計報告個人別（通年）'!G114 -> 535
G44: ５月２７日学校見学会 傷害保険 | I44: ='平成１７年度第３学年会計報告個人別（通年）'!I114 -> 100
G45: ＰＴＡ支部活動費 | I45: ='平成１７年度第３学年会計報告個人別（通年）'!J114 -> 1000
G46: 高等学校安全互助会負担金 | I46: ='平成１７年度第３学年会計報告個人別（通年）'!K114 -> 900
G47: 高等学校ＰＴＡ連合賠償責任保証制度掛金 | I47: ='平成１７年度第３学年会計報告個人別（通年）'!L114 -> 200
G48: 卒業アルバム第１，２回内金 | I48: ='平成１７年度第３学年会計報告個人別（通年）'!M114 -> 8190
G49: 高等学校スポーツテスト処理料金 | I49: ='平成１７年度第３学年会計報告個人別（通年）'!N114 -> 218
G50: 中央公論新社 やさしい文章術 | I50: ='平成１７年度第３学年会計報告個人別（通年）'!O114 -> 680
G51: 体育祭ハチマキ | I51: ='平成１７年度第３学年会計報告個人別（通年）'!P114 -> 110
G52: 芸術鑑賞会 | I52: ='平成１７年度第３学年会計報告個人別（通年）'!Q114 -> 526
G53: ロースコサージュ大ピンク | I53: ='平成１７年度第３学年会計報告個人別（通年）'!R114 -> 268
G54: 卒業記念品 ネームペン | I54: ='平成１７年度第３学年会計報告個人別（通年）'!S114 -> 800
G55: 卒業記念品 応援団旗（寄贈分） | I55: ='平成１７年度第３学年会計報告個人別（通年）'!T114 -> 621
G56: 紅白饅頭 | I56: ='平成１７年度第３学年会計報告個人別（通年）'!U114 -> 343
G57: 同窓会費 | I57: ='平成１７年度第３学年会計報告個人別（通年）'!V114 -> 5000
G58: 総合的な学習「社会人になるための準備学習」講師接待費 | I58: ='平成１７年度第３学年会計報告個人別（通年）'!W114 -> 10
G66: 共通な支出計 | I66: =SUM(I39:I65) -> 21944
G68: (２)共通な支出以外の支出
G70: 項 目 | I70: 金 額
G71: 理科類型Ａコース生徒副教材「看護医療系短大・専門学校の数学」 | I71: ='平成１７年度第３学年会計報告個人別（通年）'!C116 -> 580
G72: 就職希望者問題集「一般常識マイテスト（解別）」 | I72: ='平成１７年度第３学年会計報告個人別（通年）'!D116 -> 0
G73: 理系類型生徒対象第１回学研高３「新・基礎力テスト」３教科 | I73: ='平成１７年度第３学年会計報告個人別（通年）'!E116 -> 1310
G74: 文系類型・外国語類型生徒対象第１回学研高３「新・基礎力テスト」２教科 | I74: ='平成１７年度第３学年会計報告個人別（通年）'!F116 -> 0
G75: 文系類型・外国語類型生徒対象第１回学研「常識テスト」 | I75: ='平成１７年度第３学年会計報告個人別（通年）'!G116 -> 0
G76: 未納授業料への充当 | I76: =T117 -> 0
G82: 共通な支出以外の支出計 | I82: =SUM(I71:I81) -> 1890
G84: (３)支出の合計
G86: 項 目 | I86: 金 額
G87: （１）共通な支出計 | I87: =I66 -> 21944
G88: （２）共通な支出以外の支出計 | I88: =I82 -> 1890
G89: 支出の合計 | I89: =SUM(I87:I88) -> 23834
F91: Ⅲ 収支合計
G93: 項 目 | I93: 金 額
G94: 収入の合計 | I94: =I31 -> 
G95: 支出の合計 | I95: =I89 -> 23834
G96: 収支合計（残金） | I96: =I94-I95 -> 
F98: Ⅳ 残金の返金
G99: 上記Ⅲの収支合計の残金は、平成２８年３月中を目途に、次のように振込手数料を引いて、授業料の振り込みにご利用いただいた口座に振り込ませていただきますので、よろしくお願いいたします。なお、全ての振込手続きが終了するのに、場合によっては４月いっぱいかかるかもしれませんので、それまでは口座を閉じることのないようお願いいたします。
G102: 収支合計残金 | H102: =U117 -> 77517
G103: 振込金額 | H103: =W117 -> 76917
G104: 振込手数料 | H104: =V117 -> 600
G105: 振込先金融機関・支店名 | H105: =U113 -> なんとか銀行1なんとか支店1
C112: =IF(オフセット番号A!$C$4="","",オフセット番号A!$C$4) -> 列1 | D112: =IF(オフセット番号A!$D$4="","",オフセット番号A!$D$4) -> 列2 | E112: =IF(オフセット番号A!$E$4="","",オフセット番号A!$E$4) -> 列3 | F112: =IF(オフセット番号A!$F$4="","",オフセット番号A!$F$4) -> 列4 | G112: =IF(オフセット番号A!$G$4="","",オフセット番号A!$G$4) -> 列5 | I112: =IF(オフセット番号A!$H$4="","",オフセット番号A!$H$4) -> 列6 | J112: =IF(オフセット番号A!$I$4="","",オフセット番号A!$I$4) -> 列7 | K112: =IF(オフセット番号A!$J$4="","",オフセット番号A!$J$4) -> 列8 | L112: =IF(オフセット番号A!$K$4="","",オフセット番号A!$K$4) -> 列9 | M112: =IF(オフセット番号A!$L$4="","",オフセット番号A!$L$4) -> 列10 | N112: =IF(オフセット番号A!$M$4="","",オフセット番号A!$M$4) -> 列11 | O112: =IF(オフセット番号A!$N$4="","",オフセット番号A!$N$4) -> 列12 | P112: =IF(オフセット番号A!$O$4="","",オフセット番号A!$O$4) -> 列13 | Q112: =IF(オフセット番号A!$P$4="","",オフセット番号A!$P$4) -> 列14 | R112: =IF(オフセット番号A!$Q$4="","",オフセット番号A!$Q$4) -> 列15 | S112: =IF(オフセット番号A!$R$4="","",オフセット番号A!$R$4) -> 列16 | T112: =IF(オフセット番号A!$S$4="","",オフセット番号A!$S$4) -> 列17 | U112: =IF(オフセット番号A!$T$4="","",オフセット番号A!$T$4) -> 列18 | V112: =IF(オフセット番号A!$U$4="","",オフセット番号A!$U$4) -> 列19 | W112: =IF(オフセット番号A!$V$4="","",オフセット番号A!$V$4) -> 列20
B113: =IF(行列入力項目!$C$5="","",行列入力項目!$C$5) -> 行1 | C113: =IF('平成１７年度第３学年会計報告個人別（通年）'!$F$5=1,項目表示入力!$C$7,IF('平成１７年度第３学年会計報告個人別（通年）'!$F$5=2,IF(ISERROR(VLOOKUP('平成１７年度第３学年会計報告個人別（通年）'!B8,入力AA1!$B$8:$CY$258,オフセット番号A!$C$5+1))=TRUE,"",VLOOKUP('平成１７年度第３学年会計報告個人別（通年）'!B8,入力AA1!$B$8:$CY$258,オフセット番号A!$C$5+1)),"*")) -> 3101 | D113: =IF('平成１７年度第３学年会計報告個人別（通年）'!$F$5=1,項目表示入力!$D$7,IF('平成１７年度第３学年会計報告個人別（通年）'!$F$5=2,IF(ISERROR(VLOOKUP('平成１７年度第３学年会計報告個人別（通年）'!B8,入力AA1!$B$8:$CY$258,オフセット番号A!$D$5+1))=TRUE,"",VLOOKUP('平成１７年度第３学年会計報告個人別（通年）'!B8,入力AA1!$B$8:$CY$258,オフセット番号A!$D$5+1)),"*")) -> 1 | E113: =IF('平成１７年度第３学年会計報告個人別（通年）'!$F$5=1,項目表示入力!$E$7,IF('平成１７年度第３学年会計報告個人別（通年）'!$F$5=2,IF(ISERROR(VLOOKUP('平成１７年度第３学年会計報告個人別（通年）'!B8,入力AA1!$B$8:$CY$258,オフセット番号A!$E$5+1))=TRUE,"",VLOOKUP('平成１７年度第３学年会計報告個人別（通年）'!B8,入力AA1!$B$8:$CY$258,オフセット番号A!$E$5+1)),"*")) -> 1 | F113: =IF('平成１７年度第３学年会計報告個人別（通年）'!$F$5=1,項目表示入力!$F$7,IF('平成１７年度第３学年会計報告個人別（通年）'!$F$5=2,IF(ISERROR(VLOOKUP('平成１７年度第３学年会計報告個人別（通年）'!B8,入力AA1!$B$8:$CY$258,オフセット番号A!$F$5+1))=TRUE,"",VLOOKUP('平成１７年度第３学年会計報告個人別（通年）'!B8,入力AA1!$B$8:$CY$258,オフセット番号A!$F$5+1)),"*")) -> 生徒氏名1 | G113: =IF('平成１７年度第３学年会計報告個人別（通年）'!$F$5=1,項目表示入力!$G$7,IF('平成１７年度第３学年会計報告個人別（通年）'!$F$5=2,IF(ISERROR(VLOOKUP('平成１７年度第３学年会計報告個人別（通年）'!B8,入力AA1!$B$8:$CY$258,オフセット番号A!$G$5+1))=TRUE,"",VLOOKUP('平成１７年度第３学年会計報告個人別（通年）'!B8,入力AA1!$B$8:$CY$258,オフセット番号A!$G$5+1)),"*")) -> フリガナ1 | I113: =IF('平成１７年度第３学年会計報告個人別（通年）'!$F$5=1,項目表示入力!$H$7,IF('平成１７年度第３学年会計報告個人別（通年）'!$F$5=2,IF(ISERROR(VLOOKUP('平成１７年度第３学年会計報告個人別（通年）'!B8,入力AA1!$B$8:$CY$258,オフセット番号A!$H$5+1))=TRUE,"",VLOOKUP('平成１７年度第３学年会計報告個人別（通年）'!B8,入力AA1!$B$8:$CY$258,オフセット番号A!$H$5+1)),"*")) -> 男 | J113: =IF('平成１７年度第３学年会計報告個人別（通年）'!$F$5=1,項目表示入力!$I$7,IF('平成１７年度第３学年会計報告個人別（通年）'!$F$5=2,IF(ISERROR(VLOOKUP('平成１７年度第３学年会計報告個人別（通年）'!B8,入力AA1!$B$8:$CY$258,オフセット番号A!$I$5+1))=TRUE,"",VLOOKUP('平成１７年度第３学年会計報告個人別（通年）'!B8,入力AA1!$B$8:$CY$258,オフセット番号A!$I$5+1)),"*")) -> 保護者氏名1 | K113: =IF('平成１７年度第３学年会計報告個人別（通年）'!$F$5=1,項目表示入力!$J$7,IF('平成１７年度第３学年会計報告個人別（通年）'!$F$5=2,IF(ISERROR(VLOOKUP('平成１７年度第３学年会計報告個人別（通年）'!B8,入力AA1!$B$8:$CY$258,オフセット番号A!$J$5+1))=TRUE,"",VLOOKUP('平成１７年度第３学年会計報告個人別（通年）'!B8,入力AA1!$B$8:$CY$258,オフセット番号A!$J$5+1)),"*")) -> 郵便番号1 | L113: =IF('平成１７年度第３学年会計報告個人別（通年）'!$F$5=1,項目表示入力!$K$7,IF('平成１７年度第３学年会計報告個人別（通年）'!$F$5=2,IF(ISERROR(VLOOKUP('平成１７年度第３学年会計報告個人別（通年）'!B8,入力AA1!$B$8:$CY$258,オフセット番号A!$K$5+1))=TRUE,"",VLOOKUP('平成１７年度第３学年会計報告個人別（通年）'!B8,入力AA1!$B$8:$CY$258,オフセット番号A!$K$5+1)),"*")) -> ○○市×××町1-1-1 | M113: =IF('平成１７年度第３学年会計報告個人別（通年）'!$F$5=1,項目表示入力!$L$7,IF('平成１７年度第３学年会計報告個人別（通年）'!$F$5=2,IF(ISERROR(VLOOKUP('平成１７年度第３学年会計報告個人別（通年）'!B8,入力AA1!$B$8:$CY$258,オフセット番号A!$L$5+1))=TRUE,"",VLOOKUP('平成１７年度第３学年会計報告個人別（通年）'!B8,入力AA1!$B$8:$CY$258,オフセット番号A!$L$5+1)),"*")) -> 0 | N113: =IF('平成１７年度第３学年会計報告個人別（通年）'!$F$5=1,項目表示入力!$M$7,IF('平成１７年度第３学年会計報告個人別（通年）'!$F$5=2,IF(ISERROR(VLOOKUP('平成１７年度第３学年会計報告個人別（通年）'!B8,入力AA1!$B$8:$CY$258,オフセット番号A!$M$5+1))=TRUE,"",VLOOKUP('平成１７年度第３学年会計報告個人別（通年）'!B8,入力AA1!$B$8:$CY$258,オフセット番号A!$M$5+1)),"*")) -> 預金者氏名1 | O113: =IF('平成１７年度第３学年会計報告個人別（通年）'!$F$5=1,項目表示入力!$N$7,IF('平成１７年度第３学年会計報告個人別（通年）'!$F$5=2,IF(ISERROR(VLOOKUP('平成１７年度第３学年会計報告個人別（通年）'!B8,入力AA1!$B$8:$CY$258,オフセット番号A!$N$5+1))=TRUE,"",VLOOKUP('平成１７年度第３学年会計報告個人別（通年）'!B8,入力AA1!$B$8:$CY$258,オフセット番号A!$N$5+1)),"*")) -> 預金者フリガナ1 | P113: =IF('平成１７年度第３学年会計報告個人別（通年）'!$F$5=1,項目表示入力!$O$7,IF('平成１７年度第３学年会計報告個人別（通年）'!$F$5=2,IF(ISERROR(VLOOKUP('平成１７年度第３学年会計報告個人別（通年）'!B8,入力AA1!$B$8:$CY$258,オフセット番号A!$O$5+1))=TRUE,"",VLOOKUP('平成１７年度第３学年会計報告個人別（通年）'!B8,入力AA1!$B$8:$CY$258,オフセット番号A!$O$5+1)),"*")) -> 預金者郵便番号1 | Q113: =IF('平成１７年度第３学年会計報告個人別（通年）'!$F$5=1,項目表示入力!$P$7,IF('平成１７年度第３学年会計報告個人別（通年）'!$F$5=2,IF(ISERROR(VLOOKUP('平成１７年度第３学年会計報告個人別（通年）'!B8,入力AA1!$B$8:$CY$258,オフセット番号A!$P$5+1))=TRUE,"",VLOOKUP('平成１７年度第３学年会計報告個人別（通年）'!B8,入力AA1!$B$8:$CY$258,オフセット番号A!$P$5+1)),"*")) -> 預金者住所1 | R113: =IF('平成１７年度第３学年会計報告個人別（通年）'!$F$5=1,項目表示入力!$Q$7,IF('平成１７年度第３学年会計報告個人別（通年）'!$F$5=2,IF(ISERROR(VLOOKUP('平成１７年度第３学年会計報告個人別（通年）'!B8,入力AA1!$B$8:$CY$258,オフセット番号A!$Q$5+1))=TRUE,"",VLOOKUP('平成１７年度第３学年会計報告個人別（通年）'!B8,入力AA1!$B$8:$CY$258,オフセット番号A!$Q$5+1)),"*")) -> ***-000-0001 | S113: =IF('平成１７年度第３学年会計報告個人別（通年）'!$F$5=1,項目表示入力!$R$7,IF('平成１７年度第３学年会計報告個人別（通年）'!$F$5=2,IF(ISERROR(VLOOKUP('平成１７年度第３学年会計報告個人別（通年）'!B8,入力AA1!$B$8:$CY$258,オフセット番号A!$R$5+1))=TRUE,"",VLOOKUP('平成１７年度第３学年会計報告個人別（通年）'!B8,入力AA1!$B$8:$CY$258,オフセット番号A!$R$5+1)),"*")) -> なんとか銀行1 | T113: =IF('平成１７年度第３学年会計報告個人別（通年）'!$F$5=1,項目表示入力!$S$7,IF('平成１７年度第３学年会計報告個人別（通年）'!$F$5=2,IF(ISERROR(VLOOKUP('平成１７年度第３学年会計報告個人別（通年）'!B8,入力AA1!$B$8:$CY$258,オフセット番号A!$S$5+1))=TRUE,"",VLOOKUP('平成１７年度第３学年会計報告個人別（通年）'!B8,入力AA1!$B$8:$CY$258,オフセット番号A!$S$5+1)),"*")) -> なんとか支店1 | U113: =IF('平成１７年度第３学年会計報告個人別（通年）'!$F$5=1,項目表示入力!$T$7,IF('平成１７年度第３学年会計報告個人別（通年）'!$F$5=2,IF(ISERROR(VLOOKUP('平成１７年度第３学年会計報告個人別（通年）'!B8,入力AA1!$B$8:$CY$258,オフセット番号A!$T$5+1))=TRUE,"",VLOOKUP('平成１７年度第３学年会計報告個人別（通年）'!B8,入力AA1!$B$8:$CY$258,オフセット番号A!$T$5+1)),"*")) -> なんとか銀行1なんとか支店1 | V113: =IF('平成１７年度第３学年会計報告個人別（通年）'!$F$5=1,項目表示入力!$U$7,IF('平成１７年度第３学年会計報告個人別（通年）'!$F$5=2,IF(ISERROR(VLOOKUP('平成１７年度第３学年会計報告個人別（通年）'!B8,入力AA1!$B$8:$CY$258,オフセット番号A!$U$5+1))=TRUE,"",VLOOKUP('平成１７年度第３学年会計報告個人別（通年）'!B8,入力AA1!$B$8:$CY$258,オフセット番号A!$U$5+1)),"*")) -> 普通 | W113: =IF('平成１７年度第３学年会計報告個人別（通年）'!$F$5=1,項目表示入力!$V$7,IF('平成１７年度第３学年会計報告個人別（通年）'!$F$5=2,IF(ISERROR(VLOOKUP('平成１７年度第３学年会計報告個人別（通年）'!B8,入力AA1!$B$8:$CY$258,オフセット番号A!$V$5+1))=TRUE,"",VLOOKUP('平成１７年度第３学年会計報告個人別（通年）'!B8,入力AA1!$B$8:$CY$258,オフセット番号A!$V$5+1)),"*")) -> ******1
B114: =IF(行列入力項目!$C$6="","",行列入力項目!$C$6) -> 行2 | C114: =IF('平成１７年度第３学年会計報告個人別（通年）'!$F$5=1,項目表示入力!$C$8,IF('平成１７年度第３学年会計報告個人別（通年）'!$F$5=2,IF(ISERROR(VLOOKUP('平成１７年度第３学年会計報告個人別（通年）'!B8,入力AA1!$B$8:$CY$258,オフセット番号A!$C$6+1))=TRUE,"",VLOOKUP('平成１７年度第３学年会計報告個人別（通年）'!B8,入力AA1!$B$8:$CY$258,オフセット番号A!$C$6+1)),"*")) -> 514 | D114: =IF('平成１７年度第３学年会計報告個人別（通年）'!$F$5=1,項目表示入力!$D$8,IF('平成１７年度第３学年会計報告個人別（通年）'!$F$5=2,IF(ISERROR(VLOOKUP('平成１７年度第３学年会計報告個人別（通年）'!B8,入力AA1!$B$8:$CY$258,オフセット番号A!$D$6+1))=TRUE,"",VLOOKUP('平成１７年度第３学年会計報告個人別（通年）'!B8,入力AA1!$B$8:$CY$258,オフセット番号A!$D$6+1)),"*")) -> 161 | E114: =IF('平成１７年度第３学年会計報告個人別（通年）'!$F$5=1,項目表示入力!$E$8,IF('平成１７年度第３学年会計報告個人別（通年）'!$F$5=2,IF(ISERROR(VLOOKUP('平成１７年度第３学年会計報告個人別（通年）'!B8,入力AA1!$B$8:$CY$258,オフセット番号A!$E$6+1))=TRUE,"",VLOOKUP('平成１７年度第３学年会計報告個人別（通年）'!B8,入力AA1!$B$8:$CY$258,オフセット番号A!$E$6+1)),"*")) -> 258 | F114: =IF('平成１７年度第３学年会計報告個人別（通年）'!$F$5=1,項目表示入力!$F$8,IF('平成１７年度第３学年会計報告個人別（通年）'!$F$5=2,IF(ISERROR(VLOOKUP('平成１７年度第３学年会計報告個人別（通年）'!B8,入力AA1!$B$8:$CY$258,オフセット番号A!$F$6+1))=TRUE,"",VLOOKUP('平成１７年度第３学年会計報告個人別（通年）'!B8,入力AA1!$B$8:$CY$258,オフセット番号A!$F$6+1)),"*")) -> 1510 | G114: =IF('平成１７年度第３学年会計報告個人別（通年）'!$F$5=1,項目表示入力!$G$8,IF('平成１７年度第３学年会計報告個人別（通年）'!$F$5=2,IF(ISERROR(VLOOKUP('平成１７年度第３学年会計報告個人別（通年）'!B8,入力AA1!$B$8:$CY$258,オフセット番号A!$G$6+1))=TRUE,"",VLOOKUP('平成１７年度第３学年会計報告個人別（通年）'!B8,入力AA1!$B$8:$CY$258,オフセット番号A!$G$6+1)),"*")) -> 535 | I114: =IF('平成１７年度第３学年会計報告個人別（通年）'!$F$5=1,項目表示入力!$H$8,IF('平成１７年度第３学年会計報告個人別（通年）'!$F$5=2,IF(ISERROR(VLOOKUP('平成１７年度第３学年会計報告個人別（通年）'!B8,入力AA1!$B$8:$CY$258,オフセット番号A!$H$6+1))=TRUE,"",VLOOKUP('平成１７年度第３学年会計報告個人別（通年）'!B8,入力AA1!$B$8:$CY$258,オフセット番号A!$H$6+1)),"*")) -> 100 | J114: =IF('平成１７年度第３学年会計報告個人別（通年）'!$F$5=1,項目表示入力!$I$8,IF('平成１７年度第３学年会計報告個人別（通年）'!$F$5=2,IF(ISERROR(VLOOKUP('平成１７年度第３学年会計報告個人別（通年）'!B8,入力AA1!$B$8:$CY$258,オフセット番号A!$I$6+1))=TRUE,"",VLOOKUP('平成１７年度第３学年会計報告個人別（通年）'!B8,入力AA1!$B$8:$CY$258,オフセット番号A!$I$6+1)),"*")) -> 1000 | K114: =IF('平成１７年度第３学年会計報告個人別（通年）'!$F$5=1,項目表示入力!$J$8,IF('平成１７年度第３学年会計報告個人別（通年）'!$F$5=2,IF(ISERROR(VLOOKUP('平成１７年度第３学年会計報告個人別（通年）'!B8,入力AA1!$B$8:$CY$258,オフセット番号A!$J$6+1))=TRUE,"",VLOOKUP('平成１７年度第３学年会計報告個人別（通年）'!B8,入力AA1!$B$8:$CY$258,オフセット番号A!$J$6+1)),"*")) -> 900 | L114: =IF('平成１７年度第３学年会計報告個人別（通年）'!$F$5=1,項目表示入力!$K$8,IF('平成１７年度第３学年会計報告個人別（通年）'!$F$5=2,IF(ISERROR(VLOOKUP('平成１７年度第３学年会計報告個人別（通年）'!B8,入力AA1!$B$8:$CY$258,オフセット番号A!$K$6+1))=TRUE,"",VLOOKUP('平成１７年度第３学年会計報告個人別（通年）'!B8,入力AA1!$B$8:$CY$258,オフセット番号A!$K$6+1)),"*")) -> 200 | M114: =IF('平成１７年度第３学年会計報告個人別（通年）'!$F$5=1,項目表示入力!$L$8,IF('平成１７年度第３学年会計報告個人別（通年）'!$F$5=2,IF(ISERROR(VLOOKUP('平成１７年度第３学年会計報告個人別（通年）'!B8,入力AA1!$B$8:$CY$258,オフセット番号A!$L$6+1))=TRUE,"",VLOOKUP('平成１７年度第３学年会計報告個人別（通年）'!B8,入力AA1!$B$8:$CY$258,オフセット番号A!$L$6+1)),"*")) -> 8190 | N114: =IF('平成１７年度第３学年会計報告個人別（通年）'!$F$5=1,項目表示入力!$M$8,IF('平成１７年度第３学年会計報告個人別（通年）'!$F$5=2,IF(ISERROR(VLOOKUP('平成１７年度第３学年会計報告個人別（通年）'!B8,入力AA1!$B$8:$CY$258,オフセット番号A!$M$6+1))=TRUE,"",VLOOKUP('平成１７年度第３学年会計報告個人別（通年）'!B8,入力AA1!$B$8:$CY$258,オフセット番号A!$M$6+1)),"*")) -> 218 | O114: =IF('平成１７年度第３学年会計報告個人別（通年）'!$F$5=1,項目表示入力!$N$8,IF('平成１７年度第３学年会計報告個人別（通年）'!$F$5=2,IF(ISERROR(VLOOKUP('平成１７年度第３学年会計報告個人別（通年）'!B8,入力AA1!$B$8:$CY$258,オフセット番号A!$N$6+1))=TRUE,"",VLOOKUP('平成１７年度第３学年会計報告個人別（通年）'!B8,入力AA1!$B$8:$CY$258,オフセット番号A!$N$6+1)),"*")) -> 680 | P114: =IF('平成１７年度第３学年会計報告個人別（通年）'!$F$5=1,項目表示入力!$O$8,IF('平成１７年度第３学年会計報告個人別（通年）'!$F$5=2,IF(ISERROR(VLOOKUP('平成１７年度第３学年会計報告個人別（通年）'!B8,入力AA1!$B$8:$CY$258,オフセット番号A!$O$6+1))=TRUE,"",VLOOKUP('平成１７年度第３学年会計報告個人別（通年）'!B8,入力AA1!$B$8:$CY$258,オフセット番号A!$O$6+1)),"*")) -> 110 | Q114: =IF('平成１７年度第３学年会計報告個人別（通年）'!$F$5=1,項目表示入力!$P$8,IF('平成１７年度第３学年会計報告個人別（通年）'!$F$5=2,IF(ISERROR(VLOOKUP('平成１７年度第３学年会計報告個人別（通年）'!B8,入力AA1!$B$8:$CY$258,オフセット番号A!$P$6+1))=TRUE,"",VLOOKUP('平成１７年度第３学年会計報告個人別（通年）'!B8,入力AA1!$B$8:$CY$258,オフセット番号A!$P$6+1)),"*")) -> 526 | R114: =IF('平成１７年度第３学年会計報告個人別（通年）'!$F$5=1,項目表示入力!$Q$8,IF('平成１７年度第３学年会計報告個人別（通年）'!$F$5=2,IF(ISERROR(VLOOKUP('平成１７年度第３学年会計報告個人別（通年）'!B8,入力AA1!$B$8:$CY$258,オフセット番号A!$Q$6+1))=TRUE,"",VLOOKUP('平成１７年度第３学年会計報告個人別（通年）'!B8,入力AA1!$B$8:$CY$258,オフセット番号A!$Q$6+1)),"*")) -> 268 | S114: =IF('平成１７年度第３学年会計報告個人別（通年）'!$F$5=1,項目表示入力!$R$8,IF('平成１７年度第３学年会計報告個人別（通年）'!$F$5=2,IF(ISERROR(VLOOKUP('平成１７年度第３学年会計報告個人別（通年）'!B8,入力AA1!$B$8:$CY$258,オフセット番号A!$R$6+1))=TRUE,"",VLOOKUP('平成１７年度第３学年会計報告個人別（通年）'!B8,入力AA1!$B$8:$CY$258,オフセット番号A!$R$6+1)),"*")) -> 800 | T114: =IF('平成１７年度第３学年会計報告個人別（通年）'!$F$5=1,項目表示入力!$S$8,IF('平成１７年度第３学年会計報告個人別（通年）'!$F$5=2,IF(ISERROR(VLOOKUP('平成１７年度第３学年会計報告個人別（通年）'!B8,入力AA1!$B$8:$CY$258,オフセット番号A!$S$6+1))=TRUE,"",VLOOKUP('平成１７年度第３学年会計報告個人別（通年）'!B8,入力AA1!$B$8:$CY$258,オフセット番号A!$S$6+1)),"*")) -> 621 | U114: =IF('平成１７年度第３学年会計報告個人別（通年）'!$F$5=1,項目表示入力!$T$8,IF('平成１７年度第３学年会計報告個人別（通年）'!$F$5=2,IF(ISERROR(VLOOKUP('平成１７年度第３学年会計報告個人別（通年）'!B8,入力AA1!$B$8:$CY$258,オフセット番号A!$T$6+1))=TRUE,"",VLOOKUP('平成１７年度第３学年会計報告個人別（通年）'!B8,入力AA1!$B$8:$CY$258,オフセット番号A!$T$6+1)),"*")) -> 343 | V114: =IF('平成１７年度第３学年会計報告個人別（通年）'!$F$5=1,項目表示入力!$U$8,IF('平成１７年度第３学年会計報告個人別（通年）'!$F$5=2,IF(ISERROR(VLOOKUP('平成１７年度第３学年会計報告個人別（通年）'!B8,入力AA1!$B$8:$CY$258,オフセット番号A!$U$6+1))=TRUE,"",VLOOKUP('平成１７年度第３学年会計報告個人別（通年）'!B8,入力AA1!$B$8:$CY$258,オフセット番号A!$U$6+1)),"*")) -> 5000 | W114: =IF('平成１７年度第３学年会計報告個人別（通年）'!$F$5=1,項目表示入力!$V$8,IF('平成１７年度第３学年会計報告個人別（通年）'!$F$5=2,IF(ISERROR(VLOOKUP('平成１７年度第３学年会計報告個人別（通年）'!B8,入力AA1!$B$8:$CY$258,オフセット番号A!$V$6+1))=TRUE,"",VLOOKUP('平成１７年度第３学年会計報告個人別（通年）'!B8,入力AA1!$B$8:$CY$258,オフセット番号A!$V$6+1)),"*")) -> 10
B115: =IF(行列入力項目!$C$7="","",行列入力項目!$C$7) -> 行3 | C115: =IF('平成１７年度第３学年会計報告個人別（通年）'!$F$5=1,項目表示入力!$C$9,IF('平成１７年度第３学年会計報告個人別（通年）'!$F$5=2,IF(ISERROR(VLOOKUP('平成１７年度第３学年会計報告個人別（通年）'!B8,入力AA1!$B$8:$CY$258,オフセット番号A!$C$7+1))=TRUE,"",VLOOKUP('平成１７年度第３学年会計報告個人別（通年）'!B8,入力AA1!$B$8:$CY$258,オフセット番号A!$C$7+1)),"*")) -> 保護者氏名1@○○○○.biglobe.ne.jp | D115: =IF('平成１７年度第３学年会計報告個人別（通年）'!$F$5=1,項目表示入力!$D$9,IF('平成１７年度第３学年会計報告個人別（通年）'!$F$5=2,IF(ISERROR(VLOOKUP('平成１７年度第３学年会計報告個人別（通年）'!B8,入力AA1!$B$8:$CY$258,オフセット番号A!$D$7+1))=TRUE,"",VLOOKUP('平成１７年度第３学年会計報告個人別（通年）'!B8,入力AA1!$B$8:$CY$258,オフセット番号A!$D$7+1)),"*")) -> 平成17年度第3学年会計報告（個人別） | E115: =IF('平成１７年度第３学年会計報告個人別（通年）'!$F$5=1,項目表示入力!$E$9,IF('平成１７年度第３学年会計報告個人別（通年）'!$F$5=2,IF(ISERROR(VLOOKUP('平成１７年度第３学年会計報告個人別（通年）'!B8,入力AA1!$B$8:$CY$258,オフセット番号A!$E$7+1))=TRUE,"",VLOOKUP('平成１７年度第３学年会計報告個人別（通年）'!B8,入力AA1!$B$8:$CY$258,オフセット番号A!$E$7+1)),"*")) -> 平成２８年３月２５日 ３年1組 1 番生徒 生徒氏名1 保護者 保護者氏名1 様 □□立○○高等学校 校長 ○○太郎 学年会計担当 ○○ 平成17年度第3学年会計報告（個人別） お子様の平成17年度第3学年会計（個人別）については添付ファイルの通りです。確認 をお願いいたします。疑問な点がございましたら、学年会計担当○○までお申し出くださ い。 以上 | F115: =IF('平成１７年度第３学年会計報告個人別（通年）'!$F$5=1,項目表示入力!$F$9,IF('平成１７年度第３学年会計報告個人別（通年）'!$F$5=2,IF(ISERROR(VLOOKUP('平成１７年度第３学年会計報告個人別（通年）'!B8,入力AA1!$B$8:$CY$258,オフセット番号A!$F$7+1))=TRUE,"",VLOOKUP('平成１７年度第３学年会計報告個人別（通年）'!B8,入力AA1!$B$8:$CY$258,オフセット番号A!$F$7+1)),"*")) -> 0 | G115: =IF('平成１７年度第３学年会計報告個人別（通年）'!$F$5=1,項目表示入力!$G$9,IF('平成１７年度第３学年会計報告個人別（通年）'!$F$5=2,IF(ISERROR(VLOOKUP('平成１７年度第３学年会計報告個人別（通年）'!B8,入力AA1!$B$8:$CY$258,オフセット番号A!$G$7+1))=TRUE,"",VLOOKUP('平成１７年度第３学年会計報告個人別（通年）'!B8,入力AA1!$B$8:$CY$258,オフセット番号A!$G$7+1)),"*")) -> 0 | I115: =IF('平成１７年度第３学年会計報告個人別（通年）'!$F$5=1,項目表示入力!$H$9,IF('平成１７年度第３学年会計報告個人別（通年）'!$F$5=2,IF(ISERROR(VLOOKUP('平成１７年度第３学年会計報告個人別（通年）'!B8,入力AA1!$B$8:$CY$258,オフセット番号A!$H$7+1))=TRUE,"",VLOOKUP('平成１７年度第３学年会計報告個人別（通年）'!B8,入力AA1!$B$8:$CY$258,オフセット番号A!$H$7+1)),"*")) -> 0 | J115: =IF('平成１７年度第３学年会計報告個人別（通年）'!$F$5=1,項目表示入力!$I$9,IF('平成１７年度第３学年会計報告個人別（通年）'!$F$5=2,IF(ISERROR(VLOOKUP('平成１７年度第３学年会計報告個人別（通年）'!B8,入力AA1!$B$8:$CY$258,オフセット番号A!$I$7+1))=TRUE,"",VLOOKUP('平成１７年度第３学年会計報告個人別（通年）'!B8,入力AA1!$B$8:$CY$258,オフセット番号A!$I$7+1)),"*")) -> 0 | K115: =IF('平成１７年度第３学年会計報告個人別（通年）'!$F$5=1,項目表示入力!$J$9,IF('平成１７年度第３学年会計報告個人別（通年）'!$F$5=2,IF(ISERROR(VLOOKUP('平成１７年度第３学年会計報告個人別（通年）'!B8,入力AA1!$B$8:$CY$258,オフセット番号A!$J$7+1))=TRUE,"",VLOOKUP('平成１７年度第３学年会計報告個人別（通年）'!B8,入力AA1!$B$8:$CY$258,オフセット番号A!$J$7+1)),"*")) -> 0 | L115: =IF('平成１７年度第３学年会計報告個人別（通年）'!$F$5=1,項目表示入力!$K$9,IF('平成１７年度第３学年会計報告個人別（通年）'!$F$5=2,IF(ISERROR(VLOOKUP('平成１７年度第３学年会計報告個人別（通年）'!B8,入力AA1!$B$8:$CY$258,オフセット番号A!$K$7+1))=TRUE,"",VLOOKUP('平成１７年度第３学年会計報告個人別（通年）'!B8,入力AA1!$B$8:$CY$258,オフセット番号A!$K$7+1)),"*")) -> 0 | M115: =IF('平成１７年度第３学年会計報告個人別（通年）'!$F$5=1,項目表示入力!$L$9,IF('平成１７年度第３学年会計報告個人別（通年）'!$F$5=2,IF(ISERROR(VLOOKUP('平成１７年度第３学年会計報告個人別（通年）'!B8,入力AA1!$B$8:$CY$258,オフセット番号A!$L$7+1))=TRUE,"",VLOOKUP('平成１７年度第３学年会計報告個人別（通年）'!B8,入力AA1!$B$8:$CY$258,オフセット番号A!$L$7+1)),"*")) -> 0 | N115: =IF('平成１７年度第３学年会計報告個人別（通年）'!$F$5=1,項目表示入力!$M$9,IF('平成１７年度第３学年会計報告個人別（通年）'!$F$5=2,IF(ISERROR(VLOOKUP('平成１７年度第３学年会計報告個人別（通年）'!B8,入力AA1!$B$8:$CY$258,オフセット番号A!$M$7+1))=TRUE,"",VLOOKUP('平成１７年度第３学年会計報告個人別（通年）'!B8,入力AA1!$B$8:$CY$258,オフセット番号A!$M$7+1)),"*")) -> 0 | O115: =IF('平成１７年度第３学年会計報告個人別（通年）'!$F$5=1,項目表示入力!$N$9,IF('平成１７年度第３学年会計報告個人別（通年）'!$F$5=2,IF(ISERROR(VLOOKUP('平成１７年度第３学年会計報告個人別（通年）'!B8,入力AA1!$B$8:$CY$258,オフセット番号A!$N$7+1))=TRUE,"",VLOOKUP('平成１７年度第３学年会計報告個人別（通年）'!B8,入力AA1!$B$8:$CY$258,オフセット番号A!$N$7+1)),"*")) -> 0 | P115: =IF('平成１７年度第３学年会計報告個人別（通年）'!$F$5=1,項目表示入力!$O$9,IF('平成１７年度第３学年会計報告個人別（通年）'!$F$5=2,IF(ISERROR(VLOOKUP('平成１７年度第３学年会計報告個人別（通年）'!B8,入力AA1!$B$8:$CY$258,オフセット番号A!$O$7+1))=TRUE,"",VLOOKUP('平成１７年度第３学年会計報告個人別（通年）'!B8,入力AA1!$B$8:$CY$258,オフセット番号A!$O$7+1)),"*")) -> 0 | Q115: =IF('平成１７年度第３学年会計報告個人別（通年）'!$F$5=1,項目表示入力!$P$9,IF('平成１７年度第３学年会計報告個人別（通年）'!$F$5=2,IF(ISERROR(VLOOKUP('平成１７年度第３学年会計報告個人別（通年）'!B8,入力AA1!$B$8:$CY$258,オフセット番号A!$P$7+1))=TRUE,"",VLOOKUP('平成１７年度第３学年会計報告個人別（通年）'!B8,入力AA1!$B$8:$CY$258,オフセット番号A!$P$7+1)),"*")) -> 0 | R115: =IF('平成１７年度第３学年会計報告個人別（通年）'!$F$5=1,項目表示入力!$Q$9,IF('平成１７年度第３学年会計報告個人別（通年）'!$F$5=2,IF(ISERROR(VLOOKUP('平成１７年度第３学年会計報告個人別（通年）'!B8,入力AA1!$B$8:$CY$258,オフセット番号A!$Q$7+1))=TRUE,"",VLOOKUP('平成１７年度第３学年会計報告個人別（通年）'!B8,入力AA1!$B$8:$CY$258,オフセット番号A!$Q$7+1)),"*")) -> 0 | S115: =IF('平成１７年度第３学年会計報告個人別（通年）'!$F$5=1,項目表示入力!$R$9,IF('平成１７年度第３学年会計報告個人別（通年）'!$F$5=2,IF(ISERROR(VLOOKUP('平成１７年度第３学年会計報告個人別（通年）'!B8,入力AA1!$B$8:$CY$258,オフセット番号A!$R$7+1))=TRUE,"",VLOOKUP('平成１７年度第３学年会計報告個人別（通年）'!B8,入力AA1!$B$8:$CY$258,オフセット番号A!$R$7+1)),"*")) -> 0 | T115: =IF('平成１７年度第３学年会計報告個人別（通年）'!$F$5=1,項目表示入力!$S$9,IF('平成１７年度第３学年会計報告個人別（通年）'!$F$5=2,IF(ISERROR(VLOOKUP('平成１７年度第３学年会計報告個人別（通年）'!B8,入力AA1!$B$8:$CY$258,オフセット番号A!$S$7+1))=TRUE,"",VLOOKUP('平成１７年度第３学年会計報告個人別（通年）'!B8,入力AA1!$B$8:$CY$258,オフセット番号A!$S$7+1)),"*")) -> 0 | U115: =IF('平成１７年度第３学年会計報告個人別（通年）'!$F$5=1,項目表示入力!$T$9,IF('平成１７年度第３学年会計報告個人別（通年）'!$F$5=2,IF(ISERROR(VLOOKUP('平成１７年度第３学年会計報告個人別（通年）'!B8,入力AA1!$B$8:$CY$258,オフセット番号A!$T$7+1))=TRUE,"",VLOOKUP('平成１７年度第３学年会計報告個人別（通年）'!B8,入力AA1!$B$8:$CY$258,オフセット番号A!$T$7+1)),"*")) -> 0 | V115: =IF('平成１７年度第３学年会計報告個人別（通年）'!$F$5=1,項目表示入力!$U$9,IF('平成１７年度第３学年会計報告個人別（通年）'!$F$5=2,IF(ISERROR(VLOOKUP('平成１７年度第３学年会計報告個人別（通年）'!B8,入力AA1!$B$8:$CY$258,オフセット番号A!$U$7+1))=TRUE,"",VLOOKUP('平成１７年度第３学年会計報告個人別（通年）'!B8,入力AA1!$B$8:$CY$258,オフセット番号A!$U$7+1)),"*")) -> 0 | W115: =IF('平成１７年度第３学年会計報告個人別（通年）'!$F$5=1,項目表示入力!$V$9,IF('平成１７年度第３学年会計報告個人別（通年）'!$F$5=2,IF(ISERROR(VLOOKUP('平成１７年度第３学年会計報告個人別（通年）'!B8,入力AA1!$B$8:$CY$258,オフセット番号A!$V$7+1))=TRUE,"",VLOOKUP('平成１７年度第３学年会計報告個人別（通年）'!B8,入力AA1!$B$8:$CY$258,オフセット番号A!$V$7+1)),"*")) -> 0
B116: =IF(行列入力項目!$C$8="","",行列入力項目!$C$8) -> 行4 | C116: =IF('平成１７年度第３学年会計報告個人別（通年）'!$F$5=1,項目表示入力!$C$10,IF('平成１７年度第３学年会計報告個人別（通年）'!$F$5=2,IF(ISERROR(VLOOKUP('平成１７年度第３学年会計報告個人別（通年）'!B8,入力AA1!$B$8:$CY$258,オフセット番号A!$C$8+1))=TRUE,"",VLOOKUP('平成１７年度第３学年会計報告個人別（通年）'!B8,入力AA1!$B$8:$CY$258,オフセット番号A!$C$8+1)),"*")) -> 580 | D116: =IF('平成１７年度第３学年会計報告個人別（通年）'!$F$5=1,項目表示入力!$D$10,IF('平成１７年度第３学年会計報告個人別（通年）'!$F$5=2,IF(ISERROR(VLOOKUP('平成１７年度第３学年会計報告個人別（通年）'!B8,入力AA1!$B$8:$CY$258,オフセット番号A!$D$8+1))=TRUE,"",VLOOKUP('平成１７年度第３学年会計報告個人別（通年）'!B8,入力AA1!$B$8:$CY$258,オフセット番号A!$D$8+1)),"*")) -> 0 | E116: =IF('平成１７年度第３学年会計報告個人別（通年）'!$F$5=1,項目表示入力!$E$10,IF('平成１７年度第３学年会計報告個人別（通年）'!$F$5=2,IF(ISERROR(VLOOKUP('平成１７年度第３学年会計報告個人別（通年）'!B8,入力AA1!$B$8:$CY$258,オフセット番号A!$E$8+1))=TRUE,"",VLOOKUP('平成１７年度第３学年会計報告個人別（通年）'!B8,入力AA1!$B$8:$CY$258,オフセット番号A!$E$8+1)),"*")) -> 1310 | F116: =IF('平成１７年度第３学年会計報告個人別（通年）'!$F$5=1,項目表示入力!$F$10,IF('平成１７年度第３学年会計報告個人別（通年）'!$F$5=2,IF(ISERROR(VLOOKUP('平成１７年度第３学年会計報告個人別（通年）'!B8,入力AA1!$B$8:$CY$258,オフセット番号A!$F$8+1))=TRUE,"",VLOOKUP('平成１７年度第３学年会計報告個人別（通年）'!B8,入力AA1!$B$8:$CY$258,オフセット番号A!$F$8+1)),"*")) -> 0 | G116: =IF('平成１７年度第３学年会計報告個人別（通年）'!$F$5=1,項目表示入力!$G$10,IF('平成１７年度第３学年会計報告個人別（通年）'!$F$5=2,IF(ISERROR(VLOOKUP('平成１７年度第３学年会計報告個人別（通年）'!B8,入力AA1!$B$8:$CY$258,オフセット番号A!$G$8+1))=TRUE,"",VLOOKUP('平成１７年度第３学年会計報告個人別（通年）'!B8,入力AA1!$B$8:$CY$258,オフセット番号A!$G$8+1)),"*")) -> 0 | I116: =IF('平成１７年度第３学年会計報告個人別（通年）'!$F$5=1,項目表示入力!$H$10,IF('平成１７年度第３学年会計報告個人別（通年）'!$F$5=2,IF(ISERROR(VLOOKUP('平成１７年度第３学年会計報告個人別（通年）'!B8,入力AA1!$B$8:$CY$258,オフセット番号A!$H$8+1))=TRUE,"",VLOOKUP('平成１７年度第３学年会計報告個人別（通年）'!B8,入力AA1!$B$8:$CY$258,オフセット番号A!$H$8+1)),"*")) -> 0 | J116: =IF('平成１７年度第３学年会計報告個人別（通年）'!$F$5=1,項目表示入力!$I$10,IF('平成１７年度第３学年会計報告個人別（通年）'!$F$5=2,IF(ISERROR(VLOOKUP('平成１７年度第３学年会計報告個人別（通年）'!B8,入力AA1!$B$8:$CY$258,オフセット番号A!$I$8+1))=TRUE,"",VLOOKUP('平成１７年度第３学年会計報告個人別（通年）'!B8,入力AA1!$B$8:$CY$258,オフセット番号A!$I$8+1)),"*")) -> 0 | K116: =IF('平成１７年度第３学年会計報告個人別（通年）'!$F$5=1,項目表示入力!$J$10,IF('平成１７年度第３学年会計報告個人別（通年）'!$F$5=2,IF(ISERROR(VLOOKUP('平成１７年度第３学年会計報告個人別（通年）'!B8,入力AA1!$B$8:$CY$258,オフセット番号A!$J$8+1))=TRUE,"",VLOOKUP('平成１７年度第３学年会計報告個人別（通年）'!B8,入力AA1!$B$8:$CY$258,オフセット番号A!$J$8+1)),"*")) -> 0 | L116: =IF('平成１７年度第３学年会計報告個人別（通年）'!$F$5=1,項目表示入力!$K$10,IF('平成１７年度第３学年会計報告個人別（通年）'!$F$5=2,IF(ISERROR(VLOOKUP('平成１７年度第３学年会計報告個人別（通年）'!B8,入力AA1!$B$8:$CY$258,オフセット番号A!$K$8+1))=TRUE,"",VLOOKUP('平成１７年度第３学年会計報告個人別（通年）'!B8,入力AA1!$B$8:$CY$258,オフセット番号A!$K$8+1)),"*")) -> 0 | M116: =IF('平成１７年度第３学年会計報告個人別（通年）'!$F$5=1,項目表示入力!$L$10,IF('平成１７年度第３学年会計報告個人別（通年）'!$F$5=2,IF(ISERROR(VLOOKUP('平成１７年度第３学年会計報告個人別（通年）'!B8,入力AA1!$B$8:$CY$258,オフセット番号A!$L$8+1))=TRUE,"",VLOOKUP('平成１７年度第３学年会計報告個人別（通年）'!B8,入力AA1!$B$8:$CY$258,オフセット番号A!$L$8+1)),"*")) -> 0 | N116: =IF('平成１７年度第３学年会計報告個人別（通年）'!$F$5=1,項目表示入力!$M$10,IF('平成１７年度第３学年会計報告個人別（通年）'!$F$5=2,IF(ISERROR(VLOOKUP('平成１７年度第３学年会計報告個人別（通年）'!B8,入力AA1!$B$8:$CY$258,オフセット番号A!$M$8+1))=TRUE,"",VLOOKUP('平成１７年度第３学年会計報告個人別（通年）'!B8,入力AA1!$B$8:$CY$258,オフセット番号A!$M$8+1)),"*")) -> 0 | O116: =IF('平成１７年度第３学年会計報告個人別（通年）'!$F$5=1,項目表示入力!$N$10,IF('平成１７年度第３学年会計報告個人別（通年）'!$F$5=2,IF(ISERROR(VLOOKUP('平成１７年度第３学年会計報告個人別（通年）'!B8,入力AA1!$B$8:$CY$258,オフセット番号A!$N$8+1))=TRUE,"",VLOOKUP('平成１７年度第３学年会計報告個人別（通年）'!B8,入力AA1!$B$8:$CY$258,オフセット番号A!$N$8+1)),"*")) -> 0 | P116: =IF('平成１７年度第３学年会計報告個人別（通年）'!$F$5=1,項目表示入力!$O$10,IF('平成１７年度第３学年会計報告個人別（通年）'!$F$5=2,IF(ISERROR(VLOOKUP('平成１７年度第３学年会計報告個人別（通年）'!B8,入力AA1!$B$8:$CY$258,オフセット番号A!$O$8+1))=TRUE,"",VLOOKUP('平成１７年度第３学年会計報告個人別（通年）'!B8,入力AA1!$B$8:$CY$258,オフセット番号A!$O$8+1)),"*")) -> 0 | Q116: =IF('平成１７年度第３学年会計報告個人別（通年）'!$F$5=1,項目表示入力!$P$10,IF('平成１７年度第３学年会計報告個人別（通年）'!$F$5=2,IF(ISERROR(VLOOKUP('平成１７年度第３学年会計報告個人別（通年）'!B8,入力AA1!$B$8:$CY$258,オフセット番号A!$P$8+1))=TRUE,"",VLOOKUP('平成１７年度第３学年会計報告個人別（通年）'!B8,入力AA1!$B$8:$CY$258,オフセット番号A!$P$8+1)),"*")) -> 0 | R116: =IF('平成１７年度第３学年会計報告個人別（通年）'!$F$5=1,項目表示入力!$Q$10,IF('平成１７年度第３学年会計報告個人別（通年）'!$F$5=2,IF(ISERROR(VLOOKUP('平成１７年度第３学年会計報告個人別（通年）'!B8,入力AA1!$B$8:$CY$258,オフセット番号A!$Q$8+1))=TRUE,"",VLOOKUP('平成１７年度第３学年会計報告個人別（通年）'!B8,入力AA1!$B$8:$CY$258,オフセット番号A!$Q$8+1)),"*")) -> 0 | S116: =IF('平成１７年度第３学年会計報告個人別（通年）'!$F$5=1,項目表示入力!$R$10,IF('平成１７年度第３学年会計報告個人別（通年）'!$F$5=2,IF(ISERROR(VLOOKUP('平成１７年度第３学年会計報告個人別（通年）'!B8,入力AA1!$B$8:$CY$258,オフセット番号A!$R$8+1))=TRUE,"",VLOOKUP('平成１７年度第３学年会計報告個人別（通年）'!B8,入力AA1!$B$8:$CY$258,オフセット番号A!$R$8+1)),"*")) -> 0 | T116: =IF('平成１７年度第３学年会計報告個人別（通年）'!$F$5=1,項目表示入力!$S$10,IF('平成１７年度第３学年会計報告個人別（通年）'!$F$5=2,IF(ISERROR(VLOOKUP('平成１７年度第３学年会計報告個人別（通年）'!B8,入力AA1!$B$8:$CY$258,オフセット番号A!$S$8+1))=TRUE,"",VLOOKUP('平成１７年度第３学年会計報告個人別（通年）'!B8,入力AA1!$B$8:$CY$258,オフセット番号A!$S$8+1)),"*")) -> 0 | U116: =IF('平成１７年度第３学年会計報告個人別（通年）'!$F$5=1,項目表示入力!$T$10,IF('平成１７年度第３学年会計報告個人別（通年）'!$F$5=2,IF(ISERROR(VLOOKUP('平成１７年度第３学年会計報告個人別（通年）'!B8,入力AA1!$B$8:$CY$258,オフセット番号A!$T$8+1))=TRUE,"",VLOOKUP('平成１７年度第３学年会計報告個人別（通年）'!B8,入力AA1!$B$8:$CY$258,オフセット番号A!$T$8+1)),"*")) -> 0 | V116: =IF('平成１７年度第３学年会計報告個人別（通年）'!$F$5=1,項目表示入力!$U$10,IF('平成１７年度第３学年会計報告個人別（通年）'!$F$5=2,IF(ISERROR(VLOOKUP('平成１７年度第３学年会計報告個人別（通年）'!B8,入力AA1!$B$8:$CY$258,オフセット番号A!$U$8+1))=TRUE,"",VLOOKUP('平成１７年度第３学年会計報告個人別（通年）'!B8,入力AA1!$B$8:$CY$258,オフセット番号A!$U$8+1)),"*")) -> 0 | W116: =IF('平成１７年度第３学年会計報告個人別（通年）'!$F$5=1,項目表示入力!$V$10,IF('平成１７年度第３学年会計報告個人別（通年）'!$F$5=2,IF(ISERROR(VLOOKUP('平成１７年度第３学年会計報告個人別（通年）'!B8,入力AA1!$B$8:$CY$258,オフセット番号A!$V$8+1))=TRUE,"",VLOOKUP('平成１７年度第３学年会計報告個人別（通年）'!B8,入力AA1!$B$8:$CY$258,オフセット番号A!$V$8+1)),"*")) -> 0
B117: =IF(行列入力項目!$C$9="","",行列入力項目!$C$9) -> 行5 | C117: =IF('平成１７年度第３学年会計報告個人別（通年）'!$F$5=1,項目表示入力!$C$11,IF('平成１７年度第３学年会計報告個人別（通年）'!$F$5=2,IF(ISERROR(VLOOKUP('平成１７年度第３学年会計報告個人別（通年）'!B8,入力AA1!$B$8:$CY$258,オフセット番号A!$C$9+1))=TRUE,"",VLOOKUP('平成１７年度第３学年会計報告個人別（通年）'!B8,入力AA1!$B$8:$CY$258,オフセット番号A!$C$9+1)),"*")) -> 21944 | D117: =IF('平成１７年度第３学年会計報告個人別（通年）'!$F$5=1,項目表示入力!$D$11,IF('平成１７年度第３学年会計報告個人別（通年）'!$F$5=2,IF(ISERROR(VLOOKUP('平成１７年度第３学年会計報告個人別（通年）'!B8,入力AA1!$B$8:$CY$258,オフセット番号A!$D$9+1))=TRUE,"",VLOOKUP('平成１７年度第３学年会計報告個人別（通年）'!B8,入力AA1!$B$8:$CY$258,オフセット番号A!$D$9+1)),"*")) -> 1890 | E117: =IF('平成１７年度第３学年会計報告個人別（通年）'!$F$5=1,項目表示入力!$E$11,IF('平成１７年度第３学年会計報告個人別（通年）'!$F$5=2,IF(ISERROR(VLOOKUP('平成１７年度第３学年会計報告個人別（通年）'!B8,入力AA1!$B$8:$CY$258,オフセット番号A!$E$9+1))=TRUE,"",VLOOKUP('平成１７年度第３学年会計報告個人別（通年）'!B8,入力AA1!$B$8:$CY$258,オフセット番号A!$E$9+1)),"*")) -> 23834 | F117: =IF('平成１７年度第３学年会計報告個人別（通年）'!$F$5=1,項目表示入力!$F$11,IF('平成１７年度第３学年会計報告個人別（通年）'!$F$5=2,IF(ISERROR(VLOOKUP('平成１７年度第３学年会計報告個人別（通年）'!B8,入力AA1!$B$8:$CY$258,オフセット番号A!$F$9+1))=TRUE,"",VLOOKUP('平成１７年度第３学年会計報告個人別（通年）'!B8,入力AA1!$B$8:$CY$258,オフセット番号A!$F$9+1)),"*")) -> 101351 | G117: =IF('平成１７年度第３学年会計報告個人別（通年）'!$F$5=1,項目表示入力!$G$11,IF('平成１７年度第３学年会計報告個人別（通年）'!$F$5=2,IF(ISERROR(VLOOKUP('平成１７年度第３学年会計報告個人別（通年）'!B8,入力AA1!$B$8:$CY$258,オフセット番号A!$G$9+1))=TRUE,"",VLOOKUP('平成１７年度第３学年会計報告個人別（通年）'!B8,入力AA1!$B$8:$CY$258,オフセット番号A!$G$9+1)),"*")) -> 0 | I117: =IF('平成１７年度第３学年会計報告個人別（通年）'!$F$5=1,項目表示入力!$H$11,IF('平成１７年度第３学年会計報告個人別（通年）'!$F$5=2,IF(ISERROR(VLOOKUP('平成１７年度第３学年会計報告個人別（通年）'!B8,入力AA1!$B$8:$CY$258,オフセット番号A!$H$9+1))=TRUE,"",VLOOKUP('平成１７年度第３学年会計報告個人別（通年）'!B8,入力AA1!$B$8:$CY$258,オフセット番号A!$H$9+1)),"*")) -> 0 | J117: =IF('平成１７年度第３学年会計報告個人別（通年）'!$F$5=1,項目表示入力!$I$11,IF('平成１７年度第３学年会計報告個人別（通年）'!$F$5=2,IF(ISERROR(VLOOKUP('平成１７年度第３学年会計報告個人別（通年）'!B8,入力AA1!$B$8:$CY$258,オフセット番号A!$I$9+1))=TRUE,"",VLOOKUP('平成１７年度第３学年会計報告個人別（通年）'!B8,入力AA1!$B$8:$CY$258,オフセット番号A!$I$9+1)),"*")) -> 101351 | K117: =IF('平成１７年度第３学年会計報告個人別（通年）'!$F$5=1,項目表示入力!$J$11,IF('平成１７年度第３学年会計報告個人別（通年）'!$F$5=2,IF(ISERROR(VLOOKUP('平成１７年度第３学年会計報告個人別（通年）'!B8,入力AA1!$B$8:$CY$258,オフセット番号A!$J$9+1))=TRUE,"",VLOOKUP('平成１７年度第３学年会計報告個人別（通年）'!B8,入力AA1!$B$8:$CY$258,オフセット番号A!$J$9+1)),"*")) -> 77517 | L117: =IF('平成１７年度第３学年会計報告個人別（通年）'!$F$5=1,項目表示入力!$K$11,IF('平成１７年度第３学年会計報告個人別（通年）'!$F$5=2,IF(ISERROR(VLOOKUP('平成１７年度第３学年会計報告個人別（通年）'!B8,入力AA1!$B$8:$CY$258,オフセット番号A!$K$9+1))=TRUE,"",VLOOKUP('平成１７年度第３学年会計報告個人別（通年）'!B8,入力AA1!$B$8:$CY$258,オフセット番号A!$K$9+1)),"*")) -> 0 | M117: =IF('平成１７年度第３学年会計報告個人別（通年）'!$F$5=1,項目表示入力!$L$11,IF('平成１７年度第３学年会計報告個人別（通年）'!$F$5=2,IF(ISERROR(VLOOKUP('平成１７年度第３学年会計報告個人別（通年）'!B8,入力AA1!$B$8:$CY$258,オフセット番号A!$L$9+1))=TRUE,"",VLOOKUP('平成１７年度第３学年会計報告個人別（通年）'!B8,入力AA1!$B$8:$CY$258,オフセット番号A!$L$9+1)),"*")) -> 0 | N117: =IF('平成１７年度第３学年会計報告個人別（通年）'!$F$5=1,項目表示入力!$M$11,IF('平成１７年度第３学年会計報告個人別（通年）'!$F$5=2,IF(ISERROR(VLOOKUP('平成１７年度第３学年会計報告個人別（通年）'!B8,入力AA1!$B$8:$CY$258,オフセット番号A!$M$9+1))=TRUE,"",VLOOKUP('平成１７年度第３学年会計報告個人別（通年）'!B8,入力AA1!$B$8:$CY$258,オフセット番号A!$M$9+1)),"*")) -> 0 | O117: =IF('平成１７年度第３学年会計報告個人別（通年）'!$F$5=1,項目表示入力!$N$11,IF('平成１７年度第３学年会計報告個人別（通年）'!$F$5=2,IF(ISERROR(VLOOKUP('平成１７年度第３学年会計報告個人別（通年）'!B8,入力AA1!$B$8:$CY$258,オフセット番号A!$N$9+1))=TRUE,"",VLOOKUP('平成１７年度第３学年会計報告個人別（通年）'!B8,入力AA1!$B$8:$CY$258,オフセット番号A!$N$9+1)),"*")) -> 0 | P117: =IF('平成１７年度第３学年会計報告個人別（通年）'!$F$5=1,項目表示入力!$O$11,IF('平成１７年度第３学年会計報告個人別（通年）'!$F$5=2,IF(ISERROR(VLOOKUP('平成１７年度第３学年会計報告個人別（通年）'!B8,入力AA1!$B$8:$CY$258,オフセット番号A!$O$9+1))=TRUE,"",VLOOKUP('平成１７年度第３学年会計報告個人別（通年）'!B8,入力AA1!$B$8:$CY$258,オフセット番号A!$O$9+1)),"*")) -> 0 | Q117: =IF('平成１７年度第３学年会計報告個人別（通年）'!$F$5=1,項目表示入力!$P$11,IF('平成１７年度第３学年会計報告個人別（通年）'!$F$5=2,IF(ISERROR(VLOOKUP('平成１７年度第３学年会計報告個人別（通年）'!B8,入力AA1!$B$8:$CY$258,オフセット番号A!$P$9+1))=TRUE,"",VLOOKUP('平成１７年度第３学年会計報告個人別（通年）'!B8,入力AA1!$B$8:$CY$258,オフセット番号A!$P$9+1)),"*")) -> 0 | R117: =IF('平成１７年度第３学年会計報告個人別（通年）'!$F$5=1,項目表示入力!$Q$11,IF('平成１７年度第３学年会計報告個人別（通年）'!$F$5=2,IF(ISERROR(VLOOKUP('平成１７年度第３学年会計報告個人別（通年）'!B8,入力AA1!$B$8:$CY$258,オフセット番号A!$Q$9+1))=TRUE,"",VLOOKUP('平成１７年度第３学年会計報告個人別（通年）'!B8,入力AA1!$B$8:$CY$258,オフセット番号A!$Q$9+1)),"*")) -> 0 | S117: =IF('平成１７年度第３学年会計報告個人別（通年）'!$F$5=1,項目表示入力!$R$11,IF('平成１７年度第３学年会計報告個人別（通年）'!$F$5=2,IF(ISERROR(VLOOKUP('平成１７年度第３学年会計報告個人別（通年）'!B8,入力AA1!$B$8:$CY$258,オフセット番号A!$R$9+1))=TRUE,"",VLOOKUP('平成１７年度第３学年会計報告個人別（通年）'!B8,入力AA1!$B$8:$CY$258,オフセット番号A!$R$9+1)),"*")) -> 0 | T117: =IF('平成１７年度第３学年会計報告個人別（通年）'!$F$5=1,項目表示入力!$S$11,IF('平成１７年度第３学年会計報告個人別（通年）'!$F$5=2,IF(ISERROR(VLOOKUP('平成１７年度第３学年会計報告個人別（通年）'!B8,入力AA1!$B$8:$CY$258,オフセット番号A!$S$9+1))=TRUE,"",VLOOKUP('平成１７年度第３学年会計報告個人別（通年）'!B8,入力AA1!$B$8:$CY$258,オフセット番号A!$S$9+1)),"*")) -> 0 | U117: =IF('平成１７年度第３学年会計報告個人別（通年）'!$F$5=1,項目表示入力!$T$11,IF('平成１７年度第３学年会計報告個人別（通年）'!$F$5=2,IF(ISERROR(VLOOKUP('平成１７年度第３学年会計報告個人別（通年）'!B8,入力AA1!$B$8:$CY$258,オフセット番号A!$T$9+1))=TRUE,"",VLOOKUP('平成１７年度第３学年会計報告個人別（通年）'!B8,入力AA1!$B$8:$CY$258,オフセット番号A!$T$9+1)),"*")) -> 77517 | V117: =IF('平成１７年度第３学年会計報告個人別（通年）'!$F$5=1,項目表示入力!$U$11,IF('平成１７年度第３学年会計報告個人別（通年）'!$F$5=2,IF(ISERROR(VLOOKUP('平成１７年度第３学年会計報告個人別（通年）'!B8,入力AA1!$B$8:$CY$258,オフセット番号A!$U$9+1))=TRUE,"",VLOOKUP('平成１７年度第３学年会計報告個人別（通年）'!B8,入力AA1!$B$8:$CY$258,オフセット番号A!$U$9+1)),"*")) -> 600 | W117: =IF('平成１７年度第３学年会計報告個人別（通年）'!$F$5=1,項目表示入力!$V$11,IF('平成１７年度第３学年会計報告個人別（通年）'!$F$5=2,IF(ISERROR(VLOOKUP('平成１７年度第３学年会計報告個人別（通年）'!B8,入力AA1!$B$8:$CY$258,オフセット番号A!$V$9+1))=TRUE,"",VLOOKUP('平成１７年度第３学年会計報告個人別（通年）'!B8,入力AA1!$B$8:$CY$258,オフセット番号A!$V$9+1)),"*")) -> 76917

Sheet ○○○子学年積立金会計報告印刷フォーム
B2: =シート名設定!C36 -> ○○○子学年積立金会計報告印刷フォーム
B4: =シート名設定!C29 -> ファイル作成コピー用
B5: 入力項目表示とデーター表示の切替 → | F5: 2
B6: 入力項目表示は1，データ表示は2を入力
B8: 60 | C8: =IF(ISERR(VLOOKUP(B8,入力AA1!$B$8:$CY$258,2))=1,"",VLOOKUP(B8,入力AA1!$B$8:$CY$258,2)) -> 対象60
F11: ="旧第３学年 "&D97&"組 "&E97&"番 生徒氏名 "&F97 -> 旧第３学年 2組 25番 生徒氏名 生徒氏名60 | H11: 平成２８年１０月４日
F13: 保護者 様
H16: ○○県立××高等学校
H17: 校長 ○○○○
H18: 第３学年主任 ○○○○
H19: 第３学年会計担当 ○○○○
F21: ○○○子さんに係る平成２８年度第３学年学年積立金会計報告（訂正）
G23: 平成２８年７月２０日付で報告いたしました、大野綾子さんに係る平成２８年度第３学年学年積立金会計報告に誤りがありましたので、次の通り、訂正して報告させていただきます。誠に申し訳ございませんでした。深くおわび申し上げます。なお、追加返金につきましては、直接担当者がご自宅に伺わせていただき、返金しますのでよろしくお願いいたします。
F25: Ⅰ 収入の部
G27: 項 目 | H27: 金 額
G28: 前年度からの繰越金 | H28: =F101 -> 102643
G29: 学年積立金 | H29: =G101 -> 0
G30: 預 金 利 子 | H30: =H101 -> 0
G31: 合 計 | H31: =SUM(H28:H30) -> 102643
F33: Ⅱ 支出の部
G35: ＜注意＞ １円未満の端数は切り上げ処理をしています。
G36: (１)共通な支出
G38: 項 目 | H38: 金 額
G39: **高ノート用特注リングファイル | H39: =C98 -> 514
G40: 生徒手帳及び身分証明書 | H40: =D98 -> 161
G41: コクヨ クリヤーブック | H41: =E98 -> 258
G42: 日本スポーツ振興センター掛金 | H42: =F98 -> 1510
G43: 指導用カラー写真 小型９枚セット | H43: =G98 -> 535
G44: ５月２７日学校見学会 傷害保険 | H44: =H98 -> 100
G45: ＰＴＡ支部活動費 | H45: =I98 -> 1000
G46: 高等学校安全互助会負担金 | H46: =J98 -> 900
G47: 高等学校ＰＴＡ連合賠償責任保証制度掛金 | H47: =K98 -> 200
G48: 卒業アルバム第１回内金 | H48: =L98 -> 0
G49: 高等学校スポーツテスト処理料金 | H49: =M98 -> 218
G50: 中央公論新社 やさしい文章術 | H50: =N98 -> 680
G60: 共通な支出計 | H60: =SUM(H39:H59) -> 6076
G62: (２)共通な支出以外の支出
G64: 項 目 | H64: 金 額
G65: 理科類型Ａコース生徒副教材「看護医療系短大・専門学校の数学」 | H65: =C100 -> 0
G66: 就職希望者問題集「一般常識マイテスト（解別）」 | H66: =D100 -> 0
G67: 理系類型生徒対象第１回学研高３「新・基礎力テスト」３教科 | H67: =E100 -> 0
G68: 文系類型・外国語類型生徒対象第１回学研高３「新・基礎力テスト」２教科 | H68: =F100 -> 0
G69: 文系類型・外国語類型生徒対象第１回学研「常識テスト」 | H69: =G100 -> 0
G76: 共通な支出以外の支出計 | H76: =SUM(H65:H75) -> 0
G78: (３)支出の合計
G80: 項 目 | H80: 金 額
G81: （１）共通な支出計 | H81: =H60 -> 6076
G82: （２）共通な支出以外の支出計 | H82: =H76 -> 0
G83: 支出の合計 | H83: =SUM(H81:H82) -> 6076
F85: Ⅲ 収支合計
G87: 項 目 | H87: 金 額
G88: 収入の合計 | H88: =H31 -> 102643
G89: 支出の合計 | H89: =H83 -> 6076
G90: 収支合計（返金額） | H90: =H88-H89 -> 96567
C96: =IF(オフセット番号A!$C$4="","",オフセット番号A!$C$4) -> 列1 | D96: =IF(オフセット番号A!$D$4="","",オフセット番号A!$D$4) -> 列2 | E96: =IF(オフセット番号A!$E$4="","",オフセット番号A!$E$4) -> 列3 | F96: =IF(オフセット番号A!$F$4="","",オフセット番号A!$F$4) -> 列4 | G96: =IF(オフセット番号A!$G$4="","",オフセット番号A!$G$4) -> 列5 | H96: =IF(オフセット番号A!$H$4="","",オフセット番号A!$H$4) -> 列6 | I96: =IF(オフセット番号A!$I$4="","",オフセット番号A!$I$4) -> 列7 | J96: =IF(オフセット番号A!$J$4="","",オフセット番号A!$J$4) -> 列8 | K96: =IF(オフセット番号A!$K$4="","",オフセット番号A!$K$4) -> 列9 | L96: =IF(オフセット番号A!$L$4="","",オフセット番号A!$L$4) -> 列10 | M96: =IF(オフセット番号A!$M$4="","",オフセット番号A!$M$4) -> 列11 | N96: =IF(オフセット番号A!$N$4="","",オフセット番号A!$N$4) -> 列12 | O96: =IF(オフセット番号A!$O$4="","",オフセット番号A!$O$4) -> 列13 | P96: =IF(オフセット番号A!$P$4="","",オフセット番号A!$P$4) -> 列14 | Q96: =IF(オフセット番号A!$Q$4="","",オフセット番号A!$Q$4) -> 列15 | R96: =IF(オフセット番号A!$R$4="","",オフセット番号A!$R$4) -> 列16 | S96: =IF(オフセット番号A!$S$4="","",オフセット番号A!$S$4) -> 列17 | T96: =IF(オフセット番号A!$T$4="","",オフセット番号A!$T$4) -> 列18 | U96: =IF(オフセット番号A!$U$4="","",オフセット番号A!$U$4) -> 列19 | V96: =IF(オフセット番号A!$V$4="","",オフセット番号A!$V$4) -> 列20
B97: =IF(行列入力項目!$C$5="","",行列入力項目!$C$5) -> 行1 | C97: =IF($F$5=1,項目表示入力!$C$7,IF($F$5=2,IF(ISERROR(VLOOKUP(B8,入力AA1!$B$8:$CY$258,オフセット番号A!$C$5+1))=TRUE,"",VLOOKUP(B8,入力AA1!$B$8:$CY$258,オフセット番号A!$C$5+1)),"*")) -> 3225 | D97: =IF($F$5=1,項目表示入力!$D$7,IF($F$5=2,IF(ISERROR(VLOOKUP(B8,入力AA1!$B$8:$CY$258,オフセット番号A!$D$5+1))=TRUE,"",VLOOKUP(B8,入力AA1!$B$8:$CY$258,オフセット番号A!$D$5+1)),"*")) -> 2 | E97: =IF($F$5=1,項目表示入力!$E$7,IF($F$5=2,IF(ISERROR(VLOOKUP(B8,入力AA1!$B$8:$CY$258,オフセット番号A!$E$5+1))=TRUE,"",VLOOKUP(B8,入力AA1!$B$8:$CY$258,オフセット番号A!$E$5+1)),"*")) -> 25 | F97: =IF($F$5=1,項目表示入力!$F$7,IF($F$5=2,IF(ISERROR(VLOOKUP(B8,入力AA1!$B$8:$CY$258,オフセット番号A!$F$5+1))=TRUE,"",VLOOKUP(B8,入力AA1!$B$8:$CY$258,オフセット番号A!$F$5+1)),"*")) -> 生徒氏名60 | G97: =IF($F$5=1,項目表示入力!$G$7,IF($F$5=2,IF(ISERROR(VLOOKUP(B8,入力AA1!$B$8:$CY$258,オフセット番号A!$G$5+1))=TRUE,"",VLOOKUP(B8,入力AA1!$B$8:$CY$258,オフセット番号A!$G$5+1)),"*")) -> フリガナ60 | H97: =IF($F$5=1,項目表示入力!$H$7,IF($F$5=2,IF(ISERROR(VLOOKUP(B8,入力AA1!$B$8:$CY$258,オフセット番号A!$H$5+1))=TRUE,"",VLOOKUP(B8,入力AA1!$B$8:$CY$258,オフセット番号A!$H$5+1)),"*")) -> 女 | I97: =IF($F$5=1,項目表示入力!$I$7,IF($F$5=2,IF(ISERROR(VLOOKUP(B8,入力AA1!$B$8:$CY$258,オフセット番号A!$I$5+1))=TRUE,"",VLOOKUP(B8,入力AA1!$B$8:$CY$258,オフセット番号A!$I$5+1)),"*")) -> 保護者氏名60 | J97: =IF($F$5=1,項目表示入力!$J$7,IF($F$5=2,IF(ISERROR(VLOOKUP(B8,入力AA1!$B$8:$CY$258,オフセット番号A!$J$5+1))=TRUE,"",VLOOKUP(B8,入力AA1!$B$8:$CY$258,オフセット番号A!$J$5+1)),"*")) -> 郵便番号60 | K97: =IF($F$5=1,項目表示入力!$K$7,IF($F$5=2,IF(ISERROR(VLOOKUP(B8,入力AA1!$B$8:$CY$258,オフセット番号A!$K$5+1))=TRUE,"",VLOOKUP(B8,入力AA1!$B$8:$CY$258,オフセット番号A!$K$5+1)),"*")) -> ○○市×××町1-1-60 | L97: =IF($F$5=1,項目表示入力!$L$7,IF($F$5=2,IF(ISERROR(VLOOKUP(B8,入力AA1!$B$8:$CY$258,オフセット番号A!$L$5+1))=TRUE,"",VLOOKUP(B8,入力AA1!$B$8:$CY$258,オフセット番号A!$L$5+1)),"*")) -> 0 | M97: =IF($F$5=1,項目表示入力!$M$7,IF($F$5=2,IF(ISERROR(VLOOKUP(B8,入力AA1!$B$8:$CY$258,オフセット番号A!$M$5+1))=TRUE,"",VLOOKUP(B8,入力AA1!$B$8:$CY$258,オフセット番号A!$M$5+1)),"*")) -> 預金者氏名60 | N97: =IF($F$5=1,項目表示入力!$N$7,IF($F$5=2,IF(ISERROR(VLOOKUP(B8,入力AA1!$B$8:$CY$258,オフセット番号A!$N$5+1))=TRUE,"",VLOOKUP(B8,入力AA1!$B$8:$CY$258,オフセット番号A!$N$5+1)),"*")) -> 預金者フリガナ60 | O97: =IF($F$5=1,項目表示入力!$O$7,IF($F$5=2,IF(ISERROR(VLOOKUP(B8,入力AA1!$B$8:$CY$258,オフセット番号A!$O$5+1))=TRUE,"",VLOOKUP(B8,入力AA1!$B$8:$CY$258,オフセット番号A!$O$5+1)),"*")) -> 預金者郵便番号60 | P97: =IF($F$5=1,項目表示入力!$P$7,IF($F$5=2,IF(ISERROR(VLOOKUP(B8,入力AA1!$B$8:$CY$258,オフセット番号A!$P$5+1))=TRUE,"",VLOOKUP(B8,入力AA1!$B$8:$CY$258,オフセット番号A!$P$5+1)),"*")) -> 預金者住所60 | Q97: =IF($F$5=1,項目表示入力!$Q$7,IF($F$5=2,IF(ISERROR(VLOOKUP(B8,入力AA1!$B$8:$CY$258,オフセット番号A!$Q$5+1))=TRUE,"",VLOOKUP(B8,入力AA1!$B$8:$CY$258,オフセット番号A!$Q$5+1)),"*")) -> ***-000-0060 | R97: =IF($F$5=1,項目表示入力!$R$7,IF($F$5=2,IF(ISERROR(VLOOKUP(B8,入力AA1!$B$8:$CY$258,オフセット番号A!$R$5+1))=TRUE,"",VLOOKUP(B8,入力AA1!$B$8:$CY$258,オフセット番号A!$R$5+1)),"*")) -> なんとか銀行60 | S97: =IF($F$5=1,項目表示入力!$S$7,IF($F$5=2,IF(ISERROR(VLOOKUP(B8,入力AA1!$B$8:$CY$258,オフセット番号A!$S$5+1))=TRUE,"",VLOOKUP(B8,入力AA1!$B$8:$CY$258,オフセット番号A!$S$5+1)),"*")) -> なんとか支店60 | T97: =IF($F$5=1,項目表示入力!$T$7,IF($F$5=2,IF(ISERROR(VLOOKUP(B8,入力AA1!$B$8:$CY$258,オフセット番号A!$T$5+1))=TRUE,"",VLOOKUP(B8,入力AA1!$B$8:$CY$258,オフセット番号A!$T$5+1)),"*")) -> なんとか銀行60なんとか支店60 | U97: =IF($F$5=1,項目表示入力!$U$7,IF($F$5=2,IF(ISERROR(VLOOKUP(B8,入力AA1!$B$8:$CY$258,オフセット番号A!$U$5+1))=TRUE,"",VLOOKUP(B8,入力AA1!$B$8:$CY$258,オフセット番号A!$U$5+1)),"*")) -> 普通 | V97: =IF($F$5=1,項目表示入力!$V$7,IF($F$5=2,IF(ISERROR(VLOOKUP(B8,入力AA1!$B$8:$CY$258,オフセット番号A!$V$5+1))=TRUE,"",VLOOKUP(B8,入力AA1!$B$8:$CY$258,オフセット番号A!$V$5+1)),"*")) -> ******60
B98: =IF(行列入力項目!$C$6="","",行列入力項目!$C$6) -> 行2 | C98: =IF($F$5=1,項目表示入力!$C$8,IF($F$5=2,IF(ISERROR(VLOOKUP(B8,入力AA1!$B$8:$CY$258,オフセット番号A!$C$6+1))=TRUE,"",VLOOKUP(B8,入力AA1!$B$8:$CY$258,オフセット番号A!$C$6+1)),"*")) -> 514 | D98: =IF($F$5=1,項目表示入力!$D$8,IF($F$5=2,IF(ISERROR(VLOOKUP(B8,入力AA1!$B$8:$CY$258,オフセット番号A!$D$6+1))=TRUE,"",VLOOKUP(B8,入力AA1!$B$8:$CY$258,オフセット番号A!$D$6+1)),"*")) -> 161 | E98: =IF($F$5=1,項目表示入力!$E$8,IF($F$5=2,IF(ISERROR(VLOOKUP(B8,入力AA1!$B$8:$CY$258,オフセット番号A!$E$6+1))=TRUE,"",VLOOKUP(B8,入力AA1!$B$8:$CY$258,オフセット番号A!$E$6+1)),"*")) -> 258 | F98: =IF($F$5=1,項目表示入力!$F$8,IF($F$5=2,IF(ISERROR(VLOOKUP(B8,入力AA1!$B$8:$CY$258,オフセット番号A!$F$6+1))=TRUE,"",VLOOKUP(B8,入力AA1!$B$8:$CY$258,オフセット番号A!$F$6+1)),"*")) -> 1510 | G98: =IF($F$5=1,項目表示入力!$G$8,IF($F$5=2,IF(ISERROR(VLOOKUP(B8,入力AA1!$B$8:$CY$258,オフセット番号A!$G$6+1))=TRUE,"",VLOOKUP(B8,入力AA1!$B$8:$CY$258,オフセット番号A!$G$6+1)),"*")) -> 535 | H98: =IF($F$5=1,項目表示入力!$H$8,IF($F$5=2,IF(ISERROR(VLOOKUP(B8,入力AA1!$B$8:$CY$258,オフセット番号A!$H$6+1))=TRUE,"",VLOOKUP(B8,入力AA1!$B$8:$CY$258,オフセット番号A!$H$6+1)),"*")) -> 100 | I98: =IF($F$5=1,項目表示入力!$I$8,IF($F$5=2,IF(ISERROR(VLOOKUP(B8,入力AA1!$B$8:$CY$258,オフセット番号A!$I$6+1))=TRUE,"",VLOOKUP(B8,入力AA1!$B$8:$CY$258,オフセット番号A!$I$6+1)),"*")) -> 1000 | J98: =IF($F$5=1,項目表示入力!$J$8,IF($F$5=2,IF(ISERROR(VLOOKUP(B8,入力AA1!$B$8:$CY$258,オフセット番号A!$J$6+1))=TRUE,"",VLOOKUP(B8,入力AA1!$B$8:$CY$258,オフセット番号A!$J$6+1)),"*")) -> 900 | K98: =IF($F$5=1,項目表示入力!$K$8,IF($F$5=2,IF(ISERROR(VLOOKUP(B8,入力AA1!$B$8:$CY$258,オフセット番号A!$K$6+1))=TRUE,"",VLOOKUP(B8,入力AA1!$B$8:$CY$258,オフセット番号A!$K$6+1)),"*")) -> 200 | L98: =IF($F$5=1,項目表示入力!$L$8,IF($F$5=2,IF(ISERROR(VLOOKUP(B8,入力AA1!$B$8:$CY$258,オフセット番号A!$L$6+1))=TRUE,"",VLOOKUP(B8,入力AA1!$B$8:$CY$258,オフセット番号A!$L$6+1)),"*")) -> 0 | M98: =IF($F$5=1,項目表示入力!$M$8,IF($F$5=2,IF(ISERROR(VLOOKUP(B8,入力AA1!$B$8:$CY$258,オフセット番号A!$M$6+1))=TRUE,"",VLOOKUP(B8,入力AA1!$B$8:$CY$258,オフセット番号A!$M$6+1)),"*")) -> 218 | N98: =IF($F$5=1,項目表示入力!$N$8,IF($F$5=2,IF(ISERROR(VLOOKUP(B8,入力AA1!$B$8:$CY$258,オフセット番号A!$N$6+1))=TRUE,"",VLOOKUP(B8,入力AA1!$B$8:$CY$258,オフセット番号A!$N$6+1)),"*")) -> 680 | O98: =IF($F$5=1,項目表示入力!$O$8,IF($F$5=2,IF(ISERROR(VLOOKUP(B8,入力AA1!$B$8:$CY$258,オフセット番号A!$O$6+1))=TRUE,"",VLOOKUP(B8,入力AA1!$B$8:$CY$258,オフセット番号A!$O$6+1)),"*")) -> 0 | P98: =IF($F$5=1,項目表示入力!$P$8,IF($F$5=2,IF(ISERROR(VLOOKUP(B8,入力AA1!$B$8:$CY$258,オフセット番号A!$P$6+1))=TRUE,"",VLOOKUP(B8,入力AA1!$B$8:$CY$258,オフセット番号A!$P$6+1)),"*")) -> 0 | Q98: =IF($F$5=1,項目表示入力!$Q$8,IF($F$5=2,IF(ISERROR(VLOOKUP(B8,入力AA1!$B$8:$CY$258,オフセット番号A!$Q$6+1))=TRUE,"",VLOOKUP(B8,入力AA1!$B$8:$CY$258,オフセット番号A!$Q$6+1)),"*")) -> 0 | R98: =IF($F$5=1,項目表示入力!$R$8,IF($F$5=2,IF(ISERROR(VLOOKUP(B8,入力AA1!$B$8:$CY$258,オフセット番号A!$R$6+1))=TRUE,"",VLOOKUP(B8,入力AA1!$B$8:$CY$258,オフセット番号A!$R$6+1)),"*")) -> 0 | S98: =IF($F$5=1,項目表示入力!$S$8,IF($F$5=2,IF(ISERROR(VLOOKUP(B8,入力AA1!$B$8:$CY$258,オフセット番号A!$S$6+1))=TRUE,"",VLOOKUP(B8,入力AA1!$B$8:$CY$258,オフセット番号A!$S$6+1)),"*")) -> 0 | T98: =IF($F$5=1,項目表示入力!$T$8,IF($F$5=2,IF(ISERROR(VLOOKUP(B8,入力AA1!$B$8:$CY$258,オフセット番号A!$T$6+1))=TRUE,"",VLOOKUP(B8,入力AA1!$B$8:$CY$258,オフセット番号A!$T$6+1)),"*")) -> 0 | U98: =IF($F$5=1,項目表示入力!$U$8,IF($F$5=2,IF(ISERROR(VLOOKUP(B8,入力AA1!$B$8:$CY$258,オフセット番号A!$U$6+1))=TRUE,"",VLOOKUP(B8,入力AA1!$B$8:$CY$258,オフセット番号A!$U$6+1)),"*")) -> 0 | V98: =IF($F$5=1,項目表示入力!$V$8,IF($F$5=2,IF(ISERROR(VLOOKUP(B8,入力AA1!$B$8:$CY$258,オフセット番号A!$V$6+1))=TRUE,"",VLOOKUP(B8,入力AA1!$B$8:$CY$258,オフセット番号A!$V$6+1)),"*")) -> 0
B99: =IF(行列入力項目!$C$7="","",行列入力項目!$C$7) -> 行3 | C99: =IF($F$5=1,項目表示入力!$C$9,IF($F$5=2,IF(ISERROR(VLOOKUP(B8,入力AA1!$B$8:$CY$258,オフセット番号A!$C$7+1))=TRUE,"",VLOOKUP(B8,入力AA1!$B$8:$CY$258,オフセット番号A!$C$7+1)),"*")) -> 保護者氏名60@○○○○.biglobe.ne.jp | D99: =IF($F$5=1,項目表示入力!$D$9,IF($F$5=2,IF(ISERROR(VLOOKUP(B8,入力AA1!$B$8:$CY$258,オフセット番号A!$D$7+1))=TRUE,"",VLOOKUP(B8,入力AA1!$B$8:$CY$258,オフセット番号A!$D$7+1)),"*")) -> 平成17年度第3学年会計報告（個人別） | E99: =IF($F$5=1,項目表示入力!$E$9,IF($F$5=2,IF(ISERROR(VLOOKUP(B8,入力AA1!$B$8:$CY$258,オフセット番号A!$E$7+1))=TRUE,"",VLOOKUP(B8,入力AA1!$B$8:$CY$258,オフセット番号A!$E$7+1)),"*")) -> 平成２８年３月２５日 ３年2組 25 番生徒 生徒氏名60 保護者 保護者氏名60 様 □□立○○高等学校 校長 ○○太郎 学年会計担当 ○○ 平成17年度第3学年会計報告（個人別） お子様の平成17年度第3学年会計（個人別）については添付ファイルの通りです。確認 をお願いいたします。疑問な点がございましたら、学年会計担当○○までお申し出くださ い。 以上 | F99: =IF($F$5=1,項目表示入力!$F$9,IF($F$5=2,IF(ISERROR(VLOOKUP(B8,入力AA1!$B$8:$CY$258,オフセット番号A!$F$7+1))=TRUE,"",VLOOKUP(B8,入力AA1!$B$8:$CY$258,オフセット番号A!$F$7+1)),"*")) -> 0 | G99: =IF($F$5=1,項目表示入力!$G$9,IF($F$5=2,IF(ISERROR(VLOOKUP(B8,入力AA1!$B$8:$CY$258,オフセット番号A!$G$7+1))=TRUE,"",VLOOKUP(B8,入力AA1!$B$8:$CY$258,オフセット番号A!$G$7+1)),"*")) -> 0 | H99: =IF($F$5=1,項目表示入力!$H$9,IF($F$5=2,IF(ISERROR(VLOOKUP(B8,入力AA1!$B$8:$CY$258,オフセット番号A!$H$7+1))=TRUE,"",VLOOKUP(B8,入力AA1!$B$8:$CY$258,オフセット番号A!$H$7+1)),"*")) -> 0 | I99: =IF($F$5=1,項目表示入力!$I$9,IF($F$5=2,IF(ISERROR(VLOOKUP(B8,入力AA1!$B$8:$CY$258,オフセット番号A!$I$7+1))=TRUE,"",VLOOKUP(B8,入力AA1!$B$8:$CY$258,オフセット番号A!$I$7+1)),"*")) -> 0 | J99: =IF($F$5=1,項目表示入力!$J$9,IF($F$5=2,IF(ISERROR(VLOOKUP(B8,入力AA1!$B$8:$CY$258,オフセット番号A!$J$7+1))=TRUE,"",VLOOKUP(B8,入力AA1!$B$8:$CY$258,オフセット番号A!$J$7+1)),"*")) -> 0 | K99: =IF($F$5=1,項目表示入力!$K$9,IF($F$5=2,IF(ISERROR(VLOOKUP(B8,入力AA1!$B$8:$CY$258,オフセット番号A!$K$7+1))=TRUE,"",VLOOKUP(B8,入力AA1!$B$8:$CY$258,オフセット番号A!$K$7+1)),"*")) -> 0 | L99: =IF($F$5=1,項目表示入力!$L$9,IF($F$5=2,IF(ISERROR(VLOOKUP(B8,入力AA1!$B$8:$CY$258,オフセット番号A!$L$7+1))=TRUE,"",VLOOKUP(B8,入力AA1!$B$8:$CY$258,オフセット番号A!$L$7+1)),"*")) -> 0 | M99: =IF($F$5=1,項目表示入力!$M$9,IF($F$5=2,IF(ISERROR(VLOOKUP(B8,入力AA1!$B$8:$CY$258,オフセット番号A!$M$7+1))=TRUE,"",VLOOKUP(B8,入力AA1!$B$8:$CY$258,オフセット番号A!$M$7+1)),"*")) -> 0 | N99: =IF($F$5=1,項目表示入力!$N$9,IF($F$5=2,IF(ISERROR(VLOOKUP(B8,入力AA1!$B$8:$CY$258,オフセット番号A!$N$7+1))=TRUE,"",VLOOKUP(B8,入力AA1!$B$8:$CY$258,オフセット番号A!$N$7+1)),"*")) -> 0 | O99: =IF($F$5=1,項目表示入力!$O$9,IF($F$5=2,IF(ISERROR(VLOOKUP(B8,入力AA1!$B$8:$CY$258,オフセット番号A!$O$7+1))=TRUE,"",VLOOKUP(B8,入力AA1!$B$8:$CY$258,オフセット番号A!$O$7+1)),"*")) -> 0 | P99: =IF($F$5=1,項目表示入力!$P$9,IF($F$5=2,IF(ISERROR(VLOOKUP(B8,入力AA1!$B$8:$CY$258,オフセット番号A!$P$7+1))=TRUE,"",VLOOKUP(B8,入力AA1!$B$8:$CY$258,オフセット番号A!$P$7+1)),"*")) -> 0 | Q99: =IF($F$5=1,項目表示入力!$Q$9,IF($F$5=2,IF(ISERROR(VLOOKUP(B8,入力AA1!$B$8:$CY$258,オフセット番号A!$Q$7+1))=TRUE,"",VLOOKUP(B8,入力AA1!$B$8:$CY$258,オフセット番号A!$Q$7+1)),"*")) -> 0 | R99: =IF($F$5=1,項目表示入力!$R$9,IF($F$5=2,IF(ISERROR(VLOOKUP(B8,入力AA1!$B$8:$CY$258,オフセット番号A!$R$7+1))=TRUE,"",VLOOKUP(B8,入力AA1!$B$8:$CY$258,オフセット番号A!$R$7+1)),"*")) -> 0 | S99: =IF($F$5=1,項目表示入力!$S$9,IF($F$5=2,IF(ISERROR(VLOOKUP(B8,入力AA1!$B$8:$CY$258,オフセット番号A!$S$7+1))=TRUE,"",VLOOKUP(B8,入力AA1!$B$8:$CY$258,オフセット番号A!$S$7+1)),"*")) -> 0 | T99: =IF($F$5=1,項目表示入力!$T$9,IF($F$5=2,IF(ISERROR(VLOOKUP(B8,入力AA1!$B$8:$CY$258,オフセット番号A!$T$7+1))=TRUE,"",VLOOKUP(B8,入力AA1!$B$8:$CY$258,オフセット番号A!$T$7+1)),"*")) -> 0 | U99: =IF($F$5=1,項目表示入力!$U$9,IF($F$5=2,IF(ISERROR(VLOOKUP(B8,入力AA1!$B$8:$CY$258,オフセット番号A!$U$7+1))=TRUE,"",VLOOKUP(B8,入力AA1!$B$8:$CY$258,オフセット番号A!$U$7+1)),"*")) -> 0 | V99: =IF($F$5=1,項目表示入力!$V$9,IF($F$5=2,IF(ISERROR(VLOOKUP(B8,入力AA1!$B$8:$CY$258,オフセット番号A!$V$7+1))=TRUE,"",VLOOKUP(B8,入力AA1!$B$8:$CY$258,オフセット番号A!$V$7+1)),"*")) -> 0
B100: =IF(行列入力項目!$C$8="","",行列入力項目!$C$8) -> 行4 | C100: =IF($F$5=1,項目表示入力!$C$10,IF($F$5=2,IF(ISERROR(VLOOKUP(B8,入力AA1!$B$8:$CY$258,オフセット番号A!$C$8+1))=TRUE,"",VLOOKUP(B8,入力AA1!$B$8:$CY$258,オフセット番号A!$C$8+1)),"*")) -> 0 | D100: =IF($F$5=1,項目表示入力!$D$10,IF($F$5=2,IF(ISERROR(VLOOKUP(B8,入力AA1!$B$8:$CY$258,オフセット番号A!$D$8+1))=TRUE,"",VLOOKUP(B8,入力AA1!$B$8:$CY$258,オフセット番号A!$D$8+1)),"*")) -> 0 | E100: =IF($F$5=1,項目表示入力!$E$10,IF($F$5=2,IF(ISERROR(VLOOKUP(B8,入力AA1!$B$8:$CY$258,オフセット番号A!$E$8+1))=TRUE,"",VLOOKUP(B8,入力AA1!$B$8:$CY$258,オフセット番号A!$E$8+1)),"*")) -> 0 | F100: =IF($F$5=1,項目表示入力!$F$10,IF($F$5=2,IF(ISERROR(VLOOKUP(B8,入力AA1!$B$8:$CY$258,オフセット番号A!$F$8+1))=TRUE,"",VLOOKUP(B8,入力AA1!$B$8:$CY$258,オフセット番号A!$F$8+1)),"*")) -> 0 | G100: =IF($F$5=1,項目表示入力!$G$10,IF($F$5=2,IF(ISERROR(VLOOKUP(B8,入力AA1!$B$8:$CY$258,オフセット番号A!$G$8+1))=TRUE,"",VLOOKUP(B8,入力AA1!$B$8:$CY$258,オフセット番号A!$G$8+1)),"*")) -> 0 | H100: =IF($F$5=1,項目表示入力!$H$10,IF($F$5=2,IF(ISERROR(VLOOKUP(B8,入力AA1!$B$8:$CY$258,オフセット番号A!$H$8+1))=TRUE,"",VLOOKUP(B8,入力AA1!$B$8:$CY$258,オフセット番号A!$H$8+1)),"*")) -> 0 | I100: =IF($F$5=1,項目表示入力!$I$10,IF($F$5=2,IF(ISERROR(VLOOKUP(B8,入力AA1!$B$8:$CY$258,オフセット番号A!$I$8+1))=TRUE,"",VLOOKUP(B8,入力AA1!$B$8:$CY$258,オフセット番号A!$I$8+1)),"*")) -> 0 | J100: =IF($F$5=1,項目表示入力!$J$10,IF($F$5=2,IF(ISERROR(VLOOKUP(B8,入力AA1!$B$8:$CY$258,オフセット番号A!$J$8+1))=TRUE,"",VLOOKUP(B8,入力AA1!$B$8:$CY$258,オフセット番号A!$J$8+1)),"*")) -> 0 | K100: =IF($F$5=1,項目表示入力!$K$10,IF($F$5=2,IF(ISERROR(VLOOKUP(B8,入力AA1!$B$8:$CY$258,オフセット番号A!$K$8+1))=TRUE,"",VLOOKUP(B8,入力AA1!$B$8:$CY$258,オフセット番号A!$K$8+1)),"*")) -> 0 | L100: =IF($F$5=1,項目表示入力!$L$10,IF($F$5=2,IF(ISERROR(VLOOKUP(B8,入力AA1!$B$8:$CY$258,オフセット番号A!$L$8+1))=TRUE,"",VLOOKUP(B8,入力AA1!$B$8:$CY$258,オフセット番号A!$L$8+1)),"*")) -> 0 | M100: =IF($F$5=1,項目表示入力!$M$10,IF($F$5=2,IF(ISERROR(VLOOKUP(B8,入力AA1!$B$8:$CY$258,オフセット番号A!$M$8+1))=TRUE,"",VLOOKUP(B8,入力AA1!$B$8:$CY$258,オフセット番号A!$M$8+1)),"*")) -> 0 | N100: =IF($F$5=1,項目表示入力!$N$10,IF($F$5=2,IF(ISERROR(VLOOKUP(B8,入力AA1!$B$8:$CY$258,オフセット番号A!$N$8+1))=TRUE,"",VLOOKUP(B8,入力AA1!$B$8:$CY$258,オフセット番号A!$N$8+1)),"*")) -> 0 | O100: =IF($F$5=1,項目表示入力!$O$10,IF($F$5=2,IF(ISERROR(VLOOKUP(B8,入力AA1!$B$8:$CY$258,オフセット番号A!$O$8+1))=TRUE,"",VLOOKUP(B8,入力AA1!$B$8:$CY$258,オフセット番号A!$O$8+1)),"*")) -> 0 | P100: =IF($F$5=1,項目表示入力!$P$10,IF($F$5=2,IF(ISERROR(VLOOKUP(B8,入力AA1!$B$8:$CY$258,オフセット番号A!$P$8+1))=TRUE,"",VLOOKUP(B8,入力AA1!$B$8:$CY$258,オフセット番号A!$P$8+1)),"*")) -> 0 | Q100: =IF($F$5=1,項目表示入力!$Q$10,IF($F$5=2,IF(ISERROR(VLOOKUP(B8,入力AA1!$B$8:$CY$258,オフセット番号A!$Q$8+1))=TRUE,"",VLOOKUP(B8,入力AA1!$B$8:$CY$258,オフセット番号A!$Q$8+1)),"*")) -> 0 | R100: =IF($F$5=1,項目表示入力!$R$10,IF($F$5=2,IF(ISERROR(VLOOKUP(B8,入力AA1!$B$8:$CY$258,オフセット番号A!$R$8+1))=TRUE,"",VLOOKUP(B8,入力AA1!$B$8:$CY$258,オフセット番号A!$R$8+1)),"*")) -> 0 | S100: =IF($F$5=1,項目表示入力!$S$10,IF($F$5=2,IF(ISERROR(VLOOKUP(B8,入力AA1!$B$8:$CY$258,オフセット番号A!$S$8+1))=TRUE,"",VLOOKUP(B8,入力AA1!$B$8:$CY$258,オフセット番号A!$S$8+1)),"*")) -> 0 | T100: =IF($F$5=1,項目表示入力!$T$10,IF($F$5=2,IF(ISERROR(VLOOKUP(B8,入力AA1!$B$8:$CY$258,オフセット番号A!$T$8+1))=TRUE,"",VLOOKUP(B8,入力AA1!$B$8:$CY$258,オフセット番号A!$T$8+1)),"*")) -> 0 | U100: =IF($F$5=1,項目表示入力!$U$10,IF($F$5=2,IF(ISERROR(VLOOKUP(B8,入力AA1!$B$8:$CY$258,オフセット番号A!$U$8+1))=TRUE,"",VLOOKUP(B8,入力AA1!$B$8:$CY$258,オフセット番号A!$U$8+1)),"*")) -> 0 | V100: =IF($F$5=1,項目表示入力!$V$10,IF($F$5=2,IF(ISERROR(VLOOKUP(B8,入力AA1!$B$8:$CY$258,オフセット番号A!$V$8+1))=TRUE,"",VLOOKUP(B8,入力AA1!$B$8:$CY$258,オフセット番号A!$V$8+1)),"*")) -> 0
B101: =IF(行列入力項目!$C$9="","",行列入力項目!$C$9) -> 行5 | C101: =IF($F$5=1,項目表示入力!$C$11,IF($F$5=2,IF(ISERROR(VLOOKUP(B8,入力AA1!$B$8:$CY$258,オフセット番号A!$C$9+1))=TRUE,"",VLOOKUP(B8,入力AA1!$B$8:$CY$258,オフセット番号A!$C$9+1)),"*")) -> 6076 | D101: =IF($F$5=1,項目表示入力!$D$11,IF($F$5=2,IF(ISERROR(VLOOKUP(B8,入力AA1!$B$8:$CY$258,オフセット番号A!$D$9+1))=TRUE,"",VLOOKUP(B8,入力AA1!$B$8:$CY$258,オフセット番号A!$D$9+1)),"*")) -> 0 | E101: =IF($F$5=1,項目表示入力!$E$11,IF($F$5=2,IF(ISERROR(VLOOKUP(B8,入力AA1!$B$8:$CY$258,オフセット番号A!$E$9+1))=TRUE,"",VLOOKUP(B8,入力AA1!$B$8:$CY$258,オフセット番号A!$E$9+1)),"*")) -> 6076 | F101: =IF($F$5=1,項目表示入力!$F$11,IF($F$5=2,IF(ISERROR(VLOOKUP(B8,入力AA1!$B$8:$CY$258,オフセット番号A!$F$9+1))=TRUE,"",VLOOKUP(B8,入力AA1!$B$8:$CY$258,オフセット番号A!$F$9+1)),"*")) -> 102643 | G101: =IF($F$5=1,項目表示入力!$G$11,IF($F$5=2,IF(ISERROR(VLOOKUP(B8,入力AA1!$B$8:$CY$258,オフセット番号A!$G$9+1))=TRUE,"",VLOOKUP(B8,入力AA1!$B$8:$CY$258,オフセット番号A!$G$9+1)),"*")) -> 0 | H101: =IF($F$5=1,項目表示入力!$H$11,IF($F$5=2,IF(ISERROR(VLOOKUP(B8,入力AA1!$B$8:$CY$258,オフセット番号A!$H$9+1))=TRUE,"",VLOOKUP(B8,入力AA1!$B$8:$CY$258,オフセット番号A!$H$9+1)),"*")) -> 0 | I101: =IF($F$5=1,項目表示入力!$I$11,IF($F$5=2,IF(ISERROR(VLOOKUP(B8,入力AA1!$B$8:$CY$258,オフセット番号A!$I$9+1))=TRUE,"",VLOOKUP(B8,入力AA1!$B$8:$CY$258,オフセット番号A!$I$9+1)),"*")) -> 102643 | J101: =IF($F$5=1,項目表示入力!$J$11,IF($F$5=2,IF(ISERROR(VLOOKUP(B8,入力AA1!$B$8:$CY$258,オフセット番号A!$J$9+1))=TRUE,"",VLOOKUP(B8,入力AA1!$B$8:$CY$258,オフセット番号A!$J$9+1)),"*")) -> 0 | K101: =IF($F$5=1,項目表示入力!$K$11,IF($F$5=2,IF(ISERROR(VLOOKUP(B8,入力AA1!$B$8:$CY$258,オフセット番号A!$K$9+1))=TRUE,"",VLOOKUP(B8,入力AA1!$B$8:$CY$258,オフセット番号A!$K$9+1)),"*")) -> 0 | L101: =IF($F$5=1,項目表示入力!$L$11,IF($F$5=2,IF(ISERROR(VLOOKUP(B8,入力AA1!$B$8:$CY$258,オフセット番号A!$L$9+1))=TRUE,"",VLOOKUP(B8,入力AA1!$B$8:$CY$258,オフセット番号A!$L$9+1)),"*")) -> 0 | M101: =IF($F$5=1,項目表示入力!$M$11,IF($F$5=2,IF(ISERROR(VLOOKUP(B8,入力AA1!$B$8:$CY$258,オフセット番号A!$M$9+1))=TRUE,"",VLOOKUP(B8,入力AA1!$B$8:$CY$258,オフセット番号A!$M$9+1)),"*")) -> 0 | N101: =IF($F$5=1,項目表示入力!$N$11,IF($F$5=2,IF(ISERROR(VLOOKUP(B8,入力AA1!$B$8:$CY$258,オフセット番号A!$N$9+1))=TRUE,"",VLOOKUP(B8,入力AA1!$B$8:$CY$258,オフセット番号A!$N$9+1)),"*")) -> 0 | O101: =IF($F$5=1,項目表示入力!$O$11,IF($F$5=2,IF(ISERROR(VLOOKUP(B8,入力AA1!$B$8:$CY$258,オフセット番号A!$O$9+1))=TRUE,"",VLOOKUP(B8,入力AA1!$B$8:$CY$258,オフセット番号A!$O$9+1)),"*")) -> 0 | P101: =IF($F$5=1,項目表示入力!$P$11,IF($F$5=2,IF(ISERROR(VLOOKUP(B8,入力AA1!$B$8:$CY$258,オフセット番号A!$P$9+1))=TRUE,"",VLOOKUP(B8,入力AA1!$B$8:$CY$258,オフセット番号A!$P$9+1)),"*")) -> 0 | Q101: =IF($F$5=1,項目表示入力!$Q$11,IF($F$5=2,IF(ISERROR(VLOOKUP(B8,入力AA1!$B$8:$CY$258,オフセット番号A!$Q$9+1))=TRUE,"",VLOOKUP(B8,入力AA1!$B$8:$CY$258,オフセット番号A!$Q$9+1)),"*")) -> 0 | R101: =IF($F$5=1,項目表示入力!$R$11,IF($F$5=2,IF(ISERROR(VLOOKUP(B8,入力AA1!$B$8:$CY$258,オフセット番号A!$R$9+1))=TRUE,"",VLOOKUP(B8,入力AA1!$B$8:$CY$258,オフセット番号A!$R$9+1)),"*")) -> 0 | S101: =IF($F$5=1,項目表示入力!$S$11,IF($F$5=2,IF(ISERROR(VLOOKUP(B8,入力AA1!$B$8:$CY$258,オフセット番号A!$S$9+1))=TRUE,"",VLOOKUP(B8,入力AA1!$B$8:$CY$258,オフセット番号A!$S$9+1)),"*")) -> 0 | T101: =IF($F$5=1,項目表示入力!$T$11,IF($F$5=2,IF(ISERROR(VLOOKUP(B8,入力AA1!$B$8:$CY$258,オフセット番号A!$T$9+1))=TRUE,"",VLOOKUP(B8,入力AA1!$B$8:$CY$258,オフセット番号A!$T$9+1)),"*")) -> 0 | U101: =IF($F$5=1,項目表示入力!$U$11,IF($F$5=2,IF(ISERROR(VLOOKUP(B8,入力AA1!$B$8:$CY$258,オフセット番号A!$U$9+1))=TRUE,"",VLOOKUP(B8,入力AA1!$B$8:$CY$258,オフセット番号A!$U$9+1)),"*")) -> 0 | V101: =IF($F$5=1,項目表示入力!$V$11,IF($F$5=2,IF(ISERROR(VLOOKUP(B8,入力AA1!$B$8:$CY$258,オフセット番号A!$V$9+1))=TRUE,"",VLOOKUP(B8,入力AA1!$B$8:$CY$258,オフセット番号A!$V$9+1)),"*")) -> 0

Sheet □□□子学年積立金会計報告印刷フォーム
B2: =シート名設定!C37 -> □□□子学年積立金会計報告印刷フォーム
B4: =シート名設定!C29 -> ファイル作成コピー用
B5: 入力項目表示とデーター表示の切替 → | F5: 2
B6: 入力項目表示は1，データ表示は2を入力
B8: 211 | C8: =IF(ISERR(VLOOKUP(B8,入力AA1!$B$8:$CY$258,2))=1,"",VLOOKUP(B8,入力AA1!$B$8:$CY$258,2)) -> 対象211
F11: ="旧第３学年 "&D97&"組 "&E97&"番 生徒氏名 "&F97 -> 旧第３学年 6組 21番 生徒氏名 生徒氏名211 | H11: 平成２８年１０月４日
F13: 保護者 様
H16: ○○県立××高等学校
H17: 校長 ○○○○
H18: 第３学年主任 ○○○○
H19: 第３学年会計担当 ○○○○
F21: □□□子さんに係る平成２８年度第３学年学年積立金会計報告
G23: 次の通り報告いたします。なお、残金につきましては、授業料等の振り込みにご利用いただいた口座に、下記Ⅲの返金額から振り込み手数料６００円を差し引いた金額を振り込ませて頂きますのでよろしくお願いいたします。
F25: Ⅰ 収入の部
G27: 項 目 | H27: 金 額
G28: 前年度からの繰越金 | H28: =F101 -> 101125
G29: 学年積立金 | H29: =G101 -> 0
G30: 預 金 利 子 | H30: =H101 -> 0
G31: 合 計 | H31: =SUM(H28:H30) -> 101125
F33: Ⅱ 支出の部
G35: ＜注意＞ １円未満の端数は切り上げ処理をしています。
G36: (１)共通な支出
G38: 項 目 | H38: 金 額
G39: **高ノート用特注リングファイル | H39: =C98 -> 514
G40: 生徒手帳及び身分証明書 | H40: =D98 -> 161
G41: コクヨ クリヤーブック | H41: =E98 -> 258
G42: 日本スポーツ振興センター掛金 | H42: =F98 -> 1510
G43: 指導用カラー写真 小型９枚セット | H43: =G98 -> 535
G44: ５月２７日学校見学会 傷害保険 | H44: =H98 -> 100
G45: ＰＴＡ支部活動費 | H45: =I98 -> 1000
G46: 高等学校安全互助会負担金 | H46: =J98 -> 900
G47: 高等学校ＰＴＡ連合賠償責任保証制度掛金 | H47: =K98 -> 200
G48: 卒業アルバム | H48: =L98 -> 8190
G49: 高等学校スポーツテスト処理料金 | H49: =M98 -> 218
G50: 中央公論新社 やさしい文章術 | H50: =N98 -> 680
G60: 共通な支出計 | H60: =SUM(H39:H59) -> 14266
G62: (２)共通な支出以外の支出
G64: 項 目 | H64: 金 額
G65: 理科類型Ａコース生徒副教材「看護医療系短大・専門学校の数学」 | H65: =C100 -> 0
G66: 就職希望者問題集「一般常識マイテスト（解別）」 | H66: =D100 -> 400
G67: 理系類型生徒対象第１回学研高３「新・基礎力テスト」３教科 | H67: =E100 -> 0
G68: 文系類型・外国語類型生徒対象第１回学研高３「新・基礎力テスト」２教科 | H68: =F100 -> 1050
G69: 文系類型・外国語類型生徒対象第１回学研「常識テスト」 | H69: =G100 -> 870
G76: 共通な支出以外の支出計 | H76: =SUM(H65:H75) -> 2320
G78: (３)支出の合計
G80: 項 目 | H80: 金 額
G81: （１）共通な支出計 | H81: =H60 -> 14266
G82: （２）共通な支出以外の支出計 | H82: =H76 -> 2320
G83: 支出の合計 | H83: =SUM(H81:H82) -> 16586
F85: Ⅲ 収支合計
G87: 項 目 | H87: 金 額
G88: 収入の合計 | H88: =H31 -> 101125
G89: 支出の合計 | H89: =H83 -> 16586
G90: 収支合計（返金額） | H90: =H88-H89 -> 84539
C96: =IF(オフセット番号A!$C$4="","",オフセット番号A!$C$4) -> 列1 | D96: =IF(オフセット番号A!$D$4="","",オフセット番号A!$D$4) -> 列2 | E96: =IF(オフセット番号A!$E$4="","",オフセット番号A!$E$4) -> 列3 | F96: =IF(オフセット番号A!$F$4="","",オフセット番号A!$F$4) -> 列4 | G96: =IF(オフセット番号A!$G$4="","",オフセット番号A!$G$4) -> 列5 | H96: =IF(オフセット番号A!$H$4="","",オフセット番号A!$H$4) -> 列6 | I96: =IF(オフセット番号A!$I$4="","",オフセット番号A!$I$4) -> 列7 | J96: =IF(オフセット番号A!$J$4="","",オフセット番号A!$J$4) -> 列8 | K96: =IF(オフセット番号A!$K$4="","",オフセット番号A!$K$4) -> 列9 | L96: =IF(オフセット番号A!$L$4="","",オフセット番号A!$L$4) -> 列10 | M96: =IF(オフセット番号A!$M$4="","",オフセット番号A!$M$4) -> 列11 | N96: =IF(オフセット番号A!$N$4="","",オフセット番号A!$N$4) -> 列12 | O96: =IF(オフセット番号A!$O$4="","",オフセット番号A!$O$4) -> 列13 | P96: =IF(オフセット番号A!$P$4="","",オフセット番号A!$P$4) -> 列14 | Q96: =IF(オフセット番号A!$Q$4="","",オフセット番号A!$Q$4) -> 列15 | R96: =IF(オフセット番号A!$R$4="","",オフセット番号A!$R$4) -> 列16 | S96: =IF(オフセット番号A!$S$4="","",オフセット番号A!$S$4) -> 列17 | T96: =IF(オフセット番号A!$T$4="","",オフセット番号A!$T$4) -> 列18 | U96: =IF(オフセット番号A!$U$4="","",オフセット番号A!$U$4) -> 列19 | V96: =IF(オフセット番号A!$V$4="","",オフセット番号A!$V$4) -> 列20
B97: =IF(行列入力項目!$C$5="","",行列入力項目!$C$5) -> 行1 | C97: =IF($F$5=1,項目表示入力!$C$7,IF($F$5=2,IF(ISERROR(VLOOKUP(B8,入力AA1!$B$8:$CY$258,オフセット番号A!$C$5+1))=TRUE,"",VLOOKUP(B8,入力AA1!$B$8:$CY$258,オフセット番号A!$C$5+1)),"*")) -> 3621 | D97: =IF($F$5=1,項目表示入力!$D$7,IF($F$5=2,IF(ISERROR(VLOOKUP(B8,入力AA1!$B$8:$CY$258,オフセット番号A!$D$5+1))=TRUE,"",VLOOKUP(B8,入力AA1!$B$8:$CY$258,オフセット番号A!$D$5+1)),"*")) -> 6 | E97: =IF($F$5=1,項目表示入力!$E$7,IF($F$5=2,IF(ISERROR(VLOOKUP(B8,入力AA1!$B$8:$CY$258,オフセット番号A!$E$5+1))=TRUE,"",VLOOKUP(B8,入力AA1!$B$8:$CY$258,オフセット番号A!$E$5+1)),"*")) -> 21 | F97: =IF($F$5=1,項目表示入力!$F$7,IF($F$5=2,IF(ISERROR(VLOOKUP(B8,入力AA1!$B$8:$CY$258,オフセット番号A!$F$5+1))=TRUE,"",VLOOKUP(B8,入力AA1!$B$8:$CY$258,オフセット番号A!$F$5+1)),"*")) -> 生徒氏名211 | G97: =IF($F$5=1,項目表示入力!$G$7,IF($F$5=2,IF(ISERROR(VLOOKUP(B8,入力AA1!$B$8:$CY$258,オフセット番号A!$G$5+1))=TRUE,"",VLOOKUP(B8,入力AA1!$B$8:$CY$258,オフセット番号A!$G$5+1)),"*")) -> フリガナ211 | H97: =IF($F$5=1,項目表示入力!$H$7,IF($F$5=2,IF(ISERROR(VLOOKUP(B8,入力AA1!$B$8:$CY$258,オフセット番号A!$H$5+1))=TRUE,"",VLOOKUP(B8,入力AA1!$B$8:$CY$258,オフセット番号A!$H$5+1)),"*")) -> 女 | I97: =IF($F$5=1,項目表示入力!$I$7,IF($F$5=2,IF(ISERROR(VLOOKUP(B8,入力AA1!$B$8:$CY$258,オフセット番号A!$I$5+1))=TRUE,"",VLOOKUP(B8,入力AA1!$B$8:$CY$258,オフセット番号A!$I$5+1)),"*")) -> 保護者氏名211 | J97: =IF($F$5=1,項目表示入力!$J$7,IF($F$5=2,IF(ISERROR(VLOOKUP(B8,入力AA1!$B$8:$CY$258,オフセット番号A!$J$5+1))=TRUE,"",VLOOKUP(B8,入力AA1!$B$8:$CY$258,オフセット番号A!$J$5+1)),"*")) -> 郵便番号211 | K97: =IF($F$5=1,項目表示入力!$K$7,IF($F$5=2,IF(ISERROR(VLOOKUP(B8,入力AA1!$B$8:$CY$258,オフセット番号A!$K$5+1))=TRUE,"",VLOOKUP(B8,入力AA1!$B$8:$CY$258,オフセット番号A!$K$5+1)),"*")) -> ○○市×××町1-1-211 | L97: =IF($F$5=1,項目表示入力!$L$7,IF($F$5=2,IF(ISERROR(VLOOKUP(B8,入力AA1!$B$8:$CY$258,オフセット番号A!$L$5+1))=TRUE,"",VLOOKUP(B8,入力AA1!$B$8:$CY$258,オフセット番号A!$L$5+1)),"*")) -> 0 | M97: =IF($F$5=1,項目表示入力!$M$7,IF($F$5=2,IF(ISERROR(VLOOKUP(B8,入力AA1!$B$8:$CY$258,オフセット番号A!$M$5+1))=TRUE,"",VLOOKUP(B8,入力AA1!$B$8:$CY$258,オフセット番号A!$M$5+1)),"*")) -> 預金者氏名211 | N97: =IF($F$5=1,項目表示入力!$N$7,IF($F$5=2,IF(ISERROR(VLOOKUP(B8,入力AA1!$B$8:$CY$258,オフセット番号A!$N$5+1))=TRUE,"",VLOOKUP(B8,入力AA1!$B$8:$CY$258,オフセット番号A!$N$5+1)),"*")) -> 預金者フリガナ211 | O97: =IF($F$5=1,項目表示入力!$O$7,IF($F$5=2,IF(ISERROR(VLOOKUP(B8,入力AA1!$B$8:$CY$258,オフセット番号A!$O$5+1))=TRUE,"",VLOOKUP(B8,入力AA1!$B$8:$CY$258,オフセット番号A!$O$5+1)),"*")) -> 預金者郵便番号211 | P97: =IF($F$5=1,項目表示入力!$P$7,IF($F$5=2,IF(ISERROR(VLOOKUP(B8,入力AA1!$B$8:$CY$258,オフセット番号A!$P$5+1))=TRUE,"",VLOOKUP(B8,入力AA1!$B$8:$CY$258,オフセット番号A!$P$5+1)),"*")) -> 預金者住所211 | Q97: =IF($F$5=1,項目表示入力!$Q$7,IF($F$5=2,IF(ISERROR(VLOOKUP(B8,入力AA1!$B$8:$CY$258,オフセット番号A!$Q$5+1))=TRUE,"",VLOOKUP(B8,入力AA1!$B$8:$CY$258,オフセット番号A!$Q$5+1)),"*")) -> ***-000-0211 | R97: =IF($F$5=1,項目表示入力!$R$7,IF($F$5=2,IF(ISERROR(VLOOKUP(B8,入力AA1!$B$8:$CY$258,オフセット番号A!$R$5+1))=TRUE,"",VLOOKUP(B8,入力AA1!$B$8:$CY$258,オフセット番号A!$R$5+1)),"*")) -> なんとか銀行211 | S97: =IF($F$5=1,項目表示入力!$S$7,IF($F$5=2,IF(ISERROR(VLOOKUP(B8,入力AA1!$B$8:$CY$258,オフセット番号A!$S$5+1))=TRUE,"",VLOOKUP(B8,入力AA1!$B$8:$CY$258,オフセット番号A!$S$5+1)),"*")) -> なんとか支店211 | T97: =IF($F$5=1,項目表示入力!$T$7,IF($F$5=2,IF(ISERROR(VLOOKUP(B8,入力AA1!$B$8:$CY$258,オフセット番号A!$T$5+1))=TRUE,"",VLOOKUP(B8,入力AA1!$B$8:$CY$258,オフセット番号A!$T$5+1)),"*")) -> なんとか銀行211なんとか支店211 | U97: =IF($F$5=1,項目表示入力!$U$7,IF($F$5=2,IF(ISERROR(VLOOKUP(B8,入力AA1!$B$8:$CY$258,オフセット番号A!$U$5+1))=TRUE,"",VLOOKUP(B8,入力AA1!$B$8:$CY$258,オフセット番号A!$U$5+1)),"*")) -> 普通 | V97: =IF($F$5=1,項目表示入力!$V$7,IF($F$5=2,IF(ISERROR(VLOOKUP(B8,入力AA1!$B$8:$CY$258,オフセット番号A!$V$5+1))=TRUE,"",VLOOKUP(B8,入力AA1!$B$8:$CY$258,オフセット番号A!$V$5+1)),"*")) -> ******211
B98: =IF(行列入力項目!$C$6="","",行列入力項目!$C$6) -> 行2 | C98: =IF($F$5=1,項目表示入力!$C$8,IF($F$5=2,IF(ISERROR(VLOOKUP(B8,入力AA1!$B$8:$CY$258,オフセット番号A!$C$6+1))=TRUE,"",VLOOKUP(B8,入力AA1!$B$8:$CY$258,オフセット番号A!$C$6+1)),"*")) -> 514 | D98: =IF($F$5=1,項目表示入力!$D$8,IF($F$5=2,IF(ISERROR(VLOOKUP(B8,入力AA1!$B$8:$CY$258,オフセット番号A!$D$6+1))=TRUE,"",VLOOKUP(B8,入力AA1!$B$8:$CY$258,オフセット番号A!$D$6+1)),"*")) -> 161 | E98: =IF($F$5=1,項目表示入力!$E$8,IF($F$5=2,IF(ISERROR(VLOOKUP(B8,入力AA1!$B$8:$CY$258,オフセット番号A!$E$6+1))=TRUE,"",VLOOKUP(B8,入力AA1!$B$8:$CY$258,オフセット番号A!$E$6+1)),"*")) -> 258 | F98: =IF($F$5=1,項目表示入力!$F$8,IF($F$5=2,IF(ISERROR(VLOOKUP(B8,入力AA1!$B$8:$CY$258,オフセット番号A!$F$6+1))=TRUE,"",VLOOKUP(B8,入力AA1!$B$8:$CY$258,オフセット番号A!$F$6+1)),"*")) -> 1510 | G98: =IF($F$5=1,項目表示入力!$G$8,IF($F$5=2,IF(ISERROR(VLOOKUP(B8,入力AA1!$B$8:$CY$258,オフセット番号A!$G$6+1))=TRUE,"",VLOOKUP(B8,入力AA1!$B$8:$CY$258,オフセット番号A!$G$6+1)),"*")) -> 535 | H98: =IF($F$5=1,項目表示入力!$H$8,IF($F$5=2,IF(ISERROR(VLOOKUP(B8,入力AA1!$B$8:$CY$258,オフセット番号A!$H$6+1))=TRUE,"",VLOOKUP(B8,入力AA1!$B$8:$CY$258,オフセット番号A!$H$6+1)),"*")) -> 100 | I98: =IF($F$5=1,項目表示入力!$I$8,IF($F$5=2,IF(ISERROR(VLOOKUP(B8,入力AA1!$B$8:$CY$258,オフセット番号A!$I$6+1))=TRUE,"",VLOOKUP(B8,入力AA1!$B$8:$CY$258,オフセット番号A!$I$6+1)),"*")) -> 1000 | J98: =IF($F$5=1,項目表示入力!$J$8,IF($F$5=2,IF(ISERROR(VLOOKUP(B8,入力AA1!$B$8:$CY$258,オフセット番号A!$J$6+1))=TRUE,"",VLOOKUP(B8,入力AA1!$B$8:$CY$258,オフセット番号A!$J$6+1)),"*")) -> 900 | K98: =IF($F$5=1,項目表示入力!$K$8,IF($F$5=2,IF(ISERROR(VLOOKUP(B8,入力AA1!$B$8:$CY$258,オフセット番号A!$K$6+1))=TRUE,"",VLOOKUP(B8,入力AA1!$B$8:$CY$258,オフセット番号A!$K$6+1)),"*")) -> 200 | L98: =IF($F$5=1,項目表示入力!$L$8,IF($F$5=2,IF(ISERROR(VLOOKUP(B8,入力AA1!$B$8:$CY$258,オフセット番号A!$L$6+1))=TRUE,"",VLOOKUP(B8,入力AA1!$B$8:$CY$258,オフセット番号A!$L$6+1)),"*")) -> 8190 | M98: =IF($F$5=1,項目表示入力!$M$8,IF($F$5=2,IF(ISERROR(VLOOKUP(B8,入力AA1!$B$8:$CY$258,オフセット番号A!$M$6+1))=TRUE,"",VLOOKUP(B8,入力AA1!$B$8:$CY$258,オフセット番号A!$M$6+1)),"*")) -> 218 | N98: =IF($F$5=1,項目表示入力!$N$8,IF($F$5=2,IF(ISERROR(VLOOKUP(B8,入力AA1!$B$8:$CY$258,オフセット番号A!$N$6+1))=TRUE,"",VLOOKUP(B8,入力AA1!$B$8:$CY$258,オフセット番号A!$N$6+1)),"*")) -> 680 | O98: =IF($F$5=1,項目表示入力!$O$8,IF($F$5=2,IF(ISERROR(VLOOKUP(B8,入力AA1!$B$8:$CY$258,オフセット番号A!$O$6+1))=TRUE,"",VLOOKUP(B8,入力AA1!$B$8:$CY$258,オフセット番号A!$O$6+1)),"*")) -> 0 | P98: =IF($F$5=1,項目表示入力!$P$8,IF($F$5=2,IF(ISERROR(VLOOKUP(B8,入力AA1!$B$8:$CY$258,オフセット番号A!$P$6+1))=TRUE,"",VLOOKUP(B8,入力AA1!$B$8:$CY$258,オフセット番号A!$P$6+1)),"*")) -> 0 | Q98: =IF($F$5=1,項目表示入力!$Q$8,IF($F$5=2,IF(ISERROR(VLOOKUP(B8,入力AA1!$B$8:$CY$258,オフセット番号A!$Q$6+1))=TRUE,"",VLOOKUP(B8,入力AA1!$B$8:$CY$258,オフセット番号A!$Q$6+1)),"*")) -> 0 | R98: =IF($F$5=1,項目表示入力!$R$8,IF($F$5=2,IF(ISERROR(VLOOKUP(B8,入力AA1!$B$8:$CY$258,オフセット番号A!$R$6+1))=TRUE,"",VLOOKUP(B8,入力AA1!$B$8:$CY$258,オフセット番号A!$R$6+1)),"*")) -> 0 | S98: =IF($F$5=1,項目表示入力!$S$8,IF($F$5=2,IF(ISERROR(VLOOKUP(B8,入力AA1!$B$8:$CY$258,オフセット番号A!$S$6+1))=TRUE,"",VLOOKUP(B8,入力AA1!$B$8:$CY$258,オフセット番号A!$S$6+1)),"*")) -> 0 | T98: =IF($F$5=1,項目表示入力!$T$8,IF($F$5=2,IF(ISERROR(VLOOKUP(B8,入力AA1!$B$8:$CY$258,オフセット番号A!$T$6+1))=TRUE,"",VLOOKUP(B8,入力AA1!$B$8:$CY$258,オフセット番号A!$T$6+1)),"*")) -> 0 | U98: =IF($F$5=1,項目表示入力!$U$8,IF($F$5=2,IF(ISERROR(VLOOKUP(B8,入力AA1!$B$8:$CY$258,オフセット番号A!$U$6+1))=TRUE,"",VLOOKUP(B8,入力AA1!$B$8:$CY$258,オフセット番号A!$U$6+1)),"*")) -> 0 | V98: =IF($F$5=1,項目表示入力!$V$8,IF($F$5=2,IF(ISERROR(VLOOKUP(B8,入力AA1!$B$8:$CY$258,オフセット番号A!$V$6+1))=TRUE,"",VLOOKUP(B8,入力AA1!$B$8:$CY$258,オフセット番号A!$V$6+1)),"*")) -> 0
B99: =IF(行列入力項目!$C$7="","",行列入力項目!$C$7) -> 行3 | C99: =IF($F$5=1,項目表示入力!$C$9,IF($F$5=2,IF(ISERROR(VLOOKUP(B8,入力AA1!$B$8:$CY$258,オフセット番号A!$C$7+1))=TRUE,"",VLOOKUP(B8,入力AA1!$B$8:$CY$258,オフセット番号A!$C$7+1)),"*")) -> 保護者氏名211@○○○○.biglobe.ne.jp | D99: =IF($F$5=1,項目表示入力!$D$9,IF($F$5=2,IF(ISERROR(VLOOKUP(B8,入力AA1!$B$8:$CY$258,オフセット番号A!$D$7+1))=TRUE,"",VLOOKUP(B8,入力AA1!$B$8:$CY$258,オフセット番号A!$D$7+1)),"*")) -> 平成17年度第3学年会計報告（個人別） | E99: =IF($F$5=1,項目表示入力!$E$9,IF($F$5=2,IF(ISERROR(VLOOKUP(B8,入力AA1!$B$8:$CY$258,オフセット番号A!$E$7+1))=TRUE,"",VLOOKUP(B8,入力AA1!$B$8:$CY$258,オフセット番号A!$E$7+1)),"*")) -> 平成２８年３月２５日 ３年6組 21 番生徒 生徒氏名211 保護者 保護者氏名211 様 □□立○○高等学校 校長 ○○太郎 学年会計担当 ○○ 平成17年度第3学年会計報告（個人別） お子様の平成17年度第3学年会計（個人別）については添付ファイルの通りです。確認 をお願いいたします。疑問な点がございましたら、学年会計担当○○までお申し出くださ い。 以上 | F99: =IF($F$5=1,項目表示入力!$F$9,IF($F$5=2,IF(ISERROR(VLOOKUP(B8,入力AA1!$B$8:$CY$258,オフセット番号A!$F$7+1))=TRUE,"",VLOOKUP(B8,入力AA1!$B$8:$CY$258,オフセット番号A!$F$7+1)),"*")) -> 0 | G99: =IF($F$5=1,項目表示入力!$G$9,IF($F$5=2,IF(ISERROR(VLOOKUP(B8,入力AA1!$B$8:$CY$258,オフセット番号A!$G$7+1))=TRUE,"",VLOOKUP(B8,入力AA1!$B$8:$CY$258,オフセット番号A!$G$7+1)),"*")) -> 0 | H99: =IF($F$5=1,項目表示入力!$H$9,IF($F$5=2,IF(ISERROR(VLOOKUP(B8,入力AA1!$B$8:$CY$258,オフセット番号A!$H$7+1))=TRUE,"",VLOOKUP(B8,入力AA1!$B$8:$CY$258,オフセット番号A!$H$7+1)),"*")) -> 0 | I99: =IF($F$5=1,項目表示入力!$I$9,IF($F$5=2,IF(ISERROR(VLOOKUP(B8,入力AA1!$B$8:$CY$258,オフセット番号A!$I$7+1))=TRUE,"",VLOOKUP(B8,入力AA1!$B$8:$CY$258,オフセット番号A!$I$7+1)),"*")) -> 0 | J99: =IF($F$5=1,項目表示入力!$J$9,IF($F$5=2,IF(ISERROR(VLOOKUP(B8,入力AA1!$B$8:$CY$258,オフセット番号A!$J$7+1))=TRUE,"",VLOOKUP(B8,入力AA1!$B$8:$CY$258,オフセット番号A!$J$7+1)),"*")) -> 0 | K99: =IF($F$5=1,項目表示入力!$K$9,IF($F$5=2,IF(ISERROR(VLOOKUP(B8,入力AA1!$B$8:$CY$258,オフセット番号A!$K$7+1))=TRUE,"",VLOOKUP(B8,入力AA1!$B$8:$CY$258,オフセット番号A!$K$7+1)),"*")) -> 0 | L99: =IF($F$5=1,項目表示入力!$L$9,IF($F$5=2,IF(ISERROR(VLOOKUP(B8,入力AA1!$B$8:$CY$258,オフセット番号A!$L$7+1))=TRUE,"",VLOOKUP(B8,入力AA1!$B$8:$CY$258,オフセット番号A!$L$7+1)),"*")) -> 0 | M99: =IF($F$5=1,項目表示入力!$M$9,IF($F$5=2,IF(ISERROR(VLOOKUP(B8,入力AA1!$B$8:$CY$258,オフセット番号A!$M$7+1))=TRUE,"",VLOOKUP(B8,入力AA1!$B$8:$CY$258,オフセット番号A!$M$7+1)),"*")) -> 0 | N99: =IF($F$5=1,項目表示入力!$N$9,IF($F$5=2,IF(ISERROR(VLOOKUP(B8,入力AA1!$B$8:$CY$258,オフセット番号A!$N$7+1))=TRUE,"",VLOOKUP(B8,入力AA1!$B$8:$CY$258,オフセット番号A!$N$7+1)),"*")) -> 0 | O99: =IF($F$5=1,項目表示入力!$O$9,IF($F$5=2,IF(ISERROR(VLOOKUP(B8,入力AA1!$B$8:$CY$258,オフセット番号A!$O$7+1))=TRUE,"",VLOOKUP(B8,入力AA1!$B$8:$CY$258,オフセット番号A!$O$7+1)),"*")) -> 0 | P99: =IF($F$5=1,項目表示入力!$P$9,IF($F$5=2,IF(ISERROR(VLOOKUP(B8,入力AA1!$B$8:$CY$258,オフセット番号A!$P$7+1))=TRUE,"",VLOOKUP(B8,入力AA1!$B$8:$CY$258,オフセット番号A!$P$7+1)),"*")) -> 0 | Q99: =IF($F$5=1,項目表示入力!$Q$9,IF($F$5=2,IF(ISERROR(VLOOKUP(B8,入力AA1!$B$8:$CY$258,オフセット番号A!$Q$7+1))=TRUE,"",VLOOKUP(B8,入力AA1!$B$8:$CY$258,オフセット番号A!$Q$7+1)),"*")) -> 0 | R99: =IF($F$5=1,項目表示入力!$R$9,IF($F$5=2,IF(ISERROR(VLOOKUP(B8,入力AA1!$B$8:$CY$258,オフセット番号A!$R$7+1))=TRUE,"",VLOOKUP(B8,入力AA1!$B$8:$CY$258,オフセット番号A!$R$7+1)),"*")) -> 0 | S99: =IF($F$5=1,項目表示入力!$S$9,IF($F$5=2,IF(ISERROR(VLOOKUP(B8,入力AA1!$B$8:$CY$258,オフセット番号A!$S$7+1))=TRUE,"",VLOOKUP(B8,入力AA1!$B$8:$CY$258,オフセット番号A!$S$7+1)),"*")) -> 0 | T99: =IF($F$5=1,項目表示入力!$T$9,IF($F$5=2,IF(ISERROR(VLOOKUP(B8,入力AA1!$B$8:$CY$258,オフセット番号A!$T$7+1))=TRUE,"",VLOOKUP(B8,入力AA1!$B$8:$CY$258,オフセット番号A!$T$7+1)),"*")) -> 0 | U99: =IF($F$5=1,項目表示入力!$U$9,IF($F$5=2,IF(ISERROR(VLOOKUP(B8,入力AA1!$B$8:$CY$258,オフセット番号A!$U$7+1))=TRUE,"",VLOOKUP(B8,入力AA1!$B$8:$CY$258,オフセット番号A!$U$7+1)),"*")) -> 0 | V99: =IF($F$5=1,項目表示入力!$V$9,IF($F$5=2,IF(ISERROR(VLOOKUP(B8,入力AA1!$B$8:$CY$258,オフセット番号A!$V$7+1))=TRUE,"",VLOOKUP(B8,入力AA1!$B$8:$CY$258,オフセット番号A!$V$7+1)),"*")) -> 0
B100: =IF(行列入力項目!$C$8="","",行列入力項目!$C$8) -> 行4 | C100: =IF($F$5=1,項目表示入力!$C$10,IF($F$5=2,IF(ISERROR(VLOOKUP(B8,入力AA1!$B$8:$CY$258,オフセット番号A!$C$8+1))=TRUE,"",VLOOKUP(B8,入力AA1!$B$8:$CY$258,オフセット番号A!$C$8+1)),"*")) -> 0 | D100: =IF($F$5=1,項目表示入力!$D$10,IF($F$5=2,IF(ISERROR(VLOOKUP(B8,入力AA1!$B$8:$CY$258,オフセット番号A!$D$8+1))=TRUE,"",VLOOKUP(B8,入力AA1!$B$8:$CY$258,オフセット番号A!$D$8+1)),"*")) -> 400 | E100: =IF($F$5=1,項目表示入力!$E$10,IF($F$5=2,IF(ISERROR(VLOOKUP(B8,入力AA1!$B$8:$CY$258,オフセット番号A!$E$8+1))=TRUE,"",VLOOKUP(B8,入力AA1!$B$8:$CY$258,オフセット番号A!$E$8+1)),"*")) -> 0 | F100: =IF($F$5=1,項目表示入力!$F$10,IF($F$5=2,IF(ISERROR(VLOOKUP(B8,入力AA1!$B$8:$CY$258,オフセット番号A!$F$8+1))=TRUE,"",VLOOKUP(B8,入力AA1!$B$8:$CY$258,オフセット番号A!$F$8+1)),"*")) -> 1050 | G100: =IF($F$5=1,項目表示入力!$G$10,IF($F$5=2,IF(ISERROR(VLOOKUP(B8,入力AA1!$B$8:$CY$258,オフセット番号A!$G$8+1))=TRUE,"",VLOOKUP(B8,入力AA1!$B$8:$CY$258,オフセット番号A!$G$8+1)),"*")) -> 870 | H100: =IF($F$5=1,項目表示入力!$H$10,IF($F$5=2,IF(ISERROR(VLOOKUP(B8,入力AA1!$B$8:$CY$258,オフセット番号A!$H$8+1))=TRUE,"",VLOOKUP(B8,入力AA1!$B$8:$CY$258,オフセット番号A!$H$8+1)),"*")) -> 0 | I100: =IF($F$5=1,項目表示入力!$I$10,IF($F$5=2,IF(ISERROR(VLOOKUP(B8,入力AA1!$B$8:$CY$258,オフセット番号A!$I$8+1))=TRUE,"",VLOOKUP(B8,入力AA1!$B$8:$CY$258,オフセット番号A!$I$8+1)),"*")) -> 0 | J100: =IF($F$5=1,項目表示入力!$J$10,IF($F$5=2,IF(ISERROR(VLOOKUP(B8,入力AA1!$B$8:$CY$258,オフセット番号A!$J$8+1))=TRUE,"",VLOOKUP(B8,入力AA1!$B$8:$CY$258,オフセット番号A!$J$8+1)),"*")) -> 0 | K100: =IF($F$5=1,項目表示入力!$K$10,IF($F$5=2,IF(ISERROR(VLOOKUP(B8,入力AA1!$B$8:$CY$258,オフセット番号A!$K$8+1))=TRUE,"",VLOOKUP(B8,入力AA1!$B$8:$CY$258,オフセット番号A!$K$8+1)),"*")) -> 0 | L100: =IF($F$5=1,項目表示入力!$L$10,IF($F$5=2,IF(ISERROR(VLOOKUP(B8,入力AA1!$B$8:$CY$258,オフセット番号A!$L$8+1))=TRUE,"",VLOOKUP(B8,入力AA1!$B$8:$CY$258,オフセット番号A!$L$8+1)),"*")) -> 0 | M100: =IF($F$5=1,項目表示入力!$M$10,IF($F$5=2,IF(ISERROR(VLOOKUP(B8,入力AA1!$B$8:$CY$258,オフセット番号A!$M$8+1))=TRUE,"",VLOOKUP(B8,入力AA1!$B$8:$CY$258,オフセット番号A!$M$8+1)),"*")) -> 0 | N100: =IF($F$5=1,項目表示入力!$N$10,IF($F$5=2,IF(ISERROR(VLOOKUP(B8,入力AA1!$B$8:$CY$258,オフセット番号A!$N$8+1))=TRUE,"",VLOOKUP(B8,入力AA1!$B$8:$CY$258,オフセット番号A!$N$8+1)),"*")) -> 0 | O100: =IF($F$5=1,項目表示入力!$O$10,IF($F$5=2,IF(ISERROR(VLOOKUP(B8,入力AA1!$B$8:$CY$258,オフセット番号A!$O$8+1))=TRUE,"",VLOOKUP(B8,入力AA1!$B$8:$CY$258,オフセット番号A!$O$8+1)),"*")) -> 0 | P100: =IF($F$5=1,項目表示入力!$P$10,IF($F$5=2,IF(ISERROR(VLOOKUP(B8,入力AA1!$B$8:$CY$258,オフセット番号A!$P$8+1))=TRUE,"",VLOOKUP(B8,入力AA1!$B$8:$CY$258,オフセット番号A!$P$8+1)),"*")) -> 0 | Q100: =IF($F$5=1,項目表示入力!$Q$10,IF($F$5=2,IF(ISERROR(VLOOKUP(B8,入力AA1!$B$8:$CY$258,オフセット番号A!$Q$8+1))=TRUE,"",VLOOKUP(B8,入力AA1!$B$8:$CY$258,オフセット番号A!$Q$8+1)),"*")) -> 0 | R100: =IF($F$5=1,項目表示入力!$R$10,IF($F$5=2,IF(ISERROR(VLOOKUP(B8,入力AA1!$B$8:$CY$258,オフセット番号A!$R$8+1))=TRUE,"",VLOOKUP(B8,入力AA1!$B$8:$CY$258,オフセット番号A!$R$8+1)),"*")) -> 0 | S100: =IF($F$5=1,項目表示入力!$S$10,IF($F$5=2,IF(ISERROR(VLOOKUP(B8,入力AA1!$B$8:$CY$258,オフセット番号A!$S$8+1))=TRUE,"",VLOOKUP(B8,入力AA1!$B$8:$CY$258,オフセット番号A!$S$8+1)),"*")) -> 0 | T100: =IF($F$5=1,項目表示入力!$T$10,IF($F$5=2,IF(ISERROR(VLOOKUP(B8,入力AA1!$B$8:$CY$258,オフセット番号A!$T$8+1))=TRUE,"",VLOOKUP(B8,入力AA1!$B$8:$CY$258,オフセット番号A!$T$8+1)),"*")) -> 0 | U100: =IF($F$5=1,項目表示入力!$U$10,IF($F$5=2,IF(ISERROR(VLOOKUP(B8,入力AA1!$B$8:$CY$258,オフセット番号A!$U$8+1))=TRUE,"",VLOOKUP(B8,入力AA1!$B$8:$CY$258,オフセット番号A!$U$8+1)),"*")) -> 0 | V100: =IF($F$5=1,項目表示入力!$V$10,IF($F$5=2,IF(ISERROR(VLOOKUP(B8,入力AA1!$B$8:$CY$258,オフセット番号A!$V$8+1))=TRUE,"",VLOOKUP(B8,入力AA1!$B$8:$CY$258,オフセット番号A!$V$8+1)),"*")) -> 0
B101: =IF(行列入力項目!$C$9="","",行列入力項目!$C$9) -> 行5 | C101: =IF($F$5=1,項目表示入力!$C$11,IF($F$5=2,IF(ISERROR(VLOOKUP(B8,入力AA1!$B$8:$CY$258,オフセット番号A!$C$9+1))=TRUE,"",VLOOKUP(B8,入力AA1!$B$8:$CY$258,オフセット番号A!$C$9+1)),"*")) -> 14266 | D101: =IF($F$5=1,項目表示入力!$D$11,IF($F$5=2,IF(ISERROR(VLOOKUP(B8,入力AA1!$B$8:$CY$258,オフセット番号A!$D$9+1))=TRUE,"",VLOOKUP(B8,入力AA1!$B$8:$CY$258,オフセット番号A!$D$9+1)),"*")) -> 2320 | E101: =IF($F$5=1,項目表示入力!$E$11,IF($F$5=2,IF(ISERROR(VLOOKUP(B8,入力AA1!$B$8:$CY$258,オフセット番号A!$E$9+1))=TRUE,"",VLOOKUP(B8,入力AA1!$B$8:$CY$258,オフセット番号A!$E$9+1)),"*")) -> 16586 | F101: =IF($F$5=1,項目表示入力!$F$11,IF($F$5=2,IF(ISERROR(VLOOKUP(B8,入力AA1!$B$8:$CY$258,オフセット番号A!$F$9+1))=TRUE,"",VLOOKUP(B8,入力AA1!$B$8:$CY$258,オフセット番号A!$F$9+1)),"*")) -> 101125 | G101: =IF($F$5=1,項目表示入力!$G$11,IF($F$5=2,IF(ISERROR(VLOOKUP(B8,入力AA1!$B$8:$CY$258,オフセット番号A!$G$9+1))=TRUE,"",VLOOKUP(B8,入力AA1!$B$8:$CY$258,オフセット番号A!$G$9+1)),"*")) -> 0 | H101: =IF($F$5=1,項目表示入力!$H$11,IF($F$5=2,IF(ISERROR(VLOOKUP(B8,入力AA1!$B$8:$CY$258,オフセット番号A!$H$9+1))=TRUE,"",VLOOKUP(B8,入力AA1!$B$8:$CY$258,オフセット番号A!$H$9+1)),"*")) -> 0 | I101: =IF($F$5=1,項目表示入力!$I$11,IF($F$5=2,IF(ISERROR(VLOOKUP(B8,入力AA1!$B$8:$CY$258,オフセット番号A!$I$9+1))=TRUE,"",VLOOKUP(B8,入力AA1!$B$8:$CY$258,オフセット番号A!$I$9+1)),"*")) -> 101125 | J101: =IF($F$5=1,項目表示入力!$J$11,IF($F$5=2,IF(ISERROR(VLOOKUP(B8,入力AA1!$B$8:$CY$258,オフセット番号A!$J$9+1))=TRUE,"",VLOOKUP(B8,入力AA1!$B$8:$CY$258,オフセット番号A!$J$9+1)),"*")) -> 0 | K101: =IF($F$5=1,項目表示入力!$K$11,IF($F$5=2,IF(ISERROR(VLOOKUP(B8,入力AA1!$B$8:$CY$258,オフセット番号A!$K$9+1))=TRUE,"",VLOOKUP(B8,入力AA1!$B$8:$CY$258,オフセット番号A!$K$9+1)),"*")) -> 0 | L101: =IF($F$5=1,項目表示入力!$L$11,IF($F$5=2,IF(ISERROR(VLOOKUP(B8,入力AA1!$B$8:$CY$258,オフセット番号A!$L$9+1))=TRUE,"",VLOOKUP(B8,入力AA1!$B$8:$CY$258,オフセット番号A!$L$9+1)),"*")) -> 0 | M101: =IF($F$5=1,項目表示入力!$M$11,IF($F$5=2,IF(ISERROR(VLOOKUP(B8,入力AA1!$B$8:$CY$258,オフセット番号A!$M$9+1))=TRUE,"",VLOOKUP(B8,入力AA1!$B$8:$CY$258,オフセット番号A!$M$9+1)),"*")) -> 0 | N101: =IF($F$5=1,項目表示入力!$N$11,IF($F$5=2,IF(ISERROR(VLOOKUP(B8,入力AA1!$B$8:$CY$258,オフセット番号A!$N$9+1))=TRUE,"",VLOOKUP(B8,入力AA1!$B$8:$CY$258,オフセット番号A!$N$9+1)),"*")) -> 0 | O101: =IF($F$5=1,項目表示入力!$O$11,IF($F$5=2,IF(ISERROR(VLOOKUP(B8,入力AA1!$B$8:$CY$258,オフセット番号A!$O$9+1))=TRUE,"",VLOOKUP(B8,入力AA1!$B$8:$CY$258,オフセット番号A!$O$9+1)),"*")) -> 0 | P101: =IF($F$5=1,項目表示入力!$P$11,IF($F$5=2,IF(ISERROR(VLOOKUP(B8,入力AA1!$B$8:$CY$258,オフセット番号A!$P$9+1))=TRUE,"",VLOOKUP(B8,入力AA1!$B$8:$CY$258,オフセット番号A!$P$9+1)),"*")) -> 0 | Q101: =IF($F$5=1,項目表示入力!$Q$11,IF($F$5=2,IF(ISERROR(VLOOKUP(B8,入力AA1!$B$8:$CY$258,オフセット番号A!$Q$9+1))=TRUE,"",VLOOKUP(B8,入力AA1!$B$8:$CY$258,オフセット番号A!$Q$9+1)),"*")) -> 0 | R101: =IF($F$5=1,項目表示入力!$R$11,IF($F$5=2,IF(ISERROR(VLOOKUP(B8,入力AA1!$B$8:$CY$258,オフセット番号A!$R$9+1))=TRUE,"",VLOOKUP(B8,入力AA1!$B$8:$CY$258,オフセット番号A!$R$9+1)),"*")) -> 0 | S101: =IF($F$5=1,項目表示入力!$S$11,IF($F$5=2,IF(ISERROR(VLOOKUP(B8,入力AA1!$B$8:$CY$258,オフセット番号A!$S$9+1))=TRUE,"",VLOOKUP(B8,入力AA1!$B$8:$CY$258,オフセット番号A!$S$9+1)),"*")) -> 0 | T101: =IF($F$5=1,項目表示入力!$T$11,IF($F$5=2,IF(ISERROR(VLOOKUP(B8,入力AA1!$B$8:$CY$258,オフセット番号A!$T$9+1))=TRUE,"",VLOOKUP(B8,入力AA1!$B$8:$CY$258,オフセット番号A!$T$9+1)),"*")) -> 0 | U101: =IF($F$5=1,項目表示入力!$U$11,IF($F$5=2,IF(ISERROR(VLOOKUP(B8,入力AA1!$B$8:$CY$258,オフセット番号A!$U$9+1))=TRUE,"",VLOOKUP(B8,入力AA1!$B$8:$CY$258,オフセット番号A!$U$9+1)),"*")) -> 0 | V101: =IF($F$5=1,項目表示入力!$V$11,IF($F$5=2,IF(ISERROR(VLOOKUP(B8,入力AA1!$B$8:$CY$258,オフセット番号A!$V$9+1))=TRUE,"",VLOOKUP(B8,入力AA1!$B$8:$CY$258,オフセット番号A!$V$9+1)),"*")) -> 0

Sheet 学年積立金の返金並びに返金振込口座の確認フォーム
B2: =シート名設定!C38 -> 学年積立金の返金並びに返金振込口座の確認フォーム
A5: 入力項目表示と データー表示の切替 → | E5: 2
A6: 入力項目表示は1， データ表示は2を入力
A9: 1 | B9: =IF(ISERR(VLOOKUP(A9,入力AA1!$B$8:$CY$258,2))=1,"",VLOOKUP(A9,入力AA1!$B$8:$CY$258,2)) -> 対象1
K12: 平成２８年１２月７日（水）
D14: ="生徒 第３学年 " &D50&" 組 "&E50&" 番 氏名 "&F50 -> 生徒 第３学年 1 組 1 番 氏名 生徒氏名1 | N14: 口 座 確 認 報 告 書
D15: 保 護 者 様
R16: =D14 -> 生徒 第３学年 1 組 1 番 氏名 生徒氏名1
R17: 保護者氏名 印
I18: ○○県立××高等学校
I19: 校長 ○○○○
I20: 第３学年主任 ○○○○ | N20: １ 訂正の有無
I21: 第３学年会計担当 ○○○○
L22: 切り取り線 | P22: 訂正なし 訂正あり
N24: ２ 授業料等の振替口座内容の訂正
D25: 学年積立金の返金並びに返金振込口座の確認について | N25: * 誤りのある項目のみを訂正して下さい。
D27: 寒冷の候、保護者の皆様には益々ご健勝のこととお慶び申し上げます。 はやいもので、卒業式まで残すところあと数ヶ月となりました。学年では、卒業式に向けてさまざまな準備をすすめているところでございます。 学年会計につきましても、今後、最終的な処理を行い、卒業式までには詳細をご報告させていただきますが、現時点では、お子さんによって額は異なりますが、１人あたり平均７万円台の残金が見込まれております。当該残金の返金につきましては、卒業式後、これまで利用されていた授業料等の振替口座に振り込ませていただく予定でおります。 つきましては、返金事務処理がスムーズに行くよう、現在の授業料等の振替口座の確認をお願いいたします。下記 ２ 授業料等の振替口座の内容 の口座名義人（預金者）、金融機関名、支店名、預金種目、口座番号を本校に既にご提出いただいている「○○県立学校入学料・授業料等口座振替納付届」の控並びに当該口座の通帳でよく確認され、その結果誤りがなければ、右「口座確認報告書」の １ 訂正の有無 の「訂正なし」に○をつけ、誤りがある場合には、「訂正あり」に○をつけ、更に、 ２ 授業料等の振替口座内容の訂正 の「訂正後」の欄に記入のうえ（訂正のある項目のみ記入）、お子様を通して、下記提出期限までに「口座確認報告書」をクラス担任まで必ずご提出下さい。 なお、返金事務処理が完了するには、平成２８年の４月いっぱいはかかる見通しです。返金事務処理の都合上、いま授業料等の振替に利用されている口座は、平成２８年の４月いっぱいは解約されないよう、併せてお願いいたします。 以上 | Q27: 訂正前 | T27: 訂正後
O28: 口座名義人 （預金者） | Q28: =G40 -> 預金者氏名1
O29: 金融機関名 | Q29: =G41 -> なんとか銀行1
O30: 支店名 | Q30: =G42 -> なんとか支店1
O31: 預金種目 | Q31: =G43 -> 普通
O32: 口座番号 | Q32: =G44 -> ******1
D34: 記
D36: １ 提出期限 平成２８年１２月２０日（火） | O36: ＜注 意＞ ①平成２８年１２月２０日（火）までにご提出下さい。 ②訂正の有無にかかわらず、すべての生徒さんにお出しいただきます。 ③直接「埼玉県立学校入学料・授業料等口座振替納付届」の控、通帳でよくご確 認下さい。 ④市町村合併に伴い、金融機関の合併による名称変更、支店の統廃合による支店 名、口座番号の変更のあるところも考えられますので、それぞれの金融機関に 照会し、よくご確認下さい。
D38: ２ 授業料等の振替口座の内容
E40: 口座名義人 （預金者） | G40: =M50 -> 預金者氏名1
E41: 金融機関名 | G41: =R50 -> なんとか銀行1
E42: 支店名 | G42: =S50 -> なんとか支店1
E43: 預金種目 | G43: =U50 -> 普通
E44: 口座番号 | G44: =V50 -> ******1
C49: =IF(オフセット番号A!$C$4="","",オフセット番号A!$C$4) -> 列1 | D49: =IF(オフセット番号A!$D$4="","",オフセット番号A!$D$4) -> 列2 | E49: =IF(オフセット番号A!$E$4="","",オフセット番号A!$E$4) -> 列3 | F49: =IF(オフセット番号A!$F$4="","",オフセット番号A!$F$4) -> 列4 | G49: =IF(オフセット番号A!$G$4="","",オフセット番号A!$G$4) -> 列5 | H49: =IF(オフセット番号A!$H$4="","",オフセット番号A!$H$4) -> 列6 | I49: =IF(オフセット番号A!$I$4="","",オフセット番号A!$I$4) -> 列7 | J49: =IF(オフセット番号A!$J$4="","",オフセット番号A!$J$4) -> 列8 | K49: =IF(オフセット番号A!$K$4="","",オフセット番号A!$K$4) -> 列9 | L49: =IF(オフセット番号A!$L$4="","",オフセット番号A!$L$4) -> 列10 | M49: =IF(オフセット番号A!$M$4="","",オフセット番号A!$M$4) -> 列11 | N49: =IF(オフセット番号A!$N$4="","",オフセット番号A!$N$4) -> 列12 | O49: =IF(オフセット番号A!$O$4="","",オフセット番号A!$O$4) -> 列13 | P49: =IF(オフセット番号A!$P$4="","",オフセット番号A!$P$4) -> 列14 | Q49: =IF(オフセット番号A!$Q$4="","",オフセット番号A!$Q$4) -> 列15 | R49: =IF(オフセット番号A!$R$4="","",オフセット番号A!$R$4) -> 列16 | S49: =IF(オフセット番号A!$S$4="","",オフセット番号A!$S$4) -> 列17 | T49: =IF(オフセット番号A!$T$4="","",オフセット番号A!$T$4) -> 列18 | U49: =IF(オフセット番号A!$U$4="","",オフセット番号A!$U$4) -> 列19 | V49: =IF(オフセット番号A!$V$4="","",オフセット番号A!$V$4) -> 列20
B50: =IF(行列入力項目!$C$5="","",行列入力項目!$C$5) -> 行1 | C50: =IF($E$5=1,項目表示入力!$C$7,IF($E$5=2,IF(ISERROR(VLOOKUP(A9,入力AA1!$B$8:$CY$258,オフセット番号A!$C$5+1))=TRUE,"",VLOOKUP(A9,入力AA1!$B$8:$CY$258,オフセット番号A!$C$5+1)),"*")) -> 3101 | D50: =IF($E$5=1,項目表示入力!$D$7,IF($E$5=2,IF(ISERROR(VLOOKUP(A9,入力AA1!$B$8:$CY$258,オフセット番号A!$D$5+1))=TRUE,"",VLOOKUP(A9,入力AA1!$B$8:$CY$258,オフセット番号A!$D$5+1)),"*")) -> 1 | E50: =IF($E$5=1,項目表示入力!$E$7,IF($E$5=2,IF(ISERROR(VLOOKUP(A9,入力AA1!$B$8:$CY$258,オフセット番号A!$E$5+1))=TRUE,"",VLOOKUP(A9,入力AA1!$B$8:$CY$258,オフセット番号A!$E$5+1)),"*")) -> 1 | F50: =IF($E$5=1,項目表示入力!$F$7,IF($E$5=2,IF(ISERROR(VLOOKUP(A9,入力AA1!$B$8:$CY$258,オフセット番号A!$F$5+1))=TRUE,"",VLOOKUP(A9,入力AA1!$B$8:$CY$258,オフセット番号A!$F$5+1)),"*")) -> 生徒氏名1 | G50: =IF($E$5=1,項目表示入力!$G$7,IF($E$5=2,IF(ISERROR(VLOOKUP(A9,入力AA1!$B$8:$CY$258,オフセット番号A!$G$5+1))=TRUE,"",VLOOKUP(A9,入力AA1!$B$8:$CY$258,オフセット番号A!$G$5+1)),"*")) -> フリガナ1 | H50: =IF($E$5=1,項目表示入力!$H$7,IF($E$5=2,IF(ISERROR(VLOOKUP(A9,入力AA1!$B$8:$CY$258,オフセット番号A!$H$5+1))=TRUE,"",VLOOKUP(A9,入力AA1!$B$8:$CY$258,オフセット番号A!$H$5+1)),"*")) -> 男 | I50: =IF($E$5=1,項目表示入力!$I$7,IF($E$5=2,IF(ISERROR(VLOOKUP(A9,入力AA1!$B$8:$CY$258,オフセット番号A!$I$5+1))=TRUE,"",VLOOKUP(A9,入力AA1!$B$8:$CY$258,オフセット番号A!$I$5+1)),"*")) -> 保護者氏名1 | J50: =IF($E$5=1,項目表示入力!$J$7,IF($E$5=2,IF(ISERROR(VLOOKUP(A9,入力AA1!$B$8:$CY$258,オフセット番号A!$J$5+1))=TRUE,"",VLOOKUP(A9,入力AA1!$B$8:$CY$258,オフセット番号A!$J$5+1)),"*")) -> 郵便番号1 | K50: =IF($E$5=1,項目表示入力!$K$7,IF($E$5=2,IF(ISERROR(VLOOKUP(A9,入力AA1!$B$8:$CY$258,オフセット番号A!$K$5+1))=TRUE,"",VLOOKUP(A9,入力AA1!$B$8:$CY$258,オフセット番号A!$K$5+1)),"*")) -> ○○市×××町1-1-1 | L50: =IF($E$5=1,項目表示入力!$L$7,IF($E$5=2,IF(ISERROR(VLOOKUP(A9,入力AA1!$B$8:$CY$258,オフセット番号A!$L$5+1))=TRUE,"",VLOOKUP(A9,入力AA1!$B$8:$CY$258,オフセット番号A!$L$5+1)),"*")) -> 0 | M50: =IF($E$5=1,項目表示入力!$M$7,IF($E$5=2,IF(ISERROR(VLOOKUP(A9,入力AA1!$B$8:$CY$258,オフセット番号A!$M$5+1))=TRUE,"",VLOOKUP(A9,入力AA1!$B$8:$CY$258,オフセット番号A!$M$5+1)),"*")) -> 預金者氏名1 | N50: =IF($E$5=1,項目表示入力!$N$7,IF($E$5=2,IF(ISERROR(VLOOKUP(A9,入力AA1!$B$8:$CY$258,オフセット番号A!$N$5+1))=TRUE,"",VLOOKUP(A9,入力AA1!$B$8:$CY$258,オフセット番号A!$N$5+1)),"*")) -> 預金者フリガナ1 | O50: =IF($E$5=1,項目表示入力!$O$7,IF($E$5=2,IF(ISERROR(VLOOKUP(A9,入力AA1!$B$8:$CY$258,オフセット番号A!$O$5+1))=TRUE,"",VLOOKUP(A9,入力AA1!$B$8:$CY$258,オフセット番号A!$O$5+1)),"*")) -> 預金者郵便番号1 | P50: =IF($E$5=1,項目表示入力!$P$7,IF($E$5=2,IF(ISERROR(VLOOKUP(A9,入力AA1!$B$8:$CY$258,オフセット番号A!$P$5+1))=TRUE,"",VLOOKUP(A9,入力AA1!$B$8:$CY$258,オフセット番号A!$P$5+1)),"*")) -> 預金者住所1 | Q50: =IF($E$5=1,項目表示入力!$Q$7,IF($E$5=2,IF(ISERROR(VLOOKUP(A9,入力AA1!$B$8:$CY$258,オフセット番号A!$Q$5+1))=TRUE,"",VLOOKUP(A9,入力AA1!$B$8:$CY$258,オフセット番号A!$Q$5+1)),"*")) -> ***-000-0001 | R50: =IF($E$5=1,項目表示入力!$R$7,IF($E$5=2,IF(ISERROR(VLOOKUP(A9,入力AA1!$B$8:$CY$258,オフセット番号A!$R$5+1))=TRUE,"",VLOOKUP(A9,入力AA1!$B$8:$CY$258,オフセット番号A!$R$5+1)),"*")) -> なんとか銀行1 | S50: =IF($E$5=1,項目表示入力!$S$7,IF($E$5=2,IF(ISERROR(VLOOKUP(A9,入力AA1!$B$8:$CY$258,オフセット番号A!$S$5+1))=TRUE,"",VLOOKUP(A9,入力AA1!$B$8:$CY$258,オフセット番号A!$S$5+1)),"*")) -> なんとか支店1 | T50: =IF($E$5=1,項目表示入力!$T$7,IF($E$5=2,IF(ISERROR(VLOOKUP(A9,入力AA1!$B$8:$CY$258,オフセット番号A!$T$5+1))=TRUE,"",VLOOKUP(A9,入力AA1!$B$8:$CY$258,オフセット番号A!$T$5+1)),"*")) -> なんとか銀行1なんとか支店1 | U50: =IF($E$5=1,項目表示入力!$U$7,IF($E$5=2,IF(ISERROR(VLOOKUP(A9,入力AA1!$B$8:$CY$258,オフセット番号A!$U$5+1))=TRUE,"",VLOOKUP(A9,入力AA1!$B$8:$CY$258,オフセット番号A!$U$5+1)),"*")) -> 普通 | V50: =IF($E$5=1,項目表示入力!$V$7,IF($E$5=2,IF(ISERROR(VLOOKUP(A9,入力AA1!$B$8:$CY$258,オフセット番号A!$V$5+1))=TRUE,"",VLOOKUP(A9,入力AA1!$B$8:$CY$258,オフセット番号A!$V$5+1)),"*")) -> ******1
B51: =IF(行列入力項目!$C$6="","",行列入力項目!$C$6) -> 行2 | C51: =IF($E$5=1,項目表示入力!$C$8,IF($E$5=2,IF(ISERROR(VLOOKUP(A9,入力AA1!$B$8:$CY$258,オフセット番号A!$C$6+1))=TRUE,"",VLOOKUP(A9,入力AA1!$B$8:$CY$258,オフセット番号A!$C$6+1)),"*")) -> 514 | D51: =IF($E$5=1,項目表示入力!$D$8,IF($E$5=2,IF(ISERROR(VLOOKUP(A9,入力AA1!$B$8:$CY$258,オフセット番号A!$D$6+1))=TRUE,"",VLOOKUP(A9,入力AA1!$B$8:$CY$258,オフセット番号A!$D$6+1)),"*")) -> 161 | E51: =IF($E$5=1,項目表示入力!$E$8,IF($E$5=2,IF(ISERROR(VLOOKUP(A9,入力AA1!$B$8:$CY$258,オフセット番号A!$E$6+1))=TRUE,"",VLOOKUP(A9,入力AA1!$B$8:$CY$258,オフセット番号A!$E$6+1)),"*")) -> 258 | F51: =IF($E$5=1,項目表示入力!$F$8,IF($E$5=2,IF(ISERROR(VLOOKUP(A9,入力AA1!$B$8:$CY$258,オフセット番号A!$F$6+1))=TRUE,"",VLOOKUP(A9,入力AA1!$B$8:$CY$258,オフセット番号A!$F$6+1)),"*")) -> 1510 | G51: =IF($E$5=1,項目表示入力!$G$8,IF($E$5=2,IF(ISERROR(VLOOKUP(A9,入力AA1!$B$8:$CY$258,オフセット番号A!$G$6+1))=TRUE,"",VLOOKUP(A9,入力AA1!$B$8:$CY$258,オフセット番号A!$G$6+1)),"*")) -> 535 | H51: =IF($E$5=1,項目表示入力!$H$8,IF($E$5=2,IF(ISERROR(VLOOKUP(A9,入力AA1!$B$8:$CY$258,オフセット番号A!$H$6+1))=TRUE,"",VLOOKUP(A9,入力AA1!$B$8:$CY$258,オフセット番号A!$H$6+1)),"*")) -> 100 | I51: =IF($E$5=1,項目表示入力!$I$8,IF($E$5=2,IF(ISERROR(VLOOKUP(A9,入力AA1!$B$8:$CY$258,オフセット番号A!$I$6+1))=TRUE,"",VLOOKUP(A9,入力AA1!$B$8:$CY$258,オフセット番号A!$I$6+1)),"*")) -> 1000 | J51: =IF($E$5=1,項目表示入力!$J$8,IF($E$5=2,IF(ISERROR(VLOOKUP(A9,入力AA1!$B$8:$CY$258,オフセット番号A!$J$6+1))=TRUE,"",VLOOKUP(A9,入力AA1!$B$8:$CY$258,オフセット番号A!$J$6+1)),"*")) -> 900 | K51: =IF($E$5=1,項目表示入力!$K$8,IF($E$5=2,IF(ISERROR(VLOOKUP(A9,入力AA1!$B$8:$CY$258,オフセット番号A!$K$6+1))=TRUE,"",VLOOKUP(A9,入力AA1!$B$8:$CY$258,オフセット番号A!$K$6+1)),"*")) -> 200 | L51: =IF($E$5=1,項目表示入力!$L$8,IF($E$5=2,IF(ISERROR(VLOOKUP(A9,入力AA1!$B$8:$CY$258,オフセット番号A!$L$6+1))=TRUE,"",VLOOKUP(A9,入力AA1!$B$8:$CY$258,オフセット番号A!$L$6+1)),"*")) -> 8190 | M51: =IF($E$5=1,項目表示入力!$M$8,IF($E$5=2,IF(ISERROR(VLOOKUP(A9,入力AA1!$B$8:$CY$258,オフセット番号A!$M$6+1))=TRUE,"",VLOOKUP(A9,入力AA1!$B$8:$CY$258,オフセット番号A!$M$6+1)),"*")) -> 218 | N51: =IF($E$5=1,項目表示入力!$N$8,IF($E$5=2,IF(ISERROR(VLOOKUP(A9,入力AA1!$B$8:$CY$258,オフセット番号A!$N$6+1))=TRUE,"",VLOOKUP(A9,入力AA1!$B$8:$CY$258,オフセット番号A!$N$6+1)),"*")) -> 680 | O51: =IF($E$5=1,項目表示入力!$O$8,IF($E$5=2,IF(ISERROR(VLOOKUP(A9,入力AA1!$B$8:$CY$258,オフセット番号A!$O$6+1))=TRUE,"",VLOOKUP(A9,入力AA1!$B$8:$CY$258,オフセット番号A!$O$6+1)),"*")) -> 110 | P51: =IF($E$5=1,項目表示入力!$P$8,IF($E$5=2,IF(ISERROR(VLOOKUP(A9,入力AA1!$B$8:$CY$258,オフセット番号A!$P$6+1))=TRUE,"",VLOOKUP(A9,入力AA1!$B$8:$CY$258,オフセット番号A!$P$6+1)),"*")) -> 526 | Q51: =IF($E$5=1,項目表示入力!$Q$8,IF($E$5=2,IF(ISERROR(VLOOKUP(A9,入力AA1!$B$8:$CY$258,オフセット番号A!$Q$6+1))=TRUE,"",VLOOKUP(A9,入力AA1!$B$8:$CY$258,オフセット番号A!$Q$6+1)),"*")) -> 268 | R51: =IF($E$5=1,項目表示入力!$R$8,IF($E$5=2,IF(ISERROR(VLOOKUP(A9,入力AA1!$B$8:$CY$258,オフセット番号A!$R$6+1))=TRUE,"",VLOOKUP(A9,入力AA1!$B$8:$CY$258,オフセット番号A!$R$6+1)),"*")) -> 800 | S51: =IF($E$5=1,項目表示入力!$S$8,IF($E$5=2,IF(ISERROR(VLOOKUP(A9,入力AA1!$B$8:$CY$258,オフセット番号A!$S$6+1))=TRUE,"",VLOOKUP(A9,入力AA1!$B$8:$CY$258,オフセット番号A!$S$6+1)),"*")) -> 621 | T51: =IF($E$5=1,項目表示入力!$T$8,IF($E$5=2,IF(ISERROR(VLOOKUP(A9,入力AA1!$B$8:$CY$258,オフセット番号A!$T$6+1))=TRUE,"",VLOOKUP(A9,入力AA1!$B$8:$CY$258,オフセット番号A!$T$6+1)),"*")) -> 343 | U51: =IF($E$5=1,項目表示入力!$U$8,IF($E$5=2,IF(ISERROR(VLOOKUP(A9,入力AA1!$B$8:$CY$258,オフセット番号A!$U$6+1))=TRUE,"",VLOOKUP(A9,入力AA1!$B$8:$CY$258,オフセット番号A!$U$6+1)),"*")) -> 5000 | V51: =IF($E$5=1,項目表示入力!$V$8,IF($E$5=2,IF(ISERROR(VLOOKUP(A9,入力AA1!$B$8:$CY$258,オフセット番号A!$V$6+1))=TRUE,"",VLOOKUP(A9,入力AA1!$B$8:$CY$258,オフセット番号A!$V$6+1)),"*")) -> 10
